Workbook

Sheet ACS_Notes (hidden)
A1: NOTES:
A4: Data are based on a sample and are subject to sampling variability. The degree of uncertainty for an estimate arising from sampling variability is represented through the use of a margin of error. The value shown here is the 90 percent margin of error. The margin of error can be interpreted roughly as providing a 90 percent probability that the interval defined by the estimate minus the margin of error and the estimate plus the margin of error (the lower and upper confidence bounds) contains the true value. In addition to sampling variability, the ACS estimates are subject to nonsampling error (for a discussion of nonsampling variability, see Accuracy of the Data). The effect of nonsampling error is not represented in these tables.
A8: In addition to sampling variability, the ACS estimates are subject to nonsampling error (for a discussion of nonsampling variability, see Accuracy of the Data. The link is located at the end of this worksheet.). The effect of nonsampling error is not represented in these tables.
A11: While the 2005-2009 American Community Survey (ACS) data generally reflect the November 2008 Office of Management and Budget (OMB) definitions of metropolitan and micropolitan statistical areas; in certain instances the names, codes, and boundaries of the principal cities shown in ACS tables may differ from the OMB definitions due to differences in the effective dates of the geographic entities.
A15: Estimates of urban and rural population, housing units, and characteristics reflect boundaries of urban areas defined based on Census 2000 data. Boundaries for urban areas have not been updated since Census 2000. As a result, data for urban and rural areas from the ACS do not necessarily reflect the results of ongoing urbanization.
A17: Explanation of Symbols:
A19: 1. An '**' entry in the margin of error column indicates that either no sample observations or too few sample observations were available to compute a standard error and thus the margin of error. A statistical test is not appropriate.
A21: 2. An '-' entry in the estimate column indicates that either no sample observations or too few sample observations were available to compute an estimate, or a ratio of medians cannot be calculated because one or both of the median estimates falls in the lowest interval or upper interval of an open-ended distribution.
A23: 3. An '-' following a median estimate means the median falls in the lowest interval of an open-ended distribution.
A24: 4. An '+' following a median estimate means the median falls in the upper interval of an open-ended distribution.
A25: 5. An '***' entry in the margin of error column indicates that the median falls in the lowest interval or upper interval of an open-ended distribution. A statistical test is not appropriate.
A26: 6. An '*****' entry in the margin of error column indicates that the estimate is controlled. A statistical test for sampling variability is not appropriate.
A28: Accuracy of Data

Sheet StartInstruction
A1: Demographic Profiles for Municipalities in Grafton County
A3: To view or print a Demographic Profile follow the steps below
A6: Step 1. | C6: Select the municipality you wish to
C7: Profile from the drop down box below.
A11: Step 2. | C11: Click one of the profile topic buttons below to review or print
C12: the information for the selected geography.
C13: Don't forget to adjust the axis on charts as necessary.
N28: Updated: | P28: 2023-12-11
N30: Next Update: | P30: Spring 2024 Annual Employment Date

Sheet ACS_Table_B08303 (hidden)
B1: B08303: TRAVEL TIME TO WORK
B2: Universe: Workers 16 years and over who did not work at home
B3: Data Set: 2006-2010 American Community Survey 3-Year Estimates
C5: Alexandria | E5: Ashland | G5: Bath | I5: Benton | K5: Bethlehem | M5: Bridgewater | O5: Bristol | Q5: Campton | S5: Canaan | U5: Dorchester | W5: Easton | Y5: Ellsworth | AA5: Enfield | AC5: Franconia | AE5: Grafton | AG5: Groton | AI5: Hanover | AK5: Haverhill | AM5: Hebron | AO5: Holderness | AQ5: Landaff | AS5: Lebanon | AU5: Lincoln | AW5: Lisbon | AY5: Littleton | BA5: Livermore | BC5: Lyman | BE5: Lyme | BG5: Monroe | BI5: Orange | BK5: Orford | BM5: Piermont | BO5: Plymouth | BQ5: Rumney | BS5: Sugar Hill | BU5: Thornton | BW5: Warren | BY5: Waterville Valley | CA5: Wentworth | CC5: Woodstock
C6: Esitimate | D6: Margin Of Error | E6: Esitimate | F6: Margin Of Error | G6: Esitimate | H6: Margin Of Error | I6: Esitimate | J6: Margin Of Error | K6: Esitimate | L6: Margin Of Error | M6: Esitimate | N6: Margin Of Error | O6: Esitimate | P6: Margin Of Error | Q6: Esitimate | R6: Margin Of Error | S6: Esitimate | T6: Margin Of Error | U6: Esitimate | V6: Margin Of Error | W6: Esitimate | X6: Margin Of Error | Y6: Esitimate | Z6: Margin Of Error | AA6: Esitimate | AB6: Margin Of Error | AC6: Esitimate | AD6: Margin Of Error | AE6: Esitimate | AF6: Margin Of Error | AG6: Esitimate | AH6: Margin Of Error | AI6: Esitimate | AJ6: Margin Of Error | AK6: Esitimate | AL6: Margin Of Error | AM6: Esitimate | AN6: Margin Of Error | AO6: Esitimate | AP6: Margin Of Error | AQ6: Esitimate | AR6: Margin Of Error | AS6: Esitimate | AT6: Margin Of Error | AU6: Esitimate | AV6: Margin Of Error | AW6: Esitimate | AX6: Margin Of Error | AY6: Esitimate | AZ6: Margin Of Error | BA6: Esitimate | BB6: Margin Of Error | BC6: Esitimate | BD6: Margin Of Error | BE6: Esitimate | BF6: Margin Of Error | BG6: Esitimate | BH6: Margin Of Error | BI6: Esitimate | BJ6: Margin Of Error | BK6: Esitimate | BL6: Margin Of Error | BM6: Esitimate | BN6: Margin Of Error | BO6: Esitimate | BP6: Margin Of Error | BQ6: Esitimate | BR6: Margin Of Error | BS6: Esitimate | BT6: Margin Of Error | BU6: Esitimate | BV6: Margin Of Error | BW6: Esitimate | BX6: Margin Of Error | BY6: Esitimate | BZ6: Margin Of Error | CA6: Esitimate | CB6: Margin Of Error | CC6: Esitimate | CD6: Margin Of Error
B7: Population Older than 16 not working at hom | C7: 784 | D7: 91 | E7: 923 | F7: 169 | G7: 464 | H7: 105 | I7: 113 | J7: 36 | K7: 963 | L7: 170 | M7: 523 | N7: 143 | O7: 1506 | P7: 151 | Q7: 2018 | R7: 241 | S7: 1765 | T7: 250 | U7: 138 | V7: 35 | W7: 170 | X7: 124 | Y7: 14 | Z7: 14 | AA7: 2131 | AB7: 324 | AC7: 377 | AD7: 95 | AE7: 482 | AF7: 86 | AG7: 194 | AH7: 66 | AI7: 3375 | AJ7: 298 | AK7: 2046 | AL7: 315 | AM7: 330 | AN7: 118 | AO7: 1006 | AP7: 288 | AQ7: 169 | AR7: 32 | AS7: 7076 | AT7: 482 | AU7: 617 | AV7: 155 | AW7: 698 | AX7: 187 | AY7: 2661 | AZ7: 352 | BA7: 0 | BB7: 12 | BC7: 205 | BD7: 50 | BE7: 611 | BF7: 89 | BG7: 367 | BH7: 86 | BI7: 162 | BJ7: 63 | BK7: 637 | BL7: 142 | BM7: 371 | BN7: 76 | BO7: 2971 | BP7: 366 | BQ7: 645 | BR7: 82 | BS7: 275 | BT7: 102 | BU7: 1319 | BV7: 202 | BW7: 384 | BX7: 73 | BY7: 82 | BZ7: 34 | CA7: 468 | CB7: 111 | CC7: 617 | CD7: 172
B8: Less than 5 minutes | C8: 9 | D8: 8 | E8: 94 | F8: 88 | G8: 9 | H8: 7 | I8: 10 | J8: 9 | K8: 83 | L8: 60 | M8: 16 | N8: 15 | O8: 188 | P8: 94 | Q8: 41 | R8: 47 | S8: 45 | T8: 44 | U8: 0 | V8: 12 | W8: 1 | X8: 3 | Y8: 0 | Z8: 12 | AA8: 51 | AB8: 44 | AC8: 49 | AD8: 28 | AE8: 3 | AF8: 4 | AG8: 1 | AH8: 4 | AI8: 78 | AJ8: 56 | AK8: 127 | AL8: 105 | AM8: 22 | AN8: 27 | AO8: 28 | AP8: 32 | AQ8: 11 | AR8: 8 | AS8: 145 | AT8: 130 | AU8: 46 | AV8: 37 | AW8: 93 | AX8: 93 | AY8: 177 | AZ8: 126 | BA8: 0 | BB8: 12 | BC8: 0 | BD8: 12 | BE8: 26 | BF8: 15 | BG8: 38 | BH8: 27 | BI8: 6 | BJ8: 6 | BK8: 9 | BL8: 8 | BM8: 22 | BN8: 15 | BO8: 438 | BP8: 205 | BQ8: 27 | BR8: 20 | BS8: 4 | BT8: 5 | BU8: 99 | BV8: 62 | BW8: 21 | BX8: 9 | BY8: 13 | BZ8: 13 | CA8: 25 | CB8: 21 | CC8: 36 | CD8: 21
B9: 5 to 9 minutes | C9: 105 | D9: 59 | E9: 80 | F9: 37 | G9: 71 | H9: 45 | I9: 10 | J9: 7 | K9: 132 | L9: 89 | M9: 26 | N9: 20 | O9: 122 | P9: 57 | Q9: 379 | R9: 171 | S9: 204 | T9: 107 | U9: 2 | V9: 3 | W9: 5 | X9: 6 | Y9: 0 | Z9: 12 | AA9: 25 | AB9: 30 | AC9: 84 | AD9: 41 | AE9: 12 | AF9: 11 | AG9: 4 | AH9: 4 | AI9: 705 | AJ9: 178 | AK9: 31 | AL9: 32 | AM9: 67 | AN9: 29 | AO9: 119 | AP9: 87 | AQ9: 22 | AR9: 12 | AS9: 1189 | AT9: 313 | AU9: 140 | AV9: 60 | AW9: 71 | AX9: 31 | AY9: 523 | AZ9: 165 | BA9: 0 | BB9: 12 | BC9: 17 | BD9: 10 | BE9: 81 | BF9: 27 | BG9: 30 | BH9: 16 | BI9: 4 | BJ9: 6 | BK9: 82 | BL9: 51 | BM9: 24 | BN9: 18 | BO9: 961 | BP9: 460 | BQ9: 26 | BR9: 18 | BS9: 55 | BT9: 23 | BU9: 101 | BV9: 77 | BW9: 78 | BX9: 43 | BY9: 32 | BZ9: 22 | CA9: 101 | CB9: 77 | CC9: 181 | CD9: 65
B10: 10 to 14 minutes | C10: 98 | D10: 44 | E10: 112 | F10: 72 | G10: 49 | H10: 30 | I10: 6 | J10: 7 | K10: 135 | L10: 61 | M10: 84 | N10: 34 | O10: 194 | P10: 95 | Q10: 243 | R10: 132 | S10: 104 | T10: 66 | U10: 0 | V10: 12 | W10: 20 | X10: 20 | Y10: 0 | Z10: 12 | AA10: 217 | AB10: 156 | AC10: 58 | AD10: 28 | AE10: 43 | AF10: 47 | AG10: 20 | AH10: 16 | AI10: 813 | AJ10: 209 | AK10: 203 | AL10: 167 | AM10: 71 | AN10: 58 | AO10: 178 | AP10: 65 | AQ10: 26 | AR10: 14 | AS10: 2210 | AT10: 446 | AU10: 155 | AV10: 81 | AW10: 88 | AX10: 37 | AY10: 603 | AZ10: 236 | BA10: 0 | BB10: 12 | BC10: 18 | BD10: 8 | BE10: 71 | BF10: 32 | BG10: 52 | BH10: 34 | BI10: 13 | BJ10: 9 | BK10: 42 | BL10: 20 | BM10: 62 | BN10: 26 | BO10: 374 | BP10: 177 | BQ10: 96 | BR10: 35 | BS10: 97 | BT10: 84 | BU10: 164 | BV10: 101 | BW10: 47 | BX10: 22 | BY10: 0 | BZ10: 12 | CA10: 30 | CB10: 17 | CC10: 108 | CD10: 59
B11: 15 to 19 minutes | C11: 85 | D11: 38 | E11: 100 | F11: 62 | G11: 62 | H11: 37 | I11: 12 | J11: 10 | K11: 128 | L11: 55 | M11: 38 | N11: 18 | O11: 90 | P11: 52 | Q11: 266 | R11: 248 | S11: 56 | T11: 51 | U11: 10 | V11: 8 | W11: 77 | X11: 113 | Y11: 0 | Z11: 12 | AA11: 398 | AB11: 166 | AC11: 64 | AD11: 61 | AE11: 22 | AF11: 20 | AG11: 6 | AH11: 5 | AI11: 861 | AJ11: 220 | AK11: 290 | AL11: 127 | AM11: 45 | AN11: 32 | AO11: 184 | AP11: 101 | AQ11: 20 | AR11: 13 | AS11: 1772 | AT11: 321 | AU11: 96 | AV11: 103 | AW11: 202 | AX11: 103 | AY11: 412 | AZ11: 168 | BA11: 0 | BB11: 12 | BC11: 29 | BD11: 14 | BE11: 60 | BF11: 25 | BG11: 19 | BH11: 11 | BI11: 13 | BJ11: 10 | BK11: 25 | BL11: 14 | BM11: 43 | BN11: 19 | BO11: 247 | BP11: 161 | BQ11: 112 | BR11: 40 | BS11: 56 | BT11: 38 | BU11: 172 | BV11: 64 | BW11: 35 | BX11: 20 | BY11: 0 | BZ11: 12 | CA11: 55 | CB11: 37 | CC11: 40 | CD11: 24
B12: 20 to 24 minutes | C12: 49 | D12: 24 | E12: 89 | F12: 49 | G12: 60 | H12: 40 | I12: 19 | J12: 12 | K12: 96 | L12: 53 | M12: 71 | N12: 28 | O12: 82 | P12: 39 | Q12: 293 | R12: 137 | S12: 156 | T12: 69 | U12: 17 | V12: 12 | W12: 27 | X12: 14 | Y12: 0 | Z12: 12 | AA12: 651 | AB12: 258 | AC12: 48 | AD12: 25 | AE12: 54 | AF12: 25 | AG12: 47 | AH12: 32 | AI12: 431 | AJ12: 141 | AK12: 185 | AL12: 81 | AM12: 65 | AN12: 41 | AO12: 148 | AP12: 100 | AQ12: 27 | AR12: 10 | AS12: 774 | AT12: 280 | AU12: 4 | AV12: 6 | AW12: 73 | AX12: 24 | AY12: 285 | AZ12: 160 | BA12: 0 | BB12: 12 | BC12: 63 | BD12: 41 | BE12: 121 | BF12: 33 | BG12: 39 | BH12: 14 | BI12: 12 | BJ12: 9 | BK12: 98 | BL12: 51 | BM12: 24 | BN12: 13 | BO12: 143 | BP12: 146 | BQ12: 93 | BR12: 39 | BS12: 17 | BT12: 11 | BU12: 359 | BV12: 130 | BW12: 21 | BX12: 13 | BY12: 0 | BZ12: 12 | CA12: 56 | CB12: 28 | CC12: 29 | CD12: 19
B13: 25 to 29 minutes | C13: 28 | D13: 20 | E13: 77 | F13: 60 | G13: 23 | H13: 14 | I13: 7 | J13: 5 | K13: 119 | L13: 56 | M13: 21 | N13: 11 | O13: 58 | P13: 47 | Q13: 97 | R13: 91 | S13: 240 | T13: 93 | U13: 4 | V13: 4 | W13: 11 | X13: 10 | Y13: 1 | Z13: 2 | AA13: 288 | AB13: 127 | AC13: 2 | AD13: 4 | AE13: 3 | AF13: 4 | AG13: 12 | AH13: 9 | AI13: 142 | AJ13: 72 | AK13: 90 | AL13: 89 | AM13: 2 | AN13: 3 | AO13: 19 | AP13: 19 | AQ13: 16 | AR13: 11 | AS13: 87 | AT13: 82 | AU13: 40 | AV13: 27 | AW13: 59 | AX13: 30 | AY13: 61 | AZ13: 59 | BA13: 0 | BB13: 12 | BC13: 19 | BD13: 11 | BE13: 125 | BF13: 48 | BG13: 58 | BH13: 36 | BI13: 9 | BJ13: 8 | BK13: 43 | BL13: 23 | BM13: 13 | BN13: 10 | BO13: 212 | BP13: 124 | BQ13: 0 | BR13: 12 | BS13: 9 | BT13: 8 | BU13: 65 | BV13: 46 | BW13: 27 | BX13: 17 | BY13: 20 | BZ13: 20 | CA13: 43 | CB13: 32 | CC13: 43 | CD13: 50
B14: 30 to 34 minutes | C14: 70 | D14: 30 | E14: 149 | F14: 72 | G14: 47 | H14: 19 | I14: 16 | J14: 9 | K14: 142 | L14: 54 | M14: 77 | N14: 55 | O14: 392 | P14: 149 | Q14: 206 | R14: 140 | S14: 461 | T14: 155 | U14: 14 | V14: 9 | W14: 17 | X14: 10 | Y14: 0 | Z14: 12 | AA14: 176 | AB14: 99 | AC14: 26 | AD14: 21 | AE14: 28 | AF14: 17 | AG14: 14 | AH14: 11 | AI14: 87 | AJ14: 64 | AK14: 156 | AL14: 114 | AM14: 15 | AN14: 18 | AO14: 149 | AP14: 155 | AQ14: 28 | AR14: 13 | AS14: 423 | AT14: 200 | AU14: 54 | AV14: 34 | AW14: 42 | AX14: 26 | AY14: 345 | AZ14: 150 | BA14: 0 | BB14: 12 | BC14: 14 | BD14: 10 | BE14: 36 | BF14: 15 | BG14: 49 | BH14: 20 | BI14: 53 | BJ14: 44 | BK14: 88 | BL14: 33 | BM14: 26 | BN14: 16 | BO14: 181 | BP14: 130 | BQ14: 126 | BR14: 44 | BS14: 0 | BT14: 12 | BU14: 78 | BV14: 47 | BW14: 66 | BX14: 32 | BY14: 5 | BZ14: 7 | CA14: 57 | CB14: 31 | CC14: 18 | CD14: 13
B15: 35 to 39 minutes | C15: 36 | D15: 23 | E15: 90 | F15: 77 | G15: 54 | H15: 43 | I15: 3 | J15: 4 | K15: 4 | L15: 6 | M15: 43 | N15: 23 | O15: 92 | P15: 80 | Q15: 146 | R15: 143 | S15: 131 | T15: 85 | U15: 11 | V15: 9 | W15: 0 | X15: 12 | Y15: 0 | Z15: 12 | AA15: 89 | AB15: 95 | AC15: 7 | AD15: 11 | AE15: 31 | AF15: 21 | AG15: 7 | AH15: 11 | AI15: 19 | AJ15: 27 | AK15: 44 | AL15: 71 | AM15: 0 | AN15: 12 | AO15: 6 | AP15: 9 | AQ15: 1 | AR15: 2 | AS15: 24 | AT15: 29 | AU15: 10 | AV15: 14 | AW15: 9 | AX15: 10 | AY15: 48 | AZ15: 55 | BA15: 0 | BB15: 12 | BC15: 4 | BD15: 4 | BE15: 27 | BF15: 15 | BG15: 12 | BH15: 20 | BI15: 15 | BJ15: 9 | BK15: 115 | BL15: 102 | BM15: 16 | BN15: 11 | BO15: 33 | BP15: 45 | BQ15: 28 | BR15: 19 | BS15: 7 | BT15: 7 | BU15: 18 | BV15: 23 | BW15: 0 | BX15: 12 | BY15: 0 | BZ15: 12 | CA15: 12 | CB15: 11 | CC15: 22 | CD15: 32
B16: 40 to 44 minutes | C16: 31 | D16: 21 | E16: 32 | F16: 28 | G16: 16 | H16: 12 | I16: 3 | J16: 3 | K16: 12 | L16: 14 | M16: 44 | N16: 30 | O16: 23 | P16: 21 | Q16: 172 | R16: 122 | S16: 159 | T16: 125 | U16: 14 | V16: 9 | W16: 3 | X16: 6 | Y16: 0 | Z16: 12 | AA16: 24 | AB16: 28 | AC16: 16 | AD16: 18 | AE16: 51 | AF16: 21 | AG16: 0 | AH16: 12 | AI16: 31 | AJ16: 38 | AK16: 191 | AL16: 139 | AM16: 1 | AN16: 2 | AO16: 8 | AP16: 10 | AQ16: 7 | AR16: 6 | AS16: 58 | AT16: 70 | AU16: 19 | AV16: 32 | AW16: 2 | AX16: 3 | AY16: 119 | AZ16: 57 | BA16: 0 | BB16: 12 | BC16: 0 | BD16: 12 | BE16: 34 | BF16: 21 | BG16: 2 | BH16: 3 | BI16: 15 | BJ16: 9 | BK16: 30 | BL16: 19 | BM16: 58 | BN16: 31 | BO16: 93 | BP16: 83 | BQ16: 18 | BR16: 17 | BS16: 0 | BT16: 12 | BU16: 25 | BV16: 24 | BW16: 9 | BX16: 8 | BY16: 9 | BZ16: 13 | CA16: 35 | CB16: 20 | CC16: 0 | CD16: 12
B17: 45 to 59 minutes | C17: 181 | D17: 63 | E17: 3 | F17: 5 | G17: 39 | H17: 31 | I17: 21 | J17: 24 | K17: 8 | L17: 11 | M17: 28 | N17: 14 | O17: 182 | P17: 110 | Q17: 95 | R17: 80 | S17: 184 | T17: 107 | U17: 17 | V17: 10 | W17: 1 | X17: 2 | Y17: 12 | Z17: 12 | AA17: 85 | AB17: 87 | AC17: 5 | AD17: 8 | AE17: 152 | AF17: 52 | AG17: 54 | AH17: 29 | AI17: 54 | AJ17: 45 | AK17: 307 | AL17: 138 | AM17: 10 | AN17: 9 | AO17: 88 | AP17: 65 | AQ17: 6 | AR17: 6 | AS17: 215 | AT17: 119 | AU17: 7 | AV17: 8 | AW17: 23 | AX17: 13 | AY17: 29 | AZ17: 37 | BA17: 0 | BB17: 12 | BC17: 32 | BD17: 17 | BE17: 27 | BF17: 20 | BG17: 28 | BH17: 14 | BI17: 19 | BJ17: 13 | BK17: 74 | BL17: 27 | BM17: 61 | BN17: 21 | BO17: 126 | BP17: 88 | BQ17: 34 | BR17: 18 | BS17: 19 | BT17: 14 | BU17: 78 | BV17: 41 | BW17: 29 | BX17: 21 | BY17: 0 | BZ17: 12 | CA17: 37 | CB17: 24 | CC17: 104 | CD17: 64
B18: 60 to 89 minutes | C18: 52 | D18: 28 | E18: 66 | F18: 43 | G18: 31 | H18: 15 | I18: 1 | J18: 3 | K18: 65 | L18: 38 | M18: 55 | N18: 58 | O18: 32 | P18: 31 | Q18: 73 | R18: 83 | S18: 25 | T18: 34 | U18: 45 | V18: 29 | W18: 7 | X18: 8 | Y18: 1 | Z18: 3 | AA18: 121 | AB18: 88 | AC18: 3 | AD18: 5 | AE18: 54 | AF18: 26 | AG18: 21 | AH18: 14 | AI18: 97 | AJ18: 84 | AK18: 315 | AL18: 183 | AM18: 23 | AN18: 15 | AO18: 79 | AP18: 51 | AQ18: 3 | AR18: 4 | AS18: 52 | AT18: 63 | AU18: 3 | AV18: 5 | AW18: 20 | AX18: 12 | AY18: 32 | AZ18: 45 | BA18: 0 | BB18: 12 | BC18: 4 | BD18: 4 | BE18: 3 | BF18: 4 | BG18: 28 | BH18: 22 | BI18: 0 | BJ18: 12 | BK18: 22 | BL18: 13 | BM18: 12 | BN18: 13 | BO18: 156 | BP18: 121 | BQ18: 33 | BR18: 19 | BS18: 6 | BT18: 6 | BU18: 107 | BV18: 54 | BW18: 43 | BX18: 30 | BY18: 3 | BZ18: 5 | CA18: 10 | CB18: 7 | CC18: 18 | CD18: 17
B19: 90 or more minutes | C19: 40 | D19: 19 | E19: 31 | F19: 37 | G19: 3 | H19: 4 | I19: 5 | J19: 5 | K19: 39 | L19: 34 | M19: 20 | N19: 18 | O19: 51 | P19: 47 | Q19: 7 | R19: 11 | S19: 0 | T19: 12 | U19: 4 | V19: 4 | W19: 1 | X19: 3 | Y19: 0 | Z19: 12 | AA19: 6 | AB19: 12 | AC19: 15 | AD19: 14 | AE19: 29 | AF19: 24 | AG19: 8 | AH19: 6 | AI19: 57 | AJ19: 51 | AK19: 107 | AL19: 94 | AM19: 9 | AN19: 6 | AO19: 0 | AP19: 12 | AQ19: 2 | AR19: 3 | AS19: 127 | AT19: 81 | AU19: 43 | AV19: 32 | AW19: 16 | AX19: 12 | AY19: 27 | AZ19: 35 | BA19: 0 | BB19: 12 | BC19: 5 | BD19: 5 | BE19: 0 | BF19: 12 | BG19: 12 | BH19: 9 | BI19: 3 | BJ19: 4 | BK19: 9 | BL19: 12 | BM19: 10 | BN19: 7 | BO19: 7 | BP19: 13 | BQ19: 52 | BR19: 46 | BS19: 5 | BT19: 6 | BU19: 53 | BV19: 51 | BW19: 8 | BX19: 7 | BY19: 0 | BZ19: 12 | CA19: 7 | CB19: 7 | CC19: 18 | CD19: 20
C39: 642668 | D39: 3466 | E39: 28483 | F39: 1018 | G39: 21150 | H39: 846 | I39: 36744 | J39: 934 | K39: 14089 | L39: 645 | M39: 42727 | N39: 1151 | O39: 197866 | P39: 2634 | Q39: 70876 | R39: 1467 | S39: 148355 | T39: 1823 | U39: 61589 | V39: 1595 | W39: 20789 | X39: 620
C40: Estimate

Sheet PopulationCharacteristics (hidden)
B2: =CntyDataLink!$A35 -> Franconia
G3: Land Area: | I3: =((CntyDataLink!F35*10.764)/43560)/640 -> 65.88341987 | K3: Water Area: | L3: =((CntyDataLink!G35*10.764)/43560)/640 -> 0.08014311983
B4: POPULATION CHARACTERISTICS
B19: Population | C19: ="Source: US Census; Office of Planning and Development, NH BEA; "& L20&", "&P20&", and "&S20&" American Community Survey Table B01001" -> Source: US Census; Office of Planning and Development, NH BEA; 2008-2012, 2013-2017, and 2018-2022 American Community Survey Table B01001 | N19: Population by Age | P19: ="Source: "& L20&", "&P20&", and "&S20&" American Community Survey Tables B01001 and B01002" -> Source: 2008-2012, 2013-2017, and 2018-2022 American Community Survey Tables B01001 and B01002
L20: 2008-2012 | P20: 2013-2017 | S20: 2018-2022
C21: 1990 | D21: 2000 | E21: 2010 | F21: 2020 | G21: 2018-2022 | H21: 2025 | I21: 2030 | L21: Estimate | N21: Margin of Error | O21: Percent Change | P21: Estimate | Q21: Margin of Error | R21: Percent Change | S21: Estimate | T21: Margin of Error | V21: Percent Change | W21: Statistically Significant Change
C22: =CntyDataLink!$F$20 -> 811 | D22: =CntyDataLink!$G$20 -> 924 | E22: =CntyDataLink!$H$20 -> 1104 | F22: =CntyDataLink!$I$20 -> 1083 | G22: =CntyDataLink!$B$132 -> 6645 | H22: =CntyDataLink!$J$20 -> 1129 | I22: =CntyDataLink!$K$20 -> 1165 | K22: Under 15 yrs. | L22: =CntyDataLinkPrior10YearEstimate!$D$132 -> 728 | N22: =CntyDataLinkPrior10YearEstimate!$E$132 -> 185.8144236 | O22: =L22/SUM($L$22:$L$29) -> 0.1046127317 | P22: =CntyDataLinkPrior5YearEstimates!$D$132 -> 664 | Q22: =CntyDataLinkPrior5YearEstimates!$E$132 -> 194.7588252 | R22: =P22/SUM($P$22:$P$29) -> 0.09925261584 | S22: =CntyDataLink!$D$132 -> 841 | T22: =CntyDataLink!$E$132 -> 240.4911641 | U22: =S22/SUM($S$22:$S$29) -> 0.1265613243 | V22: =(S22-P22)/P22 -> 0.2665662651 | W22: =StatisticallySignificantCalcs!$A3 -> Y
K23: 15 to 24 yrs. | L23: =CntyDataLinkPrior10YearEstimate!$F$132 -> 2958 | N23: =CntyDataLinkPrior10YearEstimate!$G$132 -> 471.9427931 | O23: =L23/SUM($L$22:$L$29) -> 0.425061072 | P23: =CntyDataLinkPrior5YearEstimates!$F$132 -> 2898 | Q23: =CntyDataLinkPrior5YearEstimates!$G$132 -> 482.9968944 | R23: 0.4331838565 | S23: =CntyDataLink!$F$132 -> 1971 | T23: =CntyDataLink!$G$132 -> 428.3619964 | U23: 0.2966139955 | V23: -0.3198757764 | W23: =StatisticallySignificantCalcs!$A4 -> Y
B24: Percent Change | K24: 25 to 34 yrs. | L24: =CntyDataLinkPrior10YearEstimate!$H$132 -> 684 | N24: =CntyDataLinkPrior10YearEstimate!$I$132 -> 212.8591083 | O24: =L24/SUM($L$22:$L$29) -> 0.09828998419 | P24: =CntyDataLinkPrior5YearEstimates!$H$132 -> 496 | Q24: =CntyDataLinkPrior5YearEstimates!$I$132 -> 196.5349842 | R24: 0.07414050822 | S24: =CntyDataLink!$H$132 -> 694 | T24: =CntyDataLink!$I$132 -> 245.3772606 | U24: 0.1044394281 | V24: 0.3991935484 | W24: =StatisticallySignificantCalcs!$A5 -> Y
D25: =C21&"-2020" -> 1990-2020 | E25: =D21&"-2020" -> 2000-2020 | F25: =E21&"-2020" -> 2010-2020 | G25: =F21&"-2030" -> 2020-2030 | H25: =G21&"-"&H21 -> 2018-2022-2025 | I25: =H21&"-"&I21 -> 2025-2030 | K25: 35 to 44 yrs. | L25: =CntyDataLinkPrior10YearEstimate!$J$132 -> 703 | N25: =CntyDataLinkPrior10YearEstimate!$K$132 -> 202.2177045 | O25: 0.1010202615 | P25: =CntyDataLinkPrior5YearEstimates!$J$132 -> 431 | Q25: =CntyDataLinkPrior5YearEstimates!$K$132 -> 137.6444696 | R25: 0.0644245142 | S25: =CntyDataLink!$J$132 -> 653 | T25: =CntyDataLink!$K$132 -> 249.9539958 | U25: 0.09826937547 | V25: 0.5150812065 | W25: =StatisticallySignificantCalcs!$A6 -> Y
D26: =(D22-C22)/C22 -> 0.1393341554 | E26: 0.1948051948 | F26: -0.01902173913 | G26: 5.135734072 | H26: -0.8300978179 | I26: 0.03188662533 | K26: 45 to 54 yrs. | L26: =CntyDataLinkPrior10YearEstimate!$L$132 -> 693 | N26: =CntyDataLinkPrior10YearEstimate!$M$132 -> 152.7972513 | O26: 0.09958327346 | P26: =CntyDataLinkPrior5YearEstimates!$L$132 -> 713 | Q26: =CntyDataLinkPrior5YearEstimates!$M$132 -> 191.1386931 | R26: 0.1065769806 | S26: =CntyDataLink!$L$132 -> 752 | T26: =CntyDataLink!$M$132 -> 241.3172186 | U26: 0.1131677953 | V26: 0.05469845722 | W26: =StatisticallySignificantCalcs!$A7 -> Y
K27: 55 to 64 yrs. | L27: =CntyDataLinkPrior10YearEstimate!$N$132 -> 575 | N27: =CntyDataLinkPrior10YearEstimate!$O$132 -> 132.3933533 | O27: 0.0826268142 | P27: =CntyDataLinkPrior5YearEstimates!$N$132 -> 594 | Q27: =CntyDataLinkPrior5YearEstimates!$O$132 -> 176.7625526 | R27: 0.08878923767 | S27: =CntyDataLink!$N$132 -> 674 | T27: =CntyDataLink!$O$132 -> 226.984581 | U27: 0.1014296464 | V27: 0.1346801347 | W27: =StatisticallySignificantCalcs!$A8 -> Y
K28: 65 to 74 yrs. | L28: =CntyDataLinkPrior10YearEstimate!$P$132 -> 314 | N28: =CntyDataLinkPrior10YearEstimate!$Q$132 -> 105.2663289 | O28: 0.04512142549 | P28: =CntyDataLinkPrior5YearEstimates!$P$132 -> 460 | Q28: =CntyDataLinkPrior5YearEstimates!$Q$132 -> 143.7184748 | R28: 0.0687593423 | S28: =CntyDataLink!$P$132 -> 704 | T28: =CntyDataLink!$Q$132 -> 227.0220254 | U28: 0.105944319 | V28: 0.5304347826 | W28: =StatisticallySignificantCalcs!$A9 -> Y
K29: Over 74 yrs. | L29: =CntyDataLinkPrior10YearEstimate!$R$132 -> 304 | N29: =CntyDataLinkPrior10YearEstimate!$S$132 -> 104.517941 | O29: 0.04368443742 | P29: =CntyDataLinkPrior5YearEstimates!$R$132 -> 434 | Q29: =CntyDataLinkPrior5YearEstimates!$S$132 -> 192.9948186 | R29: 0.06487294469 | S29: =CntyDataLink!$R$132 -> 356 | T29: =CntyDataLink!$S$132 -> 193.708544 | U29: 0.05357411588 | V29: -0.1797235023 | W29: =StatisticallySignificantCalcs!$A10 -> Y
K30: Median Age (years) | L30: =CntyDataLinkPrior10YearEstimate!$AX132 -> 24.2 | N30: =CntyDataLinkPrior10YearEstimate!$AY$132 -> 1.6 | P30: =CntyDataLinkPrior5YearEstimates!$AX132 -> 22.2 | Q30: =CntyDataLinkPrior5YearEstimates!$AY$132 -> 2 | S30: =CntyDataLink!$AX$132 -> 32 | T30: =CntyDataLink!$AY$132 -> 5.5
B32: Population By Race | M32: Statistically Significant Change
M33: =IF(L36="","-",StatisticallySignificantCalcs!A20) -> N
C34: =L20 -> 2008-2012 | F34: =P20 -> 2013-2017 | I34: =S20 -> 2018-2022 | L34: Statistically Significant Change
C35: Estimate | D35: Margin of Error | F35: Estimate | G35: Margin of Error | I35: Estimate | J35: Margin of Error | L35: 2012-2022 | M35: 2017-2022
B36: White | C36: =CntyDataLinkPrior10YearEstimate!$AL$132 -> 6196 | D36: =CntyDataLinkPrior10YearEstimate!$AM$132 -> 245 | E36: =IF(C$36="-","-",VALUE(C36/$C$41)) -> 0.89035781 | F36: =CntyDataLinkPrior5YearEstimates!$AL$132 -> 6039 | G36: =CntyDataLinkPrior5YearEstimates!$AM$132 -> 176 | H36: =IF(F$36="-","-",VALUE(F36/$F$41)) -> 0.902690583 | I36: =CntyDataLink!$AL$132 -> 5868 | J36: =CntyDataLink!$AM$132 -> 255 | K36: =IF(I$36="-","-",VALUE(I36/$I$41)) -> 0.8830699774 | L36: =StatisticallySignificantCalcs!A20 -> N | M36: =StatisticallySignificantCalcs!J20 -> N
B37: Black | C37: =CntyDataLinkPrior10YearEstimate!$AN132 -> 42 | D37: =CntyDataLinkPrior10YearEstimate!$AO$132 -> 42 | E37: =IF(C$37="-","-",VALUE(C37/$C$41)) -> 0.006035349907 | F37: =CntyDataLinkPrior5YearEstimates!$AN132 -> 79 | G37: =CntyDataLinkPrior5YearEstimates!$AO$132 -> 64 | H37: =IF(F$37="-","-",VALUE(F37/$F$41)) -> 0.01180866966 | I37: =CntyDataLink!$AN$132 -> 192 | J37: =CntyDataLink!$AO$132 -> 106 | K37: =IF(I$37="-","-",VALUE(I37/$I$41)) -> 0.02889390519 | L37: =StatisticallySignificantCalcs!A21 -> Y | M37: =StatisticallySignificantCalcs!J21 -> N
B38: American Indian | C38: =CntyDataLinkPrior10YearEstimate!$AP$132 -> 6 | D38: =CntyDataLinkPrior10YearEstimate!$AQ$132 -> 12 | E38: =IF(C$38="-","-",VALUE(C38/$C$41)) -> 0.0008621928438 | F38: =CntyDataLinkPrior5YearEstimates!$AP$132 -> 0 | G38: =CntyDataLinkPrior5YearEstimates!$AQ$132 -> 16 | H38: =IF(F$38="-","-",VALUE(F38/$F$41)) -> 0 | I38: =CntyDataLink!$AP$132 -> 0 | J38: =CntyDataLink!$AQ$132 -> 17 | K38: =IF(I$38="-","-",VALUE(I38/$I$41)) -> 0 | L38: =StatisticallySignificantCalcs!A22 -> N | M38: =StatisticallySignificantCalcs!J22 -> N
B39: Asian &Pacific Is. | C39: =CntyDataLinkPrior10YearEstimate!$AR$132 -> 191 | D39: =CntyDataLinkPrior10YearEstimate!$AS$132 -> 149.8565981 | E39: =IF(C$39="-","-",VALUE(C39/$C$41)) -> 0.02744647219 | F39: =CntyDataLinkPrior5YearEstimates!$AR$132 -> 169 | G39: =CntyDataLinkPrior5YearEstimates!$AS$132 -> 70.34202158 | H39: =IF(F$39="-","-",VALUE(F39/$F$41)) -> 0.02526158445 | I39: =CntyDataLink!$AR$132 -> 173 | J39: =CntyDataLink!$AS$132 -> 130.1153335 | K39: =IF(I$39="-","-",VALUE(I39/$I$41)) -> 0.02603461249 | L39: =StatisticallySignificantCalcs!A23 -> N | M39: =StatisticallySignificantCalcs!J23 -> N
B40: Other* | C40: =CntyDataLinkPrior10YearEstimate!$AT$132 -> 274 | D40: =CntyDataLinkPrior10YearEstimate!$AU$132 -> 167.9672587 | E40: =IF(C$40="-","-",VALUE(C40/$C$41)) -> 0.0393734732 | F40: =CntyDataLinkPrior5YearEstimates!$AT$132 -> 207 | G40: =CntyDataLinkPrior5YearEstimates!$AU$132 -> 101.2719112 | H40: =IF(F$40="-","-",VALUE(F40/$F$41)) -> 0.03094170404 | I40: =CntyDataLink!$AT$132 -> 140 | J40: =CntyDataLink!$AU$132 -> 137.0583817 | K40: =IF(I$40="-","-",VALUE(I40/$I$41)) -> 0.02106847254 | L40: =StatisticallySignificantCalcs!A24 -> N | M40: =StatisticallySignificantCalcs!J24 -> N
B41: Total Population | C41: =CntyDataLinkPrior10YearEstimate!$B$132 -> 6959 | D41: =CntyDataLinkPrior10YearEstimate!$C$132 -> 18 | F41: =CntyDataLinkPrior5YearEstimates!$B$132 -> 6690 | G41: =CntyDataLinkPrior5YearEstimates!$C$132 -> 16 | I41: =CntyDataLink!$B$132 -> 6645 | J41: =CntyDataLink!$C$132 -> 15
B42: Hispanic | C42: =CntyDataLinkPrior10YearEstimate!$AV$132 -> 250 | D42: =CntyDataLinkPrior10YearEstimate!$AW$132 -> 112 | E42: =IF(C$42="-","-",VALUE(C42/$C$41)) -> 0.03592470182 | F42: =CntyDataLinkPrior5YearEstimates!$AV132 -> 196 | G42: =CntyDataLinkPrior5YearEstimates!$AW$132 -> 146 | H42: =IF(F$42="-","-",VALUE(F42/$F$41)) -> 0.02929745889 | I42: =CntyDataLink!$AV$132 -> 272 | J42: =CntyDataLink!$AW$132 -> 182 | K42: =IF(I$42="-","-",VALUE(I42/$I$41)) -> 0.04093303236 | L42: =StatisticallySignificantCalcs!A26 -> Y | M42: =StatisticallySignificantCalcs!J26 -> Y
B44: * | C44: Other includes population of 2 or more races
B46: ="Source: "& L20&", "&P20&", and "&S20&" American Community Survey Table B03002" -> Source: 2008-2012, 2013-2017, and 2018-2022 American Community Survey Table B03002
C48: Households and Families
D49: =L20 -> 2008-2012 | G49: =P20 -> 2013-2017 | J49: =S20 -> 2018-2022 | N49: Percent Change | P49: Percent Change
D50: Estimate | E50: Margin of Error | G50: Estimate | H50: Margin of Error | J50: Estimate | K50: Margin of Error | N50: =L35 -> 2012-2022 | P50: =M35 -> 2017-2022
C51: Total Households | D51: =CntyDataLinkPrior10YearEstimate!$T$132 -> 2222 | E51: =CntyDataLinkPrior10YearEstimate!$U$132 -> 229 | G51: =CntyDataLinkPrior5YearEstimates!$T$132 -> 1971 | H51: =CntyDataLinkPrior5YearEstimates!$U$132 -> 240 | J51: =CntyDataLink!$T$132 -> 2061 | K51: =CntyDataLink!$U$132 -> 285 | N51: =(J51-D51)/D51 -> -0.07245724572 | P51: =(J51-G51)/G51 -> 0.04566210046
C52: Persons per Household | D52: =CntyDataLinkPrior10YearEstimate!$BD$132 -> 2.37 | E52: =CntyDataLinkPrior10YearEstimate!$BE$132 -> 0.19 | G52: =CntyDataLinkPrior5YearEstimates!$BD$132 -> 2.596144089 | H52: =CntyDataLinkPrior5YearEstimates!$BE$132 -> 0.3866264975 | J52: =CntyDataLink!$BD$132 -> 2.640465793 | K52: =CntyDataLink!$BE$132 -> 0.3866264975 | N52: =(J52-D52)/D52 -> 0.1141205879 | P52: =(J52-G52)/G52 -> 0.01707212793
C53: Family Households | D53: =CntyDataLinkPrior10YearEstimate!$V$132 -> 963 | E53: =CntyDataLinkPrior10YearEstimate!$U$132 -> 229 | G53: =CntyDataLinkPrior5YearEstimates!$V$132 -> 926 | H53: =CntyDataLinkPrior5YearEstimates!$U$132 -> 240 | J53: =CntyDataLink!$V$132 -> 1271 | K53: =CntyDataLink!$U$132 -> 285 | N53: 0.3198338525 | P53: 0.3725701944
C54: Persons per Family Household | D54: =CntyDataLinkPrior10YearEstimate!$BF$132 -> 2.62 | E54: =CntyDataLinkPrior10YearEstimate!$BG$132 -> 0.22 | G54: =CntyDataLinkPrior5YearEstimates!$BF$132 -> 3.545356371 | H54: =CntyDataLinkPrior5YearEstimates!$BG$132 -> 0.6052841928 | J54: =CntyDataLink!$BF$132 -> 3.516915814 | K54: =CntyDataLink!$BG$132 -> 0.6052841928 | N54: 0.3423342803 | P54: -0.00802191774
C55: Married-Couple Family Hh | D55: =CntyDataLinkPrior10YearEstimate!$X$132 -> 825 | E55: =CntyDataLinkPrior10YearEstimate!$Y$132 -> 146 | G55: =CntyDataLinkPrior5YearEstimates!$X$132 -> 706 | H55: =CntyDataLinkPrior5YearEstimates!$Y$132 -> 139 | J55: =CntyDataLink!$X$132 -> 783 | K55: =CntyDataLink!$Y$132 -> 170 | N55: -0.05090909091 | P55: 0.1090651558
C56: Single-Parent Family Hh | D56: =CntyDataLinkPrior10YearEstimate!$Z$132 -> 138 | E56: =CntyDataLinkPrior10YearEstimate!$AA$132 -> 67 | G56: =CntyDataLinkPrior5YearEstimates!$Z$132 -> 220 | H56: =CntyDataLinkPrior5YearEstimates!$AA$132 -> 99 | J56: =CntyDataLink!$Z$132 -> 488 | K56: =CntyDataLink!$AA$132 -> 175 | N56: 2.536231884 | P56: =(J56-G56)/G56 -> 1.218181818
C57: Non-Family Households | D57: =CntyDataLinkPrior10YearEstimate!$AF$132 -> 1259 | E57: =CntyDataLinkPrior10YearEstimate!$AG$132 -> 247 | G57: =CntyDataLinkPrior5YearEstimates!$AF$132 -> 1045 | H57: =CntyDataLinkPrior5YearEstimates!$AG$132 -> 251 | J57: =CntyDataLink!$AF$132 -> 790 | K57: =CntyDataLink!$AG$132 -> 289 | N57: -0.3725178713 | P57: -0.2440191388
C58: Persons per Non-Family Hh | D58: =CntyDataLinkPrior10YearEstimate!$BH$132 -> 2.05 | E58: =CntyDataLinkPrior10YearEstimate!$BI$132 -> 0.3 | G58: =CntyDataLinkPrior5YearEstimates!$BH$132 -> 1.755023923 | H58: =CntyDataLinkPrior5YearEstimates!$BI$132 -> 0.6253804564 | J58: =CntyDataLink!$BH$132 -> 1.230379747 | K58: =CntyDataLink!$BI$132 -> 0.6253804564 | N58: =(J58-D58)/D58 -> -0.3998147576 | P58: -0.2989384758
B61: As a result of changes in the American Community Survey, direct comparisons between the data should be made with caution.
B63: ="Source: "&L20&", "&P20&", and "&S20&" American Community Survey Table B11001" -> Source: 2008-2012, 2013-2017, and 2018-2022 American Community Survey Table B11001
B64: POPULATION CHARACTERISTICS

Sheet SchoolEnrolEduAttain (hidden)
C2: =CntyDataLink!A50 -> Franconia
C3: SOCIAL CHARACTERISTICS
C21: School Enrollment | F21: 2008-2012 | I21: 2013-2017 | L21: 2018-2022 | P21: Statistically Significant Change
F22: Estimate | G22: Margin of Error | H22: Percent of Population | I22: Estimate | J22: Margin of Error | K22: Percent of Population | L22: Estimate | M22: Margin of Error | N22: Percent of Population | P22: 2012-2022 | Q22: 2017-2022
C23: Population 3 years and over | F23: =CntyDataLinkPrior10YearEstimate!$B$140 -> 12779 | G23: =CntyDataLinkPrior10YearEstimate!$C$140 -> 129 | I23: =CntyDataLinkPrior5YearEstimates!$B$140 -> 12990 | J23: =CntyDataLinkPrior5YearEstimates!$C$140 -> 139 | L23: =CntyDataLink!$B$140 -> 13697 | M23: =CntyDataLink!$C$140 -> 224 | P23: =StatisticallySignificantCalcs!$A$45 -> Y | Q23: =StatisticallySignificantCalcs!$J$45 -> Y
C24: Population 3 years & over enrolled in school | F24: =CntyDataLinkPrior10YearEstimate!$D$140 -> 3074 | G24: =CntyDataLinkPrior10YearEstimate!$E$140 -> 413 | H24: =F24/$F$23 -> 0.2405509038 | I24: =CntyDataLinkPrior5YearEstimates!$D$140 -> 2678 | J24: =CntyDataLinkPrior5YearEstimates!$E$140 -> 447 | K24: =I24/$I$23 -> 0.2061585835 | L24: =CntyDataLink!$D$140 -> 2760 | M24: =CntyDataLink!$E$140 -> 421 | N24: =L24/$L$23 -> 0.201503979 | P24: =StatisticallySignificantCalcs!$A$46 -> N | Q24: =StatisticallySignificantCalcs!$J$46 -> N
C25: Preprimary (Nursery, Preschool, Kindergarten) | F25: =CntyDataLinkPrior10YearEstimate!$F$140 -> 326 | G25: =CntyDataLinkPrior10YearEstimate!$G$140 -> 156.588633 | H25: =F25/$F$23 -> 0.02551060333 | I25: =CntyDataLinkPrior5YearEstimates!$F$140 -> 323 | J25: =CntyDataLinkPrior5YearEstimates!$G$140 -> 124.739729 | K25: =I25/$I$23 -> 0.02486528099 | L25: =CntyDataLink!$F$140 -> 273 | M25: =CntyDataLink!$G$140 -> 105.3612832 | N25: =L25/$L$23 -> 0.01993137183 | P25: =StatisticallySignificantCalcs!$A$47 -> N | Q25: =StatisticallySignificantCalcs!$J$47 -> N
C26: Nursery school and Preschool | F26: =CntyDataLinkPrior10YearEstimate!$H$140 -> 98 | G26: =CntyDataLinkPrior10YearEstimate!$I$140 -> 66 | H26: 0.007668831677 | I26: =CntyDataLinkPrior5YearEstimates!$H$140 -> 173 | J26: =CntyDataLinkPrior5YearEstimates!$I$140 -> 82 | K26: 0.01331793687 | L26: =CntyDataLink!$H$140 -> 137 | M26: =CntyDataLink!$I$140 -> 75 | N26: 0.01000219026 | P26: =StatisticallySignificantCalcs!$A$48 -> N | Q26: =StatisticallySignificantCalcs!$J$48 -> N
C27: Kindergarten | F27: =CntyDataLinkPrior10YearEstimate!$J$140 -> 228 | G27: =CntyDataLinkPrior10YearEstimate!$K$140 -> 142 | H27: 0.01784177166 | I27: =CntyDataLinkPrior5YearEstimates!$J$140 -> 150 | J27: =CntyDataLinkPrior5YearEstimates!$K$140 -> 94 | K27: 0.01154734411 | L27: =CntyDataLink!$J$140 -> 136 | M27: =CntyDataLink!$K$140 -> 74 | N27: 0.009929181573 | P27: =StatisticallySignificantCalcs!$A$49 -> N | Q27: =StatisticallySignificantCalcs!$J$49 -> N
C28: Elementary through High school | F28: =CntyDataLinkPrior10YearEstimate!$P$140 -> 1573 | G28: =CntyDataLinkPrior10YearEstimate!$Q$140 -> 268.6447468 | H28: 0.1230925738 | I28: =CntyDataLinkPrior5YearEstimates!$P$140 -> 1569 | J28: =CntyDataLinkPrior5YearEstimates!$Q$140 -> 312.0176277 | K28: 0.1207852194 | L28: =CntyDataLink!$P$140 -> 1207 | M28: =CntyDataLink!$Q$140 -> 256.3688749 | N28: 0.08812148646 | P28: =StatisticallySignificantCalcs!$A$50 -> N | Q28: =StatisticallySignificantCalcs!$J$50 -> N
C29: Elementary school (grades 1-8) | F29: =CntyDataLinkPrior10YearEstimate!$L$140 -> 957 | G29: =CntyDataLinkPrior10YearEstimate!$M$140 -> 199.4241711 | H29: 0.07488848893 | I29: =CntyDataLinkPrior5YearEstimates!$L$140 -> 1103 | J29: =CntyDataLinkPrior5YearEstimates!$M$140 -> 276.2788446 | K29: 0.08491147036 | L29: =CntyDataLink!$L$140 -> 903 | M29: =CntyDataLink!$M$140 -> 235.2041666 | N29: 0.06592684529 | P29: =StatisticallySignificantCalcs!$A$51 -> N | Q29: =StatisticallySignificantCalcs!$J$51 -> N
C30: High school (grades 9-12) | F30: =CntyDataLinkPrior10YearEstimate!$N$140 -> 616 | G30: =CntyDataLinkPrior10YearEstimate!$O$140 -> 180 | H30: 0.04820408483 | I30: =CntyDataLinkPrior5YearEstimates!$N$140 -> 466 | J30: =CntyDataLinkPrior5YearEstimates!$O$140 -> 145 | K30: 0.03587374904 | L30: =CntyDataLink!$N$140 -> 304 | M30: =CntyDataLink!$O$140 -> 102 | N30: 0.02219464116 | P30: =StatisticallySignificantCalcs!$A$52 -> Y | Q30: =StatisticallySignificantCalcs!$J$52 -> N
C31: College or Graduate School | F31: =CntyDataLinkPrior10YearEstimate!$R$140 -> 1175 | G31: =CntyDataLinkPrior10YearEstimate!$S$140 -> 361.7029168 | H31: 0.09194772674 | I31: =CntyDataLinkPrior5YearEstimates!$R$140 -> 786 | J31: =CntyDataLinkPrior5YearEstimates!$S$140 -> 249.4353624 | K31: 0.06050808314 | L31: =CntyDataLink!$R$140 -> 1280 | M31: =CntyDataLink!$S$140 -> 369.6227807 | N31: 0.09345112068 | P31: =StatisticallySignificantCalcs!$A$53 -> N | Q31: =StatisticallySignificantCalcs!$J$53 -> Y
C33: ="Source: "&F21&", "& I21&" and "&L21&" American Community Survey Table B14001" -> Source: 2008-2012, 2013-2017 and 2018-2022 American Community Survey Table B14001
C50: Educational Attainment | F50: =F21 -> 2008-2012 | I50: =I21 -> 2013-2017 | L50: =L21 -> 2018-2022 | P50: Statistically Significant Change
F51: Estimate | G51: Margin of Error | H51: Percent of Population | I51: Estimate | J51: Margin of Error | K51: Percent of Population | L51: Estimate | M51: Margin of Error | N51: Percent of Population | P51: =P22 -> 2012-2022 | Q51: 2017-2022
C52: Population 25 years and over | F52: =CntyDataLinkPrior10YearEstimate!$V$140 -> 9549 | G52: =CntyDataLinkPrior10YearEstimate!$W$140 -> 376 | I52: =CntyDataLinkPrior5YearEstimates!$V$140 -> 10099 | J52: =CntyDataLinkPrior5YearEstimates!$W$140 -> 436 | L52: =CntyDataLink!$V$140 -> 10788 | M52: =CntyDataLink!$W$140 -> 566 | P52: =StatisticallySignificantCalcs!A54 -> Y | Q52: =StatisticallySignificantCalcs!$J$54 -> N
C53: Less than 9th Grade | F53: =CntyDataLinkPrior10YearEstimate!$X$140 -> 215 | G53: =CntyDataLinkPrior10YearEstimate!$Y$140 -> 108.4389229 | H53: =F53/$F$52 -> 0.02251544664 | I53: =CntyDataLinkPrior5YearEstimates!$X$140 -> 55 | J53: =CntyDataLinkPrior5YearEstimates!$Y$140 -> 85.0940656 | K53: =I53/$I$52 -> 0.005446083771 | L53: =CntyDataLink!$X$140 -> 46 | M53: =CntyDataLink!$Y$140 -> 61.94352266 | N53: =L53/$L$52 -> 0.004263997034 | P53: =StatisticallySignificantCalcs!A55 -> N | Q53: =StatisticallySignificantCalcs!$J$55 -> N
C54: 9th to 12th Grade, no Diploma | F54: =CntyDataLinkPrior10YearEstimate!$Z$140 -> 536 | G54: =CntyDataLinkPrior10YearEstimate!$AA$140 -> 190.9240687 | H54: =F54/$F$52 -> 0.0561315321 | I54: =CntyDataLinkPrior5YearEstimates!$Z$140 -> 436 | J54: =CntyDataLinkPrior5YearEstimates!$AA$140 -> 164.4445195 | K54: =I54/$I$52 -> 0.04317259135 | L54: =CntyDataLink!$Z$140 -> 607 | M54: =CntyDataLink!$AA$140 -> 215.2974686 | N54: =L54/$L$52 -> 0.05626622173 | P54: =StatisticallySignificantCalcs!A56 -> N | Q54: =StatisticallySignificantCalcs!$J$56 -> N
C55: High School Graduate | F55: =CntyDataLinkPrior10YearEstimate!$AB$140 -> 2390 | G55: =CntyDataLinkPrior10YearEstimate!$AC$140 -> 312.2466973 | H55: 0.2502879883 | I55: =CntyDataLinkPrior5YearEstimates!$AB$140 -> 2327 | J55: =CntyDataLinkPrior5YearEstimates!$AC$140 -> 340.6493799 | K55: 0.2304188534 | L55: =CntyDataLink!$AB$140 -> 2164 | M55: =CntyDataLink!$AC$140 -> 369.4333499 | N55: 0.2005932518 | P55: =StatisticallySignificantCalcs!A57 -> N | Q55: =StatisticallySignificantCalcs!$J$57 -> N
C56: Some College, No Degree | F56: =CntyDataLinkPrior10YearEstimate!$AD$140 -> 1501 | G56: =CntyDataLinkPrior10YearEstimate!$AE$140 -> 280.1481751 | H56: 0.1571892345 | I56: =CntyDataLinkPrior5YearEstimates!$AD$140 -> 1306 | J56: =CntyDataLinkPrior5YearEstimates!$AE$140 -> 270.366418 | K56: 0.1293197346 | L56: =CntyDataLink!$AD$140 -> 1050 | M56: =CntyDataLink!$AE$140 -> 281.8669899 | N56: 0.09733036707 | P56: =StatisticallySignificantCalcs!A58 -> N | Q56: =StatisticallySignificantCalcs!$J$58 -> N
C57: Associate Degree | F57: =CntyDataLinkPrior10YearEstimate!$AF$140 -> 545 | G57: =CntyDataLinkPrior10YearEstimate!$AG$140 -> 152.2957649 | H57: 0.05707403917 | I57: =CntyDataLinkPrior5YearEstimates!$AF$140 -> 763 | J57: =CntyDataLinkPrior5YearEstimates!$AG$140 -> 195.2434378 | K57: 0.07555203485 | L57: =CntyDataLink!$AF$140 -> 824 | M57: =CntyDataLink!$AG$140 -> 211.8135973 | N57: 0.07638116426 | P57: =StatisticallySignificantCalcs!A59 -> N | Q57: =StatisticallySignificantCalcs!$J$59 -> N
C58: Bachelor's Degree | F58: =CntyDataLinkPrior10YearEstimate!$AH$140 -> 2136 | G58: =CntyDataLinkPrior10YearEstimate!$AI$140 -> 333.1095916 | H58: 0.2236883443 | I58: =CntyDataLinkPrior5YearEstimates!$AH$140 -> 2180 | J58: =CntyDataLinkPrior5YearEstimates!$AI$140 -> 289.385556 | K58: 0.2158629567 | L58: =CntyDataLink!$AH$140 -> 3161 | M58: =CntyDataLink!$AI$140 -> 451.8108011 | N58: 0.2930107527 | P58: =StatisticallySignificantCalcs!A60 -> Y | Q58: =StatisticallySignificantCalcs!$J$60 -> Y
C59: Graduate or Professional Degree | F59: =CntyDataLinkPrior10YearEstimate!$AJ$140 -> 1357 | G59: =CntyDataLinkPrior10YearEstimate!$AK$140 -> 284.1584065 | H59: 0.1421091214 | I59: =CntyDataLinkPrior5YearEstimates!$AJ$140 -> 2952 | J59: =CntyDataLinkPrior5YearEstimates!$AK$140 -> 394.9253094 | K59: 0.2923061689 | L59: =CntyDataLink!$AJ$140 -> 2864 | M59: =CntyDataLink!$AK$140 -> 411.6515517 | N59: 0.2654801631 | P59: =StatisticallySignificantCalcs!A61 -> N | Q59: =StatisticallySignificantCalcs!$J$61 -> N
C61: Percent of High School Graduate or Higher | H61: =SUM(F55:F59)/F52 -> 0.8303487276 | K61: =SUM(I55:I59)/I52 -> 0.9434597485 | N61: =SUM(L55:L59)/L52 -> 0.9327956989
C62: Percent of Bachelor's Degree or Higher | H62: =SUM(F58:F59)/F52 -> 0.3657974657 | K62: =SUM(I58:I59)/I52 -> 0.5081691257 | N62: =SUM(L58:L59)/L52 -> 0.5584909158
C64: ="Source: "&F21&", "&I21&" and "&L21&" American Community Survey Table B15002" -> Source: 2008-2012, 2013-2017 and 2018-2022 American Community Survey Table B15002 | H64: Data from the American Community Survey are estimates

Sheet HousingCharacteristics (hidden)
B2: =CntyDataLink!$A35 -> Franconia
B4: HOUSING CHARACTERISTICS
D27: ="Source: "& " "&D69&", "&G69&" and "&J69& " American Community Survey Table B25004; B25024; B25032" -> Source: 2008-2012, 2013-2017 and 2018-2022 American Community Survey Table B25004; B25024; B25032
B28: Units by Tenure & Vacancy
C30: 2008-2012 | F30: 2013-2017 | I30: 2018-2022 | L30: Percent Change | O30: Statistically Significant Change
C31: Estimate | D31: Margin of Error | E31: % | F31: Estimate | G31: Margin of Error | H31: % | I31: Estimate | J31: Margin of Error | K31: % | L31: 2012-2022 | M31: 2017-2022 | O31: =L31 -> 2012-2022 | P31: 2017-2022
B32: Total Units | C32: =CntyDataLinkPrior10YearEstimate!$B$108 -> 2660 | D32: =CntyDataLinkPrior5YearEstimates!$C$108 -> 247 | F32: =CntyDataLinkPrior5YearEstimates!$B$108 -> 2574 | G32: =CntyDataLinkPrior5YearEstimates!$C$108 -> 247 | I32: =CntyDataLink!$B$108 -> 2714 | J32: =CntyDataLink!$C$108 -> 283 | L32: =IF(I32="-","-",(I32-C32)/C32) -> 0.02030075188 | M32: =IF(I32="-","-",(I32-F32)/F32) -> 0.05439005439 | O32: =StatisticallySignificantCalcs!$A62 -> N | P32: =StatisticallySignificantCalcs!$J62 -> N
B33: Occupied Units | C33: =CntyDataLinkPrior10YearEstimate!$D$108 -> 2222 | D33: =CntyDataLinkPrior5YearEstimates!$E$108 -> 228 | E33: =ROUND(C33/C32,2)*100&"% of Total" -> 84% of Total | F33: =CntyDataLinkPrior5YearEstimates!$D$108 -> 2036 | G33: =CntyDataLinkPrior5YearEstimates!$E$108 -> 228 | H33: =ROUND(F33/F32,2)*100&"% of Total" -> 79% of Total | I33: =CntyDataLink!$D$108 -> 2061 | J33: =CntyDataLink!$E$108 -> 285 | K33: =ROUND(I33/I32,2)*100&"% of Total" -> 76% of Total | L33: =IF(I33="-","-",(I33-C33)/C33) -> -0.07245724572 | M33: 0.01227897839 | O33: =StatisticallySignificantCalcs!$A63 -> N | P33: =StatisticallySignificantCalcs!$J63 -> N
B34: Owner Occupied | C34: =CntyDataLinkPrior10YearEstimate!$F$108 -> 1256 | D34: =CntyDataLinkPrior5YearEstimates!$G$108 -> 230 | E34: =ROUND(C34/C33,2)*100&"% of Occ." -> 57% of Occ. | F34: =CntyDataLinkPrior5YearEstimates!$F$108 -> 1133 | G34: =CntyDataLinkPrior5YearEstimates!$G$108 -> 230 | H34: =ROUND(F34/F33,2)*100&"% of Occ." -> 56% of Occ. | I34: =CntyDataLink!$F$108 -> 1136 | J34: =CntyDataLink!$G$108 -> 263 | K34: =ROUND(I34/I33,2)*100&"% of Occ." -> 55% of Occ. | L34: =IF(I34="-","-",(I34-C34)/C34) -> -0.09554140127 | M34: 0.002647837599 | O34: =StatisticallySignificantCalcs!$A64 -> N | P34: =StatisticallySignificantCalcs!$J64 -> N
B35: Renter Occupied | C35: =CntyDataLinkPrior10YearEstimate!$H$108 -> 966 | D35: =CntyDataLinkPrior5YearEstimates!$I$108 -> 221 | E35: =ROUND(C35/C33,2)*100&"% of Occ." -> 43% of Occ. | F35: =CntyDataLinkPrior5YearEstimates!$H$108 -> 903 | G35: =CntyDataLinkPrior5YearEstimates!$I$108 -> 221 | H35: =ROUND(F35/F33,2)*100&"% of Occ." -> 44% of Occ. | I35: =CntyDataLink!$H$108 -> 925 | J35: =CntyDataLink!$I$108 -> 227 | K35: =ROUND(I35/I33,2)*100&"% of Occ." -> 45% of Occ. | L35: =IF(I35="-","-",(I35-C35)/C35) -> -0.04244306418 | M35: 0.02436323367 | O35: =StatisticallySignificantCalcs!$A65 -> N | P35: =StatisticallySignificantCalcs!$J65 -> N
B36: Vacant Units | C36: =CntyDataLinkPrior10YearEstimate!$J$108 -> 438 | D36: =CntyDataLinkPrior5YearEstimates!$K$108 -> 196 | E36: =ROUND(C36/C32,2)*100&"% of Total" -> 16% of Total | F36: =CntyDataLinkPrior5YearEstimates!$J$108 -> 538 | G36: =CntyDataLinkPrior5YearEstimates!$K$108 -> 196 | H36: =ROUND(F36/F32,2)*100&"% of Total" -> 21% of Total | I36: =CntyDataLink!$J$108 -> 653 | J36: =CntyDataLink!$K$108 -> 153 | K36: =ROUND(I36/I32,2)*100&"% of Total" -> 24% of Total | L36: =IF(I36="-",I36,VALUE((I36-C36)/C36)) -> 0.4908675799 | M36: =IF(I36="-","-",(I36-F36)/F36) -> 0.2137546468 | O36: =StatisticallySignificantCalcs!$A66 -> N | P36: =StatisticallySignificantCalcs!$J66 -> N
B37: Vacant For Sale | C37: =CntyDataLinkPrior10YearEstimate!$P$108 -> 42 | D37: =CntyDataLinkPrior5YearEstimates!$Q$108 -> 95 | E37: =ROUND(C37/(C$36),3)*100&"% Vac." -> 9.6% Vac. | F37: =CntyDataLinkPrior5YearEstimates!$P$108 -> 60 | G37: =CntyDataLinkPrior5YearEstimates!$Q$108 -> 95 | H37: =ROUND(F37/(F$36),3)*100&"% Vac." -> 11.2% Vac. | I37: =CntyDataLink!$P$108 -> 0 | J37: =CntyDataLink!$Q$108 -> 17 | K37: =ROUND(I37/(I$36),3)*100&"% Vac." -> 0% Vac. | L37: =IF(I37="-",I37,VALUE((I37-C37)/C37)) -> -1 | M37: =IF(I37="-","-",(I37-F37)/F37) -> -1 | O37: =StatisticallySignificantCalcs!$A67 -> N | P37: =StatisticallySignificantCalcs!$J67 -> N
B38: Vacant For Rent | C38: =CntyDataLinkPrior10YearEstimate!$L$108 -> 69 | D38: =CntyDataLinkPrior5YearEstimates!$M$108 -> 150 | E38: =ROUND(C38/(C$36),3)*100&"% Vac." -> 15.8% Vac. | F38: =CntyDataLinkPrior5YearEstimates!$L$108 -> 171 | G38: =CntyDataLinkPrior5YearEstimates!$M$108 -> 150 | H38: =ROUND(F38/(F$36),3)*100&"% Vac." -> 31.8% Vac. | I38: =CntyDataLink!$L$108 -> 82 | J38: =CntyDataLink!$M$108 -> 82 | K38: =ROUND(I38/(I$36),3)*100&"% Vac." -> 12.6% Vac. | L38: =IF(I38="-",I38,VALUE((I38-C38)/C38)) -> 0.1884057971 | M38: -0.5204678363 | O38: =StatisticallySignificantCalcs!$A68 -> N | P38: =StatisticallySignificantCalcs!$J68 -> N
B39: Vacant Seasonal | C39: =CntyDataLinkPrior10YearEstimate!$T$108 -> 229 | D39: =CntyDataLinkPrior5YearEstimates!$U$108 -> 137 | E39: =ROUND(C39/(C$36),3)*100&"% Vac." -> 52.3% Vac. | F39: =CntyDataLinkPrior5YearEstimates!$T$108 -> 215 | G39: =CntyDataLinkPrior5YearEstimates!$U$108 -> 137 | H39: =ROUND(F39/(F$36),3)*100&"% Vac." -> 40% Vac. | I39: =CntyDataLink!$T$108 -> 541 | J39: =CntyDataLink!$U$108 -> 167 | K39: =ROUND(I39/(I$36),3)*100&"% Vac." -> 82.8% Vac. | L39: =IF(I39="-",I39,VALUE((I39-C39)/C39)) -> 1.362445415 | M39: 1.51627907 | O39: =StatisticallySignificantCalcs!$A69 -> Y | P39: =StatisticallySignificantCalcs!$J69 -> Y
B41: Data from the American Community Survey are estimates
B44: HOUSING CHARACTERISTICS
D65: ="Source: "& " "&D69&", "&G69&" and "&J69& " American Community Survey Table B25024; B25032" -> Source: 2008-2012, 2013-2017 and 2018-2022 American Community Survey Table B25024; B25032
C67: Units by Type
D69: =C30 -> 2008-2012 | G69: =F30 -> 2013-2017 | J69: =I30 -> 2018-2022 | M69: Percent Change | O69: Statistically Significant Change
D70: Estimate | E70: Margin of Error | F70: % of Total | G70: Estimate | H70: Margin of Error | I70: % of Total | J70: Estimate | K70: Margin of Error | L70: % of Total | M70: =L31 -> 2012-2022 | N70: 2017-2022 | O70: =L31 -> 2012-2022 | P70: 2017-2022
C71: Total Units | D71: =CntyDataLinkPrior10YearEstimate!$B$108 -> 2660 | E71: =CntyDataLinkPrior10YearEstimate!$C$108 -> 226 | G71: =CntyDataLinkPrior5YearEstimates!$B$108 -> 2574 | H71: =CntyDataLinkPrior5YearEstimates!$C$108 -> 247 | J71: =CntyDataLink!$B$108 -> 2714 | K71: =CntyDataLink!$C$108 -> 283 | O71: =StatisticallySignificantCalcs!$A70 -> N | P71: =StatisticallySignificantCalcs!$J70 -> N
C72: Single Family Units | D72: =CntyDataLinkPrior10YearEstimate!$AT$108 -> 1589 | E72: =CntyDataLinkPrior10YearEstimate!$AU$108 -> 243 | F72: =IF(D72="-","-",($D$72/$D$71)) -> 0.5973684211 | G72: =CntyDataLinkPrior5YearEstimates!$AT$108 -> 1148 | H72: =CntyDataLinkPrior5YearEstimates!$AU$108 -> 250 | I72: =IF(G72="-","-",($G$72/$G$71)) -> 0.445998446 | J72: =CntyDataLink!$AT$108 -> 1333 | K72: =CntyDataLink!$AU$108 -> 249 | L72: =IF(J72="-","-",($J$72/$J$71)) -> 0.4911569639 | M72: =IF(J72="-","-",($J72-$D72)/$D72) -> -0.1611076149 | N72: =IF(J72="-","-",($J72-$G72)/$G72) -> 0.1611498258 | O72: =StatisticallySignificantCalcs!$A71 -> N | P72: =StatisticallySignificantCalcs!$J71 -> N
C73: SF Owner Occ. | D73: =CntyDataLinkPrior10YearEstimate!$AF$108 -> 1033 | E73: =CntyDataLinkPrior10YearEstimate!$AG$108 -> 161 | G73: =CntyDataLinkPrior5YearEstimates!$AF$108 -> 817 | H73: =CntyDataLinkPrior5YearEstimates!$AG$108 -> 182 | J73: =CntyDataLink!$AF$108 -> 944 | K73: =CntyDataLink!$AG$108 -> 245 | O73: =StatisticallySignificantCalcs!$A72 -> N | P73: =StatisticallySignificantCalcs!$J72 -> N
C74: SF Renter Occ. | D74: =CntyDataLinkPrior10YearEstimate!$AN$108 -> 205 | E74: =CntyDataLinkPrior10YearEstimate!$AO$108 -> 132 | G74: =CntyDataLinkPrior5YearEstimates!$AN$108 -> 192 | H74: =CntyDataLinkPrior5YearEstimates!$AO$108 -> 140 | J74: =CntyDataLink!$AN$108 -> 160 | K74: =CntyDataLink!$AO$108 -> 111 | O74: =StatisticallySignificantCalcs!$A73 -> N | P74: =StatisticallySignificantCalcs!$J73 -> N
C75: Multi-family Units | D75: =CntyDataLinkPrior10YearEstimate!$AV$108 -> 857 | E75: =CntyDataLinkPrior10YearEstimate!$AW$108 -> 259.5804307 | F75: =IF(D75="-","-",$D$75/$D$71) -> 0.3221804511 | G75: =CntyDataLinkPrior5YearEstimates!$AV$108 -> 1151 | H75: =CntyDataLinkPrior5YearEstimates!$AW$108 -> 266.3080923 | I75: =IF(G75="-","-",$G$75/$G$71) -> 0.4471639472 | J75: =CntyDataLink!$AV$108 -> 1226 | K75: =CntyDataLink!$AW$108 -> 312.7459033 | L75: =IF(J75="-","-",$J$75/$J$71) -> 0.4517317612 | M75: =IF(J75="-","-",($J75-$D75)/$D75) -> 0.430571762 | N75: =IF(J75="-","-",($J75-$G75)/$G75) -> 0.0651607298 | O75: =StatisticallySignificantCalcs!$A74 -> N | P75: =StatisticallySignificantCalcs!$J74 -> N
C76: MF Owner Occ. | D76: =CntyDataLinkPrior10YearEstimate!$AH$108 -> 53 | E76: =CntyDataLinkPrior10YearEstimate!$AI$108 -> 53 | G76: =CntyDataLinkPrior5YearEstimates!$AH$108 -> 92 | H76: =CntyDataLinkPrior5YearEstimates!$AI$108 -> 74.97999733 | J76: =CntyDataLink!$AH$108 -> 96 | K76: =CntyDataLink!$AI$108 -> 88.35157044 | O76: =StatisticallySignificantCalcs!$A75 -> N | P76: =StatisticallySignificantCalcs!$J75 -> N
C77: MF Renter Occ. | D77: =CntyDataLinkPrior10YearEstimate!$AP$108 -> 727 | E77: =CntyDataLinkPrior10YearEstimate!$AQ$108 -> 248.783038 | G77: =CntyDataLinkPrior5YearEstimates!$AP$108 -> 697 | H77: =CntyDataLinkPrior5YearEstimates!$AQ$108 -> 218.5497655 | J77: =CntyDataLink!$AP$108 -> 746 | K77: =CntyDataLink!$AQ$108 -> 259.5476835 | O77: =StatisticallySignificantCalcs!$A76 -> N | P77: =StatisticallySignificantCalcs!$J76 -> N
C78: Mobile Home & Other | D78: =CntyDataLinkPrior10YearEstimate!$AX$108 -> 214 | E78: =CntyDataLinkPrior10YearEstimate!$AY$108 -> 70.83078427 | F78: =IF(D78="-","-",($D$78/$D$71)) -> 0.08045112782 | G78: =CntyDataLinkPrior5YearEstimates!$AX$108 -> 275 | H78: =CntyDataLinkPrior5YearEstimates!$AY$108 -> 102.2594739 | I78: =IF(G78="-","-",($G$78/$G$71)) -> 0.1068376068 | J78: =CntyDataLink!$AX$108 -> 155 | K78: =CntyDataLink!$AY$108 -> 99.46356117 | L78: =IF(J78="-","-",($J$78/$J$71)) -> 0.05711127487 | M78: =IF(J78="-","-",($J78-$D78)/$D78) -> -0.2757009346 | N78: =IF(J78="-","-",($J78-$G78)/$G78) -> -0.4363636364 | O78: =StatisticallySignificantCalcs!$A77 -> N | P78: =StatisticallySignificantCalcs!$J77 -> N
B80: Data from the American Community Survey are estimates
B83: Units by Number of Bedrooms
D84: ="Source: "& " "&D69&", "&G69&" and "&J69& " American Community Survey Table B25041" -> Source: 2008-2012, 2013-2017 and 2018-2022 American Community Survey Table B25041
C86: =C30 -> 2008-2012 | G86: =F30 -> 2013-2017 | K86: =I30 -> 2018-2022 | O86: Statistically Significant Change
B87: Bedrooms | C87: Estimate | D87: Margin of Error | E87: % of Total | G87: Estimate | H87: Margin of Error | I87: % of Total | K87: Estimate | L87: Margin of Error | M87: % of Total | O87: =L31 -> 2012-2022 | P87: 2017-2022
B88: No Bedrooms | C88: =CntyDataLinkPrior10YearEstimate!$BR$108 -> 64 | D88: =CntyDataLinkPrior10YearEstimate!$BS$108 -> 103 | E88: =C88/SUM($C$88:$C$92) -> 0.02406015038 | G88: =CntyDataLinkPrior5YearEstimates!$BR$108 -> 0 | H88: =CntyDataLinkPrior5YearEstimates!$BS$108 -> 16 | I88: =G88/SUM($G$88:$G$92) -> 0 | K88: =CntyDataLink!$BT$108 -> 33 | L88: =CntyDataLink!$BU$108 -> 57 | M88: =K88/SUM($K$88:$K$92) -> 0.01215917465 | O88: =StatisticallySignificantCalcs!$A78 -> N | P88: =StatisticallySignificantCalcs!$J78 -> N
B89: 1 Bedroom | C89: =CntyDataLinkPrior10YearEstimate!$BT$108 -> 486 | D89: =CntyDataLinkPrior10YearEstimate!$BU$108 -> 169 | E89: =C89/SUM($C$88:$C$92) -> 0.1827067669 | G89: =CntyDataLinkPrior5YearEstimates!$BT$108 -> 366 | H89: =CntyDataLinkPrior5YearEstimates!$BU$108 -> 137 | I89: =G89/SUM($G$88:$G$92) -> 0.1421911422 | K89: =CntyDataLink!$BV$108 -> 366 | L89: =CntyDataLink!$BW$108 -> 204 | M89: =K89/SUM($K$88:$K$92) -> 0.1348563007 | O89: =StatisticallySignificantCalcs!$A79 -> N | P89: =StatisticallySignificantCalcs!$J79 -> N
B90: 2 Bedrooms | C90: =CntyDataLinkPrior10YearEstimate!$BV$108 -> 846 | D90: =CntyDataLinkPrior10YearEstimate!$BW$108 -> 206 | E90: =C90/SUM($C$88:$C$92) -> 0.3180451128 | G90: =CntyDataLinkPrior5YearEstimates!$BV$108 -> 1151 | H90: =CntyDataLinkPrior5YearEstimates!$BW$108 -> 215 | I90: =G90/SUM($G$88:$G$92) -> 0.4471639472 | K90: =CntyDataLink!$BX$108 -> 1018 | L90: =CntyDataLink!$BY$108 -> 278 | M90: =K90/SUM($K$88:$K$92) -> 0.375092115 | O90: =StatisticallySignificantCalcs!$A80 -> Y | P90: =StatisticallySignificantCalcs!$J80 -> N
B91: 3 Bedrooms | C91: =CntyDataLinkPrior10YearEstimate!$BX$108 -> 785 | D91: =CntyDataLinkPrior10YearEstimate!$BY$108 -> 182 | E91: =C91/SUM($C$88:$C$92) -> 0.295112782 | G91: =CntyDataLinkPrior5YearEstimates!$BX$108 -> 580 | H91: =CntyDataLinkPrior5YearEstimates!$BY$108 -> 165 | I91: =G91/SUM($G$88:$G$92) -> 0.2253302253 | K91: =CntyDataLink!$BZ$108 -> 756 | L91: =CntyDataLink!$CA$108 -> 209 | M91: =K91/SUM($K$88:$K$92) -> 0.2785556374 | O91: =StatisticallySignificantCalcs!$A81 -> Y | P91: =StatisticallySignificantCalcs!$J81 -> N
B92: 4+ Bedrooms | C92: =CntyDataLinkPrior10YearEstimate!$BZ$108 -> 479 | D92: =CntyDataLinkPrior10YearEstimate!$CA$108 -> 144.9172177 | E92: =C92/SUM($C$88:$C$92) -> 0.180075188 | G92: =CntyDataLinkPrior5YearEstimates!$BZ$108 -> 477 | H92: =CntyDataLinkPrior5YearEstimates!$CA$108 -> 198.2952344 | I92: =G92/SUM($G$88:$G$92) -> 0.1853146853 | K92: =CntyDataLink!$CB$108 -> 541 | L92: =CntyDataLink!$CC$108 -> 241.5139748 | M92: =K92/SUM($K$88:$K$92) -> 0.1993367723 | O92: =StatisticallySignificantCalcs!$A82 -> Y | P92: =StatisticallySignificantCalcs!$J82 -> N
B95: Data from the American Community Survey are estimates
B97: Units by Year Built
B98: ="Source: "&K86& " American Community Survey Table B25034" -> Source: 2018-2022 American Community Survey Table B25034
D100: Year Built | G100: Units | I100: % of Total | K100: Margin of Error
F101: 2020 or later | G101: =CntyDataLink!$AZ$108 -> 0 | I101: =G101/SUM($G$101:$G$110) -> 0 | K101: =CntyDataLink!$BA$108 -> 17
F102: 2010 through 2019 | G102: =CntyDataLink!$BB$108 -> 159 | I102: 0.05858511422 | K102: =CntyDataLink!$BC$108 -> 128
F103: 2000 through 2009 | G103: =CntyDataLink!$BD$108 -> 260 | I103: 0.09579955785 | K103: =CntyDataLink!$BE$108 -> 139
F104: 1990 through 1999 | G104: =CntyDataLink!$BF$108 -> 340 | I104: 0.1252763449 | K104: =CntyDataLink!$BG$108 -> 206
F105: 1980 through 1989 | G105: =CntyDataLink!$BH$108 -> 671 | I105: 0.2472365512 | K105: =CntyDataLink!$BI$108 -> 230
F106: 1970 through 1979 | G106: =CntyDataLink!$BJ$108 -> 374 | I106: 0.1378039794 | K106: =CntyDataLink!$BK$108 -> 175
F107: 1960 through 1969 | G107: =CntyDataLink!$BL$108 -> 111 | I107: 0.040899042 | K107: =CntyDataLink!$BM$108 -> 81
F108: 1950 through 1959 | G108: =CntyDataLink!$BN$108 -> 137 | I108: 0.05047899779 | K108: =CntyDataLink!$BO$108 -> 91
F109: 1940 through 1949 | G109: =CntyDataLink!$BP$108 -> 216 | I109: 0.07958732498 | K109: =CntyDataLink!$BQ$108 -> 126
F110: 1939 and earlier | G110: =CntyDataLink!$BR$108 -> 446 | I110: 0.1643330877 | K110: =CntyDataLink!$BS$108 -> 170
B112: Data from the American Community Survey are estimates

Sheet CntyDataLink (hidden)
A1: 1 | B1: =A1+1 -> 2 | C1: =B1+1 -> 3 | D1: 4 | E1: 5 | F1: 6 | G1: 7 | H1: 8 | I1: 9 | J1: 10 | K1: 11 | L1: 12 | M1: 13 | N1: 14 | O1: 15 | P1: =O1+1 -> 16 | Q1: 17 | R1: 18 | S1: 19 | T1: 20 | U1: 21 | V1: 22 | W1: 23 | X1: 24 | Y1: 25 | Z1: 26 | AA1: 27 | AB1: 28 | AC1: 29 | AD1: 30 | AE1: 31 | AF1: 32 | AG1: 33 | AH1: 34 | AI1: 35 | AJ1: 36 | AK1: 37 | AL1: 38 | AM1: 39 | AN1: 40 | AO1: 41 | AP1: 42 | AQ1: 43 | AR1: 44 | AS1: 45 | AT1: 46 | AU1: 47 | AV1: 48 | AW1: 49 | AX1: 50 | AY1: 51 | AZ1: 52 | BA1: 53 | BB1: 54 | BC1: 55 | BD1: 56 | BE1: 57 | BF1: 58 | BG1: 59 | BH1: 60 | BI1: 61 | BJ1: 62 | BK1: 63 | BL1: 64 | BM1: 65 | BN1: 66 | BO1: =BN1+1 -> 67 | BP1: 68 | BQ1: 69 | BR1: 70 | BS1: 71 | BT1: 72 | BU1: 73 | BV1: 74 | BW1: 75 | BX1: 76 | BY1: 77 | BZ1: 78 | CA1: 79 | CB1: 80 | CC1: 81 | CD1: 82 | CE1: 83 | CF1: 84 | CG1: 85 | CH1: 86 | CI1: 87 | CJ1: 88 | CK1: 89 | CL1: 90 | CM1: 91 | CN1: 92 | CO1: 93 | CP1: 94 | CQ1: 95 | CR1: 96 | CS1: 97 | CT1: 98 | CU1: 99 | CV1: 100 | CW1: 101 | CX1: 102 | CY1: 103 | CZ1: 104 | DA1: 105 | DB1: 106 | DC1: 107 | DD1: 108 | DE1: 109 | DF1: 110 | DG1: 111 | DH1: 112 | DI1: 113 | DJ1: 114 | DK1: 115 | DL1: 116 | DM1: 117 | DN1: 118 | DO1: 119 | DP1: 120 | DQ1: 121 | DR1: 122 | DS1: 123 | DT1: 124 | DU1: 125 | DV1: 126 | DW1: 127 | DX1: 128 | DY1: 129 | DZ1: 130 | EA1: =DZ1+1 -> 131 | EB1: 132 | EC1: 133 | ED1: 134 | EE1: 135 | EF1: 136 | EG1: 137 | EH1: 138 | EI1: 139 | EJ1: 140 | EK1: 141 | EL1: 142 | EM1: 143 | EN1: 144 | EO1: 145 | EP1: 146 | EQ1: 147 | ER1: 148 | ES1: 149 | ET1: 150 | EU1: 151 | EV1: 152 | EW1: 153 | EX1: 154 | EY1: 155 | EZ1: 156 | FA1: 157 | FB1: 158 | FC1: 159 | FD1: 160 | FE1: 161 | FF1: 162 | FG1: 163 | FH1: 164 | FI1: 165 | FJ1: 166 | FK1: 167 | FL1: 168 | FM1: 169 | FN1: 170 | FO1: 171 | FP1: 172 | FQ1: 173 | FR1: 174 | FS1: 175 | FT1: 176 | FU1: 177 | FV1: 178 | FW1: 179 | FX1: 180 | FY1: 181 | FZ1: 182 | GA1: 183 | GB1: 184 | GC1: 185 | GD1: 186 | GE1: 187 | GF1: 188 | GG1: 189 | GH1: 190 | GI1: 191 | GJ1: 192 | GK1: 193 | GL1: 194 | GM1: =GL1+1 -> 195 | GN1: 196 | GO1: 197 | GP1: 198 | GQ1: 199 | GR1: 200 | GS1: 201 | GT1: 202 | GU1: 203 | GV1: 204 | GW1: 205 | GX1: 206 | GY1: 207 | GZ1: 208 | HA1: 209 | HB1: 210 | HC1: 211 | HD1: 212 | HE1: 213 | HF1: 214 | HG1: 215 | HH1: 216 | HI1: 217 | HJ1: 218 | HK1: 219 | HL1: 220 | HM1: 221 | HN1: 222 | HO1: 223 | HP1: 224 | HQ1: 225 | HR1: 226 | HS1: 227 | HT1: 228 | HU1: 229 | HV1: 230 | HW1: 231 | HX1: 232 | HY1: 233 | HZ1: 234 | IA1: 235 | IB1: 236 | IC1: 237 | ID1: 238 | IE1: 239 | IF1: 240 | IG1: 241 | IH1: 242 | II1: 243 | IJ1: 244 | IK1: 245 | IL1: 246 | IM1: 247 | IN1: 248 | IO1: 249 | IP1: 250 | IQ1: 251 | IR1: 252 | IS1: 253 | IT1: 254 | IU1: 255
A3: Census 1990 Data - Query Name: DPCnty90Census
A4: TownName | B4: Cnty_Code | C4: Census_Cnty_Code | D4: LandAcres | E4: WaterAcres | F4: HousingUnits90Cen | G4: Persons90Cen | H4: Families90Cen | I4: Households90cen | J4: MalePop90cen | K4: FemalePop90cen | L4: WhitePop | M4: BlackPop | N4: AmerIndianPop | O4: AsianPIPop | P4: OtherRacePop | Q4: HispanicOrPop | R4: AgeUnder15_90cen | S4: Age15to24_90cen | T4: Age25to34_90cen | U4: Age35to44_90cen | V4: Age45to54_90cen | W4: Age55to64_90cen | X4: Age65to74_90cen | Y4: Age75andOver_90cen | Z4: PersonsInHH90cen | AA4: PersonsInFamHH90cen | AB4: PersonsInGC | AC4: PersonsPerHH90cen | AD4: PersonsPerFam90Cen | AE4: SinglePersonHH90cen | AF4: MarriedCoupleHH90cen | AG4: SingleParentHH90cen | AH4: NonFamilyHH90cen | AI4: TotalHousingUnits | AJ4: OccupiedHousingUnits | AK4: VacantHousingUnits | AL4: OwnerOccHU | AM4: RenterOccHU | AN4: VacantForRent90 | AO4: VacantForSale90 | AP4: VacantSeasonalRec | AQ4: SingFamHU90cen | AR4: MultiFamHU90cen | AS4: MobileHom90cen | AT4: SingFamOwnHU90cen | AU4: MultiFamOwnHU90cen | AV4: MobileHomOwnHU90cen | AW4: SingFamRntrHU90cen | AX4: MultiFamRntrHU90cen | AY4: MobileHomRntrHU90cen | AZ4: HU<5yrs90cen | BA4: HU5to20yrs90cen | BB4: HU20to50yrs90cen | BC4: HU>50yrs90cen | BD4: Units0Bedroom90cen | BE4: Units1Bedroom90cen | BF4: Units2Bedroom90cen | BG4: Units3Bedroom90cen | BH4: Units4+Bedroom90cen | BI4: HI<5K | BJ4: HI5Kto10K | BK4: HI10Kto15K | BL4: HI15Kto25K | BM4: HI25Kto35K | BN4: HI35Kto50K | BO4: HI50Kto75K | BP4: HI75Kto100K | BQ4: HI>100K | BR4: MedHI | BS4: HH<25HI<5K | BT4: HH<25HI5Kto10K | BU4: HH<25HI10Kto15K | BV4: HH<25HI15Kto25K | BW4: HH<25HI25Kto35K | BX4: HH<25HI35Kto50K | BY4: HH<25HI50Kto75K | BZ4: HH<25HI75Kto100K | CA4: HH<25HI>100K | CB4: HH25to34HI<5K | CC4: HH25to34HI5Kto10K | CD4: HH25to34HI10Kto15K | CE4: HH25to34HI15Kto25K | CF4: HH25to34HI25Kto35K | CG4: HH25to34HI35Kto50K | CH4: HH25to34HI50Kto75K | CI4: HH25to34HI75Kto100K | CJ4: HH25to34HI>100K | CK4: HH35to44HI<5K | CL4: HH35to44HI5Kto10K | CM4: HH35to44HI10Kto15K | CN4: HH35to44HI15Kto25K | CO4: HH35to44HI25Kto35K | CP4: HH35to44HI35Kto50K | CQ4: HH35to44HI50Kto75K | CR4: HH35to44HI75Kto100K | CS4: HH35to44HI>100K | CT4: HH45to54HI<5K | CU4: HH45to54HI5Kto10K | CV4: HH45to54HI10Kto15K | CW4: HH45to54HI15Kto25K | CX4: HH45to54HI25Kto35K | CY4: HH45to54HI35Kto50K | CZ4: HH45to54HI50Kto75K | DA4: HH45to54HI75Kto100K | DB4: HH45to54HI>100K | DC4: HH55to64HI<5K | DD4: HH55to64HI5Kto10K | DE4: HH55to64HI10Kto15K | DF4: HH55to64HI15Kto25K | DG4: HH55to64HI25Kto35K | DH4: HH55to64HI35Kto50K | DI4: HH55to64HI50Kto75K | DJ4: HH55to64HI75Kto100K | DK4: HH55to64HI>100K | DL4: HH65to74HI<5K | DM4: HH65to74HI5Kto10K | DN4: HH65to74HI10Kto15K | DO4: HH65to74HI15Kto25K | DP4: HH65to74HI25Kto35K | DQ4: HH65to74HI35Kto50K | DR4: HH65to74HI50Kto75K | DS4: HH65to74HI75Kto100K | DT4: HH65to74HI>100K | DU4: HH>75HI<5K | DV4: HH>75HI5Kto10K | DW4: HH>75HI10Kto15K | DX4: HH>75HI15Kto25K | DY4: HH>75HI25Kto35K | DZ4: HH>75HI35Kto50K | EA4: HH>75HI50Kto75K | EB4: HH>75HI75Kto100K | EC4: HH>75HI>100K | ED4: SchoolEnrollment1thru12 | EE4: Pop25andOver | EF4: HSGradorHigher | EG4: CollGradorHigher | EH4: NativePop | EI4: ForeignBornPop | EJ4: BornStateOfRes | EK4: NativePop2 | EL4: ForeignBornPop2 | EM4: DroveAlone | EN4: CarPooled | EO4: PublicTranspt | EP4: Walked | EQ4: OtherMeans | ER4: WorkedAtHome | ES4: HHInc<10K | ET4: HHInc10to15K | EU4: HHInc15to25K | EV4: HHInc25to35K | EW4: HHInc35to50K | EX4: HHInc50to75K | EY4: HHInc75to100K | EZ4: HHInc100to150K | FA4: HHInc>150K
A5: =VLOOKUP(DropDownList!$A$47,CntyQuery!$A$4:$FI$46,A1) -> Franconia | B5: =VLOOKUP(DropDownList!$A$47,CntyQuery!$A$4:$FA$46,B1) -> 9070 | C5: =VLOOKUP(DropDownList!$A$47,CntyQuery!$A$4:$FA$46,C1) -> 27300 | D5: =VLOOKUP(DropDownList!$A$47,CntyQuery!$A$4:$FA$46,D1) -> 42073.07 | E5: =VLOOKUP(DropDownList!$A$47,CntyQuery!$A$4:$FA$46,E1) -> 50.99 | F5: =VLOOKUP(DropDownList!$A$47,CntyQuery!$A$4:$FA$46,F1) -> 646 | G5: =VLOOKUP(DropDownList!$A$47,CntyQuery!$A$4:$FA$46,G1) -> 811 | H5: =VLOOKUP(DropDownList!$A$47,CntyQuery!$A$4:$FA$46,H1) -> 210 | I5: =VLOOKUP(DropDownList!$A$47,CntyQuery!$A$4:$FA$46,I1) -> 323 | J5: =VLOOKUP(DropDownList!$A$47,CntyQuery!$A$4:$FA$46,J1) -> 366 | K5: =VLOOKUP(DropDownList!$A$47,CntyQuery!$A$4:$FA$46,K1) -> 445 | L5: =VLOOKUP(DropDownList!$A$47,CntyQuery!$A$4:$FA$46,L1) -> 801 | M5: =VLOOKUP(DropDownList!$A$47,CntyQuery!$A$4:$FA$46,M1) -> 1 | N5: =VLOOKUP(DropDownList!$A$47,CntyQuery!$A$4:$FA$46,N1) -> 2 | O5: =VLOOKUP(DropDownList!$A$47,CntyQuery!$A$4:$FA$46,O1) -> 7 | P5: =VLOOKUP(DropDownList!$A$47,CntyQuery!$A$4:$FA$46,P1) -> 0 | Q5: =VLOOKUP(DropDownList!$A$47,CntyQuery!$A$4:$FA$46,Q1) -> 2 | R5: =VLOOKUP(DropDownList!$A$47,CntyQuery!$A$4:$FA$46,R1) -> 156 | S5: =VLOOKUP(DropDownList!$A$47,CntyQuery!$A$4:$FA$46,S1) -> 59 | T5: =VLOOKUP(DropDownList!$A$47,CntyQuery!$A$4:$FA$46,T1) -> 94 | U5: =VLOOKUP(DropDownList!$A$47,CntyQuery!$A$4:$FA$46,U1) -> 152 | V5: =VLOOKUP(DropDownList!$A$47,CntyQuery!$A$4:$FA$46,V1) -> 101 | W5: =VLOOKUP(DropDownList!$A$47,CntyQuery!$A$4:$FA$46,W1) -> 74 | X5: =VLOOKUP(DropDownList!$A$47,CntyQuery!$A$4:$FA$46,X1) -> 78 | Y5: =VLOOKUP(DropDownList!$A$47,CntyQuery!$A$4:$FA$46,Y1) -> 97 | Z5: =VLOOKUP(DropDownList!$A$47,CntyQuery!$A$4:$FA$46,Z1) -> 742 | AA5: =VLOOKUP(DropDownList!$A$47,CntyQuery!$A$4:$FA$46,AA1) -> 612 | AB5: =VLOOKUP(DropDownList!$A$47,CntyQuery!$A$4:$FA$46,AB1) -> 69 | AC5: =VLOOKUP(DropDownList!$A$47,CntyQuery!$A$4:$FA$46,AC1) -> 2.297213622 | AD5: =VLOOKUP(DropDownList!$A$47,CntyQuery!$A$4:$FA$46,AD1) -> 2.914285714 | AE5: =VLOOKUP(DropDownList!$A$47,CntyQuery!$A$4:$FA$46,AE1) -> 96 | AF5: =VLOOKUP(DropDownList!$A$47,CntyQuery!$A$4:$FA$46,AF1) -> 179 | AG5: =VLOOKUP(DropDownList!$A$47,CntyQuery!$A$4:$FA$46,AG1) -> 31 | AH5: =VLOOKUP(DropDownList!$A$47,CntyQuery!$A$4:$FA$46,AH1) -> 17 | AI5: =VLOOKUP(DropDownList!$A$47,CntyQuery!$A$4:$FA$46,AI1) -> 646 | AJ5: =VLOOKUP(DropDownList!$A$47,CntyQuery!$A$4:$FA$46,AJ1) -> 323 | AK5: =VLOOKUP(DropDownList!$A$47,CntyQuery!$A$4:$FA$46,AK1) -> 323 | AL5: =VLOOKUP(DropDownList!$A$47,CntyQuery!$A$4:$FA$46,AL1) -> 214 | AM5: =VLOOKUP(DropDownList!$A$47,CntyQuery!$A$4:$FA$46,AM1) -> 109 | AN5: =VLOOKUP(DropDownList!$A$47,CntyQuery!$A$4:$FA$46,AN1) -> 16 | AO5: =VLOOKUP(DropDownList!$A$47,CntyQuery!$A$4:$FA$46,AO1) -> 20 | AP5: =VLOOKUP(DropDownList!$A$47,CntyQuery!$A$4:$FA$46,AP1) -> 244 | AQ5: =VLOOKUP(DropDownList!$A$47,CntyQuery!$A$4:$FA$46,AQ1) -> 452 | AR5: =VLOOKUP(DropDownList!$A$47,CntyQuery!$A$4:$FA$46,AR1) -> 140 | AS5: =VLOOKUP(DropDownList!$A$47,CntyQuery!$A$4:$FA$46,AS1) -> 54 | AT5: =VLOOKUP(DropDownList!$A$47,CntyQuery!$A$4:$FA$46,AT1) -> 184 | AU5: =VLOOKUP(DropDownList!$A$47,CntyQuery!$A$4:$FA$46,AU1) -> 15 | AV5: =VLOOKUP(DropDownList!$A$47,CntyQuery!$A$4:$FA$46,AV1) -> 54 | AW5: =VLOOKUP(DropDownList!$A$47,CntyQuery!$A$4:$FA$46,AW1) -> 48 | AX5: =VLOOKUP(DropDownList!$A$47,CntyQuery!$A$4:$FA$46,AX1) -> 56 | AY5: =VLOOKUP(DropDownList!$A$47,CntyQuery!$A$4:$FA$46,AY1) -> 5 | AZ5: =VLOOKUP(DropDownList!$A$47,CntyQuery!$A$4:$FA$46,AZ1) -> 75 | BA5: =VLOOKUP(DropDownList!$A$47,CntyQuery!$A$4:$FA$46,BA1) -> 193 | BB5: =VLOOKUP(DropDownList!$A$47,CntyQuery!$A$4:$FA$46,BB1) -> 160 | BC5: =VLOOKUP(DropDownList!$A$47,CntyQuery!$A$4:$FA$46,BC1) -> 243 | BD5: =VLOOKUP(DropDownList!$A$47,CntyQuery!$A$4:$FA$46,BD1) -> 5 | BE5: =VLOOKUP(DropDownList!$A$47,CntyQuery!$A$4:$FA$46,BE1) -> 89 | BF5: =VLOOKUP(DropDownList!$A$47,CntyQuery!$A$4:$FA$46,BF1) -> 178 | BG5: =VLOOKUP(DropDownList!$A$47,CntyQuery!$A$4:$FA$46,BG1) -> 231 | BH5: =VLOOKUP(DropDownList!$A$47,CntyQuery!$A$4:$FA$46,BH1) -> 168 | BI5: =VLOOKUP(DropDownList!$A$47,CntyQuery!$A$4:$FA$46,BI1) -> 19 | BJ5: =VLOOKUP(DropDownList!$A$47,CntyQuery!$A$4:$FA$46,BJ1) -> 19 | BK5: =VLOOKUP(DropDownList!$A$47,CntyQuery!$A$4:$FA$46,BK1) -> 42 | BL5: =VLOOKUP(DropDownList!$A$47,CntyQuery!$A$4:$FA$46,BL1) -> 69 | BM5: =VLOOKUP(DropDownList!$A$47,CntyQuery!$A$4:$FA$46,BM1) -> 63 | BN5: =VLOOKUP(DropDownList!$A$47,CntyQuery!$A$4:$FA$46,BN1) -> 54 | BO5: =VLOOKUP(DropDownList!$A$47,CntyQuery!$A$4:$FA$46,BO1) -> 44 | BP5: =VLOOKUP(DropDownList!$A$47,CntyQuery!$A$4:$FA$46,BP1) -> 9 | BQ5: =VLOOKUP(DropDownList!$A$47,CntyQuery!$A$4:$FA$46,BQ1) -> 16 | BR5: =VLOOKUP(DropDownList!$A$47,CntyQuery!$A$4:$FA$46,BR1) -> 27102 | BS5: =VLOOKUP(DropDownList!$A$47,CntyQuery!$A$4:$FA$46,BS1) -> 0 | BT5: =VLOOKUP(DropDownList!$A$47,CntyQuery!$A$4:$FA$46,BT1) -> 4 | BU5: =VLOOKUP(DropDownList!$A$47,CntyQuery!$A$4:$FA$46,BU1) -> 6 | BV5: =VLOOKUP(DropDownList!$A$47,CntyQuery!$A$4:$FA$46,BV1) -> 0 | BW5: =VLOOKUP(DropDownList!$A$47,CntyQuery!$A$4:$FA$46,BW1) -> 2 | BX5: =VLOOKUP(DropDownList!$A$47,CntyQuery!$A$4:$FA$46,BX1) -> 2 | BY5: =VLOOKUP(DropDownList!$A$47,CntyQuery!$A$4:$FA$46,BY1) -> 0 | BZ5: =VLOOKUP(DropDownList!$A$47,CntyQuery!$A$4:$FA$46,BZ1) -> 0 | CA5: =VLOOKUP(DropDownList!$A$47,CntyQuery!$A$4:$FA$46,CA1) -> 0 | CB5: =VLOOKUP(DropDownList!$A$47,CntyQuery!$A$4:$FA$46,CB1) -> 2 | CC5: =VLOOKUP(DropDownList!$A$47,CntyQuery!$A$4:$FA$46,CC1) -> 0 | CD5: =VLOOKUP(DropDownList!$A$47,CntyQuery!$A$4:$FA$46,CD1) -> 14 | CE5: =VLOOKUP(DropDownList!$A$47,CntyQuery!$A$4:$FA$46,CE1) -> 9 | CF5: =VLOOKUP(DropDownList!$A$47,CntyQuery!$A$4:$FA$46,CF1) -> 10 | CG5: =VLOOKUP(DropDownList!$A$47,CntyQuery!$A$4:$FA$46,CG1) -> 10 | CH5: =VLOOKUP(DropDownList!$A$47,CntyQuery!$A$4:$FA$46,CH1) -> 2 | CI5: =VLOOKUP(DropDownList!$A$47,CntyQuery!$A$4:$FA$46,CI1) -> 0 | CJ5: =VLOOKUP(DropDownList!$A$47,CntyQuery!$A$4:$FA$46,CJ1) -> 4 | CK5: =VLOOKUP(DropDownList!$A$47,CntyQuery!$A$4:$FA$46,CK1) -> 0 | CL5: =VLOOKUP(DropDownList!$A$47,CntyQuery!$A$4:$FA$46,CL1) -> 7 | CM5: =VLOOKUP(DropDownList!$A$47,CntyQuery!$A$4:$FA$46,CM1) -> 2 | CN5: =VLOOKUP(DropDownList!$A$47,CntyQuery!$A$4:$FA$46,CN1) -> 23 | CO5: =VLOOKUP(DropDownList!$A$47,CntyQuery!$A$4:$FA$46,CO1) -> 18 | CP5: =VLOOKUP(DropDownList!$A$47,CntyQuery!$A$4:$FA$46,CP1) -> 21 | CQ5: =VLOOKUP(DropDownList!$A$47,CntyQuery!$A$4:$FA$46,CQ1) -> 18 | CR5: =VLOOKUP(DropDownList!$A$47,CntyQuery!$A$4:$FA$46,CR1) -> 3 | CS5: =VLOOKUP(DropDownList!$A$47,CntyQuery!$A$4:$FA$46,CS1) -> 4 | CT5: =VLOOKUP(DropDownList!$A$47,CntyQuery!$A$4:$FA$46,CT1) -> 4 | CU5: =VLOOKUP(DropDownList!$A$47,CntyQuery!$A$4:$FA$46,CU1) -> 0 | CV5: =VLOOKUP(DropDownList!$A$47,CntyQuery!$A$4:$FA$46,CV1) -> 4 | CW5: =VLOOKUP(DropDownList!$A$47,CntyQuery!$A$4:$FA$46,CW1) -> 10 | CX5: =VLOOKUP(DropDownList!$A$47,CntyQuery!$A$4:$FA$46,CX1) -> 11 | CY5: =VLOOKUP(DropDownList!$A$47,CntyQuery!$A$4:$FA$46,CY1) -> 8 | CZ5: =VLOOKUP(DropDownList!$A$47,CntyQuery!$A$4:$FA$46,CZ1) -> 12 | DA5: =VLOOKUP(DropDownList!$A$47,CntyQuery!$A$4:$FA$46,DA1) -> 3 | DB5: =VLOOKUP(DropDownList!$A$47,CntyQuery!$A$4:$FA$46,DB1) -> 3 | DC5: =VLOOKUP(DropDownList!$A$47,CntyQuery!$A$4:$FA$46,DC1) -> 3 | DD5: =VLOOKUP(DropDownList!$A$47,CntyQuery!$A$4:$FA$46,DD1) -> 2 | DE5: =VLOOKUP(DropDownList!$A$47,CntyQuery!$A$4:$FA$46,DE1) -> 5 | DF5: =VLOOKUP(DropDownList!$A$47,CntyQuery!$A$4:$FA$46,DF1) -> 5 | DG5: =VLOOKUP(DropDownList!$A$47,CntyQuery!$A$4:$FA$46,DG1) -> 11 | DH5: =VLOOKUP(DropDownList!$A$47,CntyQuery!$A$4:$FA$46,DH1) -> 11 | DI5: =VLOOKUP(DropDownList!$A$47,CntyQuery!$A$4:$FA$46,DI1) -> 5 | DJ5: =VLOOKUP(DropDownList!$A$47,CntyQuery!$A$4:$FA$46,DJ1) -> 3 | DK5: =VLOOKUP(DropDownList!$A$47,CntyQuery!$A$4:$FA$46,DK1) -> 0 | DL5: =VLOOKUP(DropDownList!$A$47,CntyQuery!$A$4:$FA$46,DL1) -> 6 | DM5: =VLOOKUP(DropDownList!$A$47,CntyQuery!$A$4:$FA$46,DM1) -> 3 | DN5: =VLOOKUP(DropDownList!$A$47,CntyQuery!$A$4:$FA$46,DN1) -> 2 | DO5: =VLOOKUP(DropDownList!$A$47,CntyQuery!$A$4:$FA$46,DO1) -> 15 | DP5: =VLOOKUP(DropDownList!$A$47,CntyQuery!$A$4:$FA$46,DP1) -> 5 | DQ5: =VLOOKUP(DropDownList!$A$47,CntyQuery!$A$4:$FA$46,DQ1) -> 2 | DR5: =VLOOKUP(DropDownList!$A$47,CntyQuery!$A$4:$FA$46,DR1) -> 7 | DS5: =VLOOKUP(DropDownList!$A$47,CntyQuery!$A$4:$FA$46,DS1) -> 0 | DT5: =VLOOKUP(DropDownList!$A$47,CntyQuery!$A$4:$FA$46,DT1) -> 2 | DU5: =VLOOKUP(DropDownList!$A$47,CntyQuery!$A$4:$FA$46,DU1) -> 4 | DV5: =VLOOKUP(DropDownList!$A$47,CntyQuery!$A$4:$FA$46,DV1) -> 3 | DW5: =VLOOKUP(DropDownList!$A$47,CntyQuery!$A$4:$FA$46,DW1) -> 9 | DX5: =VLOOKUP(DropDownList!$A$47,CntyQuery!$A$4:$FA$46,DX1) -> 7 | DY5: =VLOOKUP(DropDownList!$A$47,CntyQuery!$A$4:$FA$46,DY1) -> 6 | DZ5: =VLOOKUP(DropDownList!$A$47,CntyQuery!$A$4:$FA$46,DZ1) -> 0 | EA5: =VLOOKUP(DropDownList!$A$47,CntyQuery!$A$4:$FA$46,EA1) -> 0 | EB5: =VLOOKUP(DropDownList!$A$47,CntyQuery!$A$4:$FA$46,EB1) -> 0 | EC5: =VLOOKUP(DropDownList!$A$47,CntyQuery!$A$4:$FA$46,EC1) -> 3 | ED5: =VLOOKUP(DropDownList!$A$47,CntyQuery!$A$4:$FA$46,ED1) -> 120 | EE5: =VLOOKUP(DropDownList!$A$47,CntyQuery!$A$4:$FA$46,EE1) -> 613 | EF5: =VLOOKUP(DropDownList!$A$47,CntyQuery!$A$4:$FA$46,EF1) -> 551 | EG5: =VLOOKUP(DropDownList!$A$47,CntyQuery!$A$4:$FA$46,EG1) -> 218 | EH5: =VLOOKUP(DropDownList!$A$47,CntyQuery!$A$4:$FA$46,EH1) -> 764 | EI5: =VLOOKUP(DropDownList!$A$47,CntyQuery!$A$4:$FA$46,EI1) -> 61 | EJ5: =VLOOKUP(DropDownList!$A$47,CntyQuery!$A$4:$FA$46,EJ1) -> 296 | EK5: =VLOOKUP(DropDownList!$A$47,CntyQuery!$A$4:$FA$46,EK1) -> 764 | EL5: =VLOOKUP(DropDownList!$A$47,CntyQuery!$A$4:$FA$46,EL1) -> 61 | EM5: =VLOOKUP(DropDownList!$A$47,CntyQuery!$A$4:$FA$46,EM1) -> 287 | EN5: =VLOOKUP(DropDownList!$A$47,CntyQuery!$A$4:$FA$46,EN1) -> 19 | EO5: =VLOOKUP(DropDownList!$A$47,CntyQuery!$A$4:$FA$46,EO1) -> 0 | EP5: =VLOOKUP(DropDownList!$A$47,CntyQuery!$A$4:$FA$46,EP1) -> 17 | EQ5: =VLOOKUP(DropDownList!$A$47,CntyQuery!$A$4:$FA$46,EQ1) -> 8 | ER5: =VLOOKUP(DropDownList!$A$47,CntyQuery!$A$4:$FA$46,ER1) -> 27 | ES5: =VLOOKUP(DropDownList!$A$47,CntyQuery!$A$4:$FA$46,ES1) -> 38 | ET5: =VLOOKUP(DropDownList!$A$47,CntyQuery!$A$4:$FA$46,ET1) -> 42 | EU5: =VLOOKUP(DropDownList!$A$47,CntyQuery!$A$4:$FA$46,EU1) -> 69 | EV5: =VLOOKUP(DropDownList!$A$47,CntyQuery!$A$4:$FA$46,EV1) -> 63 | EW5: =VLOOKUP(DropDownList!$A$47,CntyQuery!$A$4:$FA$46,EW1) -> 54 | EX5: =VLOOKUP(DropDownList!$A$47,CntyQuery!$A$4:$FA$46,EX1) -> 44 | EY5: =VLOOKUP(DropDownList!$A$47,CntyQuery!$A$4:$FA$46,EY1) -> 9 | EZ5: =VLOOKUP(DropDownList!$A$47,CntyQuery!$A$4:$FA$46,EZ1) -> 9 | FA5: =VLOOKUP(DropDownList!$A$47,CntyQuery!$A$4:$FA$46,FA1) -> 7
A8: Census 1990 Data - Query Name: TownSTF1Qry1
A9: NAME | B9: COUSUBFP | C9: Census_Cnty_Code | D9: FIPS | E9: LandAcres | F9: WaterAcres | G9: HousingUnits90Cen | H9: P01Persons90Cen | I9: P02Families90Cen | J9: P03Households90cen | K9: P05MalePop90cen | L9: P05FemalePop90cen | M9: P06WhitePop | N9: P06BlackPop | O9: P06AmerIndianPop | P9: P06AsianPIPop | Q9: P06OtherRacePop | R9: P08HispanicOrPop | S9: P11AgeUnder15_90cen | T9: P11Age15to24_90cen | U9: P11Age25to34_90cen | V9: P11Age35to44_90cen | W9: P11Age45to54_90cen | X9: P11Age55to64_90cen | Y9: P11Age65to74_90cen | Z9: P11Age75andOver_90cen | AA9: P15PersonsInHH90cen | AB9: P15PersonsInFamHH90cen | AC9: P15PersonsInGC | AD9: PersonsPerHH90cen | AE9: PersonsPerFam90Cen | AF9: P16SinglePersonHH90cen | AG9: P16MarriedCoupleHH90cen | AH9: P16SingleParentHH90cen | AI9: P16NonFamilyHH90cen | AJ9: H01TotalHousingUnits | AK9: H02OccupiedHousingUnits | AL9: H02VacantHousingUnits | AM9: H03OwnerOccHU | AN9: H03RenterOccHU | AO9: H05VacantForRent90 | AP9: H05VacantForSale90 | AQ9: H05VacantSeasonalRec | AR9: H23OOHUVal<15k | AS9: H23OOHUVal15to19k | AT9: H23OOHUVal20to24k | AU9: H23OOHUVal25to29k | AV9: H23OOHUVal30to34k | AW9: H23OOHUVal35to39k | AX9: H23OOHUVal40to44k | AY9: H23OOHUVal45to49k | AZ9: H23OOHUVal50to59k | BA9: H23OOHUVal60to74k | BB9: H23OOHUVal75to99k | BC9: H23OOHUVal100to124k | BD9: H23OOHUVal125to149k | BE9: H23OOHUVal150to174k | BF9: H23OOHUVal175to199k | BG9: H23OOHUVal200to249k | BH9: H23OOHUVal250to299k | BI9: H23OOHUVal300to399k | BJ9: H23OOHUVal400to499k | BK9: H23OOHUVal500kOrMore | BL9: H23BOOHUMedVal | BM9: H41SingFamHU90cen | BN9: H41MultiFamHU90cen | BO9: H41MobileHom90cen | BP9: H43SingFamOwnHU90cen | BQ9: H43MultiFamOwnHU90cen | BR9: H43MobileHomOwnHU90cen | BS9: H43SingFamRntrHU90cen | BT9: H43MultiFamRntrHU90cen | BU9: H43MobileHomRntrHU90cen | BV9: H41HU1UnitDet | BW9: H41HU1UnitAtt | BX9: H41HU2Unit | BY9: H41HU3to4Unit | BZ9: H41HU5to9Unit | CA9: H41HU10to19Unit | CB9: H41HU20to49Unit | CC9: H41HU50PlusUnit | CD9: H41HUMobilH | CE9: H41HUOther
A10: =VLOOKUP(DropDownList!$B$47,CntyQuery!$A$51:$CE$93,A$1) -> Franconia | B10: =VLOOKUP(DropDownList!$B$47,CntyQuery!$A$51:$CE$93,B$1) -> 514 | C10: =VLOOKUP(DropDownList!$B$47,CntyQuery!$A$51:$CE$93,C$1) -> 9070 | D10: =VLOOKUP(DropDownList!$B$47,CntyQuery!$A$51:$CE$93,D$1) -> 27300 | E10: =VLOOKUP(DropDownList!$B$47,CntyQuery!$A$51:$CE$93,E$1) -> 42073.07 | F10: =VLOOKUP(DropDownList!$B$47,CntyQuery!$A$51:$CE$93,F$1) -> 50.99 | G10: =VLOOKUP(DropDownList!$B$47,CntyQuery!$A$51:$CE$93,G$1) -> 646 | H10: =VLOOKUP(DropDownList!$B$47,CntyQuery!$A$51:$CE$93,H$1) -> 811 | I10: =VLOOKUP(DropDownList!$B$47,CntyQuery!$A$51:$CE$93,I$1) -> 210 | J10: =VLOOKUP(DropDownList!$B$47,CntyQuery!$A$51:$CE$93,J$1) -> 323 | K10: =VLOOKUP(DropDownList!$B$47,CntyQuery!$A$51:$CE$93,K$1) -> 366 | L10: =VLOOKUP(DropDownList!$B$47,CntyQuery!$A$51:$CE$93,L$1) -> 445 | M10: =VLOOKUP(DropDownList!$B$47,CntyQuery!$A$51:$CE$93,M$1) -> 801 | N10: =VLOOKUP(DropDownList!$B$47,CntyQuery!$A$51:$CE$93,N$1) -> 1 | O10: =VLOOKUP(DropDownList!$B$47,CntyQuery!$A$51:$CE$93,O$1) -> 2 | P10: =VLOOKUP(DropDownList!$B$47,CntyQuery!$A$51:$CE$93,P$1) -> 7 | Q10: =VLOOKUP(DropDownList!$B$47,CntyQuery!$A$51:$CE$93,Q$1) -> 0 | R10: =VLOOKUP(DropDownList!$B$47,CntyQuery!$A$51:$CE$93,R$1) -> 2 | S10: =VLOOKUP(DropDownList!$B$47,CntyQuery!$A$51:$CE$93,S$1) -> 156 | T10: =VLOOKUP(DropDownList!$B$47,CntyQuery!$A$51:$CE$93,T$1) -> 59 | U10: =VLOOKUP(DropDownList!$B$47,CntyQuery!$A$51:$CE$93,U$1) -> 94 | V10: =VLOOKUP(DropDownList!$B$47,CntyQuery!$A$51:$CE$93,V$1) -> 152 | W10: =VLOOKUP(DropDownList!$B$47,CntyQuery!$A$51:$CE$93,W$1) -> 101 | X10: =VLOOKUP(DropDownList!$B$47,CntyQuery!$A$51:$CE$93,X$1) -> 74 | Y10: =VLOOKUP(DropDownList!$B$47,CntyQuery!$A$51:$CE$93,Y$1) -> 78 | Z10: =VLOOKUP(DropDownList!$B$47,CntyQuery!$A$51:$CE$93,Z$1) -> 97 | AA10: =VLOOKUP(DropDownList!$B$47,CntyQuery!$A$51:$CE$93,AA$1) -> 742 | AB10: =VLOOKUP(DropDownList!$B$47,CntyQuery!$A$51:$CE$93,AB$1) -> 612 | AC10: =VLOOKUP(DropDownList!$B$47,CntyQuery!$A$51:$CE$93,AC$1) -> 69 | AD10: =VLOOKUP(DropDownList!$B$47,CntyQuery!$A$51:$CE$93,AD$1) -> 2.297213622 | AE10: =VLOOKUP(DropDownList!$B$47,CntyQuery!$A$51:$CE$93,AE$1) -> 2.914285714 | AF10: =VLOOKUP(DropDownList!$B$47,CntyQuery!$A$51:$CE$93,AF$1) -> 96 | AG10: =VLOOKUP(DropDownList!$B$47,CntyQuery!$A$51:$CE$93,AG$1) -> 179 | AH10: =VLOOKUP(DropDownList!$B$47,CntyQuery!$A$51:$CE$93,AH$1) -> 31 | AI10: =VLOOKUP(DropDownList!$B$47,CntyQuery!$A$51:$CE$93,AI$1) -> 17 | AJ10: =VLOOKUP(DropDownList!$B$47,CntyQuery!$A$51:$CE$93,AJ$1) -> 646 | AK10: =VLOOKUP(DropDownList!$B$47,CntyQuery!$A$51:$CE$93,AK$1) -> 323 | AL10: =VLOOKUP(DropDownList!$B$47,CntyQuery!$A$51:$CE$93,AL$1) -> 323 | AM10: =VLOOKUP(DropDownList!$B$47,CntyQuery!$A$51:$CE$93,AM$1) -> 214 | AN10: =VLOOKUP(DropDownList!$B$47,CntyQuery!$A$51:$CE$93,AN$1) -> 109 | AO10: =VLOOKUP(DropDownList!$B$47,CntyQuery!$A$51:$CE$93,AO$1) -> 16 | AP10: =VLOOKUP(DropDownList!$B$47,CntyQuery!$A$51:$CE$93,AP$1) -> 20 | AQ10: =VLOOKUP(DropDownList!$B$47,CntyQuery!$A$51:$CE$93,AQ$1) -> 244 | AR10: =VLOOKUP(DropDownList!$B$47,CntyQuery!$A$51:$CE$93,AR$1) -> 0 | AS10: =VLOOKUP(DropDownList!$B$47,CntyQuery!$A$51:$CE$93,AS$1) -> 2 | AT10: =VLOOKUP(DropDownList!$B$47,CntyQuery!$A$51:$CE$93,AT$1) -> 1 | AU10: =VLOOKUP(DropDownList!$B$47,CntyQuery!$A$51:$CE$93,AU$1) -> 0 | AV10: =VLOOKUP(DropDownList!$B$47,CntyQuery!$A$51:$CE$93,AV$1) -> 0 | AW10: =VLOOKUP(DropDownList!$B$47,CntyQuery!$A$51:$CE$93,AW$1) -> 0 | AX10: =VLOOKUP(DropDownList!$B$47,CntyQuery!$A$51:$CE$93,AX$1) -> 4 | AY10: =VLOOKUP(DropDownList!$B$47,CntyQuery!$A$51:$CE$93,AY$1) -> 1 | AZ10: =VLOOKUP(DropDownList!$B$47,CntyQuery!$A$51:$CE$93,AZ$1) -> 5 | BA10: =VLOOKUP(DropDownList!$B$47,CntyQuery!$A$51:$CE$93,BA$1) -> 10 | BB10: =VLOOKUP(DropDownList!$B$47,CntyQuery!$A$51:$CE$93,BB$1) -> 20 | BC10: =VLOOKUP(DropDownList!$B$47,CntyQuery!$A$51:$CE$93,BC$1) -> 20 | BD10: =VLOOKUP(DropDownList!$B$47,CntyQuery!$A$51:$CE$93,BD$1) -> 20 | BE10: =VLOOKUP(DropDownList!$B$47,CntyQuery!$A$51:$CE$93,BE$1) -> 11 | BF10: =VLOOKUP(DropDownList!$B$47,CntyQuery!$A$51:$CE$93,BF$1) -> 13 | BG10: =VLOOKUP(DropDownList!$B$47,CntyQuery!$A$51:$CE$93,BG$1) -> 14 | BH10: =VLOOKUP(DropDownList!$B$47,CntyQuery!$A$51:$CE$93,BH$1) -> 5 | BI10: =VLOOKUP(DropDownList!$B$47,CntyQuery!$A$51:$CE$93,BI$1) -> 5 | BJ10: =VLOOKUP(DropDownList!$B$47,CntyQuery!$A$51:$CE$93,BJ$1) -> 2 | BK10: =VLOOKUP(DropDownList!$B$47,CntyQuery!$A$51:$CE$93,BK$1) -> 0 | BL10: =VLOOKUP(DropDownList!$B$47,CntyQuery!$A$51:$CE$93,BL$1) -> 129400 | BM10: =VLOOKUP(DropDownList!$B$47,CntyQuery!$A$51:$CE$93,BM$1) -> 452 | BN10: =VLOOKUP(DropDownList!$B$47,CntyQuery!$A$51:$CE$93,BN$1) -> 140 | BO10: =VLOOKUP(DropDownList!$B$47,CntyQuery!$A$51:$CE$93,BO$1) -> 54 | BP10: =VLOOKUP(DropDownList!$B$47,CntyQuery!$A$51:$CE$93,BP$1) -> 184 | BQ10: =VLOOKUP(DropDownList!$B$47,CntyQuery!$A$51:$CE$93,BQ$1) -> 15 | BR10: =VLOOKUP(DropDownList!$B$47,CntyQuery!$A$51:$CE$93,BR$1) -> 15 | BS10: =VLOOKUP(DropDownList!$B$47,CntyQuery!$A$51:$CE$93,BS$1) -> 48 | BT10: =VLOOKUP(DropDownList!$B$47,CntyQuery!$A$51:$CE$93,BT$1) -> 56 | BU10: =VLOOKUP(DropDownList!$B$47,CntyQuery!$A$51:$CE$93,BU$1) -> 5 | BV10: =VLOOKUP(DropDownList!$B$47,CntyQuery!$A$51:$CE$93,BV$1) -> 452 | BW10: =VLOOKUP(DropDownList!$B$47,CntyQuery!$A$51:$CE$93,BW$1) -> 35 | BX10: =VLOOKUP(DropDownList!$B$47,CntyQuery!$A$51:$CE$93,BX$1) -> 25 | BY10: =VLOOKUP(DropDownList!$B$47,CntyQuery!$A$51:$CE$93,BY$1) -> 39 | BZ10: =VLOOKUP(DropDownList!$B$47,CntyQuery!$A$51:$CE$93,BZ$1) -> 35 | CA10: =VLOOKUP(DropDownList!$B$47,CntyQuery!$A$51:$CE$93,CA$1) -> 6 | CB10: =VLOOKUP(DropDownList!$B$47,CntyQuery!$A$51:$CE$93,CB$1) -> 0 | CC10: =VLOOKUP(DropDownList!$B$47,CntyQuery!$A$51:$CE$93,CC$1) -> 0 | CD10: =VLOOKUP(DropDownList!$B$47,CntyQuery!$A$51:$CE$93,CD$1) -> 41 | CE10: =VLOOKUP(DropDownList!$B$47,CntyQuery!$A$51:$CE$93,CE$1) -> 13
A13: Census 1990 Data - Query Name: TownSTF3Qry1
A14: NAME | B14: FIPS | C14: COUSUBFP | D14: LandAcres | E14: WaterAcres | F14: HousingUnits90Cen | G14: P01Persons90Cen | H14: P02Families90Cen | I14: P03Households90cen | J14: H25HU<5yrs90cen | K14: H25HU5to20yrs90cen | L14: H25HU20to50yrs90cen | M14: H25HU>50yrs90cen | N14: H31Units0Bedroom90cen | O14: H31Units1Bedroom90cen | P14: H31Units2Bedroom90cen | Q14: H31Units3Bedroom90cen | R14: H31Units4Bedroom90cen | S14: H31Units5+Bedroom90cen | T14: P80HI<5K | U14: P80HI5Kto10K | V14: P80HI10Kto15K | W14: P80HI15Kto25K | X14: P80HI25Kto35K | Y14: P80HI35Kto50K | Z14: P80HI50Kto75K | AA14: P80HI75Kto100K | AB14: P80HI>100K | AC14: P80AMedHI | AD14: P86HH<25HI<5K | AE14: P86HH<25HI5Kto10K | AF14: P86HH<25HI10Kto15K | AG14: P86HH<25HI15Kto25K | AH14: P86HH<25HI25Kto35K | AI14: P86HH<25HI35Kto50K | AJ14: P86HH<25HI50Kto75K | AK14: P86HH<25HI75Kto100K | AL14: P86HH<25HI>100K | AM14: P86HH25to34HI<5K | AN14: P86HH25to34HI5Kto10K | AO14: P86HH25to34HI10Kto15K | AP14: P86HH25to34HI15Kto25K | AQ14: P86HH25to34HI25Kto35K | AR14: P86HH25to34HI35Kto50K | AS14: P86HH25to34HI50Kto75K | AT14: P86HH25to34HI75Kto100K | AU14: P86HH25to34HI>100K | AV14: P86HH35to44HI<5K | AW14: P86HH35to44HI5Kto10K | AX14: P86HH35to44HI10Kto15K | AY14: P86HH35to44HI15Kto25K | AZ14: P86HH35to44HI25Kto35K | BA14: P86HH35to44HI35Kto50K | BB14: P86HH35to44HI50Kto75K | BC14: P86HH35to44HI75Kto100K | BD14: P86HH35to44HI>100K | BE14: P86HH45to54HI<5K | BF14: P86HH45to54HI5Kto10K | BG14: P86HH45to54HI10Kto15K | BH14: P86HH45to54HI15Kto25K | BI14: P86HH45to54HI25Kto35K | BJ14: P86HH45to54HI35Kto50K | BK14: P86HH45to54HI50Kto75K | BL14: P86HH45to54HI75Kto100K | BM14: P86HH45to54HI>100K | BN14: P86HH55to64HI<5K | BO14: P86HH55to64HI5Kto10K | BP14: P86HH55to64HI10Kto15K | BQ14: P86HH55to64HI15Kto25K | BR14: P86HH55to64HI25Kto35K | BS14: P86HH55to64HI35Kto50K | BT14: P86HH55to64HI50Kto75K | BU14: P86HH55to64HI75Kto100K | BV14: P86HH55to64HI>100K | BW14: P86HH65to74HI<5K | BX14: P86HH65to74HI5Kto10K | BY14: P86HH65to74HI10Kto15K | BZ14: P86HH65to74HI15Kto25K | CA14: P86HH65to74HI25Kto35K | CB14: P86HH65to74HI35Kto50K | CC14: P86HH65to74HI50Kto75K | CD14: P86HH65to74HI75Kto100K | CE14: P86HH65to74HI>100K | CF14: P86HH>75HI<5K | CG14: P86HH>75HI5Kto10K | CH14: P86HH>75HI10Kto15K | CI14: P86HH>75HI15Kto25K | CJ14: P86HH>75HI25Kto35K | CK14: P86HH>75HI35Kto50K | CL14: P86HH>75HI50Kto75K | CM14: P86HH>75HI75Kto100K | CN14: P86HH>75HI>100K | CO14: P54SchlEnrlPrePrim | CP14: P54SchlEnrlElemThrHS | CQ14: P54SchlEnrlCollege | CR14: P54NotEnrlInSch | CS14: P57Pop25andOver | CT14: P57LessThan9thGrade | CU14: P579thto12thNoDip | CV14: P57HSGrad | CW14: P57SomeCollege | CX14: P57AssocDeg | CY14: P57BachelDeg | CZ14: P57GradorProfDeg | DA14: P57HSGradorHigher | DB14: P57CollGradorHigher | DC14: P42NativePop | DD14: P42ForeignBornPop | DE14: P42BornStateOfRes | DF14: P37NativePop2 | DG14: P37ForeignBornPop2 | DH14: P49DroveAlone | DI14: P49CarPooled | DJ14: P49PublicTranspt | DK14: P49Walked | DL14: P49OtherMeans | DM14: P49WorkedAtHome | DN14: P80HHInc<10K | DO14: P80HHInc10to15K | DP14: P80HHInc15to25K | DQ14: P80HHInc25to35K | DR14: P80HHInc35to50K | DS14: P80HHInc50to75K | DT14: P80HHInc75to100K | DU14: P80HHInc100to150K | DV14: P80HHInc>150K | DW14: H25YearStBlt89to90 | DX14: H25YearStBlt85to88 | DY14: H25YearStBlt80to84 | DZ14: H25YearStBlt70to79 | EA14: H25YearStBlt60to69 | EB14: H25YearStBlt50to59 | EC14: H25YearStBlt40to49 | ED14: H25YearStBlt39earlier | EE14: P107FamInc<10K | EF14: P107FamInc10to15K | EG14: P107FamInc15to25K | EH14: P107FamInc25to35K | EI14: P107FamInc35to50K | EJ14: P107FamInc50to75K | EK14: P107FamInc75to100K | EL14: P107FamInc100to150K | EM14: P107FamInc>150K | EN14: P107AMedFamInc | EO14: P110NonFamInc<10K | EP14: P110NonFamInc10to15K | EQ14: P110NonFamInc15to25K | ER14: P110NonFamInc25to35K | ES14: P110NonFamInc35to50K | ET14: P110NonFamInc50to75K | EU14: P110NonFamInc75to100K | EV14: P110NonFamInc100to150K | EW14: P110NonFamInc>150K | EX14: P110AMedNonFamInc | EY14: H16HU1Room | EZ14: H16HU2Room | FA14: H16HU3Room | FB14: H16HU4Room | FC14: H16HU5Room | FD14: H16HU6Room | FE14: H16HU7Room | FF14: H16HU8Room | FG14: H16HU9+Room | FH14: H43GrossRnt<100 | FI14: H43GrossRnt100to149 | FJ14: H43GrossRnt150to199 | FK14: H43GrossRnt200to249 | FL14: H43GrossRnt250to299 | FM14: H43GrossRnt300to349 | FN14: H43GrossRnt350to399 | FO14: H43GrossRnt400to449 | FP14: H43GrossRnt450to499 | FQ14: H43GrossRnt500to549 | FR14: H43GrossRnt550to599 | FS14: H43GrossRnt600to649 | FT14: H43GrossRnt650to699 | FU14: H43GrossRnt700to749 | FV14: H43GrossRnt750to999 | FW14: H43GrossRnt1000Plus | FX14: H43NoCashRent | FY14: H43MedGrossRent | FZ14: H51GrossRnt<20PctHHInc | GA14: H51GrossRnt20to24PctHHInc | GB14: H51GrossRnt25to29PctHHInc | GC14: H51GrossRnt30to34PctHHInc | GD14: H51GrossRnt35PctOrMoreHHInc | GE14: H51GrossRntAsPctHHIncNotComp | GF14: H52HUwMtgMoOwnCst<200 | GG14: H52HUwMtgMoOwnCst200to299 | GH14: H52HUwMtgMoOwnCst300to399 | GI14: H52HUwMtgMoOwnCst400to499 | GJ14: H52HUwMtgMoOwnCst500to599 | GK14: H52HUwMtgMoOwnCst600to699 | GL14: H52HUwMtgMoOwnCst700to799 | GM14: H52HUwMtgMoOwnCst800to899 | GN14: H52HUwMtgMoOwnCst900to999 | GO14: H52HUwMtgMoOwnCst1000to1249 | GP14: H52HUwMtgMoOwnCst1250to1499 | GQ14: H52HUwMtgMoOwnCst1500to1999 | GR14: H52HUwMtgMoOwnCst2000More | GS14: H52HUwNoMtgMoOwnCst<100 | GT14: H52HUwNoMtgMoOwnCst100to149 | GU14: H52HUwNoMtgMoOwnCst150to199 | GV14: H52HUwNoMtgMoOwnCst200to249 | GW14: H52HUwNoMtgMoOwnCst250to299 | GX14: H52HUwNoMtgMoOwnCst300to349 | GY14: H52HUwNoMtgMoOwnCst350to399 | GZ14: H52HUwNoMtgMoOwnCst400More | HA14: H52AMedMoOwnCstWMortg | HB14: H52AMedMoOwnCstWNoMortg | HC14: H58HUwMtgMOC<20pHHInc | HD14: H58HUwMtgMOC20to24pHHInc | HE14: H58HUwMtgMOC25to29pHHInc | HF14: H58HUwMtgMOC30to34pHHInc | HG14: H58wMtgMOC>35pHHInc | HH14: H58HUwMtgMOCNotComp | HI14: H58HUwNoMtgMOC<20pHHInc | HJ14: H58HUwNoMtgMOC20to24pHHInc | HK14: H58HUwNoMtgMOC25to29pHHInc | HL14: H58HUwNoMtgMOC30to34pHHInc | HM14: H58wNoMtgMOC>35pHHInc | HN14: H58HUwNoMtgMOCNotComp | HO14: H61OOHUVal<15k | HP14: H61OOHUVal15to19k | HQ14: H61OOHUVal20to24k | HR14: H61OOHUVal25to29k | HS14: H61OOHUVal30to34k | HT14: H61OOHUVal35to39k | HU14: H61OOHUVal40to44k | HV14: H61OOHUVal45to49k | HW14: H61OOHUVal50to59k | HX14: H61OOHUVal60to74k | HY14: H61OOHUVal75to99k | HZ14: H61OOHUVal100to124k | IA14: H61OOHUVal125to149k | IB14: H61OOHUVal150to174k | IC14: H61OOHUVal175to199k | ID14: H61OOHUVal200to249k | IE14: H61OOHUVal250to299k | IF14: H61OOHUVal300to399k | IG14: H61OOHUVal400to499k | IH14: H61OOHUVal500kOrMore | II14: H61aOOHUMedVal
A19: TOWN_NAME | B19: FIPS | C19: TOWNCNTY | D19: COUSUB | E19: POP80 | F19: POP90CDCEN | G19: POP2000CEN | H19: POP2010CEN | I19: POP2020CEN | J19: POP2025-Proj | K19: POP2030-Proj | L19: POP2035-Proj | M19: SF80 | N19: MF80 | O19: MH80 | P19: SF81 | Q19: MF81 | R19: MH81 | S19: SF82 | T19: MF82 | U19: MH82 | V19: SF83 | W19: MF83 | X19: MH83 | Y19: SF84_OSP | Z19: MF84_OSP | AA19: MH84_OSP | AB19: SF85_OSP | AC19: MF85_OSP | AD19: MH85_OSP | AE19: SF86_OSP | AF19: MF86_OSP | AG19: MH86_OSP | AH19: SF87_OSP | AI19: MF87_OSP | AJ19: MH87_OSP | AK19: SF88_OSP | AL19: MF88_OSP | AM19: MH88_OSP | AN19: SF89_OSP | AO19: MF89_OSP | AP19: MH89_OSP | AQ19: SF90_OSP | AR19: MF90_OSP | AS19: MH90_OSP | AT19: SF91_OSP | AU19: MF91_OSP | AV19: MH91_OSP | AW19: SF92_OSP | AX19: MF92_OSP | AY19: MH92_OSP | AZ19: SF93_OSP | BA19: MF93_OSP | BB19: MH93_OSP | BC19: SF94_OSP | BD19: MF94_OSP | BE19: MH94_OSP | BF19: SF95_OSP | BG19: MF95_OSP | BH19: MH95_OSP | BI19: SF96_OSP | BJ19: MF96_OSP | BK19: MH96_OSP | BL19: SF97_OSP | BM19: MF97_OSP | BN19: MH97_OSP | BO19: SF98_OSP | BP19: MF98_OSP | BQ19: MH98_OSP | BR19: SF99_OSP | BS19: MF99_OSP | BT19: MH99_OSP | BU19: SF00_OSP | BV19: MF00_OSP | BW19: MH00_OSP | BX19: SF01_OSP | BY19: MF01_OSP | BZ19: MH01_OSP | CA19: SF02_OSP | CB19: MF02_OSP | CC19: MH02_OSP | CD19: SF03_OSP | CE19: MF03_OSP | CF19: MH03_OSP | CG19: SF04_OSP | CH19: MF04_OSP | CI19: MH04_OSP | CJ19: SF05_OSP | CK19: MF05_OSP | CL19: MH05_OSP | CM19: SF06_OSP | CN19: MF06_OSP | CO19: MH06_OSP | CP19: SF07_OSP | CQ19: MF07_OSP | CR19: MH07_OSP | CS19: SF08_OSP | CT19: MF08_OSP | CU19: MH08_OSP | CV19: SF09_OSP | CW19: MF09_OSP | CX19: MH09_OSP | CY19: SF10_OSP | CZ19: MF10_OSP | DA19: MH10_OSP | DB19: SF11_OSP | DC19: MF11_OSP | DD19: MH11_OSP | DE19: SF12_OSP | DF19: MF12_OSP | DG19: MH12_OSP | DH19: SF13_OSP | DI19: MF13_OSP | DJ19: MH13_OSP | DK19: SF14_OSP | DL19: MF14_OSP | DM19: MH14_OSP | DN19: SF15_OSP | DO19: MF15_OSP | DP19: MH15_OSP | DQ19: SF16_OSP | DR19: MF16_OSP | DS19: MH16_OSP | DT19: SF17_OSP | DU19: MF17_OSP | DV19: MH17_OSP | DW19: SF18_OSP | DX19: MF18_OSP | DY19: MH18_OSP | DZ19: SF19_OSP | EA19: MF19_OSP | EB19: MH19_OSP | EC19: SF20_OSP | ED19: MF20_OSP | EE19: MH20_OSP | EF19: SF20 Census_OSP | EG19: MF20 Census OSP | EH19: MH20 Census_OSP | EI19: SF21_OSP | EJ19: MF21_OSP | EK19: MH21_OSP | EL19: COMMENTS | EM19: CNTY_CODE
A20: =VLOOKUP(DropDownList!$B$47,CntyQuery!$A$118:$FZ$157,A$1) -> Franconia | B20: =VLOOKUP(DropDownList!$B$47,CntyQuery!$A$118:$FZ$157,B$1) -> 9070 | C20: =VLOOKUP(DropDownList!$B$47,CntyQuery!$A$118:$FZ$157,C$1) -> 514 | D20: =VLOOKUP(DropDownList!$B$47,CntyQuery!$A$118:$FZ$157,D$1) -> 27300 | E20: =VLOOKUP(DropDownList!$B$47,CntyQuery!$A$118:$FZ$157,E$1) -> 743 | F20: =VLOOKUP(DropDownList!$B$47,CntyQuery!$A$118:$FZ$157,F$1) -> 811 | G20: =VLOOKUP(DropDownList!$B$47,CntyQuery!$A$118:$FZ$157,G$1) -> 924 | H20: =VLOOKUP(DropDownList!$B$47,CntyQuery!$A$118:$FZ$157,H$1) -> 1104 | I20: =VLOOKUP(DropDownList!$B$47,CntyQuery!$A$118:$FZ$157,I$1) -> 1083 | J20: =VLOOKUP(DropDownList!$B$47,CntyQuery!$A$118:$FZ$157,J$1) -> 1129 | K20: =VLOOKUP(DropDownList!$B$47,CntyQuery!$A$118:$FZ$157,K$1) -> 1165 | L20: =VLOOKUP(DropDownList!$B$47,CntyQuery!$A$118:$FZ$157,L$1) -> 1182 | M20: =VLOOKUP(DropDownList!$B$47,CntyQuery!$A$118:$FZ$157,M$1) -> 7 | N20: =VLOOKUP(DropDownList!$B$47,CntyQuery!$A$118:$FZ$157,N$1) -> 0 | O20: =VLOOKUP(DropDownList!$B$47,CntyQuery!$A$118:$FZ$157,O$1) -> 0 | P20: =VLOOKUP(DropDownList!$B$47,CntyQuery!$A$118:$FZ$157,P$1) -> 5 | Q20: =VLOOKUP(DropDownList!$B$47,CntyQuery!$A$118:$FZ$157,Q$1) -> 0 | R20: =VLOOKUP(DropDownList!$B$47,CntyQuery!$A$118:$FZ$157,R$1) -> 0 | S20: =VLOOKUP(DropDownList!$B$47,CntyQuery!$A$118:$FZ$157,S$1) -> 2 | T20: =VLOOKUP(DropDownList!$B$47,CntyQuery!$A$118:$FZ$157,T$1) -> -3 | U20: =VLOOKUP(DropDownList!$B$47,CntyQuery!$A$118:$FZ$157,U$1) -> 0 | V20: =VLOOKUP(DropDownList!$B$47,CntyQuery!$A$118:$FZ$157,V$1) -> 6 | W20: =VLOOKUP(DropDownList!$B$47,CntyQuery!$A$118:$FZ$157,W$1) -> 8 | X20: =VLOOKUP(DropDownList!$B$47,CntyQuery!$A$118:$FZ$157,X$1) -> 0 | Y20: =VLOOKUP(DropDownList!$B$47,CntyQuery!$A$118:$FZ$157,Y$1) -> 2 | Z20: =VLOOKUP(DropDownList!$B$47,CntyQuery!$A$118:$FZ$157,Z$1) -> 1 | AA20: =VLOOKUP(DropDownList!$B$47,CntyQuery!$A$118:$FZ$157,AA$1) -> 1 | AB20: =VLOOKUP(DropDownList!$B$47,CntyQuery!$A$118:$FZ$157,AB$1) -> 4 | AC20: =VLOOKUP(DropDownList!$B$47,CntyQuery!$A$118:$FZ$157,AC$1) -> 0 | AD20: =VLOOKUP(DropDownList!$B$47,CntyQuery!$A$118:$FZ$157,AD$1) -> 0 | AE20: =VLOOKUP(DropDownList!$B$47,CntyQuery!$A$118:$FZ$157,AE$1) -> 10 | AF20: =VLOOKUP(DropDownList!$B$47,CntyQuery!$A$118:$FZ$157,AF$1) -> 0 | AG20: =VLOOKUP(DropDownList!$B$47,CntyQuery!$A$118:$FZ$157,AG$1) -> 0 | AH20: =VLOOKUP(DropDownList!$B$47,CntyQuery!$A$118:$FZ$157,AH$1) -> 8 | AI20: =VLOOKUP(DropDownList!$B$47,CntyQuery!$A$118:$FZ$157,AI$1) -> -1 | AJ20: =VLOOKUP(DropDownList!$B$47,CntyQuery!$A$118:$FZ$157,AJ$1) -> 0 | AK20: =VLOOKUP(DropDownList!$B$47,CntyQuery!$A$118:$FZ$157,AK$1) -> 13 | AL20: =VLOOKUP(DropDownList!$B$47,CntyQuery!$A$118:$FZ$157,AL$1) -> 0 | AM20: =VLOOKUP(DropDownList!$B$47,CntyQuery!$A$118:$FZ$157,AM$1) -> 0 | AN20: =VLOOKUP(DropDownList!$B$47,CntyQuery!$A$118:$FZ$157,AN$1) -> 11 | AO20: =VLOOKUP(DropDownList!$B$47,CntyQuery!$A$118:$FZ$157,AO$1) -> 0 | AP20: =VLOOKUP(DropDownList!$B$47,CntyQuery!$A$118:$FZ$157,AP$1) -> 0 | AQ20: =VLOOKUP(DropDownList!$B$47,CntyQuery!$A$118:$FZ$157,AQ$1) -> 4 | AR20: =VLOOKUP(DropDownList!$B$47,CntyQuery!$A$118:$FZ$157,AR$1) -> 1 | AS20: =VLOOKUP(DropDownList!$B$47,CntyQuery!$A$118:$FZ$157,AS$1) -> 0 | AT20: =VLOOKUP(DropDownList!$B$47,CntyQuery!$A$118:$FZ$157,AT$1) -> 6 | AU20: =VLOOKUP(DropDownList!$B$47,CntyQuery!$A$118:$FZ$157,AU$1) -> 0 | AV20: =VLOOKUP(DropDownList!$B$47,CntyQuery!$A$118:$FZ$157,AV$1) -> 0 | AW20: =VLOOKUP(DropDownList!$B$47,CntyQuery!$A$118:$FZ$157,AW$1) -> 2 | AX20: =VLOOKUP(DropDownList!$B$47,CntyQuery!$A$118:$FZ$157,AX$1) -> 0 | AY20: =VLOOKUP(DropDownList!$B$47,CntyQuery!$A$118:$FZ$157,AY$1) -> 0 | AZ20: =VLOOKUP(DropDownList!$B$47,CntyQuery!$A$118:$FZ$157,AZ$1) -> 4 | BA20: =VLOOKUP(DropDownList!$B$47,CntyQuery!$A$118:$FZ$157,BA$1) -> 0 | BB20: =VLOOKUP(DropDownList!$B$47,CntyQuery!$A$118:$FZ$157,BB$1) -> 0 | BC20: =VLOOKUP(DropDownList!$B$47,CntyQuery!$A$118:$FZ$157,BC$1) -> 8 | BD20: =VLOOKUP(DropDownList!$B$47,CntyQuery!$A$118:$FZ$157,BD$1) -> 0 | BE20: =VLOOKUP(DropDownList!$B$47,CntyQuery!$A$118:$FZ$157,BE$1) -> 0 | BF20: =VLOOKUP(DropDownList!$B$47,CntyQuery!$A$118:$FZ$157,BF$1) -> 8 | BG20: =VLOOKUP(DropDownList!$B$47,CntyQuery!$A$118:$FZ$157,BG$1) -> 0 | BH20: =VLOOKUP(DropDownList!$B$47,CntyQuery!$A$118:$FZ$157,BH$1) -> 0 | BI20: =VLOOKUP(DropDownList!$B$47,CntyQuery!$A$118:$FZ$157,BI$1) -> 4 | BJ20: =VLOOKUP(DropDownList!$B$47,CntyQuery!$A$118:$FZ$157,BJ$1) -> 0 | BK20: =VLOOKUP(DropDownList!$B$47,CntyQuery!$A$118:$FZ$157,BK$1) -> 0 | BL20: =VLOOKUP(DropDownList!$B$47,CntyQuery!$A$118:$FZ$157,BL$1) -> 7 | BM20: =VLOOKUP(DropDownList!$B$47,CntyQuery!$A$118:$FZ$157,BM$1) -> 0 | BN20: =VLOOKUP(DropDownList!$B$47,CntyQuery!$A$118:$FZ$157,BN$1) -> 0 | BO20: =VLOOKUP(DropDownList!$B$47,CntyQuery!$A$118:$FZ$157,BO$1) -> 17 | BP20: =VLOOKUP(DropDownList!$B$47,CntyQuery!$A$118:$FZ$157,BP$1) -> 0 | BQ20: =VLOOKUP(DropDownList!$B$47,CntyQuery!$A$118:$FZ$157,BQ$1) -> 0 | BR20: =VLOOKUP(DropDownList!$B$47,CntyQuery!$A$118:$FZ$157,BR$1) -> 10 | BS20: =VLOOKUP(DropDownList!$B$47,CntyQuery!$A$118:$FZ$157,BS$1) -> 0 | BT20: =VLOOKUP(DropDownList!$B$47,CntyQuery!$A$118:$FZ$157,BT$1) -> 0 | BU20: =VLOOKUP(DropDownList!$B$47,CntyQuery!$A$118:$FZ$157,BU$1) -> 12 | BV20: =VLOOKUP(DropDownList!$B$47,CntyQuery!$A$118:$FZ$157,BV$1) -> 0 | BW20: =VLOOKUP(DropDownList!$B$47,CntyQuery!$A$118:$FZ$157,BW$1) -> 0 | BX20: =VLOOKUP(DropDownList!$B$47,CntyQuery!$A$118:$FZ$157,BX$1) -> 14 | BY20: =VLOOKUP(DropDownList!$B$47,CntyQuery!$A$118:$FZ$157,BY$1) -> 0 | BZ20: =VLOOKUP(DropDownList!$B$47,CntyQuery!$A$118:$FZ$157,BZ$1) -> 0 | CA20: =VLOOKUP(DropDownList!$B$47,CntyQuery!$A$118:$FZ$157,CA$1) -> 23 | CB20: =VLOOKUP(DropDownList!$B$47,CntyQuery!$A$118:$FZ$157,CB$1) -> 0 | CC20: =VLOOKUP(DropDownList!$B$47,CntyQuery!$A$118:$FZ$157,CC$1) -> 0 | CD20: =VLOOKUP(DropDownList!$B$47,CntyQuery!$A$118:$FZ$157,CD$1) -> 21 | CE20: =VLOOKUP(DropDownList!$B$47,CntyQuery!$A$118:$FZ$157,CE$1) -> 0 | CF20: =VLOOKUP(DropDownList!$B$47,CntyQuery!$A$118:$FZ$157,CF$1) -> 0 | CG20: =VLOOKUP(DropDownList!$B$47,CntyQuery!$A$118:$FZ$157,CG$1) -> 15 | CH20: =VLOOKUP(DropDownList!$B$47,CntyQuery!$A$118:$FZ$157,CH$1) -> 0 | CI20: =VLOOKUP(DropDownList!$B$47,CntyQuery!$A$118:$FZ$157,CI$1) -> 0 | CJ20: =VLOOKUP(DropDownList!$B$47,CntyQuery!$A$118:$FZ$157,CJ$1) -> 22 | CK20: =VLOOKUP(DropDownList!$B$47,CntyQuery!$A$118:$FZ$157,CK$1) -> 0 | CL20: =VLOOKUP(DropDownList!$B$47,CntyQuery!$A$118:$FZ$157,CL$1) -> 0 | CM20: =VLOOKUP(DropDownList!$B$47,CntyQuery!$A$118:$FZ$157,CM$1) -> 18 | CN20: =VLOOKUP(DropDownList!$B$47,CntyQuery!$A$118:$FZ$157,CN$1) -> 1 | CO20: =VLOOKUP(DropDownList!$B$47,CntyQuery!$A$118:$FZ$157,CO$1) -> 0 | CP20: =VLOOKUP(DropDownList!$B$47,CntyQuery!$A$118:$FZ$157,CP$1) -> 6 | CQ20: =VLOOKUP(DropDownList!$B$47,CntyQuery!$A$118:$FZ$157,CQ$1) -> 0 | CR20: =VLOOKUP(DropDownList!$B$47,CntyQuery!$A$118:$FZ$157,CR$1) -> 0 | CS20: =VLOOKUP(DropDownList!$B$47,CntyQuery!$A$118:$FZ$157,CS$1) -> 8 | CT20: =VLOOKUP(DropDownList!$B$47,CntyQuery!$A$118:$FZ$157,CT$1) -> 0 | CU20: =VLOOKUP(DropDownList!$B$47,CntyQuery!$A$118:$FZ$157,CU$1) -> 0 | CV20: =VLOOKUP(DropDownList!$B$47,CntyQuery!$A$118:$FZ$157,CV$1) -> 5 | CW20: =VLOOKUP(DropDownList!$B$47,CntyQuery!$A$118:$FZ$157,CW$1) -> 0 | CX20: =VLOOKUP(DropDownList!$B$47,CntyQuery!$A$118:$FZ$157,CX$1) -> 0 | CY20: =VLOOKUP(DropDownList!$B$47,CntyQuery!$A$118:$FZ$157,CY$1) -> 7 | CZ20: =VLOOKUP(DropDownList!$B$47,CntyQuery!$A$118:$FZ$157,CZ$1) -> 0 | DA20: =VLOOKUP(DropDownList!$B$47,CntyQuery!$A$118:$FZ$157,DA$1) -> 0 | DB20: =VLOOKUP(DropDownList!$B$47,CntyQuery!$A$118:$FZ$157,DB$1) -> 3 | DC20: =VLOOKUP(DropDownList!$B$47,CntyQuery!$A$118:$FZ$157,DC$1) -> 0 | DD20: =VLOOKUP(DropDownList!$B$47,CntyQuery!$A$118:$FZ$157,DD$1) -> 0 | DE20: =VLOOKUP(DropDownList!$B$47,CntyQuery!$A$118:$FZ$157,DE$1) -> 3 | DF20: =VLOOKUP(DropDownList!$B$47,CntyQuery!$A$118:$FZ$157,DF$1) -> 0 | DG20: =VLOOKUP(DropDownList!$B$47,CntyQuery!$A$118:$FZ$157,DG$1) -> 0 | DH20: =VLOOKUP(DropDownList!$B$47,CntyQuery!$A$118:$FZ$157,DH$1) -> 9 | DI20: =VLOOKUP(DropDownList!$B$47,CntyQuery!$A$118:$FZ$157,DI$1) -> 0 | DJ20: =VLOOKUP(DropDownList!$B$47,CntyQuery!$A$118:$FZ$157,DJ$1) -> 0 | DK20: =VLOOKUP(DropDownList!$B$47,CntyQuery!$A$118:$FZ$157,DK$1) -> 4 | DL20: =VLOOKUP(DropDownList!$B$47,CntyQuery!$A$118:$FZ$157,DL$1) -> 0 | DM20: =VLOOKUP(DropDownList!$B$47,CntyQuery!$A$118:$FZ$157,DM$1) -> 0 | DN20: =VLOOKUP(DropDownList!$B$47,CntyQuery!$A$118:$FZ$157,DN$1) -> 2 | DO20: =VLOOKUP(DropDownList!$B$47,CntyQuery!$A$118:$FZ$157,DO$1) -> 0 | DP20: =VLOOKUP(DropDownList!$B$47,CntyQuery!$A$118:$FZ$157,DP$1) -> 0 | DQ20: =VLOOKUP(DropDownList!$B$47,CntyQuery!$A$118:$FZ$157,DQ$1) -> 5 | DR20: =VLOOKUP(DropDownList!$B$47,CntyQuery!$A$118:$FZ$157,DR$1) -> 0 | DS20: =VLOOKUP(DropDownList!$B$47,CntyQuery!$A$118:$FZ$157,DS$1) -> 0 | DT20: =VLOOKUP(DropDownList!$B$47,CntyQuery!$A$118:$FZ$157,DT$1) -> 6 | DU20: =VLOOKUP(DropDownList!$B$47,CntyQuery!$A$118:$FZ$157,DU$1) -> 0 | DV20: =VLOOKUP(DropDownList!$B$47,CntyQuery!$A$118:$FZ$157,DV$1) -> 0 | DW20: =VLOOKUP(DropDownList!$B$47,CntyQuery!$A$118:$FZ$157,DW$1) -> 3 | DX20: =VLOOKUP(DropDownList!$B$47,CntyQuery!$A$118:$FZ$157,DX$1) -> 0 | DY20: =VLOOKUP(DropDownList!$B$47,CntyQuery!$A$118:$FZ$157,DY$1) -> 0 | DZ20: =VLOOKUP(DropDownList!$B$47,CntyQuery!$A$118:$FZ$157,DZ$1) -> 7 | EA20: =VLOOKUP(DropDownList!$B$47,CntyQuery!$A$118:$FZ$157,EA$1) -> 0 | EB20: =VLOOKUP(DropDownList!$B$47,CntyQuery!$A$118:$FZ$157,EB$1) -> 0 | EC20: =VLOOKUP(DropDownList!$B$47,CntyQuery!$A$118:$FZ$157,EC$1) -> 5 | ED20: =VLOOKUP(DropDownList!$B$47,CntyQuery!$A$118:$FZ$157,ED$1) -> 2 | EE20: =VLOOKUP(DropDownList!$B$47,CntyQuery!$A$118:$FZ$157,EE$1) -> 1 | EF20: =VLOOKUP(DropDownList!$B$47,CntyQuery!$A$118:$FZ$157,EF$1) -> 0 | EG20: =VLOOKUP(DropDownList!$B$47,CntyQuery!$A$118:$FZ$157,EG$1) -> 0 | EH20: =VLOOKUP(DropDownList!$B$47,CntyQuery!$A$118:$FZ$157,EH$1) -> 0 | EI20: =VLOOKUP(DropDownList!$B$47,CntyQuery!$A$118:$FZ$157,EI$1) -> 20 | EJ20: =VLOOKUP(DropDownList!$B$47,CntyQuery!$A$118:$FZ$157,EJ$1) -> 0 | EK20: =VLOOKUP(DropDownList!$B$47,CntyQuery!$A$118:$FZ$157,EK$1) -> 0 | EL20: =VLOOKUP(DropDownList!$B$47,CntyQuery!$A$118:$FZ$157,EL$1) ->  | EM20: =VLOOKUP(DropDownList!$B$47,CntyQuery!$A$118:$FZ$157,EM$1) -> 5
A23: NH Employment Data | B23: Query Name: DPQryEmploymentByCnty
A24: AreaName | B24: COUNTYCODE | C24: TOTP & G2001 | D24: TOT2001 | E24: GOODPRO2001 | F24: SERVICEPROMAN2001 | G24: WAGEP & G2001 | H24: WAGETOT2001 | I24: WAGEGOODPRO2001 | J24: WAGESERVICEPRO2001 | K24: TOTP & G2002 | L24: TOT2002 | M24: GOODPRO2002 | N24: SERVICEPROMAN2002 | O24: WAGEP & G2002 | P24: WAGETOT2002 | Q24: WAGEGOODPRO2002 | R24: WAGESERVICEPRO2002 | S24: TOTP & G2003 | T24: TOT2003 | U24: GOODPRO2003 | V24: SERVICEPROMAN2003 | W24: WAGEP & G2003 | X24: WAGETOT2003 | Y24: WAGEGOODPRO2003 | Z24: WAGESERVICEPRO2003 | AA24: TOTP & G2004 | AB24: TOT2004 | AC24: GOODPRO2004 | AD24: SERVICEPROMAN2004 | AE24: WAGEP & G2004 | AF24: WAGETOT2004 | AG24: WAGEGOODPRO2004 | AH24: WAGESERVICEPRO2004 | AI24: TOTP & G2005 | AJ24: TOT2005 | AK24: GOODPRO2005 | AL24: SERVICEPROMAN2005 | AM24: WAGEP & G2005 | AN24: WAGETOT2005 | AO24: WAGEGOODPRO2005 | AP24: WAGESERVICEPRO2005 | AQ24: TOTP & G2006 | AR24: TOT2006 | AS24: GOODPRO2006 | AT24: SERVICEPROMAN2006 | AU24: WAGEP & G2006 | AV24: WAGETOT2006 | AW24: WAGEGOODPRO2006 | AX24: WAGESERVICEPRO2006 | AY24: TOTP & G2007 | AZ24: TOT2007 | BA24: GOODPRO2007 | BB24: SERVICEPROMAN2007 | BC24: WAGEP & G2007 | BD24: WAGETOT2007 | BE24: WAGEGOODPRO2007 | BF24: WAGESERVICEPRO2007 | BG24: TOTP & G2008 | BH24: TOT2008 | BI24: GOODPRO2008 | BJ24: SERVICEPROMAN2008 | BK24: WAGEP & G2008 | BL24: WAGETOT2008 | BM24: WAGEGOODPRO2008 | BN24: WAGESERVICEPRO2008 | BO24: TOTP & G2009 | BP24: TOT2009 | BQ24: GOODPRO2009 | BR24: SERVICEPROMAN2009 | BS24: WAGEP & G2009 | BT24: WAGETOT2009 | BU24: WAGEGOODPRO2009 | BV24: WAGESERVICEPRO2009 | BW24: TOTP & G2010 | BX24: TOT2010 | BY24: GOODPRO2010 | BZ24: SERVICEPROMAN2010 | CA24: WAGEP & G2010 | CB24: WAGETOT2010 | CC24: WAGEGOODPRO2010 | CD24: WAGESERVICEPRO2010 | CE24: TOTP & G2011 | CF24: TOT2011 | CG24: GOODPRO2011 | CH24: SERVICEPROMAN2011 | CI24: WAGEP & G2011 | CJ24: WAGETOT2011 | CK24: WAGEGOODPRO2011 | CL24: WAGESERVICEPRO2011 | CM24: TOTP & G2012 | CN24: TOT2012 | CO24: GOODPRO2012 | CP24: SERVICEPROMAN2012 | CQ24: WAGEP & G2012 | CR24: WAGETOT2012 | CS24: WAGEGOODPRO2012 | CT24: WAGESERVICEPRO2012 | CU24: TOTP & G2013 | CV24: TOT2013 | CW24: GOODPRO2013 | CX24: SERVICEPROMAN2013 | CY24: WAGEP & G2013 | CZ24: WAGETOT2013 | DA24: WAGEGOODPRO2013 | DB24: WAGESERVICEPRO2013 | DC24: TOTP & G2014 | DD24: TOT2014 | DE24: GOODPRO2014 | DF24: SERVICEPROMAN2014 | DG24: WAGEP & G2014 | DH24: WAGETOT2014 | DI24: WAGEGOODPRO2014 | DJ24: WAGESERVICEPRO2014 | DK24: TOTP & G2015 | DL24: TOT2015 | DM24: GOODPRO2015 | DN24: SERVICEPROMAN2015 | DO24: WAGEP & G2015 | DP24: WAGETOT2015 | DQ24: WAGEGOODPRO2015 | DR24: WAGESERVICEPRO2015 | DS24: TOTP & G2016 | DT24: TOT2016 | DU24: GOODPRO2016 | DV24: SERVICEPROMAN2016 | DW24: WAGEP & G2016 | DX24: WAGETOT2016 | DY24: WAGEGOODPRO2016 | DZ24: WAGESERVICEPRO2016 | EA24: TOTP & G2017 | EB24: TOT2017 | EC24: GOODPRO2017 | ED24: SERVICEPROMAN2017 | EE24: WAGEP & G2017 | EF24: WAGETOT2017 | EG24: WAGEGOODPRO2017 | EH24: WAGESERVICEPRO2017 | EI24: TOTP & G2018 | EJ24: TOT2018 | EK24: GOODPRO2018 | EL24: SERVICEPROMAN2018 | EM24: WAGEP & G2018 | EN24: WAGETOT2018 | EO24: WAGEGOODPRO2018 | EP24: WAGESERVICEPRO2018 | EQ24: TOTP & G2019 | ER24: TOT2019 | ES24: TOTGov2019 | ET24: GOODPRO2019 | EU24: SERVICEPROMAN2019 | EV24: WAGEP & G2019 | EW24: WAGETOT2019 | EX24: WAGEGov2019 | EY24: WAGEGOODPRO2019 | EZ24: WAGESERVICEPRO2019 | FA24: TOTP & G2020 | FB24: TOT2020 | FC24: TOTGov2020 | FD24: GOODPRO2020 | FE24: SERVICEPROMAN2020 | FF24: WAGEP & G2020 | FG24: WAGETOT2020 | FH24: WAGEGov2020 | FI24: WAGEGOODPRO2020 | FJ24: WAGESERVICEPRO2020 | FK24: TOTP & G2021 | FL24: TOT2021 | FM24: TOTGov2021 | FN24: GOODPRO2021 | FO24: SERVICEPROMAN2021 | FP24: WAGEP & G2021 | FQ24: WAGETOT2021 | FR24: WAGEGov2021 | FS24: WAGEGOODPRO2021 | FT24: WAGESERVICEPRO2021 | FU24: TOTP & G2022 | FV24: TOT2022 | FW24: TOTGov2022 | FX24: GOODPRO2022 | FY24: SERVICEPROMAN2022 | FZ24: WAGEP & G2022 | GA24: WAGETOT2022 | GB24: WAGEGov2022 | GC24: WAGEGOODPRO2022 | GD24: WAGESERVICEPRO2022
A25: =VLOOKUP(DropDownList!$B$47,CntyQuery!$A$170:$GZ$213,A$1) -> Franconia | B25: =VLOOKUP(DropDownList!$B$47,CntyQuery!$A$170:$GZ$213,B$1) -> 5 | C25: =VLOOKUP(DropDownList!$B$47,CntyQuery!$A$170:$GZ$213,C$1) -> 822 | D25: =VLOOKUP(DropDownList!$B$47,CntyQuery!$A$170:$GZ$213,D$1) -> 627 | E25: =VLOOKUP(DropDownList!$B$47,CntyQuery!$A$170:$GZ$213,E$1) -> 43 | F25: =VLOOKUP(DropDownList!$B$47,CntyQuery!$A$170:$GZ$213,F$1) -> 583 | G25: =VLOOKUP(DropDownList!$B$47,CntyQuery!$A$170:$GZ$213,G$1) -> 436.97 | H25: =VLOOKUP(DropDownList!$B$47,CntyQuery!$A$170:$GZ$213,H$1) -> 462.66 | I25: =VLOOKUP(DropDownList!$B$47,CntyQuery!$A$170:$GZ$213,I$1) -> 434.61 | J25: =VLOOKUP(DropDownList!$B$47,CntyQuery!$A$170:$GZ$213,J$1) -> 464.75 | K25: =VLOOKUP(DropDownList!$B$47,CntyQuery!$A$170:$GZ$213,K$1) -> 840 | L25: =VLOOKUP(DropDownList!$B$47,CntyQuery!$A$170:$GZ$213,L$1) -> 636 | M25: =VLOOKUP(DropDownList!$B$47,CntyQuery!$A$170:$GZ$213,M$1) -> 43 | N25: =VLOOKUP(DropDownList!$B$47,CntyQuery!$A$170:$GZ$213,N$1) -> 594 | O25: =VLOOKUP(DropDownList!$B$47,CntyQuery!$A$170:$GZ$213,O$1) -> 448.85 | P25: =VLOOKUP(DropDownList!$B$47,CntyQuery!$A$170:$GZ$213,P$1) -> 474.27 | Q25: =VLOOKUP(DropDownList!$B$47,CntyQuery!$A$170:$GZ$213,Q$1) -> 456.05 | R25: =VLOOKUP(DropDownList!$B$47,CntyQuery!$A$170:$GZ$213,R$1) -> 475.57 | S25: =VLOOKUP(DropDownList!$B$47,CntyQuery!$A$170:$GZ$213,S$1) -> 952 | T25: =VLOOKUP(DropDownList!$B$47,CntyQuery!$A$170:$GZ$213,T$1) -> 660 | U25: =VLOOKUP(DropDownList!$B$47,CntyQuery!$A$170:$GZ$213,U$1) -> 44 | V25: =VLOOKUP(DropDownList!$B$47,CntyQuery!$A$170:$GZ$213,V$1) -> 616 | W25: =VLOOKUP(DropDownList!$B$47,CntyQuery!$A$170:$GZ$213,W$1) -> 462.52 | X25: =VLOOKUP(DropDownList!$B$47,CntyQuery!$A$170:$GZ$213,X$1) -> 502.64 | Y25: =VLOOKUP(DropDownList!$B$47,CntyQuery!$A$170:$GZ$213,Y$1) -> 525.54 | Z25: =VLOOKUP(DropDownList!$B$47,CntyQuery!$A$170:$GZ$213,Z$1) -> 501.02 | AA25: =VLOOKUP(DropDownList!$B$47,CntyQuery!$A$170:$GZ$213,AA$1) -> 967 | AB25: =VLOOKUP(DropDownList!$B$47,CntyQuery!$A$170:$GZ$213,AB$1) -> 743 | AC25: =VLOOKUP(DropDownList!$B$47,CntyQuery!$A$170:$GZ$213,AC$1) -> 37 | AD25: =VLOOKUP(DropDownList!$B$47,CntyQuery!$A$170:$GZ$213,AD$1) -> 706 | AE25: =VLOOKUP(DropDownList!$B$47,CntyQuery!$A$170:$GZ$213,AE$1) -> 494.29 | AF25: =VLOOKUP(DropDownList!$B$47,CntyQuery!$A$170:$GZ$213,AF$1) -> 541.95 | AG25: =VLOOKUP(DropDownList!$B$47,CntyQuery!$A$170:$GZ$213,AG$1) -> 569.87 | AH25: =VLOOKUP(DropDownList!$B$47,CntyQuery!$A$170:$GZ$213,AH$1) -> 540.49 | AI25: =VLOOKUP(DropDownList!$B$47,CntyQuery!$A$170:$GZ$213,AI$1) -> 821 | AJ25: =VLOOKUP(DropDownList!$B$47,CntyQuery!$A$170:$GZ$213,AJ$1) -> 650 | AK25: =VLOOKUP(DropDownList!$B$47,CntyQuery!$A$170:$GZ$213,AK$1) -> 36 | AL25: =VLOOKUP(DropDownList!$B$47,CntyQuery!$A$170:$GZ$213,AL$1) -> 614 | AM25: =VLOOKUP(DropDownList!$B$47,CntyQuery!$A$170:$GZ$213,AM$1) -> 658.61 | AN25: =VLOOKUP(DropDownList!$B$47,CntyQuery!$A$170:$GZ$213,AN$1) -> 725.74 | AO25: =VLOOKUP(DropDownList!$B$47,CntyQuery!$A$170:$GZ$213,AO$1) -> 636.51 | AP25: =VLOOKUP(DropDownList!$B$47,CntyQuery!$A$170:$GZ$213,AP$1) -> 730.97 | AQ25: =VLOOKUP(DropDownList!$B$47,CntyQuery!$A$170:$GZ$213,AQ$1) -> 826 | AR25: =VLOOKUP(DropDownList!$B$47,CntyQuery!$A$170:$GZ$213,AR$1) -> 642 | AS25: =VLOOKUP(DropDownList!$B$47,CntyQuery!$A$170:$GZ$213,AS$1) -> 40 | AT25: =VLOOKUP(DropDownList!$B$47,CntyQuery!$A$170:$GZ$213,AT$1) -> 602 | AU25: =VLOOKUP(DropDownList!$B$47,CntyQuery!$A$170:$GZ$213,AU$1) -> 563.82 | AV25: =VLOOKUP(DropDownList!$B$47,CntyQuery!$A$170:$GZ$213,AV$1) -> 605.01 | AW25: =VLOOKUP(DropDownList!$B$47,CntyQuery!$A$170:$GZ$213,AW$1) -> 687.45 | AX25: =VLOOKUP(DropDownList!$B$47,CntyQuery!$A$170:$GZ$213,AX$1) -> 599.6 | AY25: =VLOOKUP(DropDownList!$B$47,CntyQuery!$A$170:$GZ$213,AY$1) -> 857 | AZ25: =VLOOKUP(DropDownList!$B$47,CntyQuery!$A$170:$GZ$213,AZ$1) -> 662 | BA25: =VLOOKUP(DropDownList!$B$47,CntyQuery!$A$170:$GZ$213,BA$1) -> 46 | BB25: =VLOOKUP(DropDownList!$B$47,CntyQuery!$A$170:$GZ$213,BB$1) -> 616 | BC25: =VLOOKUP(DropDownList!$B$47,CntyQuery!$A$170:$GZ$213,BC$1) -> 579.7 | BD25: =VLOOKUP(DropDownList!$B$47,CntyQuery!$A$170:$GZ$213,BD$1) -> 625.2 | BE25: =VLOOKUP(DropDownList!$B$47,CntyQuery!$A$170:$GZ$213,BE$1) -> 557.98 | BF25: =VLOOKUP(DropDownList!$B$47,CntyQuery!$A$170:$GZ$213,BF$1) -> 630.2 | BG25: =VLOOKUP(DropDownList!$B$47,CntyQuery!$A$170:$GZ$213,BG$1) -> 855 | BH25: =VLOOKUP(DropDownList!$B$47,CntyQuery!$A$170:$GZ$213,BH$1) -> 653 | BI25: =VLOOKUP(DropDownList!$B$47,CntyQuery!$A$170:$GZ$213,BI$1) -> 40 | BJ25: =VLOOKUP(DropDownList!$B$47,CntyQuery!$A$170:$GZ$213,BJ$1) -> 613 | BK25: =VLOOKUP(DropDownList!$B$47,CntyQuery!$A$170:$GZ$213,BK$1) -> 591.25 | BL25: =VLOOKUP(DropDownList!$B$47,CntyQuery!$A$170:$GZ$213,BL$1) -> 630.13 | BM25: =VLOOKUP(DropDownList!$B$47,CntyQuery!$A$170:$GZ$213,BM$1) -> 636.85 | BN25: =VLOOKUP(DropDownList!$B$47,CntyQuery!$A$170:$GZ$213,BN$1) -> 629.68 | BO25: =VLOOKUP(DropDownList!$B$47,CntyQuery!$A$170:$GZ$213,BO$1) -> 808 | BP25: =VLOOKUP(DropDownList!$B$47,CntyQuery!$A$170:$GZ$213,BP$1) -> 603 | BQ25: =VLOOKUP(DropDownList!$B$47,CntyQuery!$A$170:$GZ$213,BQ$1) -> 35 | BR25: =VLOOKUP(DropDownList!$B$47,CntyQuery!$A$170:$GZ$213,BR$1) -> 567 | BS25: =VLOOKUP(DropDownList!$B$47,CntyQuery!$A$170:$GZ$213,BS$1) -> 592.22 | BT25: =VLOOKUP(DropDownList!$B$47,CntyQuery!$A$170:$GZ$213,BT$1) -> 619.35 | BU25: =VLOOKUP(DropDownList!$B$47,CntyQuery!$A$170:$GZ$213,BU$1) -> 634.91 | BV25: =VLOOKUP(DropDownList!$B$47,CntyQuery!$A$170:$GZ$213,BV$1) -> 618.37 | BW25: =VLOOKUP(DropDownList!$B$47,CntyQuery!$A$170:$GZ$213,BW$1) -> 830 | BX25: =VLOOKUP(DropDownList!$B$47,CntyQuery!$A$170:$GZ$213,BX$1) -> 619 | BY25: =VLOOKUP(DropDownList!$B$47,CntyQuery!$A$170:$GZ$213,BY$1) -> 28 | BZ25: =VLOOKUP(DropDownList!$B$47,CntyQuery!$A$170:$GZ$213,BZ$1) -> 591 | CA25: =VLOOKUP(DropDownList!$B$47,CntyQuery!$A$170:$GZ$213,CA$1) -> 635.6 | CB25: =VLOOKUP(DropDownList!$B$47,CntyQuery!$A$170:$GZ$213,CB$1) -> 684.7 | CC25: =VLOOKUP(DropDownList!$B$47,CntyQuery!$A$170:$GZ$213,CC$1) -> 952.7 | CD25: =VLOOKUP(DropDownList!$B$47,CntyQuery!$A$170:$GZ$213,CD$1) -> 671.88 | CE25: =VLOOKUP(DropDownList!$B$47,CntyQuery!$A$170:$GZ$213,CE$1) -> 879 | CF25: =VLOOKUP(DropDownList!$B$47,CntyQuery!$A$170:$GZ$213,CF$1) -> 660 | CG25: =VLOOKUP(DropDownList!$B$47,CntyQuery!$A$170:$GZ$213,CG$1) -> 41 | CH25: =VLOOKUP(DropDownList!$B$47,CntyQuery!$A$170:$GZ$213,CH$1) -> 619 | CI25: =VLOOKUP(DropDownList!$B$47,CntyQuery!$A$170:$GZ$213,CI$1) -> 702.5 | CJ25: =VLOOKUP(DropDownList!$B$47,CntyQuery!$A$170:$GZ$213,CJ$1) -> 774.64 | CK25: =VLOOKUP(DropDownList!$B$47,CntyQuery!$A$170:$GZ$213,CK$1) -> 770.95 | CL25: =VLOOKUP(DropDownList!$B$47,CntyQuery!$A$170:$GZ$213,CL$1) -> 774.88 | CM25: =VLOOKUP(DropDownList!$B$47,CntyQuery!$A$170:$GZ$213,CM$1) -> 844 | CN25: =VLOOKUP(DropDownList!$B$47,CntyQuery!$A$170:$GZ$213,CN$1) -> 639 | CO25: =VLOOKUP(DropDownList!$B$47,CntyQuery!$A$170:$GZ$213,CO$1) -> 32 | CP25: =VLOOKUP(DropDownList!$B$47,CntyQuery!$A$170:$GZ$213,CP$1) -> 607 | CQ25: =VLOOKUP(DropDownList!$B$47,CntyQuery!$A$170:$GZ$213,CQ$1) -> 682.06 | CR25: =VLOOKUP(DropDownList!$B$47,CntyQuery!$A$170:$GZ$213,CR$1) -> 743.29 | CS25: =VLOOKUP(DropDownList!$B$47,CntyQuery!$A$170:$GZ$213,CS$1) -> 710.32 | CT25: =VLOOKUP(DropDownList!$B$47,CntyQuery!$A$170:$GZ$213,CT$1) -> 745.04 | CU25: =VLOOKUP(DropDownList!$B$47,CntyQuery!$A$170:$GZ$213,CU$1) -> 836 | CV25: =VLOOKUP(DropDownList!$B$47,CntyQuery!$A$170:$GZ$213,CV$1) -> 631 | CW25: =VLOOKUP(DropDownList!$B$47,CntyQuery!$A$170:$GZ$213,CW$1) -> 34 | CX25: =VLOOKUP(DropDownList!$B$47,CntyQuery!$A$170:$GZ$213,CX$1) -> 597 | CY25: =VLOOKUP(DropDownList!$B$47,CntyQuery!$A$170:$GZ$213,CY$1) -> 731.03 | CZ25: =VLOOKUP(DropDownList!$B$47,CntyQuery!$A$170:$GZ$213,CZ$1) -> 803.97 | DA25: =VLOOKUP(DropDownList!$B$47,CntyQuery!$A$170:$GZ$213,DA$1) -> 666.09 | DB25: =VLOOKUP(DropDownList!$B$47,CntyQuery!$A$170:$GZ$213,DB$1) -> 811.73 | DC25: =VLOOKUP(DropDownList!$B$47,CntyQuery!$A$170:$GZ$213,DC$1) -> 785 | DD25: =VLOOKUP(DropDownList!$B$47,CntyQuery!$A$170:$GZ$213,DD$1) -> 609 | DE25: =VLOOKUP(DropDownList!$B$47,CntyQuery!$A$170:$GZ$213,DE$1) -> 39 | DF25: =VLOOKUP(DropDownList!$B$47,CntyQuery!$A$170:$GZ$213,DF$1) -> 569 | DG25: =VLOOKUP(DropDownList!$B$47,CntyQuery!$A$170:$GZ$213,DG$1) -> 696.21 | DH25: =VLOOKUP(DropDownList!$B$47,CntyQuery!$A$170:$GZ$213,DH$1) -> 734.13 | DI25: =VLOOKUP(DropDownList!$B$47,CntyQuery!$A$170:$GZ$213,DI$1) -> 672.9 | DJ25: =VLOOKUP(DropDownList!$B$47,CntyQuery!$A$170:$GZ$213,DJ$1) -> 738.36 | DK25: =VLOOKUP(DropDownList!$B$47,CntyQuery!$A$170:$GZ$213,DK$1) -> 804 | DL25: =VLOOKUP(DropDownList!$B$47,CntyQuery!$A$170:$GZ$213,DL$1) -> 578 | DM25: =VLOOKUP(DropDownList!$B$47,CntyQuery!$A$170:$GZ$213,DM$1) -> 44 | DN25: =VLOOKUP(DropDownList!$B$47,CntyQuery!$A$170:$GZ$213,DN$1) -> 535 | DO25: =VLOOKUP(DropDownList!$B$47,CntyQuery!$A$170:$GZ$213,DO$1) -> 711.49 | DP25: =VLOOKUP(DropDownList!$B$47,CntyQuery!$A$170:$GZ$213,DP$1) -> 793.2 | DQ25: =VLOOKUP(DropDownList!$B$47,CntyQuery!$A$170:$GZ$213,DQ$1) -> 674.67 | DR25: =VLOOKUP(DropDownList!$B$47,CntyQuery!$A$170:$GZ$213,DR$1) -> 802.87 | DS25: =VLOOKUP(DropDownList!$B$47,CntyQuery!$A$170:$GZ$213,DS$1) -> 762 | DT25: =VLOOKUP(DropDownList!$B$47,CntyQuery!$A$170:$GZ$213,DT$1) -> 528 | DU25: =VLOOKUP(DropDownList!$B$47,CntyQuery!$A$170:$GZ$213,DU$1) -> 34 | DV25: =VLOOKUP(DropDownList!$B$47,CntyQuery!$A$170:$GZ$213,DV$1) -> 494 | DW25: =VLOOKUP(DropDownList!$B$47,CntyQuery!$A$170:$GZ$213,DW$1) -> 689.47 | DX25: =VLOOKUP(DropDownList!$B$47,CntyQuery!$A$170:$GZ$213,DX$1) -> 776.98 | DY25: =VLOOKUP(DropDownList!$B$47,CntyQuery!$A$170:$GZ$213,DY$1) -> 757.14 | DZ25: =VLOOKUP(DropDownList!$B$47,CntyQuery!$A$170:$GZ$213,DZ$1) -> 778.34 | EA25: =VLOOKUP(DropDownList!$B$47,CntyQuery!$A$170:$GZ$213,EA$1) -> 821 | EB25: =VLOOKUP(DropDownList!$B$47,CntyQuery!$A$170:$GZ$213,EB$1) -> 571 | EC25: =VLOOKUP(DropDownList!$B$47,CntyQuery!$A$170:$GZ$213,EC$1) -> 60 | ED25: =VLOOKUP(DropDownList!$B$47,CntyQuery!$A$170:$GZ$213,ED$1) -> 511 | EE25: =VLOOKUP(DropDownList!$B$47,CntyQuery!$A$170:$GZ$213,EE$1) -> 708.55 | EF25: =VLOOKUP(DropDownList!$B$47,CntyQuery!$A$170:$GZ$213,EF$1) -> 808.35 | EG25: =VLOOKUP(DropDownList!$B$47,CntyQuery!$A$170:$GZ$213,EG$1) -> 753.74 | EH25: =VLOOKUP(DropDownList!$B$47,CntyQuery!$A$170:$GZ$213,EH$1) -> 814.71 | EI25: =VLOOKUP(DropDownList!$B$47,CntyQuery!$A$170:$GZ$213,EI$1) -> 848 | EJ25: =VLOOKUP(DropDownList!$B$47,CntyQuery!$A$170:$GZ$213,EJ$1) -> 589 | EK25: =VLOOKUP(DropDownList!$B$47,CntyQuery!$A$170:$GZ$213,EK$1) -> 61 | EL25: =VLOOKUP(DropDownList!$B$47,CntyQuery!$A$170:$GZ$213,EL$1) -> 529 | EM25: =VLOOKUP(DropDownList!$B$47,CntyQuery!$A$170:$GZ$213,EM$1) -> 728.65 | EN25: =VLOOKUP(DropDownList!$B$47,CntyQuery!$A$170:$GZ$213,EN$1) -> 838.72 | EO25: =VLOOKUP(DropDownList!$B$47,CntyQuery!$A$170:$GZ$213,EO$1) -> 762.04 | EP25: =VLOOKUP(DropDownList!$B$47,CntyQuery!$A$170:$GZ$213,EP$1) -> 847.54 | EQ25: =VLOOKUP(DropDownList!$B$47,CntyQuery!$A$170:$GZ$213,EQ$1) -> 872 | ER25: =VLOOKUP(DropDownList!$B$47,CntyQuery!$A$170:$GZ$213,ER$1) -> 613 | ES25: =VLOOKUP(DropDownList!$B$47,CntyQuery!$A$170:$GZ$213,ES$1) -> 259 | ET25: =VLOOKUP(DropDownList!$B$47,CntyQuery!$A$170:$GZ$213,ET$1) -> 65 | EU25: =VLOOKUP(DropDownList!$B$47,CntyQuery!$A$170:$GZ$213,EU$1) -> 548 | EV25: =VLOOKUP(DropDownList!$B$47,CntyQuery!$A$170:$GZ$213,EV$1) -> 705.57 | EW25: =VLOOKUP(DropDownList!$B$47,CntyQuery!$A$170:$GZ$213,EW$1) -> 795.41 | EX25: =VLOOKUP(DropDownList!$B$47,CntyQuery!$A$170:$GZ$213,EX$1) -> 492.82 | EY25: =VLOOKUP(DropDownList!$B$47,CntyQuery!$A$170:$GZ$213,EY$1) -> 739.8 | EZ25: =VLOOKUP(DropDownList!$B$47,CntyQuery!$A$170:$GZ$213,EZ$1) -> 802.04 | FA25: =VLOOKUP(DropDownList!$B$47,CntyQuery!$A$170:$GZ$213,FA$1) -> 757 | FB25: =VLOOKUP(DropDownList!$B$47,CntyQuery!$A$170:$GZ$213,FB$1) -> 567 | FC25: =VLOOKUP(DropDownList!$B$47,CntyQuery!$A$170:$GZ$213,FC$1) -> 190 | FD25: =VLOOKUP(DropDownList!$B$47,CntyQuery!$A$170:$GZ$213,FD$1) -> 69 | FE25: =VLOOKUP(DropDownList!$B$47,CntyQuery!$A$170:$GZ$213,FE$1) -> 498 | FF25: =VLOOKUP(DropDownList!$B$47,CntyQuery!$A$170:$GZ$213,FF$1) -> 809.31 | FG25: =VLOOKUP(DropDownList!$B$47,CntyQuery!$A$170:$GZ$213,FG$1) -> 871.14 | FH25: =VLOOKUP(DropDownList!$B$47,CntyQuery!$A$170:$GZ$213,FH$1) -> 624.68 | FI25: =VLOOKUP(DropDownList!$B$47,CntyQuery!$A$170:$GZ$213,FI$1) -> 747.81 | FJ25: =VLOOKUP(DropDownList!$B$47,CntyQuery!$A$170:$GZ$213,FJ$1) -> 888.3 | FK25: =VLOOKUP(DropDownList!$B$47,CntyQuery!$A$170:$GZ$213,FK$1) -> 807 | FL25: =VLOOKUP(DropDownList!$B$47,CntyQuery!$A$170:$GZ$213,FL$1) -> 611 | FM25: =VLOOKUP(DropDownList!$B$47,CntyQuery!$A$170:$GZ$213,FM$1) -> 196 | FN25: =VLOOKUP(DropDownList!$B$47,CntyQuery!$A$170:$GZ$213,FN$1) -> 82 | FO25: =VLOOKUP(DropDownList!$B$47,CntyQuery!$A$170:$GZ$213,FO$1) -> 528 | FP25: =VLOOKUP(DropDownList!$B$47,CntyQuery!$A$170:$GZ$213,FP$1) -> 859.85 | FQ25: =VLOOKUP(DropDownList!$B$47,CntyQuery!$A$170:$GZ$213,FQ$1) -> 933.82 | FR25: =VLOOKUP(DropDownList!$B$47,CntyQuery!$A$170:$GZ$213,FR$1) -> 629.57 | FS25: =VLOOKUP(DropDownList!$B$47,CntyQuery!$A$170:$GZ$213,FS$1) -> 737.22 | FT25: =VLOOKUP(DropDownList!$B$47,CntyQuery!$A$170:$GZ$213,FT$1) -> 964.43 | FU25: =VLOOKUP(DropDownList!$B$47,CntyQuery!$A$170:$GZ$213,FU$1) -> 828 | FV25: =VLOOKUP(DropDownList!$B$47,CntyQuery!$A$170:$GZ$213,FV$1) -> 624 | FW25: =VLOOKUP(DropDownList!$B$47,CntyQuery!$A$170:$GZ$213,FW$1) -> 204 | FX25: =VLOOKUP(DropDownList!$B$47,CntyQuery!$A$170:$GZ$213,FX$1) -> 90 | FY25: =VLOOKUP(DropDownList!$B$47,CntyQuery!$A$170:$GZ$213,FY$1) -> 534 | FZ25: =VLOOKUP(DropDownList!$B$47,CntyQuery!$A$170:$GZ$213,FZ$1) -> 893 | GA25: =VLOOKUP(DropDownList!$B$47,CntyQuery!$A$170:$GZ$213,GA$1) -> 976 | GB25: =VLOOKUP(DropDownList!$B$47,CntyQuery!$A$170:$GZ$213,GB$1) -> 640 | GC25: =VLOOKUP(DropDownList!$B$47,CntyQuery!$A$170:$GZ$213,GC$1) -> 721 | GD25: =VLOOKUP(DropDownList!$B$47,CntyQuery!$A$170:$GZ$213,GD$1) -> 1018
M32: =IF((CntyDataLink!$BL$25)="n",NA(),IF(VALUE(CntyDataLink!$BL$25)="",NA(),VALUE(CntyDataLink!$BL$25))) -> 630.13
A33: Census 2000 - Query Name: TownAllQuery3 | B33: 2 | C33: =B33+1 -> 3 | D33: =C33+1 -> 4 | E33: 5 | F33: 6 | G33: 7 | H33: 8 | I33: 9 | J33: 10 | K33: 11 | L33: 12 | M33: 13 | N33: 14 | O33: 15 | P33: 16 | Q33: 17 | R33: 18 | S33: 19 | T33: 20 | U33: 21 | V33: 22 | W33: 23 | X33: 24 | Y33: 25 | Z33: 26 | AA33: 27 | AB33: 28 | AC33: 29 | AD33: 30 | AE33: 31 | AF33: 32 | AG33: 33 | AH33: 34 | AI33: 35 | AJ33: 36 | AK33: 37 | AL33: 38 | AM33: 39 | AN33: 40 | AO33: 41 | AP33: 42 | AQ33: 43 | AR33: 44 | AS33: 45 | AT33: 46 | AU33: 47 | AV33: 48 | AW33: 49 | AX33: 50 | AY33: 51 | AZ33: 52 | BA33: 53 | BB33: 54 | BC33: 55 | BD33: 56 | BE33: 57 | BF33: 58 | BG33: 59 | BH33: 60 | BI33: 61 | BJ33: 62 | BK33: 63 | BL33: 64 | BM33: 65 | BN33: 66 | BO33: 67 | BP33: =BO33+1 -> 68 | BQ33: 69 | BR33: 70 | BS33: 71 | BT33: 72 | BU33: 73 | BV33: 74 | BW33: 75 | BX33: 76 | BY33: 77 | BZ33: 78 | CA33: 79 | CB33: 80 | CC33: 81 | CD33: 82 | CE33: 83 | CF33: 84 | CG33: 85 | CH33: 86 | CI33: 87 | CJ33: 88 | CK33: 89 | CL33: 90 | CM33: 91 | CN33: 92 | CO33: 93 | CP33: 94 | CQ33: 95 | CR33: 96 | CS33: 97 | CT33: 98 | CU33: 99 | CV33: 100 | CW33: 101 | CX33: 102
A34: NAME | B34: COUNTY | C34: LOGRECNO | D34: COUSUB | E34: TRACT | F34: AREALAND | G34: AREAWATR | H34: POP100 | I34: HU100 | J34: 2000Population | K34: PopOfOneRace | L34: PopWhite | M34: PopBlack | N34: PopAmIndian | O34: PopAsian | P34: PopHawaiian | Q34: PopOtherRace | R34: Pop2orMoreRaces | S34: PopHispanicLatino | T34: PopNotHispanicLatino | U34: PopMale | V34: PopMale<15 | W34: PopMale15to24 | X34: PopMale25to34 | Y34: PopMale35to44 | Z34: PopMale45to54 | AA34: PopMale55to64 | AB34: PopMale65to74 | AC34: PopMale75to84 | AD34: PopMale85andOver | AE34: PopFemale | AF34: PopFemale<15 | AG34: PopFemale15to24 | AH34: PopFemale25to34 | AI34: PopFemale35t44 | AJ34: PopFemale45to54 | AK34: PopFemale55to64 | AL34: PopFemale65to74 | AM34: PopFemale75to84 | AN34: PopFemale85andOver | AO34: Households2000 | AP34: PopInHH | AQ34: AvgHHSize | AR34: HHs1Person | AS34: HHs2orMorePerson | AT34: HHsFamily | AU34: HHMarriedCoupleFam | AV34: HHSingleParentFam | AW34: HHsNonFamily | AX34: Families | AY34: PopInFam | AZ34: AvgFamSize | BA34: TotHsUnits | BB34: OccHsUnits | BC34: OwnerOccHU | BD34: RenterOccHU | BE34: VctHsUnits | BF34: VctHUForRent | BG34: VctHUForSale | BH34: VctHUSeasonal | BI34: PopInOccHU | BJ34: PopInOwnOccHU | BK34: PopInRntOccHU | BL34: AvgHHSize2 | BM34: AvgHHSizOwnOcc | BN34: AvgHHSizRntOcc | BO34: OwnOccWhtHsHldr | BP34: OwnOccBlkHsHldr | BQ34: OwnOccAmIHsHldr | BR34: OwnOccAsnHsHldr | BS34: OwnOccPIsHsHldr | BT34: OwnOccORHsHldr | BU34: OwnOcc2RcHsHldr | BV34: RntOccWhtHsHldr | BW34: RntOccBlkHsHldr | BX34: RntOccAmIHsHldr | BY34: RntOccAsnHsHldr | BZ34: RntOccPIsHsHldr | CA34: RntOccORHsHldr | CB34: RntOcc2RcHsHldr | CC34: OwnOccHH15to24 | CD34: OwnOccHH25to34 | CE34: OwnOccHH35to44 | CF34: OwnOccHH45to54 | CG34: OwnOccHH55to64 | CH34: OwnOccHH65to74 | CI34: OwnOccHH75to84 | CJ34: OwnOccHH85Over | CK34: RntOccHH15to24 | CL34: RntOccHH25to34 | CM34: RntOccHH35to44 | CN34: RntOccHH45to54 | CO34: RntOccHH55to64 | CP34: RntOccHH65to74 | CQ34: RntOccHH75to84 | CR34: RntOccHH85Over | CS34: P27TotalPop | CT34: P27PopInHseHlds | CU34: P27PopInGrpQtrs | CV34: Median Age Total | CW34: Median Age (Male) | CX34: Median Age (Female)
A35: =VLOOKUP(DropDownList!$B$47,CntyQryCensus!$A$4:$CW$46,A$1) -> Franconia | B35: =VLOOKUP(DropDownList!$B$47,CntyQryCensus!$A$4:$CW$46,B$1) -> 009 | C35: =VLOOKUP(DropDownList!$B$47,CntyQryCensus!$A$4:$CW$46,C$1) -> 0011554 | D35: =VLOOKUP(DropDownList!$B$47,CntyQryCensus!$A$4:$CW$46,D$1) -> 27300 | E35: =VLOOKUP(DropDownList!$B$47,CntyQryCensus!$A$4:$CW$46,E$1) ->  | F35: =VLOOKUP(DropDownList!$B$47,CntyQryCensus!$A$4:$CW$46,F$1) -> 170635854 | G35: =VLOOKUP(DropDownList!$B$47,CntyQryCensus!$A$4:$CW$46,G$1) -> 207568 | H35: =VLOOKUP(DropDownList!$B$47,CntyQryCensus!$A$4:$CW$46,H$1) -> 924 | I35: =VLOOKUP(DropDownList!$B$47,CntyQryCensus!$A$4:$CW$46,I$1) -> 702 | J35: =VLOOKUP(DropDownList!$B$47,CntyQryCensus!$A$4:$CW$46,J$1) -> 924 | K35: =VLOOKUP(DropDownList!$B$47,CntyQryCensus!$A$4:$CW$46,K$1) -> 917 | L35: =VLOOKUP(DropDownList!$B$47,CntyQryCensus!$A$4:$CW$46,L$1) -> 901 | M35: =VLOOKUP(DropDownList!$B$47,CntyQryCensus!$A$4:$CW$46,M$1) -> 1 | N35: =VLOOKUP(DropDownList!$B$47,CntyQryCensus!$A$4:$CW$46,N$1) -> 6 | O35: =VLOOKUP(DropDownList!$B$47,CntyQryCensus!$A$4:$CW$46,O$1) -> 8 | P35: =VLOOKUP(DropDownList!$B$47,CntyQryCensus!$A$4:$CW$46,P$1) -> 0 | Q35: =VLOOKUP(DropDownList!$B$47,CntyQryCensus!$A$4:$CW$46,Q$1) -> 1 | R35: =VLOOKUP(DropDownList!$B$47,CntyQryCensus!$A$4:$CW$46,R$1) -> 7 | S35: =VLOOKUP(DropDownList!$B$47,CntyQryCensus!$A$4:$CW$46,S$1) -> 3 | T35: =VLOOKUP(DropDownList!$B$47,CntyQryCensus!$A$4:$CW$46,T$1) -> 921 | U35: =VLOOKUP(DropDownList!$B$47,CntyQryCensus!$A$4:$CW$46,U$1) -> 434 | V35: =VLOOKUP(DropDownList!$B$47,CntyQryCensus!$A$4:$CW$46,V$1) -> 80 | W35: =VLOOKUP(DropDownList!$B$47,CntyQryCensus!$A$4:$CW$46,W$1) -> 42 | X35: =VLOOKUP(DropDownList!$B$47,CntyQryCensus!$A$4:$CW$46,X$1) -> 35 | Y35: =VLOOKUP(DropDownList!$B$47,CntyQryCensus!$A$4:$CW$46,Y$1) -> 62 | Z35: =VLOOKUP(DropDownList!$B$47,CntyQryCensus!$A$4:$CW$46,Z$1) -> 70 | AA35: =VLOOKUP(DropDownList!$B$47,CntyQryCensus!$A$4:$CW$46,AA$1) -> 75 | AB35: =VLOOKUP(DropDownList!$B$47,CntyQryCensus!$A$4:$CW$46,AB$1) -> 38 | AC35: =VLOOKUP(DropDownList!$B$47,CntyQryCensus!$A$4:$CW$46,AC$1) -> 23 | AD35: =VLOOKUP(DropDownList!$B$47,CntyQryCensus!$A$4:$CW$46,AD$1) -> 9 | AE35: =VLOOKUP(DropDownList!$B$47,CntyQryCensus!$A$4:$CW$46,AE$1) -> 490 | AF35: =VLOOKUP(DropDownList!$B$47,CntyQryCensus!$A$4:$CW$46,AF$1) -> 63 | AG35: =VLOOKUP(DropDownList!$B$47,CntyQryCensus!$A$4:$CW$46,AG$1) -> 42 | AH35: =VLOOKUP(DropDownList!$B$47,CntyQryCensus!$A$4:$CW$46,AH$1) -> 32 | AI35: =VLOOKUP(DropDownList!$B$47,CntyQryCensus!$A$4:$CW$46,AI$1) -> 73 | AJ35: =VLOOKUP(DropDownList!$B$47,CntyQryCensus!$A$4:$CW$46,AJ$1) -> 91 | AK35: =VLOOKUP(DropDownList!$B$47,CntyQryCensus!$A$4:$CW$46,AK$1) -> 70 | AL35: =VLOOKUP(DropDownList!$B$47,CntyQryCensus!$A$4:$CW$46,AL$1) -> 28 | AM35: =VLOOKUP(DropDownList!$B$47,CntyQryCensus!$A$4:$CW$46,AM$1) -> 42 | AN35: =VLOOKUP(DropDownList!$B$47,CntyQryCensus!$A$4:$CW$46,AN$1) -> 49 | AO35: =VLOOKUP(DropDownList!$B$47,CntyQryCensus!$A$4:$CW$46,AO$1) -> 384 | AP35: =VLOOKUP(DropDownList!$B$47,CntyQryCensus!$A$4:$CW$46,AP$1) -> 855 | AQ35: =VLOOKUP(DropDownList!$B$47,CntyQryCensus!$A$4:$CW$46,AQ$1) -> 2.23 | AR35: =VLOOKUP(DropDownList!$B$47,CntyQryCensus!$A$4:$CW$46,AR$1) -> 111 | AS35: =VLOOKUP(DropDownList!$B$47,CntyQryCensus!$A$4:$CW$46,AS$1) -> 273 | AT35: =VLOOKUP(DropDownList!$B$47,CntyQryCensus!$A$4:$CW$46,AT$1) -> 243 | AU35: =VLOOKUP(DropDownList!$B$47,CntyQryCensus!$A$4:$CW$46,AU$1) -> 205 | AV35: =VLOOKUP(DropDownList!$B$47,CntyQryCensus!$A$4:$CW$46,AV$1) -> 38 | AW35: =VLOOKUP(DropDownList!$B$47,CntyQryCensus!$A$4:$CW$46,AW$1) -> 30 | AX35: =VLOOKUP(DropDownList!$B$47,CntyQryCensus!$A$4:$CW$46,AX$1) -> 243 | AY35: =VLOOKUP(DropDownList!$B$47,CntyQryCensus!$A$4:$CW$46,AY$1) -> 670 | AZ35: =VLOOKUP(DropDownList!$B$47,CntyQryCensus!$A$4:$CW$46,AZ$1) -> 2.76 | BA35: =VLOOKUP(DropDownList!$B$47,CntyQryCensus!$A$4:$CW$46,BA$1) -> 702 | BB35: =VLOOKUP(DropDownList!$B$47,CntyQryCensus!$A$4:$CW$46,BB$1) -> 384 | BC35: =VLOOKUP(DropDownList!$B$47,CntyQryCensus!$A$4:$CW$46,BC$1) -> 273 | BD35: =VLOOKUP(DropDownList!$B$47,CntyQryCensus!$A$4:$CW$46,BD$1) -> 111 | BE35: =VLOOKUP(DropDownList!$B$47,CntyQryCensus!$A$4:$CW$46,BE$1) -> 318 | BF35: =VLOOKUP(DropDownList!$B$47,CntyQryCensus!$A$4:$CW$46,BF$1) -> 10 | BG35: =VLOOKUP(DropDownList!$B$47,CntyQryCensus!$A$4:$CW$46,BG$1) -> 3 | BH35: =VLOOKUP(DropDownList!$B$47,CntyQryCensus!$A$4:$CW$46,BH$1) -> 291 | BI35: =VLOOKUP(DropDownList!$B$47,CntyQryCensus!$A$4:$CW$46,BI$1) -> 855 | BJ35: =VLOOKUP(DropDownList!$B$47,CntyQryCensus!$A$4:$CW$46,BJ$1) -> 630 | BK35: =VLOOKUP(DropDownList!$B$47,CntyQryCensus!$A$4:$CW$46,BK$1) -> 225 | BL35: =VLOOKUP(DropDownList!$B$47,CntyQryCensus!$A$4:$CW$46,BL$1) -> 2.23 | BM35: =VLOOKUP(DropDownList!$B$47,CntyQryCensus!$A$4:$CW$46,BM$1) -> 2.31 | BN35: =VLOOKUP(DropDownList!$B$47,CntyQryCensus!$A$4:$CW$46,BN$1) -> 2.03 | BO35: =VLOOKUP(DropDownList!$B$47,CntyQryCensus!$A$4:$CW$46,BO$1) -> 270 | BP35: =VLOOKUP(DropDownList!$B$47,CntyQryCensus!$A$4:$CW$46,BP$1) -> 0 | BQ35: =VLOOKUP(DropDownList!$B$47,CntyQryCensus!$A$4:$CW$46,BQ$1) -> 0 | BR35: =VLOOKUP(DropDownList!$B$47,CntyQryCensus!$A$4:$CW$46,BR$1) -> 2 | BS35: =VLOOKUP(DropDownList!$B$47,CntyQryCensus!$A$4:$CW$46,BS$1) -> 0 | BT35: =VLOOKUP(DropDownList!$B$47,CntyQryCensus!$A$4:$CW$46,BT$1) -> 0 | BU35: =VLOOKUP(DropDownList!$B$47,CntyQryCensus!$A$4:$CW$46,BU$1) -> 1 | BV35: =VLOOKUP(DropDownList!$B$47,CntyQryCensus!$A$4:$CW$46,BV$1) -> 102 | BW35: =VLOOKUP(DropDownList!$B$47,CntyQryCensus!$A$4:$CW$46,BW$1) -> 1 | BX35: =VLOOKUP(DropDownList!$B$47,CntyQryCensus!$A$4:$CW$46,BX$1) -> 1 | BY35: =VLOOKUP(DropDownList!$B$47,CntyQryCensus!$A$4:$CW$46,BY$1) -> 2 | BZ35: =VLOOKUP(DropDownList!$B$47,CntyQryCensus!$A$4:$CW$46,BZ$1) -> 0 | CA35: =VLOOKUP(DropDownList!$B$47,CntyQryCensus!$A$4:$CW$46,CA$1) -> 0 | CB35: =VLOOKUP(DropDownList!$B$47,CntyQryCensus!$A$4:$CW$46,CB$1) -> 5 | CC35: =VLOOKUP(DropDownList!$B$47,CntyQryCensus!$A$4:$CW$46,CC$1) -> 0 | CD35: =VLOOKUP(DropDownList!$B$47,CntyQryCensus!$A$4:$CW$46,CD$1) -> 11 | CE35: =VLOOKUP(DropDownList!$B$47,CntyQryCensus!$A$4:$CW$46,CE$1) -> 42 | CF35: =VLOOKUP(DropDownList!$B$47,CntyQryCensus!$A$4:$CW$46,CF$1) -> 68 | CG35: =VLOOKUP(DropDownList!$B$47,CntyQryCensus!$A$4:$CW$46,CG$1) -> 80 | CH35: =VLOOKUP(DropDownList!$B$47,CntyQryCensus!$A$4:$CW$46,CH$1) -> 41 | CI35: =VLOOKUP(DropDownList!$B$47,CntyQryCensus!$A$4:$CW$46,CI$1) -> 25 | CJ35: =VLOOKUP(DropDownList!$B$47,CntyQryCensus!$A$4:$CW$46,CJ$1) -> 6 | CK35: =VLOOKUP(DropDownList!$B$47,CntyQryCensus!$A$4:$CW$46,CK$1) -> 13 | CL35: =VLOOKUP(DropDownList!$B$47,CntyQryCensus!$A$4:$CW$46,CL$1) -> 24 | CM35: =VLOOKUP(DropDownList!$B$47,CntyQryCensus!$A$4:$CW$46,CM$1) -> 31 | CN35: =VLOOKUP(DropDownList!$B$47,CntyQryCensus!$A$4:$CW$46,CN$1) -> 22 | CO35: =VLOOKUP(DropDownList!$B$47,CntyQryCensus!$A$4:$CW$46,CO$1) -> 11 | CP35: =VLOOKUP(DropDownList!$B$47,CntyQryCensus!$A$4:$CW$46,CP$1) -> 2 | CQ35: =VLOOKUP(DropDownList!$B$47,CntyQryCensus!$A$4:$CW$46,CQ$1) -> 6 | CR35: =VLOOKUP(DropDownList!$B$47,CntyQryCensus!$A$4:$CW$46,CR$1) -> 2 | CS35: =VLOOKUP(DropDownList!$B$47,CntyQryCensus!$A$4:$CW$46,CS$1) -> 924 | CT35: =VLOOKUP(DropDownList!$B$47,CntyQryCensus!$A$4:$CW$46,CT$1) -> 855 | CU35: =VLOOKUP(DropDownList!$B$47,CntyQryCensus!$A$4:$CW$46,CU$1) -> 69 | CV35: =VLOOKUP(DropDownList!$B$47,CntyQryCensus!$A$4:$CW$46,CV$1) -> 47.1 | CW35: =VLOOKUP(DropDownList!$B$47,CntyQryCensus!$A$4:$CW$46,CW$1) -> 44.8 | CX35: =VLOOKUP(DropDownList!$B$47,CntyQryCensus!$A$4:$CW$46,CX$1) -> 
A38: Census 2000 DemoProfile Sample Data Tables 2&3 - DPTab23TownQry
A39: NAME | B39: COUSUB | C39: AREANAME | D39: PopInSchool | E39: Preschool | F39: Kindergarten | G39: Elementary | H39: HighSchool | I39: College | J39: Pop25andOver | K39: HighSchoolGrad | L39: SomeCollege | M39: AssocDegree | N39: BachelDegree | O39: GradDegree | P39: HSGradorHigher | Q39: CollegeGradorHigher | R39: Pop5to20yrs | S39: Pop5to20wDis | T39: Pop21to64 | U39: Pop21to64wDis | V39: Pop65over | W39: Pop65overwDis | X39: Pop5yrsOver | Y39: SameHUin95 | Z39: DiffHUinUSin95 | AA39: HUinSameCountyin95 | AB39: HUinSameStatein95 | AC39: TotalPop | AD39: NativePop | AE39: NatPopBornUS | AF39: NatPopBornInStatRes | AG39: NatPopBornDiffState | AH39: NatPopBornOutUS | AI39: FornBornPop | AJ39: FornPopEnt90to00 | AK39: FornPopNatCit | AL39: FornPopNotCit | AM39: Households | AN39: HHIncLessThn10k | AO39: HHInc10to15K | AP39: HHInc15to25K | AQ39: HHInc25to35K | AR39: HHInc35to50K | AS39: HHInc50to75K | AT39: HHInc75to100K | AU39: HHInc100to150K | AV39: HHInc150to200K | AW39: HHIncOver200K | AX39: MedianHHInc | AY39: HHwithPubAssistInc | AZ39: MeanPubAssist | BA39: FamilyHH | BB39: FHHIncLessThn10k | BC39: FHHInc10to15K | BD39: FHHInc15to25K | BE39: FHHInc25to35K | BF39: FHHInc35to50K | BG39: FHHInc50to75K | BH39: FHHInc75to100K | BI39: FHHInc100to150K | BJ39: FHHInc150to200K | BK39: FHHIncOver200K | BL39: MedianFHHInc | BM39: PerCapitaInc | BN39: PovStatFamilies | BO39: PovStatFHHwChilUnd18 | BP39: PovStatFHHwChilUnd5 | BQ39: PovStFmalHH | BR39: DP3088 | BS39: DP3089 | BT39: PovStatIndiv | BU39: PovStatIndiv18yrOver | BV39: PovStatIndiv65yrOver | BW39: DP3093 | BX39: DP3094 | BY39: DP3095
A40: =VLOOKUP(DropDownList!$B$47,CntyQryCensus!$A$54:$BY$96,A$1) -> Franconia | B40: =VLOOKUP(DropDownList!$B$47,CntyQryCensus!$A$54:$BY$96,B$1) -> 27300 | C40: =VLOOKUP(DropDownList!$B$47,CntyQryCensus!$A$54:$BY$96,C$1) -> Franconia town, Grafton County, New Hampshire | D40: =VLOOKUP(DropDownList!$B$47,CntyQryCensus!$A$54:$BY$96,D$1) -> 172 | E40: =VLOOKUP(DropDownList!$B$47,CntyQryCensus!$A$54:$BY$96,E$1) -> 19 | F40: =VLOOKUP(DropDownList!$B$47,CntyQryCensus!$A$54:$BY$96,F$1) -> 9 | G40: =VLOOKUP(DropDownList!$B$47,CntyQryCensus!$A$54:$BY$96,G$1) -> 80 | H40: =VLOOKUP(DropDownList!$B$47,CntyQryCensus!$A$54:$BY$96,H$1) -> 55 | I40: =VLOOKUP(DropDownList!$B$47,CntyQryCensus!$A$54:$BY$96,I$1) -> 9 | J40: =VLOOKUP(DropDownList!$B$47,CntyQryCensus!$A$54:$BY$96,J$1) -> 704 | K40: =VLOOKUP(DropDownList!$B$47,CntyQryCensus!$A$54:$BY$96,K$1) -> 151 | L40: =VLOOKUP(DropDownList!$B$47,CntyQryCensus!$A$54:$BY$96,L$1) -> 108 | M40: =VLOOKUP(DropDownList!$B$47,CntyQryCensus!$A$54:$BY$96,M$1) -> 65 | N40: =VLOOKUP(DropDownList!$B$47,CntyQryCensus!$A$54:$BY$96,N$1) -> 220 | O40: =VLOOKUP(DropDownList!$B$47,CntyQryCensus!$A$54:$BY$96,O$1) -> 97 | P40: =VLOOKUP(DropDownList!$B$47,CntyQryCensus!$A$54:$BY$96,P$1) -> 641 | Q40: =VLOOKUP(DropDownList!$B$47,CntyQryCensus!$A$54:$BY$96,Q$1) -> 317 | R40: =VLOOKUP(DropDownList!$B$47,CntyQryCensus!$A$54:$BY$96,R$1) -> 156 | S40: =VLOOKUP(DropDownList!$B$47,CntyQryCensus!$A$54:$BY$96,S$1) -> 8 | T40: =VLOOKUP(DropDownList!$B$47,CntyQryCensus!$A$54:$BY$96,T$1) -> 537 | U40: =VLOOKUP(DropDownList!$B$47,CntyQryCensus!$A$54:$BY$96,U$1) -> 52 | V40: =VLOOKUP(DropDownList!$B$47,CntyQryCensus!$A$54:$BY$96,V$1) -> 122 | W40: =VLOOKUP(DropDownList!$B$47,CntyQryCensus!$A$54:$BY$96,W$1) -> 34 | X40: =VLOOKUP(DropDownList!$B$47,CntyQryCensus!$A$54:$BY$96,X$1) -> 885 | Y40: =VLOOKUP(DropDownList!$B$47,CntyQryCensus!$A$54:$BY$96,Y$1) -> 454 | Z40: =VLOOKUP(DropDownList!$B$47,CntyQryCensus!$A$54:$BY$96,Z$1) -> 422 | AA40: =VLOOKUP(DropDownList!$B$47,CntyQryCensus!$A$54:$BY$96,AA$1) -> 229 | AB40: =VLOOKUP(DropDownList!$B$47,CntyQryCensus!$A$54:$BY$96,AB$1) -> 193 | AC40: =VLOOKUP(DropDownList!$B$47,CntyQryCensus!$A$54:$BY$96,AC$1) -> 922 | AD40: =VLOOKUP(DropDownList!$B$47,CntyQryCensus!$A$54:$BY$96,AD$1) -> 881 | AE40: =VLOOKUP(DropDownList!$B$47,CntyQryCensus!$A$54:$BY$96,AE$1) -> 876 | AF40: =VLOOKUP(DropDownList!$B$47,CntyQryCensus!$A$54:$BY$96,AF$1) -> 379 | AG40: =VLOOKUP(DropDownList!$B$47,CntyQryCensus!$A$54:$BY$96,AG$1) -> 497 | AH40: =VLOOKUP(DropDownList!$B$47,CntyQryCensus!$A$54:$BY$96,AH$1) -> 5 | AI40: =VLOOKUP(DropDownList!$B$47,CntyQryCensus!$A$54:$BY$96,AI$1) -> 41 | AJ40: =VLOOKUP(DropDownList!$B$47,CntyQryCensus!$A$54:$BY$96,AJ$1) -> 13 | AK40: =VLOOKUP(DropDownList!$B$47,CntyQryCensus!$A$54:$BY$96,AK$1) -> 26 | AL40: =VLOOKUP(DropDownList!$B$47,CntyQryCensus!$A$54:$BY$96,AL$1) -> 15 | AM40: =VLOOKUP(DropDownList!$B$47,CntyQryCensus!$A$54:$BY$96,AM$1) -> 400 | AN40: =VLOOKUP(DropDownList!$B$47,CntyQryCensus!$A$54:$BY$96,AN$1) -> 34 | AO40: =VLOOKUP(DropDownList!$B$47,CntyQryCensus!$A$54:$BY$96,AO$1) -> 27 | AP40: =VLOOKUP(DropDownList!$B$47,CntyQryCensus!$A$54:$BY$96,AP$1) -> 50 | AQ40: =VLOOKUP(DropDownList!$B$47,CntyQryCensus!$A$54:$BY$96,AQ$1) -> 63 | AR40: =VLOOKUP(DropDownList!$B$47,CntyQryCensus!$A$54:$BY$96,AR$1) -> 74 | AS40: =VLOOKUP(DropDownList!$B$47,CntyQryCensus!$A$54:$BY$96,AS$1) -> 92 | AT40: =VLOOKUP(DropDownList!$B$47,CntyQryCensus!$A$54:$BY$96,AT$1) -> 31 | AU40: =VLOOKUP(DropDownList!$B$47,CntyQryCensus!$A$54:$BY$96,AU$1) -> 25 | AV40: =VLOOKUP(DropDownList!$B$47,CntyQryCensus!$A$54:$BY$96,AV$1) -> 4 | AW40: =VLOOKUP(DropDownList!$B$47,CntyQryCensus!$A$54:$BY$96,AW$1) -> 0 | AX40: =VLOOKUP(DropDownList!$B$47,CntyQryCensus!$A$54:$BY$96,AX$1) -> 40114 | AY40: =VLOOKUP(DropDownList!$B$47,CntyQryCensus!$A$54:$BY$96,AY$1) -> 10 | AZ40: =VLOOKUP(DropDownList!$B$47,CntyQryCensus!$A$54:$BY$96,AZ$1) -> 2870 | BA40: =VLOOKUP(DropDownList!$B$47,CntyQryCensus!$A$54:$BY$96,BA$1) -> 245 | BB40: =VLOOKUP(DropDownList!$B$47,CntyQryCensus!$A$54:$BY$96,BB$1) -> 14 | BC40: =VLOOKUP(DropDownList!$B$47,CntyQryCensus!$A$54:$BY$96,BC$1) -> 7 | BD40: =VLOOKUP(DropDownList!$B$47,CntyQryCensus!$A$54:$BY$96,BD$1) -> 19 | BE40: =VLOOKUP(DropDownList!$B$47,CntyQryCensus!$A$54:$BY$96,BE$1) -> 43 | BF40: =VLOOKUP(DropDownList!$B$47,CntyQryCensus!$A$54:$BY$96,BF$1) -> 42 | BG40: =VLOOKUP(DropDownList!$B$47,CntyQryCensus!$A$54:$BY$96,BG$1) -> 76 | BH40: =VLOOKUP(DropDownList!$B$47,CntyQryCensus!$A$54:$BY$96,BH$1) -> 23 | BI40: =VLOOKUP(DropDownList!$B$47,CntyQryCensus!$A$54:$BY$96,BI$1) -> 17 | BJ40: =VLOOKUP(DropDownList!$B$47,CntyQryCensus!$A$54:$BY$96,BJ$1) -> 4 | BK40: =VLOOKUP(DropDownList!$B$47,CntyQryCensus!$A$54:$BY$96,BK$1) -> 0 | BL40: =VLOOKUP(DropDownList!$B$47,CntyQryCensus!$A$54:$BY$96,BL$1) -> 46979 | BM40: =VLOOKUP(DropDownList!$B$47,CntyQryCensus!$A$54:$BY$96,BM$1) -> 20351 | BN40: =VLOOKUP(DropDownList!$B$47,CntyQryCensus!$A$54:$BY$96,BN$1) -> 19 | BO40: =VLOOKUP(DropDownList!$B$47,CntyQryCensus!$A$54:$BY$96,BO$1) -> 12 | BP40: =VLOOKUP(DropDownList!$B$47,CntyQryCensus!$A$54:$BY$96,BP$1) -> 7 | BQ40: =VLOOKUP(DropDownList!$B$47,CntyQryCensus!$A$54:$BY$96,BQ$1) -> 6 | BR40: =VLOOKUP(DropDownList!$B$47,CntyQryCensus!$A$54:$BY$96,BR$1) -> 4 | BS40: =VLOOKUP(DropDownList!$B$47,CntyQryCensus!$A$54:$BY$96,BS$1) -> 4 | BT40: =VLOOKUP(DropDownList!$B$47,CntyQryCensus!$A$54:$BY$96,BT$1) -> 76 | BU40: =VLOOKUP(DropDownList!$B$47,CntyQryCensus!$A$54:$BY$96,BU$1) -> 58 | BV40: =VLOOKUP(DropDownList!$B$47,CntyQryCensus!$A$54:$BY$96,BV$1) -> 6 | BW40: =VLOOKUP(DropDownList!$B$47,CntyQryCensus!$A$54:$BY$96,BW$1) -> 18 | BX40: =VLOOKUP(DropDownList!$B$47,CntyQryCensus!$A$54:$BY$96,BX$1) -> 8 | BY40: =VLOOKUP(DropDownList!$B$47,CntyQryCensus!$A$54:$BY$96,BY$1) -> 27
A43: Census 2000 DemoProfile Sample Data Table 4 - DPTab4TownQry
A44: NAME | B44: COUSUB | C44: TotHousingUnits | D44: 1UnitDet | E44: 1UnitAtt | F44: 2Units | G44: 3to4Units | H44: 5to9Units | I44: 10to19Units | J44: 20orMoreUnits | K44: MobileHomes | L44: BoatRvVan | M44: SingleFamilyUnits | N44: MultiFamUnits | O44: MobileHomeUnits | P44: YearBuilt99to00 | Q44: YearBuilt95to98 | R44: YearBUilt90to94 | S44: YearBuilt80to89 | T44: YearBuilt70to79 | U44: YearBuilt60to69 | V44: YearBuilt40to59 | W44: YearBuilt39orEarlier | X44: Rooms1 | Y44: Rooms2 | Z44: Rooms3 | AA44: Rooms4 | AB44: Rooms5 | AC44: Rooms6 | AD44: Rooms7 | AE44: Rooms8 | AF44: Rooms9orMore | AG44: MedianRooms | AH44: OccHU1 | AI44: YrHHMvdIn99to00 | AJ44: YrHHMvdIn95to98 | AK44: YrHHMvdIn90to94 | AL44: YrHHMvdIn80to89 | AM44: YrHHMvdIn70to79 | AN44: YrHHMvdIn69orBefore | AO44: HeatFuelNatGas | AP44: HeatFuelBotGas | AQ44: HeatFuelElectric | AR44: HeatFuelOil | AS44: HeatFuelCoal | AT44: HeatFuelWood | AU44: HeatFuelSolar | AV44: HeatFuelOther | AW44: HeatFuelNone | AX44: LackCompPlumb | AY44: LackCompKit | AZ44: NoTelephone | BA44: OccHU | BB44: OccPerRm1orLess | BC44: OccPerRm1to1_5 | BD44: OccPerRm1_5orMore | BE44: SpecOwnOccUnits | BF44: Value<50K | BG44: Value50to100K | BH44: Value100to150K | BI44: Value150to200K | BJ44: Value200to300K | BK44: Value300to500K | BL44: Value500Kto1mil | BM44: Value1MilorMore | BN44: MedianValue | BO44: WithMortg | BP44: MnthOwnCst<300 | BQ44: MnthOwnCst300to500 | BR44: MnthOwnCst500to700 | BS44: MnthOwnCst700to1000 | BT44: MnthOwnCst1000to1500 | BU44: MnthOwnCst1500to2000 | BV44: MnthOwnCst2000orMore | BW44: MediMnthOwnCst | BX44: NotMrtg | BY44: NotMrtgMediMnthOwnCst | BZ44: OwnCst%HHInc<15 | CA44: OwnCst%HHInc15to20 | CB44: OwnCst%HHInc20to25 | CC44: OwnCst%HHInc25to30 | CD44: OwnCst%HHInc30to35 | CE44: OwnCst%HHInc35orMor | CF44: NotComputed | CG44: SpecRntOccUnits | CH44: Rnt<200 | CI44: Rnt200to300 | CJ44: Rnt300to500 | CK44: Rnt500to750 | CL44: Rnt750to1000 | CM44: Rnt1000to1500 | CN44: Rnt1500orMore | CO44: NoRent | CP44: MedianRent | CQ44: Rnt%HHInc<15 | CR44: Rnt%HHInc15to20 | CS44: Rnt%HHInc20to25 | CT44: Rnt%HHInc25to30 | CU44: Rnt%HHInc30to35 | CV44: Rnt%HHInc35orMore | CW44: Rnt%NotCompute
A45: =VLOOKUP(DropDownList!$B$47,CntyQryCensus!$A$104:$CX$146,A$1) -> Franconia | B45: =VLOOKUP(DropDownList!$B$47,CntyQryCensus!$A$104:$CX$146,B$1) -> 27300 | C45: =VLOOKUP(DropDownList!$B$47,CntyQryCensus!$A$104:$CX$146,C$1) -> 728 | D45: =VLOOKUP(DropDownList!$B$47,CntyQryCensus!$A$104:$CX$146,D$1) -> 551 | E45: =VLOOKUP(DropDownList!$B$47,CntyQryCensus!$A$104:$CX$146,E$1) -> 34 | F45: =VLOOKUP(DropDownList!$B$47,CntyQryCensus!$A$104:$CX$146,F$1) -> 7 | G45: =VLOOKUP(DropDownList!$B$47,CntyQryCensus!$A$104:$CX$146,G$1) -> 55 | H45: =VLOOKUP(DropDownList!$B$47,CntyQryCensus!$A$104:$CX$146,H$1) -> 28 | I45: =VLOOKUP(DropDownList!$B$47,CntyQryCensus!$A$104:$CX$146,I$1) -> 5 | J45: =VLOOKUP(DropDownList!$B$47,CntyQryCensus!$A$104:$CX$146,J$1) -> 2 | K45: =VLOOKUP(DropDownList!$B$47,CntyQryCensus!$A$104:$CX$146,K$1) -> 46 | L45: =VLOOKUP(DropDownList!$B$47,CntyQryCensus!$A$104:$CX$146,L$1) -> 0 | M45: =VLOOKUP(DropDownList!$B$47,CntyQryCensus!$A$104:$CX$146,M$1) -> 551 | N45: =VLOOKUP(DropDownList!$B$47,CntyQryCensus!$A$104:$CX$146,N$1) -> 131 | O45: =VLOOKUP(DropDownList!$B$47,CntyQryCensus!$A$104:$CX$146,O$1) -> 46 | P45: =VLOOKUP(DropDownList!$B$47,CntyQryCensus!$A$104:$CX$146,P$1) -> 17 | Q45: =VLOOKUP(DropDownList!$B$47,CntyQryCensus!$A$104:$CX$146,Q$1) -> 49 | R45: =VLOOKUP(DropDownList!$B$47,CntyQryCensus!$A$104:$CX$146,R$1) -> 39 | S45: =VLOOKUP(DropDownList!$B$47,CntyQryCensus!$A$104:$CX$146,S$1) -> 81 | T45: =VLOOKUP(DropDownList!$B$47,CntyQryCensus!$A$104:$CX$146,T$1) -> 111 | U45: =VLOOKUP(DropDownList!$B$47,CntyQryCensus!$A$104:$CX$146,U$1) -> 148 | V45: =VLOOKUP(DropDownList!$B$47,CntyQryCensus!$A$104:$CX$146,V$1) -> 90 | W45: =VLOOKUP(DropDownList!$B$47,CntyQryCensus!$A$104:$CX$146,W$1) -> 193 | X45: =VLOOKUP(DropDownList!$B$47,CntyQryCensus!$A$104:$CX$146,X$1) -> 15 | Y45: =VLOOKUP(DropDownList!$B$47,CntyQryCensus!$A$104:$CX$146,Y$1) -> 14 | Z45: =VLOOKUP(DropDownList!$B$47,CntyQryCensus!$A$104:$CX$146,Z$1) -> 49 | AA45: =VLOOKUP(DropDownList!$B$47,CntyQryCensus!$A$104:$CX$146,AA$1) -> 114 | AB45: =VLOOKUP(DropDownList!$B$47,CntyQryCensus!$A$104:$CX$146,AB$1) -> 117 | AC45: =VLOOKUP(DropDownList!$B$47,CntyQryCensus!$A$104:$CX$146,AC$1) -> 141 | AD45: =VLOOKUP(DropDownList!$B$47,CntyQryCensus!$A$104:$CX$146,AD$1) -> 140 | AE45: =VLOOKUP(DropDownList!$B$47,CntyQryCensus!$A$104:$CX$146,AE$1) -> 63 | AF45: =VLOOKUP(DropDownList!$B$47,CntyQryCensus!$A$104:$CX$146,AF$1) -> 75 | AG45: =VLOOKUP(DropDownList!$B$47,CntyQryCensus!$A$104:$CX$146,AG$1) -> 5.9 | AH45: =VLOOKUP(DropDownList!$B$47,CntyQryCensus!$A$104:$CX$146,AH$1) -> 392 | AI45: =VLOOKUP(DropDownList!$B$47,CntyQryCensus!$A$104:$CX$146,AI$1) -> 81 | AJ45: =VLOOKUP(DropDownList!$B$47,CntyQryCensus!$A$104:$CX$146,AJ$1) -> 106 | AK45: =VLOOKUP(DropDownList!$B$47,CntyQryCensus!$A$104:$CX$146,AK$1) -> 59 | AL45: =VLOOKUP(DropDownList!$B$47,CntyQryCensus!$A$104:$CX$146,AL$1) -> 69 | AM45: =VLOOKUP(DropDownList!$B$47,CntyQryCensus!$A$104:$CX$146,AM$1) -> 39 | AN45: =VLOOKUP(DropDownList!$B$47,CntyQryCensus!$A$104:$CX$146,AN$1) -> 38 | AO45: =VLOOKUP(DropDownList!$B$47,CntyQryCensus!$A$104:$CX$146,AO$1) -> 2 | AP45: =VLOOKUP(DropDownList!$B$47,CntyQryCensus!$A$104:$CX$146,AP$1) -> 40 | AQ45: =VLOOKUP(DropDownList!$B$47,CntyQryCensus!$A$104:$CX$146,AQ$1) -> 22 | AR45: =VLOOKUP(DropDownList!$B$47,CntyQryCensus!$A$104:$CX$146,AR$1) -> 293 | AS45: =VLOOKUP(DropDownList!$B$47,CntyQryCensus!$A$104:$CX$146,AS$1) -> 0 | AT45: =VLOOKUP(DropDownList!$B$47,CntyQryCensus!$A$104:$CX$146,AT$1) -> 35 | AU45: =VLOOKUP(DropDownList!$B$47,CntyQryCensus!$A$104:$CX$146,AU$1) -> 0 | AV45: =VLOOKUP(DropDownList!$B$47,CntyQryCensus!$A$104:$CX$146,AV$1) -> 0 | AW45: =VLOOKUP(DropDownList!$B$47,CntyQryCensus!$A$104:$CX$146,AW$1) -> 0 | AX45: =VLOOKUP(DropDownList!$B$47,CntyQryCensus!$A$104:$CX$146,AX$1) -> 4 | AY45: =VLOOKUP(DropDownList!$B$47,CntyQryCensus!$A$104:$CX$146,AY$1) -> 7 | AZ45: =VLOOKUP(DropDownList!$B$47,CntyQryCensus!$A$104:$CX$146,AZ$1) -> 10 | BA45: =VLOOKUP(DropDownList!$B$47,CntyQryCensus!$A$104:$CX$146,BA$1) -> 392 | BB45: =VLOOKUP(DropDownList!$B$47,CntyQryCensus!$A$104:$CX$146,BB$1) -> 392 | BC45: =VLOOKUP(DropDownList!$B$47,CntyQryCensus!$A$104:$CX$146,BC$1) -> 0 | BD45: =VLOOKUP(DropDownList!$B$47,CntyQryCensus!$A$104:$CX$146,BD$1) -> 0 | BE45: =VLOOKUP(DropDownList!$B$47,CntyQryCensus!$A$104:$CX$146,BE$1) -> 210 | BF45: =VLOOKUP(DropDownList!$B$47,CntyQryCensus!$A$104:$CX$146,BF$1) -> 0 | BG45: =VLOOKUP(DropDownList!$B$47,CntyQryCensus!$A$104:$CX$146,BG$1) -> 44 | BH45: =VLOOKUP(DropDownList!$B$47,CntyQryCensus!$A$104:$CX$146,BH$1) -> 77 | BI45: =VLOOKUP(DropDownList!$B$47,CntyQryCensus!$A$104:$CX$146,BI$1) -> 43 | BJ45: =VLOOKUP(DropDownList!$B$47,CntyQryCensus!$A$104:$CX$146,BJ$1) -> 29 | BK45: =VLOOKUP(DropDownList!$B$47,CntyQryCensus!$A$104:$CX$146,BK$1) -> 17 | BL45: =VLOOKUP(DropDownList!$B$47,CntyQryCensus!$A$104:$CX$146,BL$1) -> 0 | BM45: =VLOOKUP(DropDownList!$B$47,CntyQryCensus!$A$104:$CX$146,BM$1) -> 0 | BN45: =VLOOKUP(DropDownList!$B$47,CntyQryCensus!$A$104:$CX$146,BN$1) -> 140900 | BO45: =VLOOKUP(DropDownList!$B$47,CntyQryCensus!$A$104:$CX$146,BO$1) -> 123 | BP45: =VLOOKUP(DropDownList!$B$47,CntyQryCensus!$A$104:$CX$146,BP$1) -> 0 | BQ45: =VLOOKUP(DropDownList!$B$47,CntyQryCensus!$A$104:$CX$146,BQ$1) -> 2 | BR45: =VLOOKUP(DropDownList!$B$47,CntyQryCensus!$A$104:$CX$146,BR$1) -> 22 | BS45: =VLOOKUP(DropDownList!$B$47,CntyQryCensus!$A$104:$CX$146,BS$1) -> 30 | BT45: =VLOOKUP(DropDownList!$B$47,CntyQryCensus!$A$104:$CX$146,BT$1) -> 51 | BU45: =VLOOKUP(DropDownList!$B$47,CntyQryCensus!$A$104:$CX$146,BU$1) -> 16 | BV45: =VLOOKUP(DropDownList!$B$47,CntyQryCensus!$A$104:$CX$146,BV$1) -> 2 | BW45: =VLOOKUP(DropDownList!$B$47,CntyQryCensus!$A$104:$CX$146,BW$1) -> 1069 | BX45: =VLOOKUP(DropDownList!$B$47,CntyQryCensus!$A$104:$CX$146,BX$1) -> 87 | BY45: =VLOOKUP(DropDownList!$B$47,CntyQryCensus!$A$104:$CX$146,BY$1) -> 434 | BZ45: =VLOOKUP(DropDownList!$B$47,CntyQryCensus!$A$104:$CX$146,BZ$1) -> 72 | CA45: =VLOOKUP(DropDownList!$B$47,CntyQryCensus!$A$104:$CX$146,CA$1) -> 34 | CB45: =VLOOKUP(DropDownList!$B$47,CntyQryCensus!$A$104:$CX$146,CB$1) -> 25 | CC45: =VLOOKUP(DropDownList!$B$47,CntyQryCensus!$A$104:$CX$146,CC$1) -> 22 | CD45: =VLOOKUP(DropDownList!$B$47,CntyQryCensus!$A$104:$CX$146,CD$1) -> 15 | CE45: =VLOOKUP(DropDownList!$B$47,CntyQryCensus!$A$104:$CX$146,CE$1) -> 42 | CF45: =VLOOKUP(DropDownList!$B$47,CntyQryCensus!$A$104:$CX$146,CF$1) -> 0 | CG45: =VLOOKUP(DropDownList!$B$47,CntyQryCensus!$A$104:$CX$146,CG$1) -> 105 | CH45: =VLOOKUP(DropDownList!$B$47,CntyQryCensus!$A$104:$CX$146,CH$1) -> 2 | CI45: =VLOOKUP(DropDownList!$B$47,CntyQryCensus!$A$104:$CX$146,CI$1) -> 2 | CJ45: =VLOOKUP(DropDownList!$B$47,CntyQryCensus!$A$104:$CX$146,CJ$1) -> 39 | CK45: =VLOOKUP(DropDownList!$B$47,CntyQryCensus!$A$104:$CX$146,CK$1) -> 49 | CL45: =VLOOKUP(DropDownList!$B$47,CntyQryCensus!$A$104:$CX$146,CL$1) -> 8 | CM45: =VLOOKUP(DropDownList!$B$47,CntyQryCensus!$A$104:$CX$146,CM$1) -> 0 | CN45: =VLOOKUP(DropDownList!$B$47,CntyQryCensus!$A$104:$CX$146,CN$1) -> 0 | CO45: =VLOOKUP(DropDownList!$B$47,CntyQryCensus!$A$104:$CX$146,CO$1) -> 5 | CP45: =VLOOKUP(DropDownList!$B$47,CntyQryCensus!$A$104:$CX$146,CP$1) -> 525 | CQ45: =VLOOKUP(DropDownList!$B$47,CntyQryCensus!$A$104:$CX$146,CQ$1) -> 12 | CR45: =VLOOKUP(DropDownList!$B$47,CntyQryCensus!$A$104:$CX$146,CR$1) -> 23 | CS45: =VLOOKUP(DropDownList!$B$47,CntyQryCensus!$A$104:$CX$146,CS$1) -> 19 | CT45: =VLOOKUP(DropDownList!$B$47,CntyQryCensus!$A$104:$CX$146,CT$1) -> 12 | CU45: =VLOOKUP(DropDownList!$B$47,CntyQryCensus!$A$104:$CX$146,CU$1) -> 4 | CV45: =VLOOKUP(DropDownList!$B$47,CntyQryCensus!$A$104:$CX$146,CV$1) -> 26 | CW45: =VLOOKUP(DropDownList!$B$47,CntyQryCensus!$A$104:$CX$146,CW$1) -> 9
A48: Census 2000 SummaryFile3 Sample Data - SF3TownQry1SocialChar
A49: TOWN_NAME | B49: LOGRECNO | C49: COUSUB | D49: P01TotalPopulation | E49: P02SampleCountOfPop | F49: P03Pop100pctCount | G49: P05UrbanPopulation | H49: P05RuralPopulation | I49: P06WhiteAlone | J49: P06BlackOrAfAm | K49: P06AmIndAlone | L49: P06AsianAlone | M49: P06HawaiianOrPI | N49: P06OtherRace | O49: P06TwoPlusRaces | P49: P07NotHispanicOrLatino | Q49: P07HispanicOrLatino | R49: P08MalePop | S49: P08FemalePop | T49: P09PopInHouseholds | U49: P09PopInFamHH | V49: P09PopInNonFamHH | W49: P09PopInGroupQtr | X49: P13TotalHH | Y49: P13FamilyHH | Z49: P13FamHHolder15to24yrs | AA49: P13FamHHolder25to34yrs | AB49: P13FamHHolder35to44yrs | AC49: P13FamHHolder45to54yrs | AD49: P13FamHHolder55to64yrs | AE49: P13FamHHolder65to74yrs | AF49: P13FamHHolder75to84yrs | AG49: P13FamHHolder85yrsOver | AH49: P13NonFamilyHH | AI49: P13NonFamHHolder15to24yrs | AJ49: P13NonFamHHolder25to34yrs | AK49: P13NonFamHHolder35to44yrs | AL49: P13NonFamHHolder45to54yrs | AM49: P13NonFamHHolder55to64yrs | AN49: P13NonFamHHolder65to74yrs | AO49: P13NonFamHHolder75to84yrs | AP49: P13NonFamHHolder85yrsOver | AQ49: P18Pop15yrsOver | AR49: P18MaritalStatNeverMarried | AS49: P18MaritalStatNowMarried | AT49: P18MaritalStatSeparated | AU49: P18MaritalStatWidowed | AV49: P18MaritalStatWidowFemale | AW49: P18MaritalStatDivorced | AX49: P18MaritalStatDivorcedFemale | AY49: P21NativeBornPop | AZ49: P21NatPopBornInState | BA49: P21NatPopBornOtherState | BB49: P021005 | BC49: P021006 | BD49: P021007 | BE49: P021008 | BF49: P21NatPopBornOutUS | BG49: P21ForeignBornPop | BH49: P021014 | BI49: P021015 | BJ49: P24Pop5YrsPlus | BK49: P24ResSameHouseIn95 | BL49: P24ResDiffHouseIn95 | BM49: P24ResDiffHouseInUSIn95 | BN49: P24ResDiffHouseSameCountyIn95 | BO49: P24ResDiffHouseDiffCountyIn95 | BP49: P24ResDiffHouseDiffCntySamStIn95 | BQ49: P24ResDiffHouseDiffCntyDifStIn95 | BR49: P24ResDiffHouseDiffCntyNEStIn95 | BS49: P24ResDiffHouseDiffCntyMWStIn95 | BT49: P24ResDiffHouseDiffCntySoStIn95 | BU49: P24ResDiffHouseDiffCntyWstStIn95 | BV49: P24ResDiffInPR | BW49: P24ResDiffElsewhereIn95 | BX49: P26Workers16yrsOver | BY49: P26WorkedInState | BZ49: P26WorkedInCnty | CA49: P26WorkedOutsideCnty | CB49: P26WorkedOutsideState | CC49: P30Workers16Over | CD49: P30TranspToWrkCar | CE49: P30TranspToWrkPublic | CF49: P30TranspToWrkOther | CG49: P30WrkdAtHome | CH49: P31WrkrsNotWrkAtHom | CI49: P31TravTim<5min | CJ49: P31TravTim5to9Min | CK49: P31TravTim10to14Min | CL49: P31TravTim15to19Min | CM49: P31TravTim20to24Min | CN49: P31TravTim25to29Min | CO49: P31TravTim30to34Min | CP49: P31TravTim35to39Min | CQ49: P31TravTim40to44Min | CR49: P31TravTim45to59Min | CS49: P31TravTim60to89Min | CT49: P31TravTim90MinMore | CU49: P31WorkAtHome | CV49: P36SchEnrlPop3yrOver | CW49: P36NurserSchEnrl | CX49: P36KinderSchEnrl | CY49: P36ElemSchEnrl | CZ49: P36HighSchEnrl | DA49: P36CollGradSchEnrl | DB49: P37Pop25yrsOver | DC49: P37EduAtain<9grd | DD49: P37EduAtainHSnoDip | DE49: P37EduAtainHSgrad | DF49: P37EduAtainCollNoDeg | DG49: P37EduAtainAssocDeg | DH49: P37EduAtainBachDeg | DI49: P37EduAtainGradProfDeg | DJ49: P42NIPop5to15 | DK49: P42NIPop5to15wDisabl | DL49: P42NIPop16to20 | DM49: P42NIPop16to20wDisab | DN49: P42NIPop16to20wDisEmp | DO49: P42NIPop16to21NoDis | DP49: P42NIPop16to21NoDisEmpl | DQ49: P42NIPop21to64 | DR49: P42NIPop21to64wDis | DS49: P42NIPop21to64wDisEmp | DT49: P42NIPop21to64NoDis | DU49: P42NIPop21to64NoDisEmp | DV49: P42NIPop65to74 | DW49: P42NIPop65to74wDis | DX49: P42NIPop75Over | DY49: P42NIPop75OverwDis | DZ49: P43Pop16YrsOver | EA49: P43Pop16OvrInLaborForce | EB49: P43Pop16OvrCivlLabFrc | EC49: P43Pop16OvrCivlLbrFrcEmp | ED49: P48Families | EE49: P48MarriedFam | EF49: P48MarrFamNoWorkers | EG49: P48MarrFam1Worker | EH49: P48MarrFam2Worker | EI49: P48MarrFamHusbWifeWorked | EJ49: P48MarrFamOther | EK49: P48MarrFam3PlusWorker | EL49: P48MarrFam3WorkHsbWif | EM49: P48MarrFam3PlsWrkOther | EN49: P48OtherFam | EO49: P48MaleHHNoWif | EP49: P48MaleHHNoWifNoWorker | EQ49: P48MaleHHNoWif1Worker | ER49: P48MaleHHNoWif2Worker | ES49: P48MaleHHNoWif3PlusWorker | ET49: P48FemaleHHNoHsb | EU49: P48FemaleHHNoHsbNoWorker | EV49: P48FemaleHHNoHsb1Worker | EW49: P48FemaleHHNoHsb2Worker | EX49: P48FemaleHHNoHsb3Worker | EY49: P49EmpCivPop16YrOver | EZ49: P49IndustAgricult | FA49: P49IndustConst | FB49: P49IndustMnftg | FC49: P49IndustWhlslTrd | FD49: P49IndustRtlTrd | FE49: P49IndustTrspWrhsUtlt | FF49: P49IndustInfrm | FG49: P49IndustFinInsRE | FH49: P49IndustPrfsScntfMngmt | FI49: P49IndustEduHlthSocSrv | FJ49: P49IndustArtsEntRec | FK49: P49IndustOthrSrvc | FL49: P49IndustPubAdm | FM49: P50OccupMngmtProfs | FN49: P50OccupService | FO49: P50OccupSalesOff | FP49: P50OccupFarmFishForest | FQ49: P50OccupConstExtrctMaint | FR49: P50OccupPrdctTrnspMatMv
A50: =VLOOKUP(DropDownList!$B$47,CntyQryCensus!$A$156:$FR$198,A$1) -> Franconia | B50: =VLOOKUP(DropDownList!$B$47,CntyQryCensus!$A$156:$FR$198,B$1) -> 0001247 | C50: =VLOOKUP(DropDownList!$B$47,CntyQryCensus!$A$156:$FR$198,C$1) -> 27300 | D50: =VLOOKUP(DropDownList!$B$47,CntyQryCensus!$A$156:$FR$198,D$1) -> 922 | E50: =VLOOKUP(DropDownList!$B$47,CntyQryCensus!$A$156:$FR$198,E$1) -> 391 | F50: =VLOOKUP(DropDownList!$B$47,CntyQryCensus!$A$156:$FR$198,F$1) -> 924 | G50: =VLOOKUP(DropDownList!$B$47,CntyQryCensus!$A$156:$FR$198,G$1) -> 0 | H50: =VLOOKUP(DropDownList!$B$47,CntyQryCensus!$A$156:$FR$198,H$1) -> 922 | I50: =VLOOKUP(DropDownList!$B$47,CntyQryCensus!$A$156:$FR$198,I$1) -> 897 | J50: =VLOOKUP(DropDownList!$B$47,CntyQryCensus!$A$156:$FR$198,J$1) -> 2 | K50: =VLOOKUP(DropDownList!$B$47,CntyQryCensus!$A$156:$FR$198,K$1) -> 0 | L50: =VLOOKUP(DropDownList!$B$47,CntyQryCensus!$A$156:$FR$198,L$1) -> 20 | M50: =VLOOKUP(DropDownList!$B$47,CntyQryCensus!$A$156:$FR$198,M$1) -> 0 | N50: =VLOOKUP(DropDownList!$B$47,CntyQryCensus!$A$156:$FR$198,N$1) -> 0 | O50: =VLOOKUP(DropDownList!$B$47,CntyQryCensus!$A$156:$FR$198,O$1) -> 3 | P50: =VLOOKUP(DropDownList!$B$47,CntyQryCensus!$A$156:$FR$198,P$1) -> 922 | Q50: =VLOOKUP(DropDownList!$B$47,CntyQryCensus!$A$156:$FR$198,Q$1) -> 0 | R50: =VLOOKUP(DropDownList!$B$47,CntyQryCensus!$A$156:$FR$198,R$1) -> 453 | S50: =VLOOKUP(DropDownList!$B$47,CntyQryCensus!$A$156:$FR$198,S$1) -> 469 | T50: =VLOOKUP(DropDownList!$B$47,CntyQryCensus!$A$156:$FR$198,T$1) -> 852 | U50: =VLOOKUP(DropDownList!$B$47,CntyQryCensus!$A$156:$FR$198,U$1) -> 661 | V50: =VLOOKUP(DropDownList!$B$47,CntyQryCensus!$A$156:$FR$198,V$1) -> 191 | W50: =VLOOKUP(DropDownList!$B$47,CntyQryCensus!$A$156:$FR$198,W$1) -> 70 | X50: =VLOOKUP(DropDownList!$B$47,CntyQryCensus!$A$156:$FR$198,X$1) -> 400 | Y50: =VLOOKUP(DropDownList!$B$47,CntyQryCensus!$A$156:$FR$198,Y$1) -> 245 | Z50: =VLOOKUP(DropDownList!$B$47,CntyQryCensus!$A$156:$FR$198,Z$1) -> 2 | AA50: =VLOOKUP(DropDownList!$B$47,CntyQryCensus!$A$156:$FR$198,AA$1) -> 21 | AB50: =VLOOKUP(DropDownList!$B$47,CntyQryCensus!$A$156:$FR$198,AB$1) -> 42 | AC50: =VLOOKUP(DropDownList!$B$47,CntyQryCensus!$A$156:$FR$198,AC$1) -> 69 | AD50: =VLOOKUP(DropDownList!$B$47,CntyQryCensus!$A$156:$FR$198,AD$1) -> 63 | AE50: =VLOOKUP(DropDownList!$B$47,CntyQryCensus!$A$156:$FR$198,AE$1) -> 26 | AF50: =VLOOKUP(DropDownList!$B$47,CntyQryCensus!$A$156:$FR$198,AF$1) -> 20 | AG50: =VLOOKUP(DropDownList!$B$47,CntyQryCensus!$A$156:$FR$198,AG$1) -> 2 | AH50: =VLOOKUP(DropDownList!$B$47,CntyQryCensus!$A$156:$FR$198,AH$1) -> 155 | AI50: =VLOOKUP(DropDownList!$B$47,CntyQryCensus!$A$156:$FR$198,AI$1) -> 10 | AJ50: =VLOOKUP(DropDownList!$B$47,CntyQryCensus!$A$156:$FR$198,AJ$1) -> 21 | AK50: =VLOOKUP(DropDownList!$B$47,CntyQryCensus!$A$156:$FR$198,AK$1) -> 26 | AL50: =VLOOKUP(DropDownList!$B$47,CntyQryCensus!$A$156:$FR$198,AL$1) -> 26 | AM50: =VLOOKUP(DropDownList!$B$47,CntyQryCensus!$A$156:$FR$198,AM$1) -> 33 | AN50: =VLOOKUP(DropDownList!$B$47,CntyQryCensus!$A$156:$FR$198,AN$1) -> 19 | AO50: =VLOOKUP(DropDownList!$B$47,CntyQryCensus!$A$156:$FR$198,AO$1) -> 12 | AP50: =VLOOKUP(DropDownList!$B$47,CntyQryCensus!$A$156:$FR$198,AP$1) -> 8 | AQ50: =VLOOKUP(DropDownList!$B$47,CntyQryCensus!$A$156:$FR$198,AQ$1) -> 782 | AR50: =VLOOKUP(DropDownList!$B$47,CntyQryCensus!$A$156:$FR$198,AR$1) -> 176 | AS50: =VLOOKUP(DropDownList!$B$47,CntyQryCensus!$A$156:$FR$198,AS$1) -> 444 | AT50: =VLOOKUP(DropDownList!$B$47,CntyQryCensus!$A$156:$FR$198,AT$1) -> 2 | AU50: =VLOOKUP(DropDownList!$B$47,CntyQryCensus!$A$156:$FR$198,AU$1) -> 79 | AV50: =VLOOKUP(DropDownList!$B$47,CntyQryCensus!$A$156:$FR$198,AV$1) -> 65 | AW50: =VLOOKUP(DropDownList!$B$47,CntyQryCensus!$A$156:$FR$198,AW$1) -> 81 | AX50: =VLOOKUP(DropDownList!$B$47,CntyQryCensus!$A$156:$FR$198,AX$1) -> 53 | AY50: =VLOOKUP(DropDownList!$B$47,CntyQryCensus!$A$156:$FR$198,AY$1) -> 881 | AZ50: =VLOOKUP(DropDownList!$B$47,CntyQryCensus!$A$156:$FR$198,AZ$1) -> 379 | BA50: =VLOOKUP(DropDownList!$B$47,CntyQryCensus!$A$156:$FR$198,BA$1) -> 497 | BB50: =VLOOKUP(DropDownList!$B$47,CntyQryCensus!$A$156:$FR$198,BB$1) -> 376 | BC50: =VLOOKUP(DropDownList!$B$47,CntyQryCensus!$A$156:$FR$198,BC$1) -> 50 | BD50: =VLOOKUP(DropDownList!$B$47,CntyQryCensus!$A$156:$FR$198,BD$1) -> 30 | BE50: =VLOOKUP(DropDownList!$B$47,CntyQryCensus!$A$156:$FR$198,BE$1) -> 41 | BF50: =VLOOKUP(DropDownList!$B$47,CntyQryCensus!$A$156:$FR$198,BF$1) -> 5 | BG50: =VLOOKUP(DropDownList!$B$47,CntyQryCensus!$A$156:$FR$198,BG$1) -> 41 | BH50: =VLOOKUP(DropDownList!$B$47,CntyQryCensus!$A$156:$FR$198,BH$1) -> 26 | BI50: =VLOOKUP(DropDownList!$B$47,CntyQryCensus!$A$156:$FR$198,BI$1) -> 15 | BJ50: =VLOOKUP(DropDownList!$B$47,CntyQryCensus!$A$156:$FR$198,BJ$1) -> 885 | BK50: =VLOOKUP(DropDownList!$B$47,CntyQryCensus!$A$156:$FR$198,BK$1) -> 454 | BL50: =VLOOKUP(DropDownList!$B$47,CntyQryCensus!$A$156:$FR$198,BL$1) -> 431 | BM50: =VLOOKUP(DropDownList!$B$47,CntyQryCensus!$A$156:$FR$198,BM$1) -> 422 | BN50: =VLOOKUP(DropDownList!$B$47,CntyQryCensus!$A$156:$FR$198,BN$1) -> 229 | BO50: =VLOOKUP(DropDownList!$B$47,CntyQryCensus!$A$156:$FR$198,BO$1) -> 193 | BP50: =VLOOKUP(DropDownList!$B$47,CntyQryCensus!$A$156:$FR$198,BP$1) -> 55 | BQ50: =VLOOKUP(DropDownList!$B$47,CntyQryCensus!$A$156:$FR$198,BQ$1) -> 138 | BR50: =VLOOKUP(DropDownList!$B$47,CntyQryCensus!$A$156:$FR$198,BR$1) -> 115 | BS50: =VLOOKUP(DropDownList!$B$47,CntyQryCensus!$A$156:$FR$198,BS$1) -> 2 | BT50: =VLOOKUP(DropDownList!$B$47,CntyQryCensus!$A$156:$FR$198,BT$1) -> 8 | BU50: =VLOOKUP(DropDownList!$B$47,CntyQryCensus!$A$156:$FR$198,BU$1) -> 13 | BV50: =VLOOKUP(DropDownList!$B$47,CntyQryCensus!$A$156:$FR$198,BV$1) -> 0 | BW50: =VLOOKUP(DropDownList!$B$47,CntyQryCensus!$A$156:$FR$198,BW$1) -> 9 | BX50: =VLOOKUP(DropDownList!$B$47,CntyQryCensus!$A$156:$FR$198,BX$1) -> 461 | BY50: =VLOOKUP(DropDownList!$B$47,CntyQryCensus!$A$156:$FR$198,BY$1) -> 438 | BZ50: =VLOOKUP(DropDownList!$B$47,CntyQryCensus!$A$156:$FR$198,BZ$1) -> 404 | CA50: =VLOOKUP(DropDownList!$B$47,CntyQryCensus!$A$156:$FR$198,CA$1) -> 34 | CB50: =VLOOKUP(DropDownList!$B$47,CntyQryCensus!$A$156:$FR$198,CB$1) -> 23 | CC50: =VLOOKUP(DropDownList!$B$47,CntyQryCensus!$A$156:$FR$198,CC$1) -> 461 | CD50: =VLOOKUP(DropDownList!$B$47,CntyQryCensus!$A$156:$FR$198,CD$1) -> 407 | CE50: =VLOOKUP(DropDownList!$B$47,CntyQryCensus!$A$156:$FR$198,CE$1) -> 0 | CF50: =VLOOKUP(DropDownList!$B$47,CntyQryCensus!$A$156:$FR$198,CF$1) -> 10 | CG50: =VLOOKUP(DropDownList!$B$47,CntyQryCensus!$A$156:$FR$198,CG$1) -> 20 | CH50: =VLOOKUP(DropDownList!$B$47,CntyQryCensus!$A$156:$FR$198,CH$1) -> 441 | CI50: =VLOOKUP(DropDownList!$B$47,CntyQryCensus!$A$156:$FR$198,CI$1) -> 52 | CJ50: =VLOOKUP(DropDownList!$B$47,CntyQryCensus!$A$156:$FR$198,CJ$1) -> 78 | CK50: =VLOOKUP(DropDownList!$B$47,CntyQryCensus!$A$156:$FR$198,CK$1) -> 114 | CL50: =VLOOKUP(DropDownList!$B$47,CntyQryCensus!$A$156:$FR$198,CL$1) -> 74 | CM50: =VLOOKUP(DropDownList!$B$47,CntyQryCensus!$A$156:$FR$198,CM$1) -> 36 | CN50: =VLOOKUP(DropDownList!$B$47,CntyQryCensus!$A$156:$FR$198,CN$1) -> 12 | CO50: =VLOOKUP(DropDownList!$B$47,CntyQryCensus!$A$156:$FR$198,CO$1) -> 33 | CP50: =VLOOKUP(DropDownList!$B$47,CntyQryCensus!$A$156:$FR$198,CP$1) -> 3 | CQ50: =VLOOKUP(DropDownList!$B$47,CntyQryCensus!$A$156:$FR$198,CQ$1) -> 8 | CR50: =VLOOKUP(DropDownList!$B$47,CntyQryCensus!$A$156:$FR$198,CR$1) -> 17 | CS50: =VLOOKUP(DropDownList!$B$47,CntyQryCensus!$A$156:$FR$198,CS$1) -> 9 | CT50: =VLOOKUP(DropDownList!$B$47,CntyQryCensus!$A$156:$FR$198,CT$1) -> 5 | CU50: =VLOOKUP(DropDownList!$B$47,CntyQryCensus!$A$156:$FR$198,CU$1) -> 20 | CV50: =VLOOKUP(DropDownList!$B$47,CntyQryCensus!$A$156:$FR$198,CV$1) -> 904 | CW50: =VLOOKUP(DropDownList!$B$47,CntyQryCensus!$A$156:$FR$198,CW$1) -> 19 | CX50: =VLOOKUP(DropDownList!$B$47,CntyQryCensus!$A$156:$FR$198,CX$1) -> 9 | CY50: =VLOOKUP(DropDownList!$B$47,CntyQryCensus!$A$156:$FR$198,CY$1) -> 80 | CZ50: =VLOOKUP(DropDownList!$B$47,CntyQryCensus!$A$156:$FR$198,CZ$1) -> 55 | DA50: =VLOOKUP(DropDownList!$B$47,CntyQryCensus!$A$156:$FR$198,DA$1) -> 9 | DB50: =VLOOKUP(DropDownList!$B$47,CntyQryCensus!$A$156:$FR$198,DB$1) -> 704 | DC50: =VLOOKUP(DropDownList!$B$47,CntyQryCensus!$A$156:$FR$198,DC$1) -> 14 | DD50: =VLOOKUP(DropDownList!$B$47,CntyQryCensus!$A$156:$FR$198,DD$1) -> 49 | DE50: =VLOOKUP(DropDownList!$B$47,CntyQryCensus!$A$156:$FR$198,DE$1) -> 151 | DF50: =VLOOKUP(DropDownList!$B$47,CntyQryCensus!$A$156:$FR$198,DF$1) -> 108 | DG50: =VLOOKUP(DropDownList!$B$47,CntyQryCensus!$A$156:$FR$198,DG$1) -> 65 | DH50: =VLOOKUP(DropDownList!$B$47,CntyQryCensus!$A$156:$FR$198,DH$1) -> 220 | DI50: =VLOOKUP(DropDownList!$B$47,CntyQryCensus!$A$156:$FR$198,DI$1) -> 97 | DJ50: =VLOOKUP(DropDownList!$B$47,CntyQryCensus!$A$156:$FR$198,DJ$1) -> 112 | DK50: =VLOOKUP(DropDownList!$B$47,CntyQryCensus!$A$156:$FR$198,DK$1) -> 0 | DL50: =VLOOKUP(DropDownList!$B$47,CntyQryCensus!$A$156:$FR$198,DL$1) -> 44 | DM50: =VLOOKUP(DropDownList!$B$47,CntyQryCensus!$A$156:$FR$198,DM$1) -> 8 | DN50: =VLOOKUP(DropDownList!$B$47,CntyQryCensus!$A$156:$FR$198,DN$1) -> 5 | DO50: =VLOOKUP(DropDownList!$B$47,CntyQryCensus!$A$156:$FR$198,DO$1) -> 36 | DP50: =VLOOKUP(DropDownList!$B$47,CntyQryCensus!$A$156:$FR$198,DP$1) -> 21 | DQ50: =VLOOKUP(DropDownList!$B$47,CntyQryCensus!$A$156:$FR$198,DQ$1) -> 537 | DR50: =VLOOKUP(DropDownList!$B$47,CntyQryCensus!$A$156:$FR$198,DR$1) -> 52 | DS50: =VLOOKUP(DropDownList!$B$47,CntyQryCensus!$A$156:$FR$198,DS$1) -> 33 | DT50: =VLOOKUP(DropDownList!$B$47,CntyQryCensus!$A$156:$FR$198,DT$1) -> 485 | DU50: =VLOOKUP(DropDownList!$B$47,CntyQryCensus!$A$156:$FR$198,DU$1) -> 399 | DV50: =VLOOKUP(DropDownList!$B$47,CntyQryCensus!$A$156:$FR$198,DV$1) -> 64 | DW50: =VLOOKUP(DropDownList!$B$47,CntyQryCensus!$A$156:$FR$198,DW$1) -> 15 | DX50: =VLOOKUP(DropDownList!$B$47,CntyQryCensus!$A$156:$FR$198,DX$1) -> 58 | DY50: =VLOOKUP(DropDownList!$B$47,CntyQryCensus!$A$156:$FR$198,DY$1) -> 19 | DZ50: =VLOOKUP(DropDownList!$B$47,CntyQryCensus!$A$156:$FR$198,DZ$1) -> 773 | EA50: =VLOOKUP(DropDownList!$B$47,CntyQryCensus!$A$156:$FR$198,EA$1) -> 492 | EB50: =VLOOKUP(DropDownList!$B$47,CntyQryCensus!$A$156:$FR$198,EB$1) -> 492 | EC50: =VLOOKUP(DropDownList!$B$47,CntyQryCensus!$A$156:$FR$198,EC$1) -> 476 | ED50: =VLOOKUP(DropDownList!$B$47,CntyQryCensus!$A$156:$FR$198,ED$1) -> 245 | EE50: =VLOOKUP(DropDownList!$B$47,CntyQryCensus!$A$156:$FR$198,EE$1) -> 208 | EF50: =VLOOKUP(DropDownList!$B$47,CntyQryCensus!$A$156:$FR$198,EF$1) -> 29 | EG50: =VLOOKUP(DropDownList!$B$47,CntyQryCensus!$A$156:$FR$198,EG$1) -> 43 | EH50: =VLOOKUP(DropDownList!$B$47,CntyQryCensus!$A$156:$FR$198,EH$1) -> 112 | EI50: =VLOOKUP(DropDownList!$B$47,CntyQryCensus!$A$156:$FR$198,EI$1) -> 111 | EJ50: =VLOOKUP(DropDownList!$B$47,CntyQryCensus!$A$156:$FR$198,EJ$1) -> 1 | EK50: =VLOOKUP(DropDownList!$B$47,CntyQryCensus!$A$156:$FR$198,EK$1) -> 24 | EL50: =VLOOKUP(DropDownList!$B$47,CntyQryCensus!$A$156:$FR$198,EL$1) -> 24 | EM50: =VLOOKUP(DropDownList!$B$47,CntyQryCensus!$A$156:$FR$198,EM$1) -> 0 | EN50: =VLOOKUP(DropDownList!$B$47,CntyQryCensus!$A$156:$FR$198,EN$1) -> 37 | EO50: =VLOOKUP(DropDownList!$B$47,CntyQryCensus!$A$156:$FR$198,EO$1) -> 11 | EP50: =VLOOKUP(DropDownList!$B$47,CntyQryCensus!$A$156:$FR$198,EP$1) -> 0 | EQ50: =VLOOKUP(DropDownList!$B$47,CntyQryCensus!$A$156:$FR$198,EQ$1) -> 9 | ER50: =VLOOKUP(DropDownList!$B$47,CntyQryCensus!$A$156:$FR$198,ER$1) -> 2 | ES50: =VLOOKUP(DropDownList!$B$47,CntyQryCensus!$A$156:$FR$198,ES$1) -> 0 | ET50: =VLOOKUP(DropDownList!$B$47,CntyQryCensus!$A$156:$FR$198,ET$1) -> 26 | EU50: =VLOOKUP(DropDownList!$B$47,CntyQryCensus!$A$156:$FR$198,EU$1) -> 0 | EV50: =VLOOKUP(DropDownList!$B$47,CntyQryCensus!$A$156:$FR$198,EV$1) -> 20 | EW50: =VLOOKUP(DropDownList!$B$47,CntyQryCensus!$A$156:$FR$198,EW$1) -> 6 | EX50: =VLOOKUP(DropDownList!$B$47,CntyQryCensus!$A$156:$FR$198,EX$1) -> 0 | EY50: =VLOOKUP(DropDownList!$B$47,CntyQryCensus!$A$156:$FR$198,EY$1) -> 476 | EZ50: =VLOOKUP(DropDownList!$B$47,CntyQryCensus!$A$156:$FR$198,EZ$1) -> 13 | FA50: =VLOOKUP(DropDownList!$B$47,CntyQryCensus!$A$156:$FR$198,FA$1) -> 39 | FB50: =VLOOKUP(DropDownList!$B$47,CntyQryCensus!$A$156:$FR$198,FB$1) -> 34 | FC50: =VLOOKUP(DropDownList!$B$47,CntyQryCensus!$A$156:$FR$198,FC$1) -> 6 | FD50: =VLOOKUP(DropDownList!$B$47,CntyQryCensus!$A$156:$FR$198,FD$1) -> 111 | FE50: =VLOOKUP(DropDownList!$B$47,CntyQryCensus!$A$156:$FR$198,FE$1) -> 8 | FF50: =VLOOKUP(DropDownList!$B$47,CntyQryCensus!$A$156:$FR$198,FF$1) -> 2 | FG50: =VLOOKUP(DropDownList!$B$47,CntyQryCensus!$A$156:$FR$198,FG$1) -> 18 | FH50: =VLOOKUP(DropDownList!$B$47,CntyQryCensus!$A$156:$FR$198,FH$1) -> 36 | FI50: =VLOOKUP(DropDownList!$B$47,CntyQryCensus!$A$156:$FR$198,FI$1) -> 86 | FJ50: =VLOOKUP(DropDownList!$B$47,CntyQryCensus!$A$156:$FR$198,FJ$1) -> 97 | FK50: =VLOOKUP(DropDownList!$B$47,CntyQryCensus!$A$156:$FR$198,FK$1) -> 2 | FL50: =VLOOKUP(DropDownList!$B$47,CntyQryCensus!$A$156:$FR$198,FL$1) -> 24 | FM50: =VLOOKUP(DropDownList!$B$47,CntyQryCensus!$A$156:$FR$198,FM$1) -> 172 | FN50: =VLOOKUP(DropDownList!$B$47,CntyQryCensus!$A$156:$FR$198,FN$1) -> 78 | FO50: =VLOOKUP(DropDownList!$B$47,CntyQryCensus!$A$156:$FR$198,FO$1) -> 144 | FP50: =VLOOKUP(DropDownList!$B$47,CntyQryCensus!$A$156:$FR$198,FP$1) -> 4 | FQ50: =VLOOKUP(DropDownList!$B$47,CntyQryCensus!$A$156:$FR$198,FQ$1) -> 44 | FR50: =VLOOKUP(DropDownList!$B$47,CntyQryCensus!$A$156:$FR$198,FR$1) -> 34
A53: Census 2000 SummaryFile3 Sample Data - SF3TownQry2aIncomeChar
A54: NAME | B54: LOGRECNO | C54: COUNTY | D54: TotalPop | E54: P52Households1 | F54: P52HHInc<10K | G54: P52HHInc10to15K | H54: P52HHInc15to20K | I54: P52HHInc20to25K | J54: P52HHInc25to30K | K54: P52HHInc30to35K | L54: P52HHInc35to40K | M54: P52HHInc40to45K | N54: P52HHInc45to50K | O54: P52HHInc50to60K | P54: P52HHInc60to75K | Q54: P52HHInc75to100K | R54: P52HHInc100to125K | S54: P52HHInc125to150K | T54: P52HHInc150to200K | U54: P52HHInc>200K | V54: P53MedianHHInc | W54: P54AggregHHInc | X54: P55Households2 | Y54: P55HHUnder25yrs | Z54: P55HH<25HHInc<10K | AA54: P55HH<25HHInc10to15K | AB54: P55HH<25HHInc15to20K | AC54: P55HH<25HHInc20to25K | AD54: P55HH<25HHInc25to30K | AE54: P55HH<25HHInc30to35K | AF54: P55HH<25HHInc35to40K | AG54: P55HH<25HHInc40to45K | AH54: P55HH<25HHInc45to50K | AI54: P55HH<25HHInc50to60K | AJ54: P55HH<25HHInc60to75K | AK54: P55HH<25HHInc75to100K | AL54: P55HH<25HHInc100to125K | AM54: P55HH<25HHInc125to150K | AN54: P55HH<25HHInc150to200K | AO54: P55HH<25HHInc>200K | AP54: P55HH25to34yrs | AQ54: P55HH25to34HHInc<10K | AR54: P55HH25to34HHInc10to15K | AS54: P55HH25to34HHInc15to20K | AT54: P55HH25to34HHInc20to25K | AU54: P55HH25to34HHInc25to30K | AV54: P55HH25to34HHInc30to35K | AW54: P55HH25to34HHInc35to40K | AX54: P55HH25to34HHInc40to45K | AY54: P55HH25to34HHInc45to50K | AZ54: P55HH25to34HHInc50to60K | BA54: P55HH25to34HHInc60to75K | BB54: P55HH25to34HHInc75to100K | BC54: P55HH25to34HHInc100to125K | BD54: P55HH25to34HHInc125to150K | BE54: P55HH25to34HHInc150to200K | BF54: P55HH25to34HHInc>200K | BG54: P55HH35to44yrs | BH54: P55HH35to44HHInc<10K | BI54: P55HH35to44HHInc10to15K | BJ54: P55HH35to44HHInc15to20K | BK54: P55HH35to44HHInc20to25K | BL54: P55HH35to44HHInc25to30K | BM54: P55HH35to44HHInc30to35K | BN54: P55HH35to44HHInc35to40K | BO54: P55HH35to44HHInc40to45K | BP54: P55HH35to44HHInc45to50K | BQ54: P55HH35to44HHInc50to60K | BR54: P55HH35to44HHInc60to75K | BS54: P55HH35to44HHInc75to100K | BT54: P55HH35to44HHInc100to125K | BU54: P55HH35to44HHInc125to150K | BV54: P55HH35to44HHInc150to200K | BW54: P55HH35to44HHInc>200K | BX54: P55HH45to54yrs | BY54: P55HH45to55HHInc<10K | BZ54: P55HH45to55HHInc10to15K | CA54: P55HH45to55HHInc15to20K | CB54: P55HH45to55HHInc20to25K | CC54: P55HH45to55HHInc25to30K | CD54: P55HH45to55HHInc30to35K | CE54: P55HH45to55HHInc35to40K | CF54: P55HH45to55HHInc40to45K | CG54: P55HH45to55HHInc45to50K | CH54: P55HH45to55HHInc50to60K | CI54: P55HH45to55HHInc60to75K | CJ54: P55HH45to55HHInc75to100K | CK54: P55HH45to55HHInc100to125K | CL54: P55HH45to55HHInc125to150K | CM54: P55HH45to55HHInc150to200K | CN54: P55HH45to55HHInc>200K | CO54: P55HH55to64yrs | CP54: P55HH55to64HHInc<10K | CQ54: P55HH55to64HHInc10to15K | CR54: P55HH55to64HHInc15to20K | CS54: P55HH55to64HHInc20to25K | CT54: P55HH55to64HHInc25to30K | CU54: P55HH55to64HHInc30to35K | CV54: P55HH55to64HHInc35to40K | CW54: P55HH55to64HHInc40to45K | CX54: P55HH55to64HHInc45to50K | CY54: P55HH55to64HHInc50to60K | CZ54: P55HH55to64HHInc60to75K | DA54: P55HH55to64HHInc75to100K | DB54: P55HH55to64HHInc100to125K | DC54: P55HH55to64HHInc125to150K | DD54: P55HH55to64HHInc150to200K | DE54: P55HH55to64HHInc>200K | DF54: P55HH65to74yrs | DG54: P55HH65to74HHInc<10K | DH54: P55HH65to74HHInc10to15K | DI54: P55HH65to74HHInc15to20K | DJ54: P55HH65to74HHInc20to25K | DK54: P55HH65to74HHInc25to30K | DL54: P55HH65to74HHInc30to35K | DM54: P55HH65to74HHInc35to40K | DN54: P55HH65to74HHInc40to45K | DO54: P55HH65to74HHInc45to50K | DP54: P55HH65to74HHInc50to60K | DQ54: P55HH65to74HHInc60to75K | DR54: P55HH65to74HHInc75to100K | DS54: P55HH65to74HHInc100to125K | DT54: P55HH65to74HHInc125to150K | DU54: P55HH65to74HHInc150to200K | DV54: P55HH65to74HHInc>200K | DW54: P55HH>75yrs | DX54: P55HH>75HHInc<10K | DY54: P55HH>75HHInc10to15K | DZ54: P55HH>75HHInc15to20K | EA54: P55HH>75HHInc20to25K | EB54: P55HH>75HHInc25to30K | EC54: P55HH>75HHInc30to35K | ED54: P55HH>75HHInc35to40K | EE54: P55HH>75HHInc40to45K | EF54: P55HH>75HHInc45to50K | EG54: P55HH>75HHInc50to60K | EH54: P55HH>75HHInc60to75K | EI54: P55HH>75HHInc75to100K | EJ54: P55HH>75HHInc100to125K | EK54: P55HH>75HHInc125to150K | EL54: P55HH>75HHInc150to200K | EM54: P55HH>75HHInc>200K | EN54: P56MedHHInc | EO54: P56MedHHIncHH<25y | EP54: P56MedHHIncHH25to34y | EQ54: P56MedHHIncHH35to44y | ER54: P56MedHHIncHH45to54y | ES54: P56MedHHIncHH55to64y | ET54: P56MedHHIncHH65to74y | EU54: P56MedHHIncHH>75y | EV54: P58Households3 | EW54: P58HHwithEarnings | EX54: P58HHNoEarnings | EY54: P59HHwWageSalInc | EZ54: P59HHNoWageSalInc | FA54: P60HHwSelfEmpInc | FB54: P60HHNoSelfEmpInc | FC54: P61HHwIndDivInc | FD54: P61HHNoIndDivInc | FE54: P62HHwSocSecInc | FF54: P62HHNoSocSecInc | FG54: P63HHwSSI | FH54: P63HHNoSSI | FI54: P64HHwPubAssInc | FJ54: P64HHNoPubAssInc | FK54: P65HHwRetInc | FL54: P65HHNoRetInc | FM54: P66HHwOtherTypInc | FN54: P66HHNoOtherTypInc | FO54: P67AggregEarnings | FP54: P68AggregWageSalInc | FQ54: P69AggregSelfEmpInc | FR54: P70AggregIntDivInc | FS54: P71AggregSocSecInc | FT54: P72AggregSSIInc | FU54: P73AggregPublicAssInc | FV54: P74AggregRetireInc | FW54: P76Families1 | FX54: P76FamInc<10K | FY54: P76FamInc10to15K | FZ54: P76FamInc15to20K | GA54: P76FamInc20to25K | GB54: P76FamInc25to30K | GC54: P76FamInc30to35K | GD54: P76FamInc35to40K | GE54: P76FamInc40to45K | GF54: P76FamInc45to50K | GG54: P76FamInc50to60K | GH54: P76FamInc60to75K | GI54: P76FamInc75to100K | GJ54: P76FamInc100to125K | GK54: P76FamInc125to150K | GL54: P76FamInc150to200K | GM54: P76FamInc>200K | GN54: P77MedFamInc | GO54: P78AggregFamInc | GP54: P79NonFamHH | GQ54: P79NonFamHHwInc<10K | GR54: P79NonFamHHwInc10to15K | GS54: P79NonFamHHwInc15to20K | GT54: P79NonFamHHwInc20to25K | GU54: P79NonFamHHwInc25to30K | GV54: P79NonFamHHwInc30to35K | GW54: P79NonFamHHwInc35to40K | GX54: P79NonFamHHwInc40to45K | GY54: P79NonFamHHwInc45to50K | GZ54: P79NonFamHHwInc50to60K | HA54: P79NonFamHHwInc60to75K | HB54: P79NonFamHHwInc75to100K | HC54: P79NonFamHHwInc100to125K | HD54: P79NonFamHHwInc125to150K | HE54: P79NonFamHHwInc150to200K | HF54: P79NonFamHHwInc200KorMore | HG54: P80MedNonFamInc | HH54: P82PerCapitaInc
A55: =VLOOKUP(DropDownList!$B$47,CntyQryCensus!$A$206:$HH$248,A$1) -> Franconia | B55: =VLOOKUP(DropDownList!$B$47,CntyQryCensus!$A$206:$HH$248,B$1) -> 0001247 | C55: =VLOOKUP(DropDownList!$B$47,CntyQryCensus!$A$206:$HH$248,C$1) -> 27300 | D55: =VLOOKUP(DropDownList!$B$47,CntyQryCensus!$A$206:$HH$248,D$1) -> 924 | E55: =VLOOKUP(DropDownList!$B$47,CntyQryCensus!$A$206:$HH$248,E$1) -> 400 | F55: =VLOOKUP(DropDownList!$B$47,CntyQryCensus!$A$206:$HH$248,F$1) -> 34 | G55: =VLOOKUP(DropDownList!$B$47,CntyQryCensus!$A$206:$HH$248,G$1) -> 27 | H55: =VLOOKUP(DropDownList!$B$47,CntyQryCensus!$A$206:$HH$248,H$1) -> 27 | I55: =VLOOKUP(DropDownList!$B$47,CntyQryCensus!$A$206:$HH$248,I$1) -> 23 | J55: =VLOOKUP(DropDownList!$B$47,CntyQryCensus!$A$206:$HH$248,J$1) -> 38 | K55: =VLOOKUP(DropDownList!$B$47,CntyQryCensus!$A$206:$HH$248,K$1) -> 25 | L55: =VLOOKUP(DropDownList!$B$47,CntyQryCensus!$A$206:$HH$248,L$1) -> 25 | M55: =VLOOKUP(DropDownList!$B$47,CntyQryCensus!$A$206:$HH$248,M$1) -> 34 | N55: =VLOOKUP(DropDownList!$B$47,CntyQryCensus!$A$206:$HH$248,N$1) -> 15 | O55: =VLOOKUP(DropDownList!$B$47,CntyQryCensus!$A$206:$HH$248,O$1) -> 53 | P55: =VLOOKUP(DropDownList!$B$47,CntyQryCensus!$A$206:$HH$248,P$1) -> 39 | Q55: =VLOOKUP(DropDownList!$B$47,CntyQryCensus!$A$206:$HH$248,Q$1) -> 31 | R55: =VLOOKUP(DropDownList!$B$47,CntyQryCensus!$A$206:$HH$248,R$1) -> 20 | S55: =VLOOKUP(DropDownList!$B$47,CntyQryCensus!$A$206:$HH$248,S$1) -> 5 | T55: =VLOOKUP(DropDownList!$B$47,CntyQryCensus!$A$206:$HH$248,T$1) -> 4 | U55: =VLOOKUP(DropDownList!$B$47,CntyQryCensus!$A$206:$HH$248,U$1) -> 0 | V55: =VLOOKUP(DropDownList!$B$47,CntyQryCensus!$A$206:$HH$248,V$1) -> 40114 | W55: =VLOOKUP(DropDownList!$B$47,CntyQryCensus!$A$206:$HH$248,W$1) -> 18287300 | X55: =VLOOKUP(DropDownList!$B$47,CntyQryCensus!$A$206:$HH$248,X$1) -> 400 | Y55: =VLOOKUP(DropDownList!$B$47,CntyQryCensus!$A$206:$HH$248,Y$1) -> 12 | Z55: =VLOOKUP(DropDownList!$B$47,CntyQryCensus!$A$206:$HH$248,Z$1) -> 2 | AA55: =VLOOKUP(DropDownList!$B$47,CntyQryCensus!$A$206:$HH$248,AA$1) -> 0 | AB55: =VLOOKUP(DropDownList!$B$47,CntyQryCensus!$A$206:$HH$248,AB$1) -> 2 | AC55: =VLOOKUP(DropDownList!$B$47,CntyQryCensus!$A$206:$HH$248,AC$1) -> 4 | AD55: =VLOOKUP(DropDownList!$B$47,CntyQryCensus!$A$206:$HH$248,AD$1) -> 0 | AE55: =VLOOKUP(DropDownList!$B$47,CntyQryCensus!$A$206:$HH$248,AE$1) -> 0 | AF55: =VLOOKUP(DropDownList!$B$47,CntyQryCensus!$A$206:$HH$248,AF$1) -> 0 | AG55: =VLOOKUP(DropDownList!$B$47,CntyQryCensus!$A$206:$HH$248,AG$1) -> 0 | AH55: =VLOOKUP(DropDownList!$B$47,CntyQryCensus!$A$206:$HH$248,AH$1) -> 0 | AI55: =VLOOKUP(DropDownList!$B$47,CntyQryCensus!$A$206:$HH$248,AI$1) -> 2 | AJ55: =VLOOKUP(DropDownList!$B$47,CntyQryCensus!$A$206:$HH$248,AJ$1) -> 2 | AK55: =VLOOKUP(DropDownList!$B$47,CntyQryCensus!$A$206:$HH$248,AK$1) -> 0 | AL55: =VLOOKUP(DropDownList!$B$47,CntyQryCensus!$A$206:$HH$248,AL$1) -> 0 | AM55: =VLOOKUP(DropDownList!$B$47,CntyQryCensus!$A$206:$HH$248,AM$1) -> 0 | AN55: =VLOOKUP(DropDownList!$B$47,CntyQryCensus!$A$206:$HH$248,AN$1) -> 0 | AO55: =VLOOKUP(DropDownList!$B$47,CntyQryCensus!$A$206:$HH$248,AO$1) -> 0 | AP55: =VLOOKUP(DropDownList!$B$47,CntyQryCensus!$A$206:$HH$248,AP$1) -> 42 | AQ55: =VLOOKUP(DropDownList!$B$47,CntyQryCensus!$A$206:$HH$248,AQ$1) -> 3 | AR55: =VLOOKUP(DropDownList!$B$47,CntyQryCensus!$A$206:$HH$248,AR$1) -> 4 | AS55: =VLOOKUP(DropDownList!$B$47,CntyQryCensus!$A$206:$HH$248,AS$1) -> 1 | AT55: =VLOOKUP(DropDownList!$B$47,CntyQryCensus!$A$206:$HH$248,AT$1) -> 1 | AU55: =VLOOKUP(DropDownList!$B$47,CntyQryCensus!$A$206:$HH$248,AU$1) -> 9 | AV55: =VLOOKUP(DropDownList!$B$47,CntyQryCensus!$A$206:$HH$248,AV$1) -> 6 | AW55: =VLOOKUP(DropDownList!$B$47,CntyQryCensus!$A$206:$HH$248,AW$1) -> 2 | AX55: =VLOOKUP(DropDownList!$B$47,CntyQryCensus!$A$206:$HH$248,AX$1) -> 0 | AY55: =VLOOKUP(DropDownList!$B$47,CntyQryCensus!$A$206:$HH$248,AY$1) -> 3 | AZ55: =VLOOKUP(DropDownList!$B$47,CntyQryCensus!$A$206:$HH$248,AZ$1) -> 7 | BA55: =VLOOKUP(DropDownList!$B$47,CntyQryCensus!$A$206:$HH$248,BA$1) -> 2 | BB55: =VLOOKUP(DropDownList!$B$47,CntyQryCensus!$A$206:$HH$248,BB$1) -> 2 | BC55: =VLOOKUP(DropDownList!$B$47,CntyQryCensus!$A$206:$HH$248,BC$1) -> 2 | BD55: =VLOOKUP(DropDownList!$B$47,CntyQryCensus!$A$206:$HH$248,BD$1) -> 0 | BE55: =VLOOKUP(DropDownList!$B$47,CntyQryCensus!$A$206:$HH$248,BE$1) -> 0 | BF55: =VLOOKUP(DropDownList!$B$47,CntyQryCensus!$A$206:$HH$248,BF$1) -> 0 | BG55: =VLOOKUP(DropDownList!$B$47,CntyQryCensus!$A$206:$HH$248,BG$1) -> 68 | BH55: =VLOOKUP(DropDownList!$B$47,CntyQryCensus!$A$206:$HH$248,BH$1) -> 4 | BI55: =VLOOKUP(DropDownList!$B$47,CntyQryCensus!$A$206:$HH$248,BI$1) -> 5 | BJ55: =VLOOKUP(DropDownList!$B$47,CntyQryCensus!$A$206:$HH$248,BJ$1) -> 7 | BK55: =VLOOKUP(DropDownList!$B$47,CntyQryCensus!$A$206:$HH$248,BK$1) -> 6 | BL55: =VLOOKUP(DropDownList!$B$47,CntyQryCensus!$A$206:$HH$248,BL$1) -> 8 | BM55: =VLOOKUP(DropDownList!$B$47,CntyQryCensus!$A$206:$HH$248,BM$1) -> 0 | BN55: =VLOOKUP(DropDownList!$B$47,CntyQryCensus!$A$206:$HH$248,BN$1) -> 0 | BO55: =VLOOKUP(DropDownList!$B$47,CntyQryCensus!$A$206:$HH$248,BO$1) -> 10 | BP55: =VLOOKUP(DropDownList!$B$47,CntyQryCensus!$A$206:$HH$248,BP$1) -> 3 | BQ55: =VLOOKUP(DropDownList!$B$47,CntyQryCensus!$A$206:$HH$248,BQ$1) -> 4 | BR55: =VLOOKUP(DropDownList!$B$47,CntyQryCensus!$A$206:$HH$248,BR$1) -> 13 | BS55: =VLOOKUP(DropDownList!$B$47,CntyQryCensus!$A$206:$HH$248,BS$1) -> 6 | BT55: =VLOOKUP(DropDownList!$B$47,CntyQryCensus!$A$206:$HH$248,BT$1) -> 2 | BU55: =VLOOKUP(DropDownList!$B$47,CntyQryCensus!$A$206:$HH$248,BU$1) -> 0 | BV55: =VLOOKUP(DropDownList!$B$47,CntyQryCensus!$A$206:$HH$248,BV$1) -> 0 | BW55: =VLOOKUP(DropDownList!$B$47,CntyQryCensus!$A$206:$HH$248,BW$1) -> 0 | BX55: =VLOOKUP(DropDownList!$B$47,CntyQryCensus!$A$206:$HH$248,BX$1) -> 95 | BY55: =VLOOKUP(DropDownList!$B$47,CntyQryCensus!$A$206:$HH$248,BY$1) -> 8 | BZ55: =VLOOKUP(DropDownList!$B$47,CntyQryCensus!$A$206:$HH$248,BZ$1) -> 5 | CA55: =VLOOKUP(DropDownList!$B$47,CntyQryCensus!$A$206:$HH$248,CA$1) -> 6 | CB55: =VLOOKUP(DropDownList!$B$47,CntyQryCensus!$A$206:$HH$248,CB$1) -> 3 | CC55: =VLOOKUP(DropDownList!$B$47,CntyQryCensus!$A$206:$HH$248,CC$1) -> 5 | CD55: =VLOOKUP(DropDownList!$B$47,CntyQryCensus!$A$206:$HH$248,CD$1) -> 5 | CE55: =VLOOKUP(DropDownList!$B$47,CntyQryCensus!$A$206:$HH$248,CE$1) -> 2 | CF55: =VLOOKUP(DropDownList!$B$47,CntyQryCensus!$A$206:$HH$248,CF$1) -> 11 | CG55: =VLOOKUP(DropDownList!$B$47,CntyQryCensus!$A$206:$HH$248,CG$1) -> 6 | CH55: =VLOOKUP(DropDownList!$B$47,CntyQryCensus!$A$206:$HH$248,CH$1) -> 16 | CI55: =VLOOKUP(DropDownList!$B$47,CntyQryCensus!$A$206:$HH$248,CI$1) -> 17 | CJ55: =VLOOKUP(DropDownList!$B$47,CntyQryCensus!$A$206:$HH$248,CJ$1) -> 6 | CK55: =VLOOKUP(DropDownList!$B$47,CntyQryCensus!$A$206:$HH$248,CK$1) -> 5 | CL55: =VLOOKUP(DropDownList!$B$47,CntyQryCensus!$A$206:$HH$248,CL$1) -> 0 | CM55: =VLOOKUP(DropDownList!$B$47,CntyQryCensus!$A$206:$HH$248,CM$1) -> 0 | CN55: =VLOOKUP(DropDownList!$B$47,CntyQryCensus!$A$206:$HH$248,CN$1) -> 0 | CO55: =VLOOKUP(DropDownList!$B$47,CntyQryCensus!$A$206:$HH$248,CO$1) -> 96 | CP55: =VLOOKUP(DropDownList!$B$47,CntyQryCensus!$A$206:$HH$248,CP$1) -> 9 | CQ55: =VLOOKUP(DropDownList!$B$47,CntyQryCensus!$A$206:$HH$248,CQ$1) -> 3 | CR55: =VLOOKUP(DropDownList!$B$47,CntyQryCensus!$A$206:$HH$248,CR$1) -> 0 | CS55: =VLOOKUP(DropDownList!$B$47,CntyQryCensus!$A$206:$HH$248,CS$1) -> 3 | CT55: =VLOOKUP(DropDownList!$B$47,CntyQryCensus!$A$206:$HH$248,CT$1) -> 5 | CU55: =VLOOKUP(DropDownList!$B$47,CntyQryCensus!$A$206:$HH$248,CU$1) -> 5 | CV55: =VLOOKUP(DropDownList!$B$47,CntyQryCensus!$A$206:$HH$248,CV$1) -> 21 | CW55: =VLOOKUP(DropDownList!$B$47,CntyQryCensus!$A$206:$HH$248,CW$1) -> 3 | CX55: =VLOOKUP(DropDownList!$B$47,CntyQryCensus!$A$206:$HH$248,CX$1) -> 3 | CY55: =VLOOKUP(DropDownList!$B$47,CntyQryCensus!$A$206:$HH$248,CY$1) -> 16 | CZ55: =VLOOKUP(DropDownList!$B$47,CntyQryCensus!$A$206:$HH$248,CZ$1) -> 5 | DA55: =VLOOKUP(DropDownList!$B$47,CntyQryCensus!$A$206:$HH$248,DA$1) -> 5 | DB55: =VLOOKUP(DropDownList!$B$47,CntyQryCensus!$A$206:$HH$248,DB$1) -> 11 | DC55: =VLOOKUP(DropDownList!$B$47,CntyQryCensus!$A$206:$HH$248,DC$1) -> 3 | DD55: =VLOOKUP(DropDownList!$B$47,CntyQryCensus!$A$206:$HH$248,DD$1) -> 4 | DE55: =VLOOKUP(DropDownList!$B$47,CntyQryCensus!$A$206:$HH$248,DE$1) -> 0 | DF55: =VLOOKUP(DropDownList!$B$47,CntyQryCensus!$A$206:$HH$248,DF$1) -> 45 | DG55: =VLOOKUP(DropDownList!$B$47,CntyQryCensus!$A$206:$HH$248,DG$1) -> 0 | DH55: =VLOOKUP(DropDownList!$B$47,CntyQryCensus!$A$206:$HH$248,DH$1) -> 4 | DI55: =VLOOKUP(DropDownList!$B$47,CntyQryCensus!$A$206:$HH$248,DI$1) -> 7 | DJ55: =VLOOKUP(DropDownList!$B$47,CntyQryCensus!$A$206:$HH$248,DJ$1) -> 2 | DK55: =VLOOKUP(DropDownList!$B$47,CntyQryCensus!$A$206:$HH$248,DK$1) -> 6 | DL55: =VLOOKUP(DropDownList!$B$47,CntyQryCensus!$A$206:$HH$248,DL$1) -> 6 | DM55: =VLOOKUP(DropDownList!$B$47,CntyQryCensus!$A$206:$HH$248,DM$1) -> 0 | DN55: =VLOOKUP(DropDownList!$B$47,CntyQryCensus!$A$206:$HH$248,DN$1) -> 8 | DO55: =VLOOKUP(DropDownList!$B$47,CntyQryCensus!$A$206:$HH$248,DO$1) -> 0 | DP55: =VLOOKUP(DropDownList!$B$47,CntyQryCensus!$A$206:$HH$248,DP$1) -> 7 | DQ55: =VLOOKUP(DropDownList!$B$47,CntyQryCensus!$A$206:$HH$248,DQ$1) -> 0 | DR55: =VLOOKUP(DropDownList!$B$47,CntyQryCensus!$A$206:$HH$248,DR$1) -> 5 | DS55: =VLOOKUP(DropDownList!$B$47,CntyQryCensus!$A$206:$HH$248,DS$1) -> 0 | DT55: =VLOOKUP(DropDownList!$B$47,CntyQryCensus!$A$206:$HH$248,DT$1) -> 0 | DU55: =VLOOKUP(DropDownList!$B$47,CntyQryCensus!$A$206:$HH$248,DU$1) -> 0 | DV55: =VLOOKUP(DropDownList!$B$47,CntyQryCensus!$A$206:$HH$248,DV$1) -> 0 | DW55: =VLOOKUP(DropDownList!$B$47,CntyQryCensus!$A$206:$HH$248,DW$1) -> 42 | DX55: =VLOOKUP(DropDownList!$B$47,CntyQryCensus!$A$206:$HH$248,DX$1) -> 8 | DY55: =VLOOKUP(DropDownList!$B$47,CntyQryCensus!$A$206:$HH$248,DY$1) -> 6 | DZ55: =VLOOKUP(DropDownList!$B$47,CntyQryCensus!$A$206:$HH$248,DZ$1) -> 4 | EA55: =VLOOKUP(DropDownList!$B$47,CntyQryCensus!$A$206:$HH$248,EA$1) -> 4 | EB55: =VLOOKUP(DropDownList!$B$47,CntyQryCensus!$A$206:$HH$248,EB$1) -> 5 | EC55: =VLOOKUP(DropDownList!$B$47,CntyQryCensus!$A$206:$HH$248,EC$1) -> 3 | ED55: =VLOOKUP(DropDownList!$B$47,CntyQryCensus!$A$206:$HH$248,ED$1) -> 0 | EE55: =VLOOKUP(DropDownList!$B$47,CntyQryCensus!$A$206:$HH$248,EE$1) -> 2 | EF55: =VLOOKUP(DropDownList!$B$47,CntyQryCensus!$A$206:$HH$248,EF$1) -> 0 | EG55: =VLOOKUP(DropDownList!$B$47,CntyQryCensus!$A$206:$HH$248,EG$1) -> 1 | EH55: =VLOOKUP(DropDownList!$B$47,CntyQryCensus!$A$206:$HH$248,EH$1) -> 0 | EI55: =VLOOKUP(DropDownList!$B$47,CntyQryCensus!$A$206:$HH$248,EI$1) -> 7 | EJ55: =VLOOKUP(DropDownList!$B$47,CntyQryCensus!$A$206:$HH$248,EJ$1) -> 0 | EK55: =VLOOKUP(DropDownList!$B$47,CntyQryCensus!$A$206:$HH$248,EK$1) -> 2 | EL55: =VLOOKUP(DropDownList!$B$47,CntyQryCensus!$A$206:$HH$248,EL$1) -> 0 | EM55: =VLOOKUP(DropDownList!$B$47,CntyQryCensus!$A$206:$HH$248,EM$1) -> 0 | EN55: =VLOOKUP(DropDownList!$B$47,CntyQryCensus!$A$206:$HH$248,EN$1) -> 40114 | EO55: =VLOOKUP(DropDownList!$B$47,CntyQryCensus!$A$206:$HH$248,EO$1) -> 22500 | EP55: =VLOOKUP(DropDownList!$B$47,CntyQryCensus!$A$206:$HH$248,EP$1) -> 31875 | EQ55: =VLOOKUP(DropDownList!$B$47,CntyQryCensus!$A$206:$HH$248,EQ$1) -> 41000 | ER55: =VLOOKUP(DropDownList!$B$47,CntyQryCensus!$A$206:$HH$248,ER$1) -> 46042 | ES55: =VLOOKUP(DropDownList!$B$47,CntyQryCensus!$A$206:$HH$248,ES$1) -> 41667 | ET55: =VLOOKUP(DropDownList!$B$47,CntyQryCensus!$A$206:$HH$248,ET$1) -> 33438 | EU55: =VLOOKUP(DropDownList!$B$47,CntyQryCensus!$A$206:$HH$248,EU$1) -> 24375 | EV55: =VLOOKUP(DropDownList!$B$47,CntyQryCensus!$A$206:$HH$248,EV$1) -> 400 | EW55: =VLOOKUP(DropDownList!$B$47,CntyQryCensus!$A$206:$HH$248,EW$1) -> 323 | EX55: =VLOOKUP(DropDownList!$B$47,CntyQryCensus!$A$206:$HH$248,EX$1) -> 77 | EY55: =VLOOKUP(DropDownList!$B$47,CntyQryCensus!$A$206:$HH$248,EY$1) -> 310 | EZ55: =VLOOKUP(DropDownList!$B$47,CntyQryCensus!$A$206:$HH$248,EZ$1) -> 90 | FA55: =VLOOKUP(DropDownList!$B$47,CntyQryCensus!$A$206:$HH$248,FA$1) -> 55 | FB55: =VLOOKUP(DropDownList!$B$47,CntyQryCensus!$A$206:$HH$248,FB$1) -> 345 | FC55: =VLOOKUP(DropDownList!$B$47,CntyQryCensus!$A$206:$HH$248,FC$1) -> 164 | FD55: =VLOOKUP(DropDownList!$B$47,CntyQryCensus!$A$206:$HH$248,FD$1) -> 236 | FE55: =VLOOKUP(DropDownList!$B$47,CntyQryCensus!$A$206:$HH$248,FE$1) -> 110 | FF55: =VLOOKUP(DropDownList!$B$47,CntyQryCensus!$A$206:$HH$248,FF$1) -> 290 | FG55: =VLOOKUP(DropDownList!$B$47,CntyQryCensus!$A$206:$HH$248,FG$1) -> 9 | FH55: =VLOOKUP(DropDownList!$B$47,CntyQryCensus!$A$206:$HH$248,FH$1) -> 391 | FI55: =VLOOKUP(DropDownList!$B$47,CntyQryCensus!$A$206:$HH$248,FI$1) -> 10 | FJ55: =VLOOKUP(DropDownList!$B$47,CntyQryCensus!$A$206:$HH$248,FJ$1) -> 390 | FK55: =VLOOKUP(DropDownList!$B$47,CntyQryCensus!$A$206:$HH$248,FK$1) -> 81 | FL55: =VLOOKUP(DropDownList!$B$47,CntyQryCensus!$A$206:$HH$248,FL$1) -> 319 | FM55: =VLOOKUP(DropDownList!$B$47,CntyQryCensus!$A$206:$HH$248,FM$1) -> 26 | FN55: =VLOOKUP(DropDownList!$B$47,CntyQryCensus!$A$206:$HH$248,FN$1) -> 374 | FO55: =VLOOKUP(DropDownList!$B$47,CntyQryCensus!$A$206:$HH$248,FO$1) -> 13162600 | FP55: =VLOOKUP(DropDownList!$B$47,CntyQryCensus!$A$206:$HH$248,FP$1) -> 11956800 | FQ55: =VLOOKUP(DropDownList!$B$47,CntyQryCensus!$A$206:$HH$248,FQ$1) -> 1205700 | FR55: =VLOOKUP(DropDownList!$B$47,CntyQryCensus!$A$206:$HH$248,FR$1) -> 2092200 | FS55: =VLOOKUP(DropDownList!$B$47,CntyQryCensus!$A$206:$HH$248,FS$1) -> 1223700 | FT55: =VLOOKUP(DropDownList!$B$47,CntyQryCensus!$A$206:$HH$248,FT$1) -> 72600 | FU55: =VLOOKUP(DropDownList!$B$47,CntyQryCensus!$A$206:$HH$248,FU$1) -> 28700 | FV55: =VLOOKUP(DropDownList!$B$47,CntyQryCensus!$A$206:$HH$248,FV$1) -> 1387600 | FW55: =VLOOKUP(DropDownList!$B$47,CntyQryCensus!$A$206:$HH$248,FW$1) -> 245 | FX55: =VLOOKUP(DropDownList!$B$47,CntyQryCensus!$A$206:$HH$248,FX$1) -> 14 | FY55: =VLOOKUP(DropDownList!$B$47,CntyQryCensus!$A$206:$HH$248,FY$1) -> 7 | FZ55: =VLOOKUP(DropDownList!$B$47,CntyQryCensus!$A$206:$HH$248,FZ$1) -> 7 | GA55: =VLOOKUP(DropDownList!$B$47,CntyQryCensus!$A$206:$HH$248,GA$1) -> 12 | GB55: =VLOOKUP(DropDownList!$B$47,CntyQryCensus!$A$206:$HH$248,GB$1) -> 27 | GC55: =VLOOKUP(DropDownList!$B$47,CntyQryCensus!$A$206:$HH$248,GC$1) -> 16 | GD55: =VLOOKUP(DropDownList!$B$47,CntyQryCensus!$A$206:$HH$248,GD$1) -> 10 | GE55: =VLOOKUP(DropDownList!$B$47,CntyQryCensus!$A$206:$HH$248,GE$1) -> 20 | GF55: =VLOOKUP(DropDownList!$B$47,CntyQryCensus!$A$206:$HH$248,GF$1) -> 12 | GG55: =VLOOKUP(DropDownList!$B$47,CntyQryCensus!$A$206:$HH$248,GG$1) -> 45 | GH55: =VLOOKUP(DropDownList!$B$47,CntyQryCensus!$A$206:$HH$248,GH$1) -> 31 | GI55: =VLOOKUP(DropDownList!$B$47,CntyQryCensus!$A$206:$HH$248,GI$1) -> 23 | GJ55: =VLOOKUP(DropDownList!$B$47,CntyQryCensus!$A$206:$HH$248,GJ$1) -> 12 | GK55: =VLOOKUP(DropDownList!$B$47,CntyQryCensus!$A$206:$HH$248,GK$1) -> 5 | GL55: =VLOOKUP(DropDownList!$B$47,CntyQryCensus!$A$206:$HH$248,GL$1) -> 4 | GM55: =VLOOKUP(DropDownList!$B$47,CntyQryCensus!$A$206:$HH$248,GM$1) -> 0 | GN55: =VLOOKUP(DropDownList!$B$47,CntyQryCensus!$A$206:$HH$248,GN$1) -> 46979 | GO55: =VLOOKUP(DropDownList!$B$47,CntyQryCensus!$A$206:$HH$248,GO$1) -> 13000300 | GP55: =VLOOKUP(DropDownList!$B$47,CntyQryCensus!$A$206:$HH$248,GP$1) -> 155 | GQ55: =VLOOKUP(DropDownList!$B$47,CntyQryCensus!$A$206:$HH$248,GQ$1) -> 25 | GR55: =VLOOKUP(DropDownList!$B$47,CntyQryCensus!$A$206:$HH$248,GR$1) -> 18 | GS55: =VLOOKUP(DropDownList!$B$47,CntyQryCensus!$A$206:$HH$248,GS$1) -> 19 | GT55: =VLOOKUP(DropDownList!$B$47,CntyQryCensus!$A$206:$HH$248,GT$1) -> 11 | GU55: =VLOOKUP(DropDownList!$B$47,CntyQryCensus!$A$206:$HH$248,GU$1) -> 13 | GV55: =VLOOKUP(DropDownList!$B$47,CntyQryCensus!$A$206:$HH$248,GV$1) -> 9 | GW55: =VLOOKUP(DropDownList!$B$47,CntyQryCensus!$A$206:$HH$248,GW$1) -> 15 | GX55: =VLOOKUP(DropDownList!$B$47,CntyQryCensus!$A$206:$HH$248,GX$1) -> 12 | GY55: =VLOOKUP(DropDownList!$B$47,CntyQryCensus!$A$206:$HH$248,GY$1) -> 3 | GZ55: =VLOOKUP(DropDownList!$B$47,CntyQryCensus!$A$206:$HH$248,GZ$1) -> 8 | HA55: =VLOOKUP(DropDownList!$B$47,CntyQryCensus!$A$206:$HH$248,HA$1) -> 6 | HB55: =VLOOKUP(DropDownList!$B$47,CntyQryCensus!$A$206:$HH$248,HB$1) -> 8 | HC55: =VLOOKUP(DropDownList!$B$47,CntyQryCensus!$A$206:$HH$248,HC$1) -> 8 | HD55: =VLOOKUP(DropDownList!$B$47,CntyQryCensus!$A$206:$HH$248,HD$1) -> 0 | HE55: =VLOOKUP(DropDownList!$B$47,CntyQryCensus!$A$206:$HH$248,HE$1) -> 0 | HF55: =VLOOKUP(DropDownList!$B$47,CntyQryCensus!$A$206:$HH$248,HF$1) -> 0 | HG55: =VLOOKUP(DropDownList!$B$47,CntyQryCensus!$A$206:$HH$248,HG$1) -> 26607 | HH55: =VLOOKUP(DropDownList!$B$47,CntyQryCensus!$A$206:$HH$248,HH$1) -> 20351
A58: Census 2000 SummaryFile3 Sample Data - SF3TownQry2bPovertyChar
A59: NAME | B59: LOGRECNO | C59: COUNTY | D59: TotalPop | E59: P52Households1 | F59: P82PerCapitaInc | G59: P87PopForPovStatus | H59: P87PopWIncBelowPovStatus | I59: P87PopUnder5yrBelowPoverty | J59: P87Pop5yrBelowPoverty | K59: P87Pop5to11yrBelowPoverty | L59: P87Pop12to17yrBelowPoverty | M59: P87Pop18to64yrBelowPoverty | N59: P87Pop65to74yrBelowPoverty | O59: P87PopOver75yrBelowPoverty | P59: P87PopWIncAbovePovStatus | Q59: P87PopUnder5yrAbovePoverty | R59: P87Pop5yrAbovePoverty | S59: P87Pop5to11yrAbovePoverty | T59: P87Pop12to17yrAbovePoverty | U59: P87Pop18to64yrAbovePoverty | V59: P87Pop65to74yrAbovePoverty | W59: P87PopOver75yrAbovePoverty | X59: P90Families | Y59: P90FamWIncBelowPov | Z59: P90MarCupFamWIncBelowPov | AA59: P90MCFamWRltdChld<18WIncBelowPov | AB59: P90MCFamWRltdChld<5WIncBelowPov | AC59: P90MaleHhlrWIncBelowPov | AD59: P90MaleHhlrWRltdChld<18yrWIncBelowPov | AE59: P90MaleHhlrWRltdChld<5yrWIncBelowPov | AF59: P90FemaleHhlrWIncBelowPov | AG59: P90FemaleHhlrWRltdChld<18yWIncBelowPov | AH59: P90FemaleHhlrWRltdChld<5yWIncBelowPov | AI59: P90FamWIncAbovePov | AJ59: P90MarCupFamWIncAbovePov | AK59: P90MCFamWRltdChld<18WIncAbovePov | AL59: P90MCFamWRltdChld<5WIncAbovePov | AM59: P90MaleHhlrWIncAbovePov | AN59: P90MaleHhlrWRltdChld<18yrWIncAbovePov | AO59: P90MaleHhlrWRltdChld<5yrWIncAbovePov | AP59: P90FemaleHhlrWIncAbovePov | AQ59: P90FemaleHhlrWRltdChld<18yWIncAbovePov | AR59: P90FemaleHhlrWRltdChld<5yWIncAbovePov | AS59: P92Households | AT59: P92HHwIncBelowPov | AU59: P92FamHHwIncBelowPov | AV59: P92MCFamHHwIncBelowPov | AW59: P92MaleFamHHwIncBelowPov | AX59: P92FemaleFamHHwIncBelowPov | AY59: P92NonFamHHwIncBelowPov | AZ59: P92NonFamMaleHHwIncBelowPov | BA59: P92NonFamFemaleHHwIncBelowPov | BB59: P92HHwIncAbovePov | BC59: P92FamHHwIncAbovePov | BD59: P92MCFamHHwIncAbovePov | BE59: P92MaleFamHHwIncAbovePov | BF59: P92FemaleFamHHwIncAbovePov | BG59: P92NonFamHHwIncAbovePov | BH59: P92NonFamMaleHHwIncAbovePov | BI59: P92NonFamFemaleHHwIncAbovePov
A60: =VLOOKUP(DropDownList!$B$47,CntyQryCensus!$A$256:$BI$298,A$1) -> Franconia | B60: =VLOOKUP(DropDownList!$B$47,CntyQryCensus!$A$256:$BI$298,B$1) -> 0001247 | C60: =VLOOKUP(DropDownList!$B$47,CntyQryCensus!$A$256:$BI$298,C$1) -> 27300 | D60: =VLOOKUP(DropDownList!$B$47,CntyQryCensus!$A$256:$BI$298,D$1) -> 924 | E60: =VLOOKUP(DropDownList!$B$47,CntyQryCensus!$A$256:$BI$298,E$1) -> 400 | F60: =VLOOKUP(DropDownList!$B$47,CntyQryCensus!$A$256:$BI$298,F$1) -> 20351 | G60: =VLOOKUP(DropDownList!$B$47,CntyQryCensus!$A$256:$BI$298,G$1) -> 852 | H60: =VLOOKUP(DropDownList!$B$47,CntyQryCensus!$A$256:$BI$298,H$1) -> 76 | I60: =VLOOKUP(DropDownList!$B$47,CntyQryCensus!$A$256:$BI$298,I$1) -> 10 | J60: =VLOOKUP(DropDownList!$B$47,CntyQryCensus!$A$256:$BI$298,J$1) -> 2 | K60: =VLOOKUP(DropDownList!$B$47,CntyQryCensus!$A$256:$BI$298,K$1) -> 4 | L60: =VLOOKUP(DropDownList!$B$47,CntyQryCensus!$A$256:$BI$298,L$1) -> 2 | M60: =VLOOKUP(DropDownList!$B$47,CntyQryCensus!$A$256:$BI$298,M$1) -> 52 | N60: =VLOOKUP(DropDownList!$B$47,CntyQryCensus!$A$256:$BI$298,N$1) -> 2 | O60: =VLOOKUP(DropDownList!$B$47,CntyQryCensus!$A$256:$BI$298,O$1) -> 4 | P60: =VLOOKUP(DropDownList!$B$47,CntyQryCensus!$A$256:$BI$298,P$1) -> 776 | Q60: =VLOOKUP(DropDownList!$B$47,CntyQryCensus!$A$256:$BI$298,Q$1) -> 27 | R60: =VLOOKUP(DropDownList!$B$47,CntyQryCensus!$A$256:$BI$298,R$1) -> 7 | S60: =VLOOKUP(DropDownList!$B$47,CntyQryCensus!$A$256:$BI$298,S$1) -> 62 | T60: =VLOOKUP(DropDownList!$B$47,CntyQryCensus!$A$256:$BI$298,T$1) -> 64 | U60: =VLOOKUP(DropDownList!$B$47,CntyQryCensus!$A$256:$BI$298,U$1) -> 500 | V60: =VLOOKUP(DropDownList!$B$47,CntyQryCensus!$A$256:$BI$298,V$1) -> 62 | W60: =VLOOKUP(DropDownList!$B$47,CntyQryCensus!$A$256:$BI$298,W$1) -> 54 | X60: =VLOOKUP(DropDownList!$B$47,CntyQryCensus!$A$256:$BI$298,X$1) -> 245 | Y60: =VLOOKUP(DropDownList!$B$47,CntyQryCensus!$A$256:$BI$298,Y$1) -> 19 | Z60: =VLOOKUP(DropDownList!$B$47,CntyQryCensus!$A$256:$BI$298,Z$1) -> 10 | AA60: =VLOOKUP(DropDownList!$B$47,CntyQryCensus!$A$256:$BI$298,AA$1) -> 5 | AB60: =VLOOKUP(DropDownList!$B$47,CntyQryCensus!$A$256:$BI$298,AB$1) -> 0 | AC60: =VLOOKUP(DropDownList!$B$47,CntyQryCensus!$A$256:$BI$298,AC$1) -> 3 | AD60: =VLOOKUP(DropDownList!$B$47,CntyQryCensus!$A$256:$BI$298,AD$1) -> 3 | AE60: =VLOOKUP(DropDownList!$B$47,CntyQryCensus!$A$256:$BI$298,AE$1) -> 0 | AF60: =VLOOKUP(DropDownList!$B$47,CntyQryCensus!$A$256:$BI$298,AF$1) -> 6 | AG60: =VLOOKUP(DropDownList!$B$47,CntyQryCensus!$A$256:$BI$298,AG$1) -> 4 | AH60: =VLOOKUP(DropDownList!$B$47,CntyQryCensus!$A$256:$BI$298,AH$1) -> 4 | AI60: =VLOOKUP(DropDownList!$B$47,CntyQryCensus!$A$256:$BI$298,AI$1) -> 226 | AJ60: =VLOOKUP(DropDownList!$B$47,CntyQryCensus!$A$256:$BI$298,AJ$1) -> 198 | AK60: =VLOOKUP(DropDownList!$B$47,CntyQryCensus!$A$256:$BI$298,AK$1) -> 77 | AL60: =VLOOKUP(DropDownList!$B$47,CntyQryCensus!$A$256:$BI$298,AL$1) -> 6 | AM60: =VLOOKUP(DropDownList!$B$47,CntyQryCensus!$A$256:$BI$298,AM$1) -> 8 | AN60: =VLOOKUP(DropDownList!$B$47,CntyQryCensus!$A$256:$BI$298,AN$1) -> 8 | AO60: =VLOOKUP(DropDownList!$B$47,CntyQryCensus!$A$256:$BI$298,AO$1) -> 0 | AP60: =VLOOKUP(DropDownList!$B$47,CntyQryCensus!$A$256:$BI$298,AP$1) -> 20 | AQ60: =VLOOKUP(DropDownList!$B$47,CntyQryCensus!$A$256:$BI$298,AQ$1) -> 15 | AR60: =VLOOKUP(DropDownList!$B$47,CntyQryCensus!$A$256:$BI$298,AR$1) -> 1 | AS60: =VLOOKUP(DropDownList!$B$47,CntyQryCensus!$A$256:$BI$298,AS$1) -> 400 | AT60: =VLOOKUP(DropDownList!$B$47,CntyQryCensus!$A$256:$BI$298,AT$1) -> 39 | AU60: =VLOOKUP(DropDownList!$B$47,CntyQryCensus!$A$256:$BI$298,AU$1) -> 19 | AV60: =VLOOKUP(DropDownList!$B$47,CntyQryCensus!$A$256:$BI$298,AV$1) -> 10 | AW60: =VLOOKUP(DropDownList!$B$47,CntyQryCensus!$A$256:$BI$298,AW$1) -> 3 | AX60: =VLOOKUP(DropDownList!$B$47,CntyQryCensus!$A$256:$BI$298,AX$1) -> 6 | AY60: =VLOOKUP(DropDownList!$B$47,CntyQryCensus!$A$256:$BI$298,AY$1) -> 20 | AZ60: =VLOOKUP(DropDownList!$B$47,CntyQryCensus!$A$256:$BI$298,AZ$1) -> 8 | BA60: =VLOOKUP(DropDownList!$B$47,CntyQryCensus!$A$256:$BI$298,BA$1) -> 12 | BB60: =VLOOKUP(DropDownList!$B$47,CntyQryCensus!$A$256:$BI$298,BB$1) -> 361 | BC60: =VLOOKUP(DropDownList!$B$47,CntyQryCensus!$A$256:$BI$298,BC$1) -> 226 | BD60: =VLOOKUP(DropDownList!$B$47,CntyQryCensus!$A$256:$BI$298,BD$1) -> 198 | BE60: =VLOOKUP(DropDownList!$B$47,CntyQryCensus!$A$256:$BI$298,BE$1) -> 8 | BF60: =VLOOKUP(DropDownList!$B$47,CntyQryCensus!$A$256:$BI$298,BF$1) -> 20 | BG60: =VLOOKUP(DropDownList!$B$47,CntyQryCensus!$A$256:$BI$298,BG$1) -> 135 | BH60: =VLOOKUP(DropDownList!$B$47,CntyQryCensus!$A$256:$BI$298,BH$1) -> 58 | BI60: =VLOOKUP(DropDownList!$B$47,CntyQryCensus!$A$256:$BI$298,BI$1) -> 77
S61: =SUM(R60:T60) -> 133
A63: Census 2000 SummaryFile3 Sample Data - SF3TownQry7HousingA
A64: NAME | B64: LOGRECNO | C64: COUNTY | D64: TotalPop | E64: H1HousingUnitsTotal | F64: H2SampleHU | G64: H2SampleOccHU | H64: H2SampleVacHU | I64: H3HU100pctCount | J64: H5HUTotal | K64: H5HUUrban | L64: H5HUUrbanInUrbanAreas | M64: H5HUUrbanInUrbanClusters | N64: H5HURural | O64: H5HURuralFarm | P64: H5HURuralNonFarm | Q64: H7HUOcc | R64: H7HUOwnrOcc | S64: H7HURentrOcc | T64: H8HUVacant | U64: H8HUVacantForRent | V64: H8HUVacantForSale | W64: H8HUVacRentedorSold | X64: H8HUVacSeasonal | Y64: H8HUVacForMigrantWrkrs | Z64: H8HUOtherVacant | AA64: H14OccHUa | AB64: H14OwnerOccHU | AC64: H14OwnOccHuHh15to24 | AD64: H14OwnOccHuHh25to34 | AE64: H14OwnOccHuHh35to44 | AF64: H14OwnOccHuHh45to54 | AG64: H14OwnOccHuHh55to59 | AH64: H14OwnOccHuHh60to64 | AI64: H14OwnOccHuHh65to74 | AJ64: H14OwnOccHuHh75to84 | AK64: H14OwnOccHuHh85Over | AL64: H14RenterOccHU1 | AM64: H14RntrOccHuHh15to24 | AN64: H14RntrOccHuHh25to34 | AO64: H14RntrOccHuHh35to44 | AP64: H14RntrOccHuHh45to54 | AQ64: H14RntrOccHuHh55to59 | AR64: H14RntrOccHuHh60to64 | AS64: H14RntrOccHuHh65to74 | AT64: H14RntrOccHuHh75to84 | AU64: H14RntrOccHuHh85Over | AV64: H15PopInOccHU | AW64: H15PopInOwnOccHU1 | AX64: H15PopInRentOccHU1 | AY64: H17OccupHUb | AZ64: H17OwnOccHU2 | BA64: H17OwnOccHU1PersonHH | BB64: H17OwnOccHU2PersonHH | BC64: H17OwnOccHU3PersonHH | BD64: H17OwnOccHU4PersonHH | BE64: H17OwnOccHU5PersonHH | BF64: H17OwnOccHU6PersonHH | BG64: H17OwnOccHU7PlusPersonHH | BH64: H17RentOccHU2 | BI64: H17RntOccHU1PersonHH | BJ64: H17RntOccHU2PersonHH | BK64: H17RntOccHU3PersonHH | BL64: H17RntOccHU4PersonHH | BM64: H17RntOccHU5PersonHH | BN64: H17RntOccHU6PersonHH | BO64: H17RntOccHU7PlusPersonHH | BP64: H18AvgHHSize | BQ64: H18AvgHHSizeOwnOcc | BR64: H18AvgHHSizeRentOcc | BS64: H23TotHU | BT64: H23HU1Room | BU64: H23HU2Room | BV64: H23HU3Room | BW64: H23HU4Room | BX64: H23HU5Room | BY64: H23HU6Room | BZ64: H23HU7Room | CA64: H23HU8Room | CB64: H23HU9orMoreRoom | CC64: H24MedianNumRooms | CD64: H25AggregNumRooms | CE64: H30TotalHU | CF64: H30Det1HU | CG64: H30Att1HU | CH64: H30Units2 | CI64: H30Units3or4 | CJ64: H30Units5to9 | CK64: H30Units10to19 | CL64: H30Units20to49 | CM64: H30Units50orMore | CN64: H30UnitsMobileHome | CO64: H30UnitsBoatRv | CP64: H32OccHUcTotal | CQ64: H32OwnerOccHU3 | CR64: H32OwnOccHU1Det | CS64: H32OwnOccHU1Att | CT64: H32OwnOccHU2Unit | CU64: H32OwnOccHU3to4Unit | CV64: H32OwnOccHU5to9Unit | CW64: H32OwnOccHU10to19Unit | CX64: H32OwnOccHU20to49Unit | CY64: H32OwnOccHU50plusUnit | CZ64: H32OwnOccHUMobHom | DA64: H32OwnOccHUBoatRVOth | DB64: H32RentrOccHU3 | DC64: H32RntrOccHU1Det | DD64: H32RntrOccHU1Att | DE64: H32RntrOccHU2Unit | DF64: H32RntrOccHU3to4Unit | DG64: H32RntrOccHU5to9Unit | DH64: H32RntrOccHU10to19Unit | DI64: H32RntrOccHU20to49Unit | DJ64: H32RntrOccHU50PlusUnit | DK64: H32RntrOccHUMobHom | DL64: H32RntrOccHUBoatRVOth | DM64: H33TotPopInOccHU | DN64: H33PopInOwnOccHU2 | DO64: H33PopInOOHU1Det | DP64: H33PopInOOHU1Att | DQ64: H33PopInOOHU2unit | DR64: H33PopInOOHU3to4Unit | DS64: H33PopInOOHU5to9Unit | DT64: H33PopInOOHU10to19Unit | DU64: H33PopInOOHU20to49Unit | DV64: H33PopInOOHU50PlusUnit | DW64: H33PopInOOHUMobilHome | DX64: H33PopInOOHUOtherUnit | DY64: H33PopInRentOccHU2 | DZ64: H33PopInROHU1Det | EA64: H33PopInROHU1Att | EB64: H33PopInROHU2Unit | EC64: H33PopInROHU3to4Unit | ED64: H33PopInROHU5to9Unit | EE64: H33PopInROHU10to19Unit | EF64: H33PopInROHU20to49Unit | EG64: H33PopInROHU50PlusUnit | EH64: H33PopInROHUMobilHome | EI64: H33PopInROHUOtherUnit | EJ64: H36OccHousingUnitsdTotal | EK64: H36OwnerOccHU4 | EL64: H36OOHUBuilt99to0300 | EM64: H36OOHUBuilt95to98 | EN64: H36OOHUBuilt90to94 | EO64: H36OOHUBuilt80to89 | EP64: H36OOHUBuilt70to79 | EQ64: H36OOHUBuilt60to69 | ER64: H36OOHUBuilt50to59 | ES64: H36OOHUBuilt40to49 | ET64: H36OOHUBuilt39Earlier | EU64: H36RentOccHU4 | EV64: H36ROHUBuilt99to0300 | EW64: H36ROHUBuilt95to98 | EX64: H36ROHUBuilt90to94 | EY64: H36ROHUBuilt80to89 | EZ64: H36ROHUBuilt70to79 | FA64: H36ROHUBuilt60to69 | FB64: H36ROHUBuilt50to59 | FC64: H36ROHUBuilt40to49 | FD64: H36ROHUBuilt39Earlier | FE64: H40OccupHousUnitse | FF64: H40HeatFuelUtilGas | FG64: H40HeatFuelBotGas | FH64: H40HeatFuelElect | FI64: H40HeatFuelOilKero | FJ64: H40HeatFuelCoal | FK64: H40HeatFuelWood | FL64: H40HeatFuelSolar | FM64: H40HeatFuelOther | FN64: H40HeatFuelNone | FO64: H41TotalHU | FP64: H41HUNoBdrm | FQ64: H41HU1Bdrm | FR64: H41HU2Bdrm | FS64: H41HU3Bdrm | FT64: H41HU4Bdrm | FU64: H41HU5MoreBdrm | FV64: H42OccuHousUnitf | FW64: H42OwnerOccHU5 | FX64: H42OOHUNoBdrm | FY64: H42OOHU1Bdrm | FZ64: H42OOHU2Bdrm | GA64: H42OOHU3Bdrm | GB64: H42OOHU4Bdrm | GC64: H42OOHU5PlusBdrm | GD64: H42RentOccHU5 | GE64: H42ROHUNoBdrm | GF64: H42ROHU1Bdrm | GG64: H42ROHU2Bdrm | GH64: H42ROHU3Bdrm | GI64: H42ROHU4Bdrm | GJ64: H42ROHU5PlusBdrm | GK64: H48OccupHousUnitsg | GL64: H48OwnerOccHU6 | GM64: H48OOHUwCompltPlumFacil | GN64: H48OOHULackCompltPlumFacil | GO64: H48RentOccHU6 | GP64: H48ROHUwCompltPlumFacil | GQ64: H48ROHULackCompltPlumFacil | GR64: H51OccupHousUnitf | GS64: H51OwnerOccHU7 | GT64: H51OOHUwCompleteKitFacil | GU64: H51OOHULackCompleteKitFacil | GV64: H51RenterOccHU7 | GW64: H51ROHUwCompleteKitFacil | GX64: H51ROHULackCompleteKitFacil
A65: =VLOOKUP(DropDownList!$B47,CntyQryCensus!$A$306:$GX$348,A$1) -> Franconia | B65: =VLOOKUP(DropDownList!$B47,CntyQryCensus!$A$306:$GX$348,B$1) -> 0001247 | C65: =VLOOKUP(DropDownList!$B47,CntyQryCensus!$A$306:$GX$348,C$1) -> 27300 | D65: =VLOOKUP(DropDownList!$B47,CntyQryCensus!$A$306:$GX$348,D$1) -> 924 | E65: =VLOOKUP(DropDownList!$B47,CntyQryCensus!$A$306:$GX$348,E$1) -> 728 | F65: =VLOOKUP(DropDownList!$B47,CntyQryCensus!$A$306:$GX$348,F$1) -> 315 | G65: =VLOOKUP(DropDownList!$B47,CntyQryCensus!$A$306:$GX$348,G$1) -> 174 | H65: =VLOOKUP(DropDownList!$B47,CntyQryCensus!$A$306:$GX$348,H$1) -> 141 | I65: =VLOOKUP(DropDownList!$B47,CntyQryCensus!$A$306:$GX$348,I$1) -> 702 | J65: =VLOOKUP(DropDownList!$B47,CntyQryCensus!$A$306:$GX$348,J$1) -> 728 | K65: =VLOOKUP(DropDownList!$B47,CntyQryCensus!$A$306:$GX$348,K$1) -> 0 | L65: =VLOOKUP(DropDownList!$B47,CntyQryCensus!$A$306:$GX$348,L$1) -> 0 | M65: =VLOOKUP(DropDownList!$B47,CntyQryCensus!$A$306:$GX$348,M$1) -> 0 | N65: =VLOOKUP(DropDownList!$B47,CntyQryCensus!$A$306:$GX$348,N$1) -> 728 | O65: =VLOOKUP(DropDownList!$B47,CntyQryCensus!$A$306:$GX$348,O$1) -> 0 | P65: =VLOOKUP(DropDownList!$B47,CntyQryCensus!$A$306:$GX$348,P$1) -> 728 | Q65: =VLOOKUP(DropDownList!$B47,CntyQryCensus!$A$306:$GX$348,Q$1) -> 392 | R65: =VLOOKUP(DropDownList!$B47,CntyQryCensus!$A$306:$GX$348,R$1) -> 276 | S65: =VLOOKUP(DropDownList!$B47,CntyQryCensus!$A$306:$GX$348,S$1) -> 116 | T65: =VLOOKUP(DropDownList!$B47,CntyQryCensus!$A$306:$GX$348,T$1) -> 336 | U65: =VLOOKUP(DropDownList!$B47,CntyQryCensus!$A$306:$GX$348,U$1) -> 9 | V65: =VLOOKUP(DropDownList!$B47,CntyQryCensus!$A$306:$GX$348,V$1) -> 7 | W65: =VLOOKUP(DropDownList!$B47,CntyQryCensus!$A$306:$GX$348,W$1) -> 3 | X65: =VLOOKUP(DropDownList!$B47,CntyQryCensus!$A$306:$GX$348,X$1) -> 314 | Y65: =VLOOKUP(DropDownList!$B47,CntyQryCensus!$A$306:$GX$348,Y$1) -> 0 | Z65: =VLOOKUP(DropDownList!$B47,CntyQryCensus!$A$306:$GX$348,Z$1) -> 3 | AA65: =VLOOKUP(DropDownList!$B47,CntyQryCensus!$A$306:$GX$348,AA$1) -> 392 | AB65: =VLOOKUP(DropDownList!$B47,CntyQryCensus!$A$306:$GX$348,AB$1) -> 276 | AC65: =VLOOKUP(DropDownList!$B47,CntyQryCensus!$A$306:$GX$348,AC$1) -> 0 | AD65: =VLOOKUP(DropDownList!$B47,CntyQryCensus!$A$306:$GX$348,AD$1) -> 21 | AE65: =VLOOKUP(DropDownList!$B47,CntyQryCensus!$A$306:$GX$348,AE$1) -> 36 | AF65: =VLOOKUP(DropDownList!$B47,CntyQryCensus!$A$306:$GX$348,AF$1) -> 67 | AG65: =VLOOKUP(DropDownList!$B47,CntyQryCensus!$A$306:$GX$348,AG$1) -> 43 | AH65: =VLOOKUP(DropDownList!$B47,CntyQryCensus!$A$306:$GX$348,AH$1) -> 29 | AI65: =VLOOKUP(DropDownList!$B47,CntyQryCensus!$A$306:$GX$348,AI$1) -> 45 | AJ65: =VLOOKUP(DropDownList!$B47,CntyQryCensus!$A$306:$GX$348,AJ$1) -> 28 | AK65: =VLOOKUP(DropDownList!$B47,CntyQryCensus!$A$306:$GX$348,AK$1) -> 7 | AL65: =VLOOKUP(DropDownList!$B47,CntyQryCensus!$A$306:$GX$348,AL$1) -> 116 | AM65: =VLOOKUP(DropDownList!$B47,CntyQryCensus!$A$306:$GX$348,AM$1) -> 13 | AN65: =VLOOKUP(DropDownList!$B47,CntyQryCensus!$A$306:$GX$348,AN$1) -> 24 | AO65: =VLOOKUP(DropDownList!$B47,CntyQryCensus!$A$306:$GX$348,AO$1) -> 33 | AP65: =VLOOKUP(DropDownList!$B47,CntyQryCensus!$A$306:$GX$348,AP$1) -> 22 | AQ65: =VLOOKUP(DropDownList!$B47,CntyQryCensus!$A$306:$GX$348,AQ$1) -> 7 | AR65: =VLOOKUP(DropDownList!$B47,CntyQryCensus!$A$306:$GX$348,AR$1) -> 4 | AS65: =VLOOKUP(DropDownList!$B47,CntyQryCensus!$A$306:$GX$348,AS$1) -> 1 | AT65: =VLOOKUP(DropDownList!$B47,CntyQryCensus!$A$306:$GX$348,AT$1) -> 8 | AU65: =VLOOKUP(DropDownList!$B47,CntyQryCensus!$A$306:$GX$348,AU$1) -> 4 | AV65: =VLOOKUP(DropDownList!$B47,CntyQryCensus!$A$306:$GX$348,AV$1) -> 852 | AW65: =VLOOKUP(DropDownList!$B47,CntyQryCensus!$A$306:$GX$348,AW$1) -> 607 | AX65: =VLOOKUP(DropDownList!$B47,CntyQryCensus!$A$306:$GX$348,AX$1) -> 245 | AY65: =VLOOKUP(DropDownList!$B47,CntyQryCensus!$A$306:$GX$348,AY$1) -> 392 | AZ65: =VLOOKUP(DropDownList!$B47,CntyQryCensus!$A$306:$GX$348,AZ$1) -> 276 | BA65: =VLOOKUP(DropDownList!$B47,CntyQryCensus!$A$306:$GX$348,BA$1) -> 80 | BB65: =VLOOKUP(DropDownList!$B47,CntyQryCensus!$A$306:$GX$348,BB$1) -> 105 | BC65: =VLOOKUP(DropDownList!$B47,CntyQryCensus!$A$306:$GX$348,BC$1) -> 42 | BD65: =VLOOKUP(DropDownList!$B47,CntyQryCensus!$A$306:$GX$348,BD$1) -> 38 | BE65: =VLOOKUP(DropDownList!$B47,CntyQryCensus!$A$306:$GX$348,BE$1) -> 8 | BF65: =VLOOKUP(DropDownList!$B47,CntyQryCensus!$A$306:$GX$348,BF$1) -> 0 | BG65: =VLOOKUP(DropDownList!$B47,CntyQryCensus!$A$306:$GX$348,BG$1) -> 3 | BH65: =VLOOKUP(DropDownList!$B47,CntyQryCensus!$A$306:$GX$348,BH$1) -> 116 | BI65: =VLOOKUP(DropDownList!$B47,CntyQryCensus!$A$306:$GX$348,BI$1) -> 44 | BJ65: =VLOOKUP(DropDownList!$B47,CntyQryCensus!$A$306:$GX$348,BJ$1) -> 43 | BK65: =VLOOKUP(DropDownList!$B47,CntyQryCensus!$A$306:$GX$348,BK$1) -> 20 | BL65: =VLOOKUP(DropDownList!$B47,CntyQryCensus!$A$306:$GX$348,BL$1) -> 7 | BM65: =VLOOKUP(DropDownList!$B47,CntyQryCensus!$A$306:$GX$348,BM$1) -> 0 | BN65: =VLOOKUP(DropDownList!$B47,CntyQryCensus!$A$306:$GX$348,BN$1) -> 2 | BO65: =VLOOKUP(DropDownList!$B47,CntyQryCensus!$A$306:$GX$348,BO$1) -> 0 | BP65: =VLOOKUP(DropDownList!$B47,CntyQryCensus!$A$306:$GX$348,BP$1) -> 2 | BQ65: =VLOOKUP(DropDownList!$B47,CntyQryCensus!$A$306:$GX$348,BQ$1) -> 2 | BR65: =VLOOKUP(DropDownList!$B47,CntyQryCensus!$A$306:$GX$348,BR$1) -> 2 | BS65: =VLOOKUP(DropDownList!$B47,CntyQryCensus!$A$306:$GX$348,BS$1) -> 728 | BT65: =VLOOKUP(DropDownList!$B47,CntyQryCensus!$A$306:$GX$348,BT$1) -> 15 | BU65: =VLOOKUP(DropDownList!$B47,CntyQryCensus!$A$306:$GX$348,BU$1) -> 14 | BV65: =VLOOKUP(DropDownList!$B47,CntyQryCensus!$A$306:$GX$348,BV$1) -> 49 | BW65: =VLOOKUP(DropDownList!$B47,CntyQryCensus!$A$306:$GX$348,BW$1) -> 114 | BX65: =VLOOKUP(DropDownList!$B47,CntyQryCensus!$A$306:$GX$348,BX$1) -> 117 | BY65: =VLOOKUP(DropDownList!$B47,CntyQryCensus!$A$306:$GX$348,BY$1) -> 141 | BZ65: =VLOOKUP(DropDownList!$B47,CntyQryCensus!$A$306:$GX$348,BZ$1) -> 140 | CA65: =VLOOKUP(DropDownList!$B47,CntyQryCensus!$A$306:$GX$348,CA$1) -> 63 | CB65: =VLOOKUP(DropDownList!$B47,CntyQryCensus!$A$306:$GX$348,CB$1) -> 75 | CC65: =VLOOKUP(DropDownList!$B47,CntyQryCensus!$A$306:$GX$348,CC$1) -> 6 | CD65: =VLOOKUP(DropDownList!$B47,CntyQryCensus!$A$306:$GX$348,CD$1) -> 4311 | CE65: =VLOOKUP(DropDownList!$B47,CntyQryCensus!$A$306:$GX$348,CE$1) -> 728 | CF65: =VLOOKUP(DropDownList!$B47,CntyQryCensus!$A$306:$GX$348,CF$1) -> 551 | CG65: =VLOOKUP(DropDownList!$B47,CntyQryCensus!$A$306:$GX$348,CG$1) -> 34 | CH65: =VLOOKUP(DropDownList!$B47,CntyQryCensus!$A$306:$GX$348,CH$1) -> 7 | CI65: =VLOOKUP(DropDownList!$B47,CntyQryCensus!$A$306:$GX$348,CI$1) -> 55 | CJ65: =VLOOKUP(DropDownList!$B47,CntyQryCensus!$A$306:$GX$348,CJ$1) -> 28 | CK65: =VLOOKUP(DropDownList!$B47,CntyQryCensus!$A$306:$GX$348,CK$1) -> 5 | CL65: =VLOOKUP(DropDownList!$B47,CntyQryCensus!$A$306:$GX$348,CL$1) -> 2 | CM65: =VLOOKUP(DropDownList!$B47,CntyQryCensus!$A$306:$GX$348,CM$1) -> 0 | CN65: =VLOOKUP(DropDownList!$B47,CntyQryCensus!$A$306:$GX$348,CN$1) -> 46 | CO65: =VLOOKUP(DropDownList!$B47,CntyQryCensus!$A$306:$GX$348,CO$1) -> 0 | CP65: =VLOOKUP(DropDownList!$B47,CntyQryCensus!$A$306:$GX$348,CP$1) -> 392 | CQ65: =VLOOKUP(DropDownList!$B47,CntyQryCensus!$A$306:$GX$348,CQ$1) -> 276 | CR65: =VLOOKUP(DropDownList!$B47,CntyQryCensus!$A$306:$GX$348,CR$1) -> 253 | CS65: =VLOOKUP(DropDownList!$B47,CntyQryCensus!$A$306:$GX$348,CS$1) -> 8 | CT65: =VLOOKUP(DropDownList!$B47,CntyQryCensus!$A$306:$GX$348,CT$1) -> 0 | CU65: =VLOOKUP(DropDownList!$B47,CntyQryCensus!$A$306:$GX$348,CU$1) -> 0 | CV65: =VLOOKUP(DropDownList!$B47,CntyQryCensus!$A$306:$GX$348,CV$1) -> 0 | CW65: =VLOOKUP(DropDownList!$B47,CntyQryCensus!$A$306:$GX$348,CW$1) -> 3 | CX65: =VLOOKUP(DropDownList!$B47,CntyQryCensus!$A$306:$GX$348,CX$1) -> 0 | CY65: =VLOOKUP(DropDownList!$B47,CntyQryCensus!$A$306:$GX$348,CY$1) -> 0 | CZ65: =VLOOKUP(DropDownList!$B47,CntyQryCensus!$A$306:$GX$348,CZ$1) -> 12 | DA65: =VLOOKUP(DropDownList!$B47,CntyQryCensus!$A$306:$GX$348,DA$1) -> 0 | DB65: =VLOOKUP(DropDownList!$B47,CntyQryCensus!$A$306:$GX$348,DB$1) -> 116 | DC65: =VLOOKUP(DropDownList!$B47,CntyQryCensus!$A$306:$GX$348,DC$1) -> 48 | DD65: =VLOOKUP(DropDownList!$B47,CntyQryCensus!$A$306:$GX$348,DD$1) -> 4 | DE65: =VLOOKUP(DropDownList!$B47,CntyQryCensus!$A$306:$GX$348,DE$1) -> 5 | DF65: =VLOOKUP(DropDownList!$B47,CntyQryCensus!$A$306:$GX$348,DF$1) -> 36 | DG65: =VLOOKUP(DropDownList!$B47,CntyQryCensus!$A$306:$GX$348,DG$1) -> 17 | DH65: =VLOOKUP(DropDownList!$B47,CntyQryCensus!$A$306:$GX$348,DH$1) -> 2 | DI65: =VLOOKUP(DropDownList!$B47,CntyQryCensus!$A$306:$GX$348,DI$1) -> 2 | DJ65: =VLOOKUP(DropDownList!$B47,CntyQryCensus!$A$306:$GX$348,DJ$1) -> 0 | DK65: =VLOOKUP(DropDownList!$B47,CntyQryCensus!$A$306:$GX$348,DK$1) -> 2 | DL65: =VLOOKUP(DropDownList!$B47,CntyQryCensus!$A$306:$GX$348,DL$1) -> 0 | DM65: =VLOOKUP(DropDownList!$B47,CntyQryCensus!$A$306:$GX$348,DM$1) -> 852 | DN65: =VLOOKUP(DropDownList!$B47,CntyQryCensus!$A$306:$GX$348,DN$1) -> 607 | DO65: =VLOOKUP(DropDownList!$B47,CntyQryCensus!$A$306:$GX$348,DO$1) -> 575 | DP65: =VLOOKUP(DropDownList!$B47,CntyQryCensus!$A$306:$GX$348,DP$1) -> 14 | DQ65: =VLOOKUP(DropDownList!$B47,CntyQryCensus!$A$306:$GX$348,DQ$1) -> 0 | DR65: =VLOOKUP(DropDownList!$B47,CntyQryCensus!$A$306:$GX$348,DR$1) -> 0 | DS65: =VLOOKUP(DropDownList!$B47,CntyQryCensus!$A$306:$GX$348,DS$1) -> 0 | DT65: =VLOOKUP(DropDownList!$B47,CntyQryCensus!$A$306:$GX$348,DT$1) -> 2 | DU65: =VLOOKUP(DropDownList!$B47,CntyQryCensus!$A$306:$GX$348,DU$1) -> 0 | DV65: =VLOOKUP(DropDownList!$B47,CntyQryCensus!$A$306:$GX$348,DV$1) -> 0 | DW65: =VLOOKUP(DropDownList!$B47,CntyQryCensus!$A$306:$GX$348,DW$1) -> 16 | DX65: =VLOOKUP(DropDownList!$B47,CntyQryCensus!$A$306:$GX$348,DX$1) -> 0 | DY65: =VLOOKUP(DropDownList!$B47,CntyQryCensus!$A$306:$GX$348,DY$1) -> 245 | DZ65: =VLOOKUP(DropDownList!$B47,CntyQryCensus!$A$306:$GX$348,DZ$1) -> 102 | EA65: =VLOOKUP(DropDownList!$B47,CntyQryCensus!$A$306:$GX$348,EA$1) -> 10 | EB65: =VLOOKUP(DropDownList!$B47,CntyQryCensus!$A$306:$GX$348,EB$1) -> 18 | EC65: =VLOOKUP(DropDownList!$B47,CntyQryCensus!$A$306:$GX$348,EC$1) -> 69 | ED65: =VLOOKUP(DropDownList!$B47,CntyQryCensus!$A$306:$GX$348,ED$1) -> 38 | EE65: =VLOOKUP(DropDownList!$B47,CntyQryCensus!$A$306:$GX$348,EE$1) -> 4 | EF65: =VLOOKUP(DropDownList!$B47,CntyQryCensus!$A$306:$GX$348,EF$1) -> 2 | EG65: =VLOOKUP(DropDownList!$B47,CntyQryCensus!$A$306:$GX$348,EG$1) -> 0 | EH65: =VLOOKUP(DropDownList!$B47,CntyQryCensus!$A$306:$GX$348,EH$1) -> 2 | EI65: =VLOOKUP(DropDownList!$B47,CntyQryCensus!$A$306:$GX$348,EI$1) -> 0 | EJ65: =VLOOKUP(DropDownList!$B47,CntyQryCensus!$A$306:$GX$348,EJ$1) -> 392 | EK65: =VLOOKUP(DropDownList!$B47,CntyQryCensus!$A$306:$GX$348,EK$1) -> 276 | EL65: =VLOOKUP(DropDownList!$B47,CntyQryCensus!$A$306:$GX$348,EL$1) -> 9 | EM65: =VLOOKUP(DropDownList!$B47,CntyQryCensus!$A$306:$GX$348,EM$1) -> 30 | EN65: =VLOOKUP(DropDownList!$B47,CntyQryCensus!$A$306:$GX$348,EN$1) -> 21 | EO65: =VLOOKUP(DropDownList!$B47,CntyQryCensus!$A$306:$GX$348,EO$1) -> 46 | EP65: =VLOOKUP(DropDownList!$B47,CntyQryCensus!$A$306:$GX$348,EP$1) -> 36 | EQ65: =VLOOKUP(DropDownList!$B47,CntyQryCensus!$A$306:$GX$348,EQ$1) -> 16 | ER65: =VLOOKUP(DropDownList!$B47,CntyQryCensus!$A$306:$GX$348,ER$1) -> 19 | ES65: =VLOOKUP(DropDownList!$B47,CntyQryCensus!$A$306:$GX$348,ES$1) -> 12 | ET65: =VLOOKUP(DropDownList!$B47,CntyQryCensus!$A$306:$GX$348,ET$1) -> 87 | EU65: =VLOOKUP(DropDownList!$B47,CntyQryCensus!$A$306:$GX$348,EU$1) -> 116 | EV65: =VLOOKUP(DropDownList!$B47,CntyQryCensus!$A$306:$GX$348,EV$1) -> 0 | EW65: =VLOOKUP(DropDownList!$B47,CntyQryCensus!$A$306:$GX$348,EW$1) -> 0 | EX65: =VLOOKUP(DropDownList!$B47,CntyQryCensus!$A$306:$GX$348,EX$1) -> 4 | EY65: =VLOOKUP(DropDownList!$B47,CntyQryCensus!$A$306:$GX$348,EY$1) -> 6 | EZ65: =VLOOKUP(DropDownList!$B47,CntyQryCensus!$A$306:$GX$348,EZ$1) -> 18 | FA65: =VLOOKUP(DropDownList!$B47,CntyQryCensus!$A$306:$GX$348,FA$1) -> 28 | FB65: =VLOOKUP(DropDownList!$B47,CntyQryCensus!$A$306:$GX$348,FB$1) -> 3 | FC65: =VLOOKUP(DropDownList!$B47,CntyQryCensus!$A$306:$GX$348,FC$1) -> 2 | FD65: =VLOOKUP(DropDownList!$B47,CntyQryCensus!$A$306:$GX$348,FD$1) -> 55 | FE65: =VLOOKUP(DropDownList!$B47,CntyQryCensus!$A$306:$GX$348,FE$1) -> 392 | FF65: =VLOOKUP(DropDownList!$B47,CntyQryCensus!$A$306:$GX$348,FF$1) -> 2 | FG65: =VLOOKUP(DropDownList!$B47,CntyQryCensus!$A$306:$GX$348,FG$1) -> 40 | FH65: =VLOOKUP(DropDownList!$B47,CntyQryCensus!$A$306:$GX$348,FH$1) -> 22 | FI65: =VLOOKUP(DropDownList!$B47,CntyQryCensus!$A$306:$GX$348,FI$1) -> 293 | FJ65: =VLOOKUP(DropDownList!$B47,CntyQryCensus!$A$306:$GX$348,FJ$1) -> 0 | FK65: =VLOOKUP(DropDownList!$B47,CntyQryCensus!$A$306:$GX$348,FK$1) -> 35 | FL65: =VLOOKUP(DropDownList!$B47,CntyQryCensus!$A$306:$GX$348,FL$1) -> 0 | FM65: =VLOOKUP(DropDownList!$B47,CntyQryCensus!$A$306:$GX$348,FM$1) -> 0 | FN65: =VLOOKUP(DropDownList!$B47,CntyQryCensus!$A$306:$GX$348,FN$1) -> 0 | FO65: =VLOOKUP(DropDownList!$B47,CntyQryCensus!$A$306:$GX$348,FO$1) -> 728 | FP65: =VLOOKUP(DropDownList!$B47,CntyQryCensus!$A$306:$GX$348,FP$1) -> 15 | FQ65: =VLOOKUP(DropDownList!$B47,CntyQryCensus!$A$306:$GX$348,FQ$1) -> 60 | FR65: =VLOOKUP(DropDownList!$B47,CntyQryCensus!$A$306:$GX$348,FR$1) -> 155 | FS65: =VLOOKUP(DropDownList!$B47,CntyQryCensus!$A$306:$GX$348,FS$1) -> 326 | FT65: =VLOOKUP(DropDownList!$B47,CntyQryCensus!$A$306:$GX$348,FT$1) -> 132 | FU65: =VLOOKUP(DropDownList!$B47,CntyQryCensus!$A$306:$GX$348,FU$1) -> 40 | FV65: =VLOOKUP(DropDownList!$B47,CntyQryCensus!$A$306:$GX$348,FV$1) -> 392 | FW65: =VLOOKUP(DropDownList!$B47,CntyQryCensus!$A$306:$GX$348,FW$1) -> 276 | FX65: =VLOOKUP(DropDownList!$B47,CntyQryCensus!$A$306:$GX$348,FX$1) -> 3 | FY65: =VLOOKUP(DropDownList!$B47,CntyQryCensus!$A$306:$GX$348,FY$1) -> 8 | FZ65: =VLOOKUP(DropDownList!$B47,CntyQryCensus!$A$306:$GX$348,FZ$1) -> 40 | GA65: =VLOOKUP(DropDownList!$B47,CntyQryCensus!$A$306:$GX$348,GA$1) -> 147 | GB65: =VLOOKUP(DropDownList!$B47,CntyQryCensus!$A$306:$GX$348,GB$1) -> 60 | GC65: =VLOOKUP(DropDownList!$B47,CntyQryCensus!$A$306:$GX$348,GC$1) -> 18 | GD65: =VLOOKUP(DropDownList!$B47,CntyQryCensus!$A$306:$GX$348,GD$1) -> 116 | GE65: =VLOOKUP(DropDownList!$B47,CntyQryCensus!$A$306:$GX$348,GE$1) -> 2 | GF65: =VLOOKUP(DropDownList!$B47,CntyQryCensus!$A$306:$GX$348,GF$1) -> 39 | GG65: =VLOOKUP(DropDownList!$B47,CntyQryCensus!$A$306:$GX$348,GG$1) -> 30 | GH65: =VLOOKUP(DropDownList!$B47,CntyQryCensus!$A$306:$GX$348,GH$1) -> 31 | GI65: =VLOOKUP(DropDownList!$B47,CntyQryCensus!$A$306:$GX$348,GI$1) -> 12 | GJ65: =VLOOKUP(DropDownList!$B47,CntyQryCensus!$A$306:$GX$348,GJ$1) -> 2 | GK65: =VLOOKUP(DropDownList!$B47,CntyQryCensus!$A$306:$GX$348,GK$1) -> 392 | GL65: =VLOOKUP(DropDownList!$B47,CntyQryCensus!$A$306:$GX$348,GL$1) -> 276 | GM65: =VLOOKUP(DropDownList!$B47,CntyQryCensus!$A$306:$GX$348,GM$1) -> 274 | GN65: =VLOOKUP(DropDownList!$B47,CntyQryCensus!$A$306:$GX$348,GN$1) -> 2 | GO65: =VLOOKUP(DropDownList!$B47,CntyQryCensus!$A$306:$GX$348,GO$1) -> 116 | GP65: =VLOOKUP(DropDownList!$B47,CntyQryCensus!$A$306:$GX$348,GP$1) -> 114 | GQ65: =VLOOKUP(DropDownList!$B47,CntyQryCensus!$A$306:$GX$348,GQ$1) -> 2 | GR65: =VLOOKUP(DropDownList!$B47,CntyQryCensus!$A$306:$GX$348,GR$1) -> 392 | GS65: =VLOOKUP(DropDownList!$B47,CntyQryCensus!$A$306:$GX$348,GS$1) -> 276 | GT65: =VLOOKUP(DropDownList!$B47,CntyQryCensus!$A$306:$GX$348,GT$1) -> 273 | GU65: =VLOOKUP(DropDownList!$B47,CntyQryCensus!$A$306:$GX$348,GU$1) -> 3 | GV65: =VLOOKUP(DropDownList!$B47,CntyQryCensus!$A$306:$GX$348,GV$1) -> 116 | GW65: =VLOOKUP(DropDownList!$B47,CntyQryCensus!$A$306:$GX$348,GW$1) -> 112 | GX65: =VLOOKUP(DropDownList!$B47,CntyQryCensus!$A$306:$GX$348,GX$1) -> 4
A68: Census 2000 SummaryFile3 Sample Data - SF3TownQry8HousingCostA
A69: NAME | B69: LOGRECNO | C69: COUNTY | D69: TotalPop | E69: H62RntrOccHU | F69: H62RntrOccHUwRent | G69: H62ROHUGRent<100 | H69: H62ROHUGRent100to149 | I69: H62ROHUGRent150to199 | J69: H62ROHUGRent200to249 | K69: H62ROHUGRent250to299 | L69: H62ROHUGRent300to349 | M69: H62ROHUGRent350to399 | N69: H62ROHUGRent400to449 | O69: H62ROHUGRent450to499 | P69: H62ROHUGRent500to549 | Q69: H62ROHUGRent550to599 | R69: H62ROHUGRent600to649 | S69: H62ROHUGRent650to699 | T69: H62ROHUGRent700to749 | U69: H62ROHUGRent750to799 | V69: H62ROHUGRent800to899 | W69: H62ROHUGRent900to999 | X69: H62ROHUGRent1000to1249 | Y69: H62ROHUGRent1250to1499 | Z69: H62ROHUGRent1500to1999 | AA69: H62ROHUGRent2000> | AB69: H62ROHUNoGRent | AC69: H63MedianGrossRnt | AD69: H69RenterOccHsU | AE69: H69GRnt<10PctHHInc | AF69: H69GRnt10to15PctHHInc | AG69: H69GRnt15to20PctHHInc | AH69: H69GRnt20to25PctHHInc | AI69: H69GRnt25to30PctHHInc | AJ69: H69GRnt30to35PctHHInc | AK69: H69GRnt35to40PctHHInc | AL69: H69GRnt40to50PctHHInc | AM69: H69GRnt>50PctHHInc | AN69: H69GRntPctNotcomputed | AO69: H73RenterOccHU | AP69: H73ROHUHhInc<10k | AQ69: H73ROHUHhInc<10kRnt<20pct | AR69: H73ROHUHhInc<10kRnt20to25pct | AS69: H73ROHUHhInc<10kRnt25to30pct | AT69: H73ROHUHhInc<10kRnt30to35pct | AU69: H73ROHUHhInc<10kRnt>35pct | AV69: H73ROHUHhInc<10kPctNotComput | AW69: H73ROHUHhInc10to20k | AX69: H73ROHUHhInc10to20kRnt<20pct | AY69: H73ROHUHhInc10to20kRnt20to25pct | AZ69: H73ROHUHhInc10to20kRnt25to30pct | BA69: H73ROHUHhInc10to20kRnt30to35pct | BB69: H73ROHUHhInc10to20kRnt>35pct | BC69: H73ROHUHhInc10to20kRntPctNC | BD69: H73ROHUHhInc20to35k | BE69: H73ROHUHhInc20to35kRnt<20pct | BF69: H73ROHUHhInc20to35kRnt20to25pct | BG69: H73ROHUHhInc20to35kRnt25to30pct | BH69: H73ROHUHhInc20to35kRnt30to35pct | BI69: H73ROHUHhInc20to35kRnt>35pct | BJ69: H73ROHUHhInc20to35kRntPctNC | BK69: H73ROHUHhInc35to40k | BL69: H73ROHUHhInc35to40kRnt<20pct | BM69: H73ROHUHhInc35to40kRnt20to25pct | BN69: H73ROHUHhInc35to40kRnt25to30pct | BO69: H73ROHUHhInc35to40kRnt30to35pct | BP69: H73ROHUHhInc35to40kRnt>35pct | BQ69: H73ROHUHhInc35to40kRntPctNC | BR69: H73ROHUHhInc50to75k | BS69: H73ROHUHhInc50to75kRnt<20pct | BT69: H73ROHUHhInc50to75kRnt20to25pct | BU69: H73ROHUHhInc50to75kRnt25to30pct | BV69: H73ROHUHhInc50to75kRnt30to35pct | BW69: H73ROHUHhInc50to75kRnt>35pct | BX69: H73ROHUHhInc50to75kRntPctNC | BY69: H73ROHUHhInc75to100k | BZ69: H73ROHUHhInc75to100kRnt<20pct | CA69: H73ROHUHhInc75to100kRnt20to25pct | CB69: H73ROHUHhInc75to100kRnt25to30pct | CC69: H73ROHUHhInc75to100kRnt30to35pct | CD69: H73ROHUHhInc75to100kRnt>35pct | CE69: H73ROHUHhInc75to100kRntPctNC | CF69: H73ROHUHhInc>100k | CG69: H73ROHUHhInc>100kRnt<20pct | CH69: H73ROHUHhInc>100kRnt20to25pct | CI69: H73ROHUHhInc>100kRnt25to30pct | CJ69: H73ROHUHhInc>100kRnt30to35pct | CK69: H73ROHUHhInc>100kRnt>35pct | CL69: H73ROHUHhInc>100kRntPctNC | CM69: H73ROHUHhInc>100kRntPctNC
A70: =VLOOKUP(DropDownList!$B$47,CntyQryCensus!$A$357:$CM$399,A$1) -> Franconia | B70: =VLOOKUP(DropDownList!$B$47,CntyQryCensus!$A$357:$CM$399,B$1) -> 0001247 | C70: =VLOOKUP(DropDownList!$B$47,CntyQryCensus!$A$357:$CM$399,C$1) -> 27300 | D70: =VLOOKUP(DropDownList!$B$47,CntyQryCensus!$A$357:$CM$399,D$1) -> 924 | E70: =VLOOKUP(DropDownList!$B$47,CntyQryCensus!$A$357:$CM$399,E$1) -> 105 | F70: =VLOOKUP(DropDownList!$B$47,CntyQryCensus!$A$357:$CM$399,F$1) -> 100 | G70: =VLOOKUP(DropDownList!$B$47,CntyQryCensus!$A$357:$CM$399,G$1) -> 0 | H70: =VLOOKUP(DropDownList!$B$47,CntyQryCensus!$A$357:$CM$399,H$1) -> 2 | I70: =VLOOKUP(DropDownList!$B$47,CntyQryCensus!$A$357:$CM$399,I$1) -> 0 | J70: =VLOOKUP(DropDownList!$B$47,CntyQryCensus!$A$357:$CM$399,J$1) -> 0 | K70: =VLOOKUP(DropDownList!$B$47,CntyQryCensus!$A$357:$CM$399,K$1) -> 2 | L70: =VLOOKUP(DropDownList!$B$47,CntyQryCensus!$A$357:$CM$399,L$1) -> 2 | M70: =VLOOKUP(DropDownList!$B$47,CntyQryCensus!$A$357:$CM$399,M$1) -> 15 | N70: =VLOOKUP(DropDownList!$B$47,CntyQryCensus!$A$357:$CM$399,N$1) -> 6 | O70: =VLOOKUP(DropDownList!$B$47,CntyQryCensus!$A$357:$CM$399,O$1) -> 16 | P70: =VLOOKUP(DropDownList!$B$47,CntyQryCensus!$A$357:$CM$399,P$1) -> 14 | Q70: =VLOOKUP(DropDownList!$B$47,CntyQryCensus!$A$357:$CM$399,Q$1) -> 14 | R70: =VLOOKUP(DropDownList!$B$47,CntyQryCensus!$A$357:$CM$399,R$1) -> 10 | S70: =VLOOKUP(DropDownList!$B$47,CntyQryCensus!$A$357:$CM$399,S$1) -> 8 | T70: =VLOOKUP(DropDownList!$B$47,CntyQryCensus!$A$357:$CM$399,T$1) -> 3 | U70: =VLOOKUP(DropDownList!$B$47,CntyQryCensus!$A$357:$CM$399,U$1) -> 4 | V70: =VLOOKUP(DropDownList!$B$47,CntyQryCensus!$A$357:$CM$399,V$1) -> 4 | W70: =VLOOKUP(DropDownList!$B$47,CntyQryCensus!$A$357:$CM$399,W$1) -> 0 | X70: =VLOOKUP(DropDownList!$B$47,CntyQryCensus!$A$357:$CM$399,X$1) -> 0 | Y70: =VLOOKUP(DropDownList!$B$47,CntyQryCensus!$A$357:$CM$399,Y$1) -> 0 | Z70: =VLOOKUP(DropDownList!$B$47,CntyQryCensus!$A$357:$CM$399,Z$1) -> 0 | AA70: =VLOOKUP(DropDownList!$B$47,CntyQryCensus!$A$357:$CM$399,AA$1) -> 0 | AB70: =VLOOKUP(DropDownList!$B$47,CntyQryCensus!$A$357:$CM$399,AB$1) -> 5 | AC70: =VLOOKUP(DropDownList!$B$47,CntyQryCensus!$A$357:$CM$399,AC$1) -> 525 | AD70: =VLOOKUP(DropDownList!$B$47,CntyQryCensus!$A$357:$CM$399,AD$1) -> 105 | AE70: =VLOOKUP(DropDownList!$B$47,CntyQryCensus!$A$357:$CM$399,AE$1) -> 6 | AF70: =VLOOKUP(DropDownList!$B$47,CntyQryCensus!$A$357:$CM$399,AF$1) -> 6 | AG70: =VLOOKUP(DropDownList!$B$47,CntyQryCensus!$A$357:$CM$399,AG$1) -> 23 | AH70: =VLOOKUP(DropDownList!$B$47,CntyQryCensus!$A$357:$CM$399,AH$1) -> 19 | AI70: =VLOOKUP(DropDownList!$B$47,CntyQryCensus!$A$357:$CM$399,AI$1) -> 12 | AJ70: =VLOOKUP(DropDownList!$B$47,CntyQryCensus!$A$357:$CM$399,AJ$1) -> 4 | AK70: =VLOOKUP(DropDownList!$B$47,CntyQryCensus!$A$357:$CM$399,AK$1) -> 10 | AL70: =VLOOKUP(DropDownList!$B$47,CntyQryCensus!$A$357:$CM$399,AL$1) -> 8 | AM70: =VLOOKUP(DropDownList!$B$47,CntyQryCensus!$A$357:$CM$399,AM$1) -> 8 | AN70: =VLOOKUP(DropDownList!$B$47,CntyQryCensus!$A$357:$CM$399,AN$1) -> 9 | AO70: =VLOOKUP(DropDownList!$B$47,CntyQryCensus!$A$357:$CM$399,AO$1) -> 105 | AP70: =VLOOKUP(DropDownList!$B$47,CntyQryCensus!$A$357:$CM$399,AP$1) -> 12 | AQ70: =VLOOKUP(DropDownList!$B$47,CntyQryCensus!$A$357:$CM$399,AQ$1) -> 0 | AR70: =VLOOKUP(DropDownList!$B$47,CntyQryCensus!$A$357:$CM$399,AR$1) -> 2 | AS70: =VLOOKUP(DropDownList!$B$47,CntyQryCensus!$A$357:$CM$399,AS$1) -> 0 | AT70: =VLOOKUP(DropDownList!$B$47,CntyQryCensus!$A$357:$CM$399,AT$1) -> 0 | AU70: =VLOOKUP(DropDownList!$B$47,CntyQryCensus!$A$357:$CM$399,AU$1) -> 6 | AV70: =VLOOKUP(DropDownList!$B$47,CntyQryCensus!$A$357:$CM$399,AV$1) -> 4 | AW70: =VLOOKUP(DropDownList!$B$47,CntyQryCensus!$A$357:$CM$399,AW$1) -> 24 | AX70: =VLOOKUP(DropDownList!$B$47,CntyQryCensus!$A$357:$CM$399,AX$1) -> 0 | AY70: =VLOOKUP(DropDownList!$B$47,CntyQryCensus!$A$357:$CM$399,AY$1) -> 0 | AZ70: =VLOOKUP(DropDownList!$B$47,CntyQryCensus!$A$357:$CM$399,AZ$1) -> 6 | BA70: =VLOOKUP(DropDownList!$B$47,CntyQryCensus!$A$357:$CM$399,BA$1) -> 0 | BB70: =VLOOKUP(DropDownList!$B$47,CntyQryCensus!$A$357:$CM$399,BB$1) -> 14 | BC70: =VLOOKUP(DropDownList!$B$47,CntyQryCensus!$A$357:$CM$399,BC$1) -> 4 | BD70: =VLOOKUP(DropDownList!$B$47,CntyQryCensus!$A$357:$CM$399,BD$1) -> 38 | BE70: =VLOOKUP(DropDownList!$B$47,CntyQryCensus!$A$357:$CM$399,BE$1) -> 11 | BF70: =VLOOKUP(DropDownList!$B$47,CntyQryCensus!$A$357:$CM$399,BF$1) -> 10 | BG70: =VLOOKUP(DropDownList!$B$47,CntyQryCensus!$A$357:$CM$399,BG$1) -> 6 | BH70: =VLOOKUP(DropDownList!$B$47,CntyQryCensus!$A$357:$CM$399,BH$1) -> 4 | BI70: =VLOOKUP(DropDownList!$B$47,CntyQryCensus!$A$357:$CM$399,BI$1) -> 6 | BJ70: =VLOOKUP(DropDownList!$B$47,CntyQryCensus!$A$357:$CM$399,BJ$1) -> 1 | BK70: =VLOOKUP(DropDownList!$B$47,CntyQryCensus!$A$357:$CM$399,BK$1) -> 23 | BL70: =VLOOKUP(DropDownList!$B$47,CntyQryCensus!$A$357:$CM$399,BL$1) -> 16 | BM70: =VLOOKUP(DropDownList!$B$47,CntyQryCensus!$A$357:$CM$399,BM$1) -> 7 | BN70: =VLOOKUP(DropDownList!$B$47,CntyQryCensus!$A$357:$CM$399,BN$1) -> 0 | BO70: =VLOOKUP(DropDownList!$B$47,CntyQryCensus!$A$357:$CM$399,BO$1) -> 0 | BP70: =VLOOKUP(DropDownList!$B$47,CntyQryCensus!$A$357:$CM$399,BP$1) -> 0 | BQ70: =VLOOKUP(DropDownList!$B$47,CntyQryCensus!$A$357:$CM$399,BQ$1) -> 0 | BR70: =VLOOKUP(DropDownList!$B$47,CntyQryCensus!$A$357:$CM$399,BR$1) -> 6 | BS70: =VLOOKUP(DropDownList!$B$47,CntyQryCensus!$A$357:$CM$399,BS$1) -> 6 | BT70: =VLOOKUP(DropDownList!$B$47,CntyQryCensus!$A$357:$CM$399,BT$1) -> 0 | BU70: =VLOOKUP(DropDownList!$B$47,CntyQryCensus!$A$357:$CM$399,BU$1) -> 0 | BV70: =VLOOKUP(DropDownList!$B$47,CntyQryCensus!$A$357:$CM$399,BV$1) -> 0 | BW70: =VLOOKUP(DropDownList!$B$47,CntyQryCensus!$A$357:$CM$399,BW$1) -> 0 | BX70: =VLOOKUP(DropDownList!$B$47,CntyQryCensus!$A$357:$CM$399,BX$1) -> 0 | BY70: =VLOOKUP(DropDownList!$B$47,CntyQryCensus!$A$357:$CM$399,BY$1) -> 2 | BZ70: =VLOOKUP(DropDownList!$B$47,CntyQryCensus!$A$357:$CM$399,BZ$1) -> 2 | CA70: =VLOOKUP(DropDownList!$B$47,CntyQryCensus!$A$357:$CM$399,CA$1) -> 0 | CB70: =VLOOKUP(DropDownList!$B$47,CntyQryCensus!$A$357:$CM$399,CB$1) -> 0 | CC70: =VLOOKUP(DropDownList!$B$47,CntyQryCensus!$A$357:$CM$399,CC$1) -> 0 | CD70: =VLOOKUP(DropDownList!$B$47,CntyQryCensus!$A$357:$CM$399,CD$1) -> 0 | CE70: =VLOOKUP(DropDownList!$B$47,CntyQryCensus!$A$357:$CM$399,CE$1) -> 0 | CF70: =VLOOKUP(DropDownList!$B$47,CntyQryCensus!$A$357:$CM$399,CF$1) -> 0 | CG70: =VLOOKUP(DropDownList!$B$47,CntyQryCensus!$A$357:$CM$399,CG$1) -> 0 | CH70: =VLOOKUP(DropDownList!$B$47,CntyQryCensus!$A$357:$CM$399,CH$1) -> 0 | CI70: =VLOOKUP(DropDownList!$B$47,CntyQryCensus!$A$357:$CM$399,CI$1) -> 0 | CJ70: =VLOOKUP(DropDownList!$B$47,CntyQryCensus!$A$357:$CM$399,CJ$1) -> 0 | CK70: =VLOOKUP(DropDownList!$B$47,CntyQryCensus!$A$357:$CM$399,CK$1) -> 0 | CL70: =VLOOKUP(DropDownList!$B$47,CntyQryCensus!$A$357:$CM$399,CL$1) -> 0 | CM70: =VLOOKUP(DropDownList!$B$47,CntyQryCensus!$A$357:$CM$399,CM$1) -> 0
A73: Census 2000 SummaryFile3 Sample Data - SF3TownQry8HousingCostB
A74: NAME | B74: LOGRECNO | C74: COUNTY | D74: TotalPop | E74: H74SpecOwnerOccHU | F74: H74OOHU<10k | G74: H74OOHU10to15k | H74: H74OOHU15to20k | I74: H74OOHU20to25k | J74: H74OOHU25to30k | K74: H74OOHU30to35k | L74: H74OOHU35to40k | M74: H74OOHU40to50k | N74: H74OOHU50to60k | O74: H74OOHU60to70k | P74: H74OOHU70to80k | Q74: H74OOHU80to90k | R74: H74OOHU90to100k | S74: H74OOHU100to125k | T74: H74OOHU125to150k | U74: H74OOHU150to175k | V74: H74OOHU175to200k | W74: H74OOHU200to250k | X74: H74OOHU250to300k | Y74: H74OOHU300to400k | Z74: H74OOHU400to500k | AA74: H74OOHU500to750k | AB74: H74OOHU750to1000k | AC74: H74OOHU1000kmore | AD74: H76OOHUMedianVal | AE74: H84OwnerOccHU | AF74: H84AllOOHU<10k | AG74: H84AllOOHU10to15k | AH74: H84AllOOHU15to20k | AI74: H84AllOOHU20to25k | AJ74: H84AllOOHU25to30k | AK74: H84AllOOHU30to35k | AL74: H84AllOOHU35to40k | AM74: H84AllOOHU40to50k | AN74: H84AllOOHU50to60k | AO74: H84AllOOHU60to70k | AP74: H84AllOOHU70to80k | AQ74: H84AllOOHU80to90k | AR74: H84AllOOHU90to100k | AS74: H84AllOOHU100to125k | AT74: H84AllOOHU125to150k | AU74: H84AllOOHU150to175k | AV74: H84AllOOHU175to200k | AW74: H84AllOOHU200to250k | AX74: H84AllOOHU250to300k | AY74: H84AllOOHU300to400k | AZ74: H84AllOOHU400to500k | BA74: H84AllOOHU500to750k | BB74: H84AllOOHU750to1000k | BC74: H84AllOOHU1000kmore | BD74: H85OOHUMedVal | BE74: H90SOOHU | BF74: H90HUwMorgt | BG74: H90HUwMtgHC<200 | BH74: H90HUwMtgHC200to300 | BI74: H90HUwMtgHC300to400 | BJ74: H90HUwMtgHC400to500 | BK74: H90HUwMtgHC500to600 | BL74: H90HUwMtgHC600to700 | BM74: H90HUwMtgHC700to800 | BN74: H90HUwMtgHC800to900 | BO74: H90HUwMtgHC900to1000 | BP74: H90HUwMtgHC1000to1250 | BQ74: H90HUwMtgHC1250to1500 | BR74: H90HUwMtgHC1500to2000 | BS74: H90HUwMtgHC2000to2500 | BT74: H90HUwMtgHC2500to3000 | BU74: H90HUwMtgHC3000orMore | BV74: H90HUwOutMorgt | BW74: H90HUwOutMtgHC<100 | BX74: H90HUwOutMtgHC100to150 | BY74: H90HUwOutMtgHC150to200 | BZ74: H90HUwOutMtgHC200to250 | CA74: H90HUwOutMtgHC250to300 | CB74: H90HUwOutMtgHC300to350 | CC74: H90HUwOutMtgHC350to400 | CD74: H90HUwOutMtgHC400to500 | CE74: H90HUwOutMtgHC500to600 | CF74: H90HUwOutMtgHC600to700 | CG74: H90HUwOutMtgHC700to800 | CH74: H90HUwOutMtgHC800to900 | CI74: H90HUwOutMtgHC900to1000 | CJ74: H90HUwOutMtgHC1000orMore | CK74: H91MedianOCHUwMtg | CL74: H91MedianOCHUwOutMtg | CM74: H94SpecOOHU | CN74: H94HUwMortg | CO74: H94HUwMtgHC<10pct | CP74: H94HUwMtgHC10to15pct | CQ74: H94HUwMtgHC15to20pct | CR74: H94HUwMtgHC20to25pct | CS74: H94HUwMtgHC25to30pct | CT74: H94HUwMtgHC30to35pct | CU74: H94HUwMtgHC35to40pct | CV74: H94HUwMtgHC40to50pct | CW74: H94HUwMtgHC50pctOrMore | CX74: H94HUwMtgHCpctNotComp | CY74: H94HUWOutMortg | CZ74: H94HUWOutMortgHC<10pct | DA74: H94HUWOutMortgHC10to15pct | DB74: H94HUWOutMortgHC15to20pct | DC74: H94HUWOutMortgHC20to25pct | DD74: H94HUWOutMortgHC25to30pct | DE74: H94HUWOutMortgHC30to35pct | DF74: H94HUWOutMortgHC35to40pct | DG74: H94HUWOutMortgHC40to50pct | DH74: H94HUWOutMortgHC50pctOrMore | DI74: H94HUWOutMortgHCpctNotComp | DJ74: H97SpecifOwnOccHU | DK74: H97SOOHUInc<10k | DL74: H97SOOHUInc<10kHC<20pct | DM74: H97SOOHUInc<10kHC20to25pct | DN74: H97SOOHUInc<10kHC25to30pct | DO74: H97SOOHUInc<10kHC30to35pct | DP74: H97SOOHUInc<10kHC>35pct | DQ74: H97SOOHUInc<10kHCpctNotComput | DR74: H97SOOHUInc10to20k | DS74: H97SOOHUInc10to20kHC<20pct | DT74: H97SOOHUInc10to20kHC20to25pct | DU74: H97SOOHUInc10to20kHC25to30pct | DV74: H97SOOHUInc10to20kHC30to35pct | DW74: H97SOOHUInc10to20kHC>35pct | DX74: H97SOOHUInc10to20kHCpctNotComput | DY74: H97SOOHUInc20to35k | DZ74: H97SOOHUInc20to35kRC<20pct | EA74: H97SOOHUInc20to35kRC20to25pct | EB74: H97SOOHUInc20to35kRC25to30pct | EC74: H97SOOHUInc20to35kRC30to35pct | ED74: H97SOOHUInc20to35kRC>35pct | EE74: H97SOOHUInc20to35kRCpctNotComput | EF74: H97SOOHUInc35to50k | EG74: H97SOOHUInc35to50kRC<20pct | EH74: H97SOOHUInc35to50kRC20to25pct | EI74: H97SOOHUInc35to50kRC25to30pct | EJ74: H97SOOHUInc35to50kRC30to35pct | EK74: H97SOOHUInc35to50kRC>35pct | EL74: H97SOOHUInc35to50kRCpctNotCompute | EM74: H97SOOHUInc50to75k | EN74: H97SOOHUInc50to75kRC<20pct | EO74: H97SOOHUInc50to75kRC20to25pct | EP74: H97SOOHUInc50to75kRC25to30pct | EQ74: H97SOOHUInc50to75kRC30to35pct | ER74: H97SOOHUInc50to75kRC>35pct | ES74: H97SOOHUInc50to75kRCpctNotComput | ET74: H97SOOHUInc75to100k | EU74: H97SOOHUInc75to100kRC<20pct | EV74: H97SOOHUInc75to100kRC20to25pct | EW74: H97SOOHUInc75to100kRC25to30pct | EX74: H97SOOHUInc75to100kRC30to35pct | EY74: H97SOOHUInc75to100kRC>35pct | EZ74: H97SOOHUInc75to100kRCpctNotCompute | FA74: H97SOOHUInc100to150k | FB74: H97SOOHUInc100to150kRC<20pct | FC74: H97SOOHUInc100to150kRC20to25pct | FD74: H97SOOHUInc100to150kRC25to30pct | FE74: H97SOOHUInc100to150kRC30to35pct | FF74: H97SOOHUInc100to150kRC>35pct | FG74: H97SOOHUInc100to150kRCpctNotCompute | FH74: H97SOOHUInc>150k | FI74: H97SOOHUInc>150kRC<20pct | FJ74: H97SOOHUInc>150kRC20to25pct | FK74: H97SOOHUInc>150kRC25to30pct | FL74: H97SOOHUInc>150kRC30to35pct | FM74: H97SOOHUInc>150kRC>35pct | FN74: H97SOOHUInc>150kRCpctNotCompute
A75: =VLOOKUP(DropDownList!$B$47,CntyQryCensus!$A$408:$FN$450,A$1) -> Franconia | B75: =VLOOKUP(DropDownList!$B$47,CntyQryCensus!$A$408:$FN$450,B$1) -> 0001247 | C75: =VLOOKUP(DropDownList!$B$47,CntyQryCensus!$A$408:$FN$450,C$1) -> 27300 | D75: =VLOOKUP(DropDownList!$B$47,CntyQryCensus!$A$408:$FN$450,D$1) -> 924 | E75: =VLOOKUP(DropDownList!$B$47,CntyQryCensus!$A$408:$FN$450,E$1) -> 210 | F75: =VLOOKUP(DropDownList!$B$47,CntyQryCensus!$A$408:$FN$450,F$1) -> 0 | G75: =VLOOKUP(DropDownList!$B$47,CntyQryCensus!$A$408:$FN$450,G$1) -> 0 | H75: =VLOOKUP(DropDownList!$B$47,CntyQryCensus!$A$408:$FN$450,H$1) -> 0 | I75: =VLOOKUP(DropDownList!$B$47,CntyQryCensus!$A$408:$FN$450,I$1) -> 0 | J75: =VLOOKUP(DropDownList!$B$47,CntyQryCensus!$A$408:$FN$450,J$1) -> 0 | K75: =VLOOKUP(DropDownList!$B$47,CntyQryCensus!$A$408:$FN$450,K$1) -> 0 | L75: =VLOOKUP(DropDownList!$B$47,CntyQryCensus!$A$408:$FN$450,L$1) -> 0 | M75: =VLOOKUP(DropDownList!$B$47,CntyQryCensus!$A$408:$FN$450,M$1) -> 0 | N75: =VLOOKUP(DropDownList!$B$47,CntyQryCensus!$A$408:$FN$450,N$1) -> 0 | O75: =VLOOKUP(DropDownList!$B$47,CntyQryCensus!$A$408:$FN$450,O$1) -> 7 | P75: =VLOOKUP(DropDownList!$B$47,CntyQryCensus!$A$408:$FN$450,P$1) -> 13 | Q75: =VLOOKUP(DropDownList!$B$47,CntyQryCensus!$A$408:$FN$450,Q$1) -> 8 | R75: =VLOOKUP(DropDownList!$B$47,CntyQryCensus!$A$408:$FN$450,R$1) -> 16 | S75: =VLOOKUP(DropDownList!$B$47,CntyQryCensus!$A$408:$FN$450,S$1) -> 33 | T75: =VLOOKUP(DropDownList!$B$47,CntyQryCensus!$A$408:$FN$450,T$1) -> 44 | U75: =VLOOKUP(DropDownList!$B$47,CntyQryCensus!$A$408:$FN$450,U$1) -> 30 | V75: =VLOOKUP(DropDownList!$B$47,CntyQryCensus!$A$408:$FN$450,V$1) -> 13 | W75: =VLOOKUP(DropDownList!$B$47,CntyQryCensus!$A$408:$FN$450,W$1) -> 13 | X75: =VLOOKUP(DropDownList!$B$47,CntyQryCensus!$A$408:$FN$450,X$1) -> 16 | Y75: =VLOOKUP(DropDownList!$B$47,CntyQryCensus!$A$408:$FN$450,Y$1) -> 15 | Z75: =VLOOKUP(DropDownList!$B$47,CntyQryCensus!$A$408:$FN$450,Z$1) -> 2 | AA75: =VLOOKUP(DropDownList!$B$47,CntyQryCensus!$A$408:$FN$450,AA$1) -> 0 | AB75: =VLOOKUP(DropDownList!$B$47,CntyQryCensus!$A$408:$FN$450,AB$1) -> 0 | AC75: =VLOOKUP(DropDownList!$B$47,CntyQryCensus!$A$408:$FN$450,AC$1) -> 0 | AD75: =VLOOKUP(DropDownList!$B$47,CntyQryCensus!$A$408:$FN$450,AD$1) -> 140900 | AE75: =VLOOKUP(DropDownList!$B$47,CntyQryCensus!$A$408:$FN$450,AE$1) -> 276 | AF75: =VLOOKUP(DropDownList!$B$47,CntyQryCensus!$A$408:$FN$450,AF$1) -> 0 | AG75: =VLOOKUP(DropDownList!$B$47,CntyQryCensus!$A$408:$FN$450,AG$1) -> 0 | AH75: =VLOOKUP(DropDownList!$B$47,CntyQryCensus!$A$408:$FN$450,AH$1) -> 0 | AI75: =VLOOKUP(DropDownList!$B$47,CntyQryCensus!$A$408:$FN$450,AI$1) -> 0 | AJ75: =VLOOKUP(DropDownList!$B$47,CntyQryCensus!$A$408:$FN$450,AJ$1) -> 0 | AK75: =VLOOKUP(DropDownList!$B$47,CntyQryCensus!$A$408:$FN$450,AK$1) -> 5 | AL75: =VLOOKUP(DropDownList!$B$47,CntyQryCensus!$A$408:$FN$450,AL$1) -> 3 | AM75: =VLOOKUP(DropDownList!$B$47,CntyQryCensus!$A$408:$FN$450,AM$1) -> 4 | AN75: =VLOOKUP(DropDownList!$B$47,CntyQryCensus!$A$408:$FN$450,AN$1) -> 0 | AO75: =VLOOKUP(DropDownList!$B$47,CntyQryCensus!$A$408:$FN$450,AO$1) -> 7 | AP75: =VLOOKUP(DropDownList!$B$47,CntyQryCensus!$A$408:$FN$450,AP$1) -> 13 | AQ75: =VLOOKUP(DropDownList!$B$47,CntyQryCensus!$A$408:$FN$450,AQ$1) -> 13 | AR75: =VLOOKUP(DropDownList!$B$47,CntyQryCensus!$A$408:$FN$450,AR$1) -> 19 | AS75: =VLOOKUP(DropDownList!$B$47,CntyQryCensus!$A$408:$FN$450,AS$1) -> 45 | AT75: =VLOOKUP(DropDownList!$B$47,CntyQryCensus!$A$408:$FN$450,AT$1) -> 52 | AU75: =VLOOKUP(DropDownList!$B$47,CntyQryCensus!$A$408:$FN$450,AU$1) -> 32 | AV75: =VLOOKUP(DropDownList!$B$47,CntyQryCensus!$A$408:$FN$450,AV$1) -> 20 | AW75: =VLOOKUP(DropDownList!$B$47,CntyQryCensus!$A$408:$FN$450,AW$1) -> 13 | AX75: =VLOOKUP(DropDownList!$B$47,CntyQryCensus!$A$408:$FN$450,AX$1) -> 16 | AY75: =VLOOKUP(DropDownList!$B$47,CntyQryCensus!$A$408:$FN$450,AY$1) -> 20 | AZ75: =VLOOKUP(DropDownList!$B$47,CntyQryCensus!$A$408:$FN$450,AZ$1) -> 6 | BA75: =VLOOKUP(DropDownList!$B$47,CntyQryCensus!$A$408:$FN$450,BA$1) -> 4 | BB75: =VLOOKUP(DropDownList!$B$47,CntyQryCensus!$A$408:$FN$450,BB$1) -> 2 | BC75: =VLOOKUP(DropDownList!$B$47,CntyQryCensus!$A$408:$FN$450,BC$1) -> 2 | BD75: =VLOOKUP(DropDownList!$B$47,CntyQryCensus!$A$408:$FN$450,BD$1) -> 138900 | BE75: =VLOOKUP(DropDownList!$B$47,CntyQryCensus!$A$408:$FN$450,BE$1) -> 210 | BF75: =VLOOKUP(DropDownList!$B$47,CntyQryCensus!$A$408:$FN$450,BF$1) -> 123 | BG75: =VLOOKUP(DropDownList!$B$47,CntyQryCensus!$A$408:$FN$450,BG$1) -> 0 | BH75: =VLOOKUP(DropDownList!$B$47,CntyQryCensus!$A$408:$FN$450,BH$1) -> 0 | BI75: =VLOOKUP(DropDownList!$B$47,CntyQryCensus!$A$408:$FN$450,BI$1) -> 0 | BJ75: =VLOOKUP(DropDownList!$B$47,CntyQryCensus!$A$408:$FN$450,BJ$1) -> 2 | BK75: =VLOOKUP(DropDownList!$B$47,CntyQryCensus!$A$408:$FN$450,BK$1) -> 18 | BL75: =VLOOKUP(DropDownList!$B$47,CntyQryCensus!$A$408:$FN$450,BL$1) -> 4 | BM75: =VLOOKUP(DropDownList!$B$47,CntyQryCensus!$A$408:$FN$450,BM$1) -> 16 | BN75: =VLOOKUP(DropDownList!$B$47,CntyQryCensus!$A$408:$FN$450,BN$1) -> 10 | BO75: =VLOOKUP(DropDownList!$B$47,CntyQryCensus!$A$408:$FN$450,BO$1) -> 4 | BP75: =VLOOKUP(DropDownList!$B$47,CntyQryCensus!$A$408:$FN$450,BP$1) -> 27 | BQ75: =VLOOKUP(DropDownList!$B$47,CntyQryCensus!$A$408:$FN$450,BQ$1) -> 24 | BR75: =VLOOKUP(DropDownList!$B$47,CntyQryCensus!$A$408:$FN$450,BR$1) -> 16 | BS75: =VLOOKUP(DropDownList!$B$47,CntyQryCensus!$A$408:$FN$450,BS$1) -> 2 | BT75: =VLOOKUP(DropDownList!$B$47,CntyQryCensus!$A$408:$FN$450,BT$1) -> 0 | BU75: =VLOOKUP(DropDownList!$B$47,CntyQryCensus!$A$408:$FN$450,BU$1) -> 0 | BV75: =VLOOKUP(DropDownList!$B$47,CntyQryCensus!$A$408:$FN$450,BV$1) -> 87 | BW75: =VLOOKUP(DropDownList!$B$47,CntyQryCensus!$A$408:$FN$450,BW$1) -> 0 | BX75: =VLOOKUP(DropDownList!$B$47,CntyQryCensus!$A$408:$FN$450,BX$1) -> 0 | BY75: =VLOOKUP(DropDownList!$B$47,CntyQryCensus!$A$408:$FN$450,BY$1) -> 5 | BZ75: =VLOOKUP(DropDownList!$B$47,CntyQryCensus!$A$408:$FN$450,BZ$1) -> 7 | CA75: =VLOOKUP(DropDownList!$B$47,CntyQryCensus!$A$408:$FN$450,CA$1) -> 0 | CB75: =VLOOKUP(DropDownList!$B$47,CntyQryCensus!$A$408:$FN$450,CB$1) -> 14 | CC75: =VLOOKUP(DropDownList!$B$47,CntyQryCensus!$A$408:$FN$450,CC$1) -> 12 | CD75: =VLOOKUP(DropDownList!$B$47,CntyQryCensus!$A$408:$FN$450,CD$1) -> 16 | CE75: =VLOOKUP(DropDownList!$B$47,CntyQryCensus!$A$408:$FN$450,CE$1) -> 12 | CF75: =VLOOKUP(DropDownList!$B$47,CntyQryCensus!$A$408:$FN$450,CF$1) -> 12 | CG75: =VLOOKUP(DropDownList!$B$47,CntyQryCensus!$A$408:$FN$450,CG$1) -> 5 | CH75: =VLOOKUP(DropDownList!$B$47,CntyQryCensus!$A$408:$FN$450,CH$1) -> 2 | CI75: =VLOOKUP(DropDownList!$B$47,CntyQryCensus!$A$408:$FN$450,CI$1) -> 2 | CJ75: =VLOOKUP(DropDownList!$B$47,CntyQryCensus!$A$408:$FN$450,CJ$1) -> 0 | CK75: =VLOOKUP(DropDownList!$B$47,CntyQryCensus!$A$408:$FN$450,CK$1) -> 1069 | CL75: =VLOOKUP(DropDownList!$B$47,CntyQryCensus!$A$408:$FN$450,CL$1) -> 434 | CM75: =VLOOKUP(DropDownList!$B$47,CntyQryCensus!$A$408:$FN$450,CM$1) -> 210 | CN75: =VLOOKUP(DropDownList!$B$47,CntyQryCensus!$A$408:$FN$450,CN$1) -> 123 | CO75: =VLOOKUP(DropDownList!$B$47,CntyQryCensus!$A$408:$FN$450,CO$1) -> 4 | CP75: =VLOOKUP(DropDownList!$B$47,CntyQryCensus!$A$408:$FN$450,CP$1) -> 18 | CQ75: =VLOOKUP(DropDownList!$B$47,CntyQryCensus!$A$408:$FN$450,CQ$1) -> 23 | CR75: =VLOOKUP(DropDownList!$B$47,CntyQryCensus!$A$408:$FN$450,CR$1) -> 22 | CS75: =VLOOKUP(DropDownList!$B$47,CntyQryCensus!$A$408:$FN$450,CS$1) -> 20 | CT75: =VLOOKUP(DropDownList!$B$47,CntyQryCensus!$A$408:$FN$450,CT$1) -> 7 | CU75: =VLOOKUP(DropDownList!$B$47,CntyQryCensus!$A$408:$FN$450,CU$1) -> 3 | CV75: =VLOOKUP(DropDownList!$B$47,CntyQryCensus!$A$408:$FN$450,CV$1) -> 11 | CW75: =VLOOKUP(DropDownList!$B$47,CntyQryCensus!$A$408:$FN$450,CW$1) -> 15 | CX75: =VLOOKUP(DropDownList!$B$47,CntyQryCensus!$A$408:$FN$450,CX$1) -> 0 | CY75: =VLOOKUP(DropDownList!$B$47,CntyQryCensus!$A$408:$FN$450,CY$1) -> 87 | CZ75: =VLOOKUP(DropDownList!$B$47,CntyQryCensus!$A$408:$FN$450,CZ$1) -> 38 | DA75: =VLOOKUP(DropDownList!$B$47,CntyQryCensus!$A$408:$FN$450,DA$1) -> 12 | DB75: =VLOOKUP(DropDownList!$B$47,CntyQryCensus!$A$408:$FN$450,DB$1) -> 11 | DC75: =VLOOKUP(DropDownList!$B$47,CntyQryCensus!$A$408:$FN$450,DC$1) -> 3 | DD75: =VLOOKUP(DropDownList!$B$47,CntyQryCensus!$A$408:$FN$450,DD$1) -> 2 | DE75: =VLOOKUP(DropDownList!$B$47,CntyQryCensus!$A$408:$FN$450,DE$1) -> 8 | DF75: =VLOOKUP(DropDownList!$B$47,CntyQryCensus!$A$408:$FN$450,DF$1) -> 0 | DG75: =VLOOKUP(DropDownList!$B$47,CntyQryCensus!$A$408:$FN$450,DG$1) -> 0 | DH75: =VLOOKUP(DropDownList!$B$47,CntyQryCensus!$A$408:$FN$450,DH$1) -> 13 | DI75: =VLOOKUP(DropDownList!$B$47,CntyQryCensus!$A$408:$FN$450,DI$1) -> 0 | DJ75: =VLOOKUP(DropDownList!$B$47,CntyQryCensus!$A$408:$FN$450,DJ$1) -> 210 | DK75: =VLOOKUP(DropDownList!$B$47,CntyQryCensus!$A$408:$FN$450,DK$1) -> 13 | DL75: =VLOOKUP(DropDownList!$B$47,CntyQryCensus!$A$408:$FN$450,DL$1) -> 0 | DM75: =VLOOKUP(DropDownList!$B$47,CntyQryCensus!$A$408:$FN$450,DM$1) -> 0 | DN75: =VLOOKUP(DropDownList!$B$47,CntyQryCensus!$A$408:$FN$450,DN$1) -> 2 | DO75: =VLOOKUP(DropDownList!$B$47,CntyQryCensus!$A$408:$FN$450,DO$1) -> 0 | DP75: =VLOOKUP(DropDownList!$B$47,CntyQryCensus!$A$408:$FN$450,DP$1) -> 11 | DQ75: =VLOOKUP(DropDownList!$B$47,CntyQryCensus!$A$408:$FN$450,DQ$1) -> 0 | DR75: =VLOOKUP(DropDownList!$B$47,CntyQryCensus!$A$408:$FN$450,DR$1) -> 20 | DS75: =VLOOKUP(DropDownList!$B$47,CntyQryCensus!$A$408:$FN$450,DS$1) -> 2 | DT75: =VLOOKUP(DropDownList!$B$47,CntyQryCensus!$A$408:$FN$450,DT$1) -> 0 | DU75: =VLOOKUP(DropDownList!$B$47,CntyQryCensus!$A$408:$FN$450,DU$1) -> 0 | DV75: =VLOOKUP(DropDownList!$B$47,CntyQryCensus!$A$408:$FN$450,DV$1) -> 6 | DW75: =VLOOKUP(DropDownList!$B$47,CntyQryCensus!$A$408:$FN$450,DW$1) -> 12 | DX75: =VLOOKUP(DropDownList!$B$47,CntyQryCensus!$A$408:$FN$450,DX$1) -> 0 | DY75: =VLOOKUP(DropDownList!$B$47,CntyQryCensus!$A$408:$FN$450,DY$1) -> 25 | DZ75: =VLOOKUP(DropDownList!$B$47,CntyQryCensus!$A$408:$FN$450,DZ$1) -> 5 | EA75: =VLOOKUP(DropDownList!$B$47,CntyQryCensus!$A$408:$FN$450,EA$1) -> 5 | EB75: =VLOOKUP(DropDownList!$B$47,CntyQryCensus!$A$408:$FN$450,EB$1) -> 3 | EC75: =VLOOKUP(DropDownList!$B$47,CntyQryCensus!$A$408:$FN$450,EC$1) -> 2 | ED75: =VLOOKUP(DropDownList!$B$47,CntyQryCensus!$A$408:$FN$450,ED$1) -> 10 | EE75: =VLOOKUP(DropDownList!$B$47,CntyQryCensus!$A$408:$FN$450,EE$1) -> 0 | EF75: =VLOOKUP(DropDownList!$B$47,CntyQryCensus!$A$408:$FN$450,EF$1) -> 36 | EG75: =VLOOKUP(DropDownList!$B$47,CntyQryCensus!$A$408:$FN$450,EG$1) -> 18 | EH75: =VLOOKUP(DropDownList!$B$47,CntyQryCensus!$A$408:$FN$450,EH$1) -> 8 | EI75: =VLOOKUP(DropDownList!$B$47,CntyQryCensus!$A$408:$FN$450,EI$1) -> 5 | EJ75: =VLOOKUP(DropDownList!$B$47,CntyQryCensus!$A$408:$FN$450,EJ$1) -> 0 | EK75: =VLOOKUP(DropDownList!$B$47,CntyQryCensus!$A$408:$FN$450,EK$1) -> 5 | EL75: =VLOOKUP(DropDownList!$B$47,CntyQryCensus!$A$408:$FN$450,EL$1) -> 0 | EM75: =VLOOKUP(DropDownList!$B$47,CntyQryCensus!$A$408:$FN$450,EM$1) -> 70 | EN75: =VLOOKUP(DropDownList!$B$47,CntyQryCensus!$A$408:$FN$450,EN$1) -> 39 | EO75: =VLOOKUP(DropDownList!$B$47,CntyQryCensus!$A$408:$FN$450,EO$1) -> 8 | EP75: =VLOOKUP(DropDownList!$B$47,CntyQryCensus!$A$408:$FN$450,EP$1) -> 12 | EQ75: =VLOOKUP(DropDownList!$B$47,CntyQryCensus!$A$408:$FN$450,EQ$1) -> 7 | ER75: =VLOOKUP(DropDownList!$B$47,CntyQryCensus!$A$408:$FN$450,ER$1) -> 4 | ES75: =VLOOKUP(DropDownList!$B$47,CntyQryCensus!$A$408:$FN$450,ES$1) -> 0 | ET75: =VLOOKUP(DropDownList!$B$47,CntyQryCensus!$A$408:$FN$450,ET$1) -> 21 | EU75: =VLOOKUP(DropDownList!$B$47,CntyQryCensus!$A$408:$FN$450,EU$1) -> 19 | EV75: =VLOOKUP(DropDownList!$B$47,CntyQryCensus!$A$408:$FN$450,EV$1) -> 2 | EW75: =VLOOKUP(DropDownList!$B$47,CntyQryCensus!$A$408:$FN$450,EW$1) -> 0 | EX75: =VLOOKUP(DropDownList!$B$47,CntyQryCensus!$A$408:$FN$450,EX$1) -> 0 | EY75: =VLOOKUP(DropDownList!$B$47,CntyQryCensus!$A$408:$FN$450,EY$1) -> 0 | EZ75: =VLOOKUP(DropDownList!$B$47,CntyQryCensus!$A$408:$FN$450,EZ$1) -> 0 | FA75: =VLOOKUP(DropDownList!$B$47,CntyQryCensus!$A$408:$FN$450,FA$1) -> 23 | FB75: =VLOOKUP(DropDownList!$B$47,CntyQryCensus!$A$408:$FN$450,FB$1) -> 21 | FC75: =VLOOKUP(DropDownList!$B$47,CntyQryCensus!$A$408:$FN$450,FC$1) -> 2 | FD75: =VLOOKUP(DropDownList!$B$47,CntyQryCensus!$A$408:$FN$450,FD$1) -> 0 | FE75: =VLOOKUP(DropDownList!$B$47,CntyQryCensus!$A$408:$FN$450,FE$1) -> 0 | FF75: =VLOOKUP(DropDownList!$B$47,CntyQryCensus!$A$408:$FN$450,FF$1) -> 0 | FG75: =VLOOKUP(DropDownList!$B$47,CntyQryCensus!$A$408:$FN$450,FG$1) -> 0 | FH75: =VLOOKUP(DropDownList!$B$47,CntyQryCensus!$A$408:$FN$450,FH$1) -> 2 | FI75: =VLOOKUP(DropDownList!$B$47,CntyQryCensus!$A$408:$FN$450,FI$1) -> 2 | FJ75: =VLOOKUP(DropDownList!$B$47,CntyQryCensus!$A$408:$FN$450,FJ$1) -> 0 | FK75: =VLOOKUP(DropDownList!$B$47,CntyQryCensus!$A$408:$FN$450,FK$1) -> 0 | FL75: =VLOOKUP(DropDownList!$B$47,CntyQryCensus!$A$408:$FN$450,FL$1) -> 0 | FM75: =VLOOKUP(DropDownList!$B$47,CntyQryCensus!$A$408:$FN$450,FM$1) -> 0 | FN75: =VLOOKUP(DropDownList!$B$47,CntyQryCensus!$A$408:$FN$450,FN$1) -> 0
A78: Census 2000 SummaryFile3 Sample Data - SF3TownQry9HHIncomeByTenure
A79: NAME | B79: LOGRECNO | C79: COUNTY | D79: TotalPop | E79: HCT11OccHU | F79: HCT11OwnOccHU | G79: HCT11OOHUInc<5K | H79: HCT11OOHUInc5to10K | I79: HCT11OOHUInc10to15K | J79: HCT11OOHUInc15to20K | K79: HCT11OOHUInc20to25K | L79: HCT11OOHUInc25to35K | M79: HCT11OOHUInc35to50K | N79: HCT11OOHUInc50to75K | O79: HCT11OOHUInc75to100K | P79: HCT11OOHUInc100to150K | Q79: HCT11OOHUInc>150K | R79: HCT11RentOccHU | S79: HCT11ROHUInc<5K | T79: HCT11ROHUInc5to10K | U79: HCT11ROHUInc10to15K | V79: HCT11ROHUInc15to20K | W79: HCT11ROHUInc20to25K | X79: HCT11ROHUInc25to35K | Y79: HCT11ROHUInc35to50K | Z79: HCT11ROHUInc50to75K | AA79: HCT11ROHUInc75to100K | AB79: HCT11ROHUInc100to150K | AC79: HCT11ROHUInc>150K | AD79: HCT12MedHHInc | AE79: HCT12MedOwnOccHHInc | AF79: HCT12MedRentOccHHInc | AG79: Summary Level
A80: =VLOOKUP(DropDownList!$B$47,CntyQryCensus!$A$459:$AG$501,A$1) -> Franconia | B80: =VLOOKUP(DropDownList!$B$47,CntyQryCensus!$A$459:$AG$501,B$1) -> 0001247 | C80: =VLOOKUP(DropDownList!$B$47,CntyQryCensus!$A$459:$AG$501,C$1) -> 27300 | D80: =VLOOKUP(DropDownList!$B$47,CntyQryCensus!$A$459:$AG$501,D$1) -> Franconia town | E80: =VLOOKUP(DropDownList!$B$47,CntyQryCensus!$A$459:$AG$501,E$1) -> 009 | F80: =VLOOKUP(DropDownList!$B$47,CntyQryCensus!$A$459:$AG$501,F$1) -> 924 | G80: =VLOOKUP(DropDownList!$B$47,CntyQryCensus!$A$459:$AG$501,G$1) -> 392 | H80: =VLOOKUP(DropDownList!$B$47,CntyQryCensus!$A$459:$AG$501,H$1) -> 276 | I80: =VLOOKUP(DropDownList!$B$47,CntyQryCensus!$A$459:$AG$501,I$1) -> 0 | J80: =VLOOKUP(DropDownList!$B$47,CntyQryCensus!$A$459:$AG$501,J$1) -> 18 | K80: =VLOOKUP(DropDownList!$B$47,CntyQryCensus!$A$459:$AG$501,K$1) -> 18 | L80: =VLOOKUP(DropDownList!$B$47,CntyQryCensus!$A$459:$AG$501,L$1) -> 13 | M80: =VLOOKUP(DropDownList!$B$47,CntyQryCensus!$A$459:$AG$501,M$1) -> 7 | N80: =VLOOKUP(DropDownList!$B$47,CntyQryCensus!$A$459:$AG$501,N$1) -> 35 | O80: =VLOOKUP(DropDownList!$B$47,CntyQryCensus!$A$459:$AG$501,O$1) -> 44 | P80: =VLOOKUP(DropDownList!$B$47,CntyQryCensus!$A$459:$AG$501,P$1) -> 87 | Q80: =VLOOKUP(DropDownList!$B$47,CntyQryCensus!$A$459:$AG$501,Q$1) -> 25 | R80: =VLOOKUP(DropDownList!$B$47,CntyQryCensus!$A$459:$AG$501,R$1) -> 25 | S80: =VLOOKUP(DropDownList!$B$47,CntyQryCensus!$A$459:$AG$501,S$1) -> 4 | T80: =VLOOKUP(DropDownList!$B$47,CntyQryCensus!$A$459:$AG$501,T$1) -> 116 | U80: =VLOOKUP(DropDownList!$B$47,CntyQryCensus!$A$459:$AG$501,U$1) -> 4 | V80: =VLOOKUP(DropDownList!$B$47,CntyQryCensus!$A$459:$AG$501,V$1) -> 8 | W80: =VLOOKUP(DropDownList!$B$47,CntyQryCensus!$A$459:$AG$501,W$1) -> 10 | X80: =VLOOKUP(DropDownList!$B$47,CntyQryCensus!$A$459:$AG$501,X$1) -> 16 | Y80: =VLOOKUP(DropDownList!$B$47,CntyQryCensus!$A$459:$AG$501,Y$1) -> 16 | Z80: =VLOOKUP(DropDownList!$B$47,CntyQryCensus!$A$459:$AG$501,Z$1) -> 26 | AA80: =VLOOKUP(DropDownList!$B$47,CntyQryCensus!$A$459:$AG$501,AA$1) -> 25 | AB80: =VLOOKUP(DropDownList!$B$47,CntyQryCensus!$A$459:$AG$501,AB$1) -> 9 | AC80: =VLOOKUP(DropDownList!$B$47,CntyQryCensus!$A$459:$AG$501,AC$1) -> 2 | AD80: =VLOOKUP(DropDownList!$B$47,CntyQryCensus!$A$459:$AG$501,AD$1) -> 0 | AE80: =VLOOKUP(DropDownList!$B$47,CntyQryCensus!$A$459:$AG$501,AE$1) -> 0 | AF80: =VLOOKUP(DropDownList!$B$47,CntyQryCensus!$A$459:$AG$501,AF$1) -> 40227 | AG80: =VLOOKUP(DropDownList!$B$47,CntyQryCensus!$A$459:$AG$501,AG$1) -> 50833
A86: =VLOOKUP(DropDownList!$B$47,CntyQryCensus!$A$510:$DA$552,A$1) -> Franconia
A94: Census 2000 SummaryFile3 Sample Data - SF3TownQry10Disabil
A95: NAME | B95: LOGRECNO | C95: COUNTY | D95: TotalPop | E95: PCT026001-NonInstPop5yrs+ | F95: PCT026002-MaleNonInstPop5yrs+ | G95: PCT026003 | H95: PCT026004 | I95: PCT026005 | J95: PCT026006 | K95: PCT026007 | L95: PCT026008 | M95: PCT026009 | N95: PCT026010 | O95: PCT026011 | P95: PCT026012 | Q95: PCT026013 | R95: PCT026014 | S95: PCT026015 | T95: PCT026016 | U95: PCT026017 | V95: PCT026018 | W95: PCT026019 | X95: PCT026020 | Y95: PCT026021 | Z95: PCT026022 | AA95: PCT026023 | AB95: PCT026024 | AC95: PCT026025 | AD95: PCT026026 | AE95: PCT026027 | AF95: PCT026028 | AG95: PCT026029 | AH95: PCT026030 | AI95: PCT026031 | AJ95: PCT026032 | AK95: PCT026033 | AL95: PCT026034 | AM95: PCT026035 | AN95: PCT026036 | AO95: PCT026037 | AP95: PCT026038 | AQ95: PCT026039 | AR95: PCT026040 | AS95: PCT026041 | AT95: PCT026042 | AU95: PCT026043 | AV95: PCT026044 | AW95: PCT026045 | AX95: PCT026046 | AY95: PCT026047 | AZ95: PCT026048 | BA95: PCT026049 | BB95: PCT026050 | BC95: PCT026051 | BD95: PCT026052 | BE95: PCT026053 | BF95: PCT026054 | BG95: PCT026055 | BH95: PCT026056 | BI95: PCT026057 | BJ95: PCT026058 | BK95: PCT026059 | BL95: PCT026060 | BM95: PCT026061 | BN95: PCT026062 | BO95: PCT026063 | BP95: PCT026064 | BQ95: PCT026065 | BR95: PCT026066 | BS95: PCT026067 | BT95: PCT026068 | BU95: PCT026069 | BV95: PCT026070 | BW95: PCT026071 | BX95: PCT026072 | BY95: PCT026073 | BZ95: PCT026074 | CA95: PCT026075 | CB95: PCT026076 | CC95: PCT026077 | CD95: PCT026078 | CE95: PCT026079 | CF95: PCT026080 | CG95: PCT026081 | CH95: PCT026082 | CI95: PCT026083 | CJ95: PCT026084 | CK95: PCT026085 | CL95: PCT026086 | CM95: PCT026087 | CN95: PCT026088 | CO95: PCT026089 | CP95: PCT026090 | CQ95: PCT026091 | CR95: PCT026092 | CS95: PCT026093 | CT95: PCT026094 | CU95: PCT026095 | CV95: PCT026096 | CW95: PCT026097 | CX95: PCT026098 | CY95: PCT026099 | CZ95: PCT026100 | DA95: PCT026101
A96: =VLOOKUP(DropDownList!$B$47,CntyQryCensus!$A$510:$DA$552,A$1) -> Franconia | B96: =VLOOKUP(DropDownList!$B$47,CntyQryCensus!$A$510:$DA$552,B$1) -> 0001247 | C96: =VLOOKUP(DropDownList!$B$47,CntyQryCensus!$A$510:$DA$552,C$1) -> 27300 | D96: =VLOOKUP(DropDownList!$B$47,CntyQryCensus!$A$510:$DA$552,D$1) -> 924 | E96: =VLOOKUP(DropDownList!$B$47,CntyQryCensus!$A$510:$DA$552,E$1) -> 815 | F96: =VLOOKUP(DropDownList!$B$47,CntyQryCensus!$A$510:$DA$552,F$1) -> 425 | G96: =VLOOKUP(DropDownList!$B$47,CntyQryCensus!$A$510:$DA$552,G$1) -> 75 | H96: =VLOOKUP(DropDownList!$B$47,CntyQryCensus!$A$510:$DA$552,H$1) -> 0 | I96: =VLOOKUP(DropDownList!$B$47,CntyQryCensus!$A$510:$DA$552,I$1) -> 0 | J96: =VLOOKUP(DropDownList!$B$47,CntyQryCensus!$A$510:$DA$552,J$1) -> 0 | K96: =VLOOKUP(DropDownList!$B$47,CntyQryCensus!$A$510:$DA$552,K$1) -> 75 | L96: =VLOOKUP(DropDownList!$B$47,CntyQryCensus!$A$510:$DA$552,L$1) -> 3 | M96: =VLOOKUP(DropDownList!$B$47,CntyQryCensus!$A$510:$DA$552,M$1) -> 72 | N96: =VLOOKUP(DropDownList!$B$47,CntyQryCensus!$A$510:$DA$552,N$1) -> 24 | O96: =VLOOKUP(DropDownList!$B$47,CntyQryCensus!$A$510:$DA$552,O$1) -> 6 | P96: =VLOOKUP(DropDownList!$B$47,CntyQryCensus!$A$510:$DA$552,P$1) -> 0 | Q96: =VLOOKUP(DropDownList!$B$47,CntyQryCensus!$A$510:$DA$552,Q$1) -> 6 | R96: =VLOOKUP(DropDownList!$B$47,CntyQryCensus!$A$510:$DA$552,R$1) -> 18 | S96: =VLOOKUP(DropDownList!$B$47,CntyQryCensus!$A$510:$DA$552,S$1) -> 0 | T96: =VLOOKUP(DropDownList!$B$47,CntyQryCensus!$A$510:$DA$552,T$1) -> 18 | U96: =VLOOKUP(DropDownList!$B$47,CntyQryCensus!$A$510:$DA$552,U$1) -> 270 | V96: =VLOOKUP(DropDownList!$B$47,CntyQryCensus!$A$510:$DA$552,V$1) -> 28 | W96: =VLOOKUP(DropDownList!$B$47,CntyQryCensus!$A$510:$DA$552,W$1) -> 6 | X96: =VLOOKUP(DropDownList!$B$47,CntyQryCensus!$A$510:$DA$552,X$1) -> 22 | Y96: =VLOOKUP(DropDownList!$B$47,CntyQryCensus!$A$510:$DA$552,Y$1) -> 242 | Z96: =VLOOKUP(DropDownList!$B$47,CntyQryCensus!$A$510:$DA$552,Z$1) -> 16 | AA96: =VLOOKUP(DropDownList!$B$47,CntyQryCensus!$A$510:$DA$552,AA$1) -> 226 | AB96: =VLOOKUP(DropDownList!$B$47,CntyQryCensus!$A$510:$DA$552,AB$1) -> 56 | AC96: =VLOOKUP(DropDownList!$B$47,CntyQryCensus!$A$510:$DA$552,AC$1) -> 14 | AD96: =VLOOKUP(DropDownList!$B$47,CntyQryCensus!$A$510:$DA$552,AD$1) -> 0 | AE96: =VLOOKUP(DropDownList!$B$47,CntyQryCensus!$A$510:$DA$552,AE$1) -> 14 | AF96: =VLOOKUP(DropDownList!$B$47,CntyQryCensus!$A$510:$DA$552,AF$1) -> 42 | AG96: =VLOOKUP(DropDownList!$B$47,CntyQryCensus!$A$510:$DA$552,AG$1) -> 2 | AH96: =VLOOKUP(DropDownList!$B$47,CntyQryCensus!$A$510:$DA$552,AH$1) -> 40 | AI96: =VLOOKUP(DropDownList!$B$47,CntyQryCensus!$A$510:$DA$552,AI$1) -> 390 | AJ96: =VLOOKUP(DropDownList!$B$47,CntyQryCensus!$A$510:$DA$552,AJ$1) -> 37 | AK96: =VLOOKUP(DropDownList!$B$47,CntyQryCensus!$A$510:$DA$552,AK$1) -> 0 | AL96: =VLOOKUP(DropDownList!$B$47,CntyQryCensus!$A$510:$DA$552,AL$1) -> 0 | AM96: =VLOOKUP(DropDownList!$B$47,CntyQryCensus!$A$510:$DA$552,AM$1) -> 0 | AN96: =VLOOKUP(DropDownList!$B$47,CntyQryCensus!$A$510:$DA$552,AN$1) -> 37 | AO96: =VLOOKUP(DropDownList!$B$47,CntyQryCensus!$A$510:$DA$552,AO$1) -> 3 | AP96: =VLOOKUP(DropDownList!$B$47,CntyQryCensus!$A$510:$DA$552,AP$1) -> 34 | AQ96: =VLOOKUP(DropDownList!$B$47,CntyQryCensus!$A$510:$DA$552,AQ$1) -> 20 | AR96: =VLOOKUP(DropDownList!$B$47,CntyQryCensus!$A$510:$DA$552,AR$1) -> 2 | AS96: =VLOOKUP(DropDownList!$B$47,CntyQryCensus!$A$510:$DA$552,AS$1) -> 2 | AT96: =VLOOKUP(DropDownList!$B$47,CntyQryCensus!$A$510:$DA$552,AT$1) -> 0 | AU96: =VLOOKUP(DropDownList!$B$47,CntyQryCensus!$A$510:$DA$552,AU$1) -> 18 | AV96: =VLOOKUP(DropDownList!$B$47,CntyQryCensus!$A$510:$DA$552,AV$1) -> 5 | AW96: =VLOOKUP(DropDownList!$B$47,CntyQryCensus!$A$510:$DA$552,AW$1) -> 13 | AX96: =VLOOKUP(DropDownList!$B$47,CntyQryCensus!$A$510:$DA$552,AX$1) -> 267 | AY96: =VLOOKUP(DropDownList!$B$47,CntyQryCensus!$A$510:$DA$552,AY$1) -> 24 | AZ96: =VLOOKUP(DropDownList!$B$47,CntyQryCensus!$A$510:$DA$552,AZ$1) -> 9 | BA96: =VLOOKUP(DropDownList!$B$47,CntyQryCensus!$A$510:$DA$552,BA$1) -> 15 | BB96: =VLOOKUP(DropDownList!$B$47,CntyQryCensus!$A$510:$DA$552,BB$1) -> 243 | BC96: =VLOOKUP(DropDownList!$B$47,CntyQryCensus!$A$510:$DA$552,BC$1) -> 16 | BD96: =VLOOKUP(DropDownList!$B$47,CntyQryCensus!$A$510:$DA$552,BD$1) -> 227 | BE96: =VLOOKUP(DropDownList!$B$47,CntyQryCensus!$A$510:$DA$552,BE$1) -> 66 | BF96: =VLOOKUP(DropDownList!$B$47,CntyQryCensus!$A$510:$DA$552,BF$1) -> 20 | BG96: =VLOOKUP(DropDownList!$B$47,CntyQryCensus!$A$510:$DA$552,BG$1) -> 4 | BH96: =VLOOKUP(DropDownList!$B$47,CntyQryCensus!$A$510:$DA$552,BH$1) -> 16 | BI96: =VLOOKUP(DropDownList!$B$47,CntyQryCensus!$A$510:$DA$552,BI$1) -> 46 | BJ96: =VLOOKUP(DropDownList!$B$47,CntyQryCensus!$A$510:$DA$552,BJ$1) -> 0 | BK96: =VLOOKUP(DropDownList!$B$47,CntyQryCensus!$A$510:$DA$552,BK$1) -> 46 | BL96: =VLOOKUP(DropDownList!$B$47,CntyQryCensus!$A$510:$DA$552,BL$1) -> 0 | BM96: =VLOOKUP(DropDownList!$B$47,CntyQryCensus!$A$510:$DA$552,BM$1) -> 0 | BN96: =VLOOKUP(DropDownList!$B$47,CntyQryCensus!$A$510:$DA$552,BN$1) -> 0 | BO96: =VLOOKUP(DropDownList!$B$47,CntyQryCensus!$A$510:$DA$552,BO$1) -> 0 | BP96: =VLOOKUP(DropDownList!$B$47,CntyQryCensus!$A$510:$DA$552,BP$1) -> 0 | BQ96: =VLOOKUP(DropDownList!$B$47,CntyQryCensus!$A$510:$DA$552,BQ$1) -> 0 | BR96: =VLOOKUP(DropDownList!$B$47,CntyQryCensus!$A$510:$DA$552,BR$1) -> 0 | BS96: =VLOOKUP(DropDownList!$B$47,CntyQryCensus!$A$510:$DA$552,BS$1) -> 0 | BT96: =VLOOKUP(DropDownList!$B$47,CntyQryCensus!$A$510:$DA$552,BT$1) -> 0 | BU96: =VLOOKUP(DropDownList!$B$47,CntyQryCensus!$A$510:$DA$552,BU$1) -> 0 | BV96: =VLOOKUP(DropDownList!$B$47,CntyQryCensus!$A$510:$DA$552,BV$1) -> 0 | BW96: =VLOOKUP(DropDownList!$B$47,CntyQryCensus!$A$510:$DA$552,BW$1) -> 0 | BX96: =VLOOKUP(DropDownList!$B$47,CntyQryCensus!$A$510:$DA$552,BX$1) -> 0 | BY96: =VLOOKUP(DropDownList!$B$47,CntyQryCensus!$A$510:$DA$552,BY$1) -> 0 | BZ96: =VLOOKUP(DropDownList!$B$47,CntyQryCensus!$A$510:$DA$552,BZ$1) -> 0 | CA96: =VLOOKUP(DropDownList!$B$47,CntyQryCensus!$A$510:$DA$552,CA$1) -> 0 | CB96: =VLOOKUP(DropDownList!$B$47,CntyQryCensus!$A$510:$DA$552,CB$1) -> 0 | CC96: =VLOOKUP(DropDownList!$B$47,CntyQryCensus!$A$510:$DA$552,CC$1) -> 0 | CD96: =VLOOKUP(DropDownList!$B$47,CntyQryCensus!$A$510:$DA$552,CD$1) -> 0 | CE96: =VLOOKUP(DropDownList!$B$47,CntyQryCensus!$A$510:$DA$552,CE$1) -> 0 | CF96: =VLOOKUP(DropDownList!$B$47,CntyQryCensus!$A$510:$DA$552,CF$1) -> 0 | CG96: =VLOOKUP(DropDownList!$B$47,CntyQryCensus!$A$510:$DA$552,CG$1) -> 0 | CH96: =VLOOKUP(DropDownList!$B$47,CntyQryCensus!$A$510:$DA$552,CH$1) -> 0 | CI96: =VLOOKUP(DropDownList!$B$47,CntyQryCensus!$A$510:$DA$552,CI$1) -> 0 | CJ96: =VLOOKUP(DropDownList!$B$47,CntyQryCensus!$A$510:$DA$552,CJ$1) -> 0 | CK96: =VLOOKUP(DropDownList!$B$47,CntyQryCensus!$A$510:$DA$552,CK$1) -> 0 | CL96: =VLOOKUP(DropDownList!$B$47,CntyQryCensus!$A$510:$DA$552,CL$1) -> 0 | CM96: =VLOOKUP(DropDownList!$B$47,CntyQryCensus!$A$510:$DA$552,CM$1) -> 0 | CN96: =VLOOKUP(DropDownList!$B$47,CntyQryCensus!$A$510:$DA$552,CN$1) -> 0 | CO96: =VLOOKUP(DropDownList!$B$47,CntyQryCensus!$A$510:$DA$552,CO$1) -> 0 | CP96: =VLOOKUP(DropDownList!$B$47,CntyQryCensus!$A$510:$DA$552,CP$1) -> 0 | CQ96: =VLOOKUP(DropDownList!$B$47,CntyQryCensus!$A$510:$DA$552,CQ$1) -> 0 | CR96: =VLOOKUP(DropDownList!$B$47,CntyQryCensus!$A$510:$DA$552,CR$1) -> 0 | CS96: =VLOOKUP(DropDownList!$B$47,CntyQryCensus!$A$510:$DA$552,CS$1) -> 0 | CT96: =VLOOKUP(DropDownList!$B$47,CntyQryCensus!$A$510:$DA$552,CT$1) -> 0 | CU96: =VLOOKUP(DropDownList!$B$47,CntyQryCensus!$A$510:$DA$552,CU$1) -> 0 | CV96: =VLOOKUP(DropDownList!$B$47,CntyQryCensus!$A$510:$DA$552,CV$1) -> 0 | CW96: =VLOOKUP(DropDownList!$B$47,CntyQryCensus!$A$510:$DA$552,CW$1) -> 0 | CX96: =VLOOKUP(DropDownList!$B$47,CntyQryCensus!$A$510:$DA$552,CX$1) -> 0 | CY96: =VLOOKUP(DropDownList!$B$47,CntyQryCensus!$A$510:$DA$552,CY$1) -> 0 | CZ96: =VLOOKUP(DropDownList!$B$47,CntyQryCensus!$A$510:$DA$552,CZ$1) -> 0 | DA96: =VLOOKUP(DropDownList!$B$47,CntyQryCensus!$A$510:$DA$552,DA$1) -> 0
A101: =VLOOKUP(DropDownList!$B$47,CntyQryCensus!$A$510:$DA$552,A$1) -> Franconia
A105: ACS | B105: 2 | C105: =B105+1 -> 3 | D105: =C105+1 -> 4 | E105: 5 | F105: 6 | G105: 7 | H105: 8 | I105: 9 | J105: 10 | K105: 11 | L105: =K105+1 -> 12 | M105: 13 | N105: 14 | O105: 15 | P105: =O105+1 -> 16 | Q105: 17 | R105: 18 | S105: 19 | T105: 20 | U105: 21 | V105: 22 | W105: 23 | X105: 24 | Y105: 25 | Z105: 26 | AA105: 27 | AB105: 28 | AC105: 29 | AD105: 30 | AE105: 31 | AF105: 32 | AG105: 33 | AH105: 34 | AI105: 35 | AJ105: 36 | AK105: 37 | AL105: 38 | AM105: 39 | AN105: 40 | AO105: 41 | AP105: 42 | AQ105: 43 | AR105: 44 | AS105: 45 | AT105: 46 | AU105: 47 | AV105: 48 | AW105: 49 | AX105: 50 | AY105: 51 | AZ105: 52 | BA105: 53 | BB105: 54 | BC105: 55 | BD105: 56 | BE105: 57 | BF105: 58 | BG105: 59 | BH105: 60 | BI105: 61 | BJ105: 62 | BK105: 63 | BL105: 64 | BM105: 65 | BN105: 66 | BO105: 67 | BP105: =BO105+1 -> 68 | BQ105: 69 | BR105: 70 | BS105: 71 | BT105: 72 | BU105: 73 | BV105: 74 | BW105: 75 | BX105: 76 | BY105: 77 | BZ105: 78 | CA105: 79 | CB105: 80 | CC105: 81 | CD105: 82 | CE105: 83 | CF105: 84 | CG105: 85 | CH105: 86 | CI105: 87 | CJ105: 88 | CK105: 89 | CL105: 90 | CM105: 91 | CN105: 92 | CO105: 93 | CP105: 94 | CQ105: 95 | CR105: 96 | CS105: 97 | CT105: 98 | CU105: 99 | CV105: 100 | CW105: 101 | CX105: 102 | CY105: 103 | CZ105: 104 | DA105: 105 | DB105: 106 | DC105: 107 | DD105: 108 | DE105: 109 | DF105: 110 | DG105: 111 | DH105: 112 | DI105: 113 | DJ105: 114 | DK105: 115 | DL105: 116 | DM105: 117 | DN105: 118 | DO105: 119 | DP105: 120 | DQ105: 121 | DR105: 122 | DS105: 123 | DT105: 124 | DU105: 125
A106: Househould Data (Housing Unit Type)
A107: NAME | B107: TotalHU | C107: ="MOE "&B107 -> MOE TotalHU | D107: TotalOccHU | E107: ="MOE "&D107 -> MOE TotalOccHU | F107: TotalOwnerOccUn | G107: ="MOE "&F107 -> MOE TotalOwnerOccUn | H107: TotalRenterOccn | I107: ="MOE "&H107 -> MOE TotalRenterOccn | J107: TotalVacantUntis | K107: ="MOE "&J107 -> MOE TotalVacantUntis | L107: VacantUnitsForRent | M107: ="MOE "&L107 -> MOE VacantUnitsForRent | N107: VacantUnitRentedNotOcc | O107: ="MOE "&N107 -> MOE VacantUnitRentedNotOcc | P107: VacantUnitForSale | Q107: ="MOE "&P107 -> MOE VacantUnitForSale | R107: VacantUnitSoldNotOcc | S107: ="MOE "&R107 -> MOE VacantUnitSoldNotOcc | T107: VacantUnitSeasonalRec | U107: ="MOE "&T107 -> MOE VacantUnitSeasonalRec | V107: TotalPopInHousingUnits | W107: ="MOE "&V107 -> MOE TotalPopInHousingUnits | X107: OwnerOccPopHousingUnits | Y107: ="MOE "&X107 -> MOE OwnerOccPopHousingUnits | Z107: RenterOccPopHousingUnits | AA107: ="MOE "&Z107 -> MOE RenterOccPopHousingUnits | AB107: TotalUntis | AC107: ="MOE "&AB107 -> MOE TotalUntis | AD107: TotalOwnerOccUnits | AE107: ="MOE "&AD107 -> MOE TotalOwnerOccUnits | AF107: SigFamOwnerOcc | AG107: ="MOE "&AF107 -> MOE SigFamOwnerOcc | AH107: MultiFamOwnerOcc | AI107: ="MOE "&AH107 -> MOE MultiFamOwnerOcc | AJ107: MobileOwnerOcc | AK107: ="MOE "&AJ107 -> MOE MobileOwnerOcc | AL107: TotalRenterOccUnits | AM107: ="MOE "&AL107 -> MOE TotalRenterOccUnits | AN107: SigFamRenterOcc | AO107: ="MOE "&AN107 -> MOE SigFamRenterOcc | AP107: MultiFamRenterOcc | AQ107: ="MOE "&AP107 -> MOE MultiFamRenterOcc | AR107: MobileRenterOcc | AS107: ="MOE "&AR107 -> MOE MobileRenterOcc | AT107: TotalSigFamilyUnits | AU107: ="MOE "&AT107 -> MOE TotalSigFamilyUnits | AV107: TotalMultiFamilyUnits | AW107: ="MOE "&AV107 -> MOE TotalMultiFamilyUnits | AX107: TotalMobileUnits | AY107: ="MOE "&AX107 -> MOE TotalMobileUnits | AZ107: YrHouseBuilt2014Later | BA107: ="MOE "&AZ107 -> MOE YrHouseBuilt2014Later | BB107: YrHouseBuilt2010-2013 | BC107: ="MOE "&BB107 -> MOE YrHouseBuilt2010-2013 | BD107: YrHouseBuilt2000-2009 | BE107: ="MOE "&BD107 -> MOE YrHouseBuilt2000-2009 | BF107: YrHouseBuilt1990-1999 | BG107: ="MOE "&BF107 -> MOE YrHouseBuilt1990-1999 | BH107: YrHouseBuilt1980-1989 | BI107: ="MOE "&BH107 -> MOE YrHouseBuilt1980-1989 | BJ107: YrHouseBuilt1970-1979 | BK107: ="MOE "&BJ107 -> MOE YrHouseBuilt1970-1979 | BL107: YrHouseBuilt1960-1969 | BM107: ="MOE "&BL107 -> MOE YrHouseBuilt1960-1969 | BN107: YrHouseBuilt1950-1959 | BO107: ="MOE "&BN107 -> MOE YrHouseBuilt1950-1959 | BP107: YrHouseBuilt1940-1949 | BQ107: ="MOE "&BP107 -> MOE YrHouseBuilt1940-1949 | BR107: YrHouseBuilt1939orEarlier | BS107: ="MOE "&BR107 -> MOE YrHouseBuilt1939orEarlier | BT107: NoBedrooms | BU107: ="MOE "&BT107 -> MOE NoBedrooms | BV107: 1Bedroom | BW107: ="MOE "&BV107 -> MOE 1Bedroom | BX107: 2Bedroom | BY107: ="MOE "&BX107 -> MOE 2Bedroom | BZ107: 3Bedroom | CA107: ="MOE "&BZ107 -> MOE 3Bedroom | CB107: 4+Bedroom | CC107: ="MOE "&CB107 -> MOE 4+Bedroom
A108: =VLOOKUP(DropDownList!$B$47,CntyQryCensus!$A$510:$DA$552,A$1) -> Franconia | B108: 2714 | C108: 283 | D108: 2061 | E108: 285 | F108: 1136 | G108: 263 | H108: 925 | I108: 227 | J108: 653 | K108: 153 | L108: 82 | M108: 82 | N108: 0 | O108: 17 | P108: 0 | Q108: 17 | R108: 0 | S108: 17 | T108: 541 | U108: 167 | V108: 5442 | W108: 262 | X108: 3216 | Y108: 631 | Z108: 2226 | AA108: 578 | AB108: 2061 | AC108: 285 | AD108: 1136 | AE108: 263 | AF108: 944 | AG108: 245 | AH108: 96 | AI108: 88.35157044 | AJ108: 96 | AK108: 75.92759709 | AL108: 925 | AM108: 227 | AN108: 160 | AO108: 111 | AP108: 746 | AQ108: 259.5476835 | AR108: 19 | AS108: 35.35533906 | AT108: 1333 | AU108: 249 | AV108: 1226 | AW108: 312.7459033 | AX108: 155 | AY108: 99.46356117 | AZ108: 0 | BA108: 17 | BB108: 159 | BC108: 128 | BD108: 260 | BE108: 139 | BF108: 340 | BG108: 206 | BH108: 671 | BI108: 230 | BJ108: 374 | BK108: 175 | BL108: 111 | BM108: 81 | BN108: 137 | BO108: 91 | BP108: 216 | BQ108: 126 | BR108: 446 | BS108: 170 | BT108: 33 | BU108: 57 | BV108: 366 | BW108: 204 | BX108: 1018 | BY108: 278 | BZ108: 756 | CA108: 209 | CB108: 541 | CC108: 241.5139748
A110: Disability Data
A111: NAME | B111: TotalPop | C111: ="MOE "&B111 -> MOE TotalPop | D111: PopUnder 5 years: | E111: ="MOE "&D111 -> MOE PopUnder 5 years: | F111: =D$111&"-WithDisability" -> PopUnder 5 years:-WithDisability | G111: ="MOE "&F111 -> MOE PopUnder 5 years:-WithDisability | H111: =D111&"-NoDisability" -> PopUnder 5 years:-NoDisability | I111: ="MOE "&H111 -> MOE PopUnder 5 years:-NoDisability | J111: PopUnder 5 to 17years: | K111: ="MOE "&J111 -> MOE PopUnder 5 to 17years: | L111: =J$111&"-WithDisability" -> PopUnder 5 to 17years:-WithDisability | M111: ="MOE "&L111 -> MOE PopUnder 5 to 17years:-WithDisability | N111: =J111&"-NoDisability" -> PopUnder 5 to 17years:-NoDisability | O111: ="MOE "&N111 -> MOE PopUnder 5 to 17years:-NoDisability | P111: PopUnder 18 to 34 years: | Q111: ="MOE "&P111 -> MOE PopUnder 18 to 34 years: | R111: =P$111&"-WithDisability" -> PopUnder 18 to 34 years:-WithDisability | S111: ="MOE "&R111 -> MOE PopUnder 18 to 34 years:-WithDisability | T111: =P111&"-NoDisability" -> PopUnder 18 to 34 years:-NoDisability | U111: ="MOE "&T111 -> MOE PopUnder 18 to 34 years:-NoDisability | V111: Pop 35 years to 64: | W111: ="MOE "&V111 -> MOE Pop 35 years to 64: | X111: =$V$111&"-WithDisability" -> Pop 35 years to 64:-WithDisability | Y111: ="MOE "&X111 -> MOE Pop 35 years to 64:-WithDisability | Z111: =$V$111&"-NoDisability" -> Pop 35 years to 64:-NoDisability | AA111: ="MOE "&Z111 -> MOE Pop 35 years to 64:-NoDisability | AB111: Pop 65 years to 74: | AC111: ="MOE "&AB111 -> MOE Pop 65 years to 74: | AD111: =$AB$111&"-WithDisability" -> Pop 65 years to 74:-WithDisability | AE111: ="MOE "&AD111 -> MOE Pop 65 years to 74:-WithDisability | AF111: =$AB$111&"-NoDisability" -> Pop 65 years to 74:-NoDisability | AG111: ="MOE "&AF111 -> MOE Pop 65 years to 74:-NoDisability | AH111: Pop 75 and older: | AI111: ="MOE "&AH111 -> MOE Pop 75 and older: | AJ111: =$AH$111&"-WithDisability" -> Pop 75 and older:-WithDisability | AK111: ="MOE "&AJ111 -> MOE Pop 75 and older:-WithDisability | AL111: =$AH$111&"-NoDisability" -> Pop 75 and older:-NoDisability | AM111: ="MOE "&AL111 -> MOE Pop 75 and older:-NoDisability | AN111: TotalPopUnder5_HearingDisability | AO111: ="MOE "&AN111 -> MOE TotalPopUnder5_HearingDisability | AP111: TotalPopUnder5_HearingDisability | AQ111: ="MOE "&AP111 -> MOE TotalPopUnder5_HearingDisability | AR111: TotalPop18To34_HearingDisability | AS111: ="MOE "&AR111 -> MOE TotalPop18To34_HearingDisability | AT111: TotalPop35To64_HearingDisability | AU111: ="MOE "&AT111 -> MOE TotalPop35To64_HearingDisability | AV111: TotalPop65To74_HearingDisability | AW111: ="MOE "&AV111 -> MOE TotalPop65To74_HearingDisability | AX111: TotalPop75andOlder_HearingDisability | AY111: ="MOE "&AX111 -> MOE TotalPop75andOlder_HearingDisability | AZ111: TotalPopUnder5_VisionDisability | BA111: ="MOE "&AZ111 -> MOE TotalPopUnder5_VisionDisability | BB111: TotalPop5To17_VisionDisability | BC111: ="MOE "&BB111 -> MOE TotalPop5To17_VisionDisability | BD111: TotalPop18To34_VisionDisability | BE111: ="MOE "&BD111 -> MOE TotalPop18To34_VisionDisability | BF111: TotalPop35To64_VisionDisability | BG111: ="MOE "&BF111 -> MOE TotalPop35To64_VisionDisability | BH111: TotalPop65To74_VisionDisability | BI111: ="MOE "&BH111 -> MOE TotalPop65To74_VisionDisability | BJ111: TotalPop75andOlder_VisionDisability | BK111: ="MOE "&BJ111 -> MOE TotalPop75andOlder_VisionDisability | BL111: TotalPop5To17_CongnitiveDisability | BM111: ="MOE "&BL111 -> MOE TotalPop5To17_CongnitiveDisability | BN111: TotalPop18To34_CongnitiveDisability | BO111: ="MOE "&BN111 -> MOE TotalPop18To34_CongnitiveDisability | BP111: TotalPop35To64_CongnitiveDisability | BQ111: ="MOE "&BP111 -> MOE TotalPop35To64_CongnitiveDisability | BR111: TotalPop65To74_CongnitiveDisability | BS111: ="MOE "&BR111 -> MOE TotalPop65To74_CongnitiveDisability | BT111: TotalPop75andOlder_CongnitiveDisability | BU111: ="MOE "&BT111 -> MOE TotalPop75andOlder_CongnitiveDisability | BV111: TotalPop5To17_AmbulatoryDisability | BW111: ="MOE "&BV111 -> MOE TotalPop5To17_AmbulatoryDisability | BX111: TotalPop18To34_AmbulatoryDisability | BY111: ="MOE "&BX111 -> MOE TotalPop18To34_AmbulatoryDisability | BZ111: TotalPop35To64_AmbulatoryDisability | CA111: ="MOE "&BZ111 -> MOE TotalPop35To64_AmbulatoryDisability | CB111: TotalPop65To74_AmbulatoryDisability | CC111: ="MOE "&CB111 -> MOE TotalPop65To74_AmbulatoryDisability | CD111: TotalPop75andOlder_AmbulatoryDisability | CE111: ="MOE "&CD111 -> MOE TotalPop75andOlder_AmbulatoryDisability | CF111: TotalPop5To17_SelfCareDisability | CG111: ="MOE "&CF111 -> MOE TotalPop5To17_SelfCareDisability | CH111: TotalPop18To34_SelfCareDisability | CI111: ="MOE "&CH111 -> MOE TotalPop18To34_SelfCareDisability | CJ111: TotalPop35To64_SelfCareDisability | CK111: ="MOE "&CJ111 -> MOE TotalPop35To64_SelfCareDisability | CL111: TotalPop65To74_SelfCareDisability | CM111: ="MOE "&CL111 -> MOE TotalPop65To74_SelfCareDisability | CN111: TotalPop75andOlder_SelfCareDisability | CO111: ="MOE "&CN111 -> MOE TotalPop75andOlder_SelfCareDisability | CP111: TotalPop18To34_IndependantLivingDisability | CQ111: ="MOE "&CP111 -> MOE TotalPop18To34_IndependantLivingDisability | CR111: TotalPop35To64_IndependantLivingDisability | CS111: ="MOE "&CR111 -> MOE TotalPop35To64_IndependantLivingDisability | CT111: TotalPop65To74_IndependantLivingDisability | CU111: ="MOE "&CT111 -> MOE TotalPop65To74_IndependantLivingDisability | CV111: TotalPop75andOlder_IndependantLivingDisability | CW111: ="MOE "&CV111 -> MOE TotalPop75andOlder_IndependantLivingDisability | CX111: TotalUnder5_HearingorVisionDisability | CY111: ="MOE "&CX111 -> MOE TotalUnder5_HearingorVisionDisability | CZ111: TotalUnder5_HearingandVisionDisability | DA111: ="MOE "&CZ111 -> MOE TotalUnder5_HearingandVisionDisability | DB111: 5to17YearWIthOneDisability | DC111: ="MOE "&DB111 -> MOE 5to17YearWIthOneDisability | DD111: 5to17YearWIthTwoOrMoreDisability | DE111: ="MOE "&DD111 -> MOE 5to17YearWIthTwoOrMoreDisability | DF111: 18to34YearWIthOneDisability | DG111: ="MOE "&DF111 -> MOE 18to34YearWIthOneDisability | DH111: 18to34YearWIthTwoOrMoreDisability | DI111: ="MOE "&DH111 -> MOE 18to34YearWIthTwoOrMoreDisability | DJ111: 35to64YearWIthOneDisability | DK111: ="MOE "&DJ111 -> MOE 35to64YearWIthOneDisability | DL111: 35to64YearWIthTwoOrMoreDisability | DM111: ="MOE "&DL111 -> MOE 35to64YearWIthTwoOrMoreDisability | DN111: 65to74YearWIthOneDisability | DO111: ="MOE "&DN111 -> MOE 65to74YearWIthOneDisability | DP111: 65to74YearWIthTwoOrMoreDisability | DQ111: ="MOE "&DP111 -> MOE 65to74YearWIthTwoOrMoreDisability | DR111: 75AndOlderWIthOneDisability | DS111: ="MOE "&DR111 -> MOE 75AndOlderWIthOneDisability | DT111: 75AndOlderWIthTwoOrMoreDisability | DU111: ="MOE "&DT111 -> MOE 75AndOlderWIthTwoOrMoreDisability
A112: =VLOOKUP(DropDownList!$B$47,CntyQryCensus!$A$510:$DA$552,A$1) -> Franconia | B112: 999 | C112: 218 | D112: 18 | E112: 19.92485885 | F112: 0 | G112: 16.97056275 | H112: 18 | I112: 19.92485885 | J112: 131 | K112: 63.78087488 | L112: 0 | M112: 16.97056275 | N112: 131 | O112: 63.78087488 | P112: 153 | Q112: 73.08214556 | R112: 55 | S112: 61.66036004 | T112: 98 | U112: 42.04759208 | V112: 374 | W112: 80.65977932 | X112: 72 | Y112: 53.00943312 | Z112: 302 | AA112: 65.76473219 | AB112: 228 | AC112: 74.95331881 | AD112: 48 | AE112: 43.28972164 | AF112: 180 | AG112: 60.41522987 | AH112: 95 | AI112: 30 | AJ112: 18 | AK112: 12.20655562 | AL112: 77 | AM112: 31.06444913 | AN112: 0 | AO112: 16.97056275 | AP112: 0 | AQ112: 16.97056275 | AR112: 0 | AS112: 16.97056275 | AT112: 0 | AU112: 16.97056275 | AV112: 46 | AW112: 43.18564576 | AX112: 13 | AY112: 10.63014581 | AZ112: 0 | BA112: 15.55634919 | BB112: 0 | BC112: 15.55634919 | BD112: 0 | BE112: 15.55634919 | BF112: 0 | BG112: 15.55634919 | BH112: 0 | BI112: 15.55634919 | BJ112: 6 | BK112: 13.60147051 | BL112: 0 | BM112: 16.97056275 | BN112: 55 | BO112: 61.66036004 | BP112: 63 | BQ112: 53.00943312 | BR112: 0 | BS112: 16.97056275 | BT112: 3 | BU112: 12.64911064 | BV112: 0 | BW112: 16.97056275 | BX112: 0 | BY112: 16.97056275 | BZ112: 16 | CA112: 18.43908891 | CB112: 2 | CC112: 12.64911064 | CD112: 6 | CE112: 13.89244399 | CF112: 0 | CG112: 16.97056275 | CH112: 0 | CI112: 16.97056275 | CJ112: 10 | CK112: 18.43908891 | CL112: 0 | CM112: 16.97056275 | CN112: 3 | CO112: 12.64911064 | CP112: 14 | CQ112: 15 | CR112: 38 | CS112: 34.0147027 | CT112: 0 | CU112: 16.97056275 | CV112: 3 | CW112: 12.64911064 | CX112: 0 | CY112: 12 | CZ112: 0 | DA112: 12 | DB112: 75 | DC112: 97 | DD112: 52 | DE112: 30 | DF112: 60 | DG112: 45 | DH112: 6 | DI112: 7 | DJ112: Estimate | DK112: Margin Of Error | DL112: 4549 | DM112: 80 | DN112: 274 | DO112: 111.8302285 | DP112: 0 | DQ112: 15.55634919 | DR112: 274 | DS112: 111.8302285 | DT112: 634 | DU112: 132.1362933 | DV112: 67 | DW112: 45.65084884 | DX112: 567 | DY112: 134.714513 | DZ112: 943 | EA112: 169.0118339 | EB112: 20 | EC112: 24.59674775 | ED112: 923 | EE112: 167.6215977 | EF112: 2065 | EG112: 154.9870962 | EH112: 357 | EI112: 117.5925168 | EJ112: 1708 | EK112: 169.9176271 | EL112: 206 | EM112: 70.45565982 | EN112: 83 | EO112: 52.92447449 | EP112: 123 | EQ112: 44.82186966 | ER112: 427 | ES112: 92.4175308 | ET112: 194 | EU112: 68.60029154 | EV112: 233 | EW112: 67.67569726
A114: Househould Income By Age
A115: NAME | B115: TotalHouseholds | C115: ="MOE "&B115 -> MOE TotalHouseholds | D115: HHInc<10K | E115: ="MOE "&D115 -> MOE HHInc<10K | F115: HHInc10to15K | G115: ="MOE "&F115 -> MOE HHInc10to15K | H115: HHInc15to20K | I115: ="MOE "&H115 -> MOE HHInc15to20K | J115: HHInc20to25K | K115: ="MOE "&J115 -> MOE HHInc20to25K | L115: HHInc25to30K | M115: ="MOE "&L115 -> MOE HHInc25to30K | N115: HHInc30to35K | O115: ="MOE "&N115 -> MOE HHInc30to35K | P115: HHInc35to40K | Q115: ="MOE "&P115 -> MOE HHInc35to40K | R115: HHInc40to45K | S115: ="MOE "&R115 -> MOE HHInc40to45K | T115: HHInc45to50K | U115: ="MOE "&T115 -> MOE HHInc45to50K | V115: HHInc50to60K | W115: ="MOE "&V115 -> MOE HHInc50to60K | X115: HHInc60to75K | Y115: ="MOE "&X115 -> MOE HHInc60to75K | Z115: HHInc75to100K | AA115: ="MOE "&Z115 -> MOE HHInc75to100K | AB115: HHInc100to125K | AC115: ="MOE "&AB115 -> MOE HHInc100to125K | AD115: HHInc125to150K | AE115: ="MOE "&AD115 -> MOE HHInc125to150K | AF115: HHInc150to200K | AG115: ="MOE "&AF115 -> MOE HHInc150to200K | AH115: HHInc>200K | AI115: ="MOE "&AH115 -> MOE HHInc>200K | AJ115: TotalHH | AK115: ="MOE "&AJ115 -> MOE TotalHH | AL115: HHAgeHHUnder25yrs | AM115: ="MOE "&AL115 -> MOE HHAgeHHUnder25yrs | AN115: HHAgeHH<25HHInc<10K | AO115: ="MOE "&AN115 -> MOE HHAgeHH<25HHInc<10K | AP115: HHAgeHH<25HHInc10to15K | AQ115: ="MOE "&AP115 -> MOE HHAgeHH<25HHInc10to15K | AR115: HHAgeHH<25HHInc15to20K | AS115: ="MOE "&AR115 -> MOE HHAgeHH<25HHInc15to20K | AT115: HHAgeHH<25HHInc20to25K | AU115: ="MOE "&AT115 -> MOE HHAgeHH<25HHInc20to25K | AV115: HHAgeHH<25HHInc25to30K | AW115: ="MOE "&AV115 -> MOE HHAgeHH<25HHInc25to30K | AX115: HHAgeHH<25HHInc30to35K | AY115: ="MOE "&AX115 -> MOE HHAgeHH<25HHInc30to35K | AZ115: HHAgeHH<25HHInc35to40K | BA115: ="MOE "&AZ115 -> MOE HHAgeHH<25HHInc35to40K | BB115: HHAgeHH<25HHInc40to45K | BC115: ="MOE "&BB115 -> MOE HHAgeHH<25HHInc40to45K | BD115: HHAgeHH<25HHInc45to50K | BE115: ="MOE "&BD115 -> MOE HHAgeHH<25HHInc45to50K | BF115: HHAgeHH<25HHInc50to60K | BG115: ="MOE "&BF115 -> MOE HHAgeHH<25HHInc50to60K | BH115: HHAgeHH<25HHInc60to75K | BI115: ="MOE "&BH115 -> MOE HHAgeHH<25HHInc60to75K | BJ115: HHAgeHH<25HHInc75to100K | BK115: ="MOE "&BJ115 -> MOE HHAgeHH<25HHInc75to100K | BL115: HHAgeHH<25HHInc100to125K | BM115: ="MOE "&BL115 -> MOE HHAgeHH<25HHInc100to125K | BN115: HHAgeHH<25HHInc125to150K | BO115: ="MOE "&BN115 -> MOE HHAgeHH<25HHInc125to150K | BP115: HHAgeHH<25HHInc150to200K | BQ115: ="MOE "&BP115 -> MOE HHAgeHH<25HHInc150to200K | BR115: HHAge<25HHInc>200K | BS115: ="MOE "&BR115 -> MOE HHAge<25HHInc>200K | BT115: HHAgeHH25to44yrs | BU115: ="MOE "&BT115 -> MOE HHAgeHH25to44yrs | BV115: HHAgeHH25To44yrsHHInc<10K | BW115: ="MOE "&BV115 -> MOE HHAgeHH25To44yrsHHInc<10K | BX115: HHAgeHH25To44yrsHHInc10to15K | BY115: ="MOE "&BX115 -> MOE HHAgeHH25To44yrsHHInc10to15K | BZ115: HHAgeHH25To44yrsHHInc15to20K | CA115: ="MOE "&BZ115 -> MOE HHAgeHH25To44yrsHHInc15to20K | CB115: HHAgeHH25To44yrsHHInc20to25K | CC115: ="MOE "&CB115 -> MOE HHAgeHH25To44yrsHHInc20to25K | CD115: HHAgeHH25To44yrsHHInc25to30K | CE115: ="MOE "&CD115 -> MOE HHAgeHH25To44yrsHHInc25to30K | CF115: HHAgeHH25To44yrsHHInc30to35K | CG115: ="MOE "&CF115 -> MOE HHAgeHH25To44yrsHHInc30to35K | CH115: HHAgeHH25To44yrsHHInc35to40K | CI115: ="MOE "&CH115 -> MOE HHAgeHH25To44yrsHHInc35to40K | CJ115: HHAgeHH25To44yrsHHInc40to45K | CK115: ="MOE "&CJ115 -> MOE HHAgeHH25To44yrsHHInc40to45K | CL115: HHAgeHH25To44yrsHHInc45to50K | CM115: ="MOE "&CL115 -> MOE HHAgeHH25To44yrsHHInc45to50K | CN115: HHAgeHH25To44yrsHHInc50to60K | CO115: ="MOE "&CN115 -> MOE HHAgeHH25To44yrsHHInc50to60K | CP115: HHAgeHH25To44yrsHHInc60to75K | CQ115: ="MOE "&CP115 -> MOE HHAgeHH25To44yrsHHInc60to75K | CR115: HHAgeHH25To44yrsHHInc75to100K | CS115: ="MOE "&CR115 -> MOE HHAgeHH25To44yrsHHInc75to100K | CT115: HHAgeHH25To44yrsHHInc100to125K | CU115: ="MOE "&CT115 -> MOE HHAgeHH25To44yrsHHInc100to125K | CV115: HHAgeHH25To44yrsHHInc125to150K | CW115: ="MOE "&CV115 -> MOE HHAgeHH25To44yrsHHInc125to150K | CX115: HHAgeHH25To44yrsHHInc150to200K | CY115: ="MOE "&CX115 -> MOE HHAgeHH25To44yrsHHInc150to200K | CZ115: HHAge25To44yrsHHInc>200K | DA115: ="MOE "&CZ115 -> MOE HHAge25To44yrsHHInc>200K | DB115: HHAgeHH45To64yrs | DC115: ="MOE "&DB115 -> MOE HHAgeHH45To64yrs | DD115: HHAgeHH45To64yrsHHInc<10K | DE115: ="MOE "&DD115 -> MOE HHAgeHH45To64yrsHHInc<10K | DF115: HHAgeHH45To64yrsHHInc10to15K | DG115: ="MOE "&DF115 -> MOE HHAgeHH45To64yrsHHInc10to15K | DH115: HHAgeHH45To64yrsHHInc15to20K | DI115: ="MOE "&DH115 -> MOE HHAgeHH45To64yrsHHInc15to20K | DJ115: HHAgeHH45To64yrsHHInc20to25K | DK115: ="MOE "&DJ115 -> MOE HHAgeHH45To64yrsHHInc20to25K | DL115: HHAgeHH45To64yrsHHInc25to30K | DM115: ="MOE "&DL115 -> MOE HHAgeHH45To64yrsHHInc25to30K | DN115: HHAgeHH45To64yrsHHInc30to35K | DO115: ="MOE "&DN115 -> MOE HHAgeHH45To64yrsHHInc30to35K | DP115: HHAgeHH45To64yrsHHInc35to40K | DQ115: ="MOE "&DP115 -> MOE HHAgeHH45To64yrsHHInc35to40K | DR115: HHAgeHH45To64yrsHHInc40to45K | DS115: ="MOE "&DR115 -> MOE HHAgeHH45To64yrsHHInc40to45K | DT115: HHAgeHH45To64yrsHHInc45to50K | DU115: ="MOE "&DT115 -> MOE HHAgeHH45To64yrsHHInc45to50K | DV115: HHAgeHH45To64yrsHHInc50to60K | DW115: ="MOE "&DV115 -> MOE HHAgeHH45To64yrsHHInc50to60K | DX115: HHAgeHH45To64yrsHHInc60to75K | DY115: ="MOE "&DX115 -> MOE HHAgeHH45To64yrsHHInc60to75K | DZ115: HHAgeHH45To64yrsHHInc75to100K | EA115: ="MOE "&DZ115 -> MOE HHAgeHH45To64yrsHHInc75to100K | EB115: HHAgeHH45To64yrsHHInc100to125K | EC115: ="MOE "&EB115 -> MOE HHAgeHH45To64yrsHHInc100to125K | ED115: HHAgeHH45To64yrsHHInc125to150K | EE115: ="MOE "&ED115 -> MOE HHAgeHH45To64yrsHHInc125to150K | EF115: HHAgeHH45To64yrsHHInc150to200K | EG115: ="MOE "&EF115 -> MOE HHAgeHH45To64yrsHHInc150to200K | EH115: HHAge45To64yrsHHInc>200K | EI115: ="MOE "&EH115 -> MOE HHAge45To64yrsHHInc>200K | EJ115: HHAgeHH65yrsorOlder | EK115: ="MOE "&EJ115 -> MOE HHAgeHH65yrsorOlder | EL115: HHAgeHH65yrsorOlderHHInc<10K | EM115: ="MOE "&EL115 -> MOE HHAgeHH65yrsorOlderHHInc<10K | EN115: HHAgeHH65yrsorOlderHHInc10to15K | EO115: ="MOE "&EN115 -> MOE HHAgeHH65yrsorOlderHHInc10to15K | EP115: HHAgeHH65yrsorOlderHHInc15to20K | EQ115: ="MOE "&EP115 -> MOE HHAgeHH65yrsorOlderHHInc15to20K | ER115: HHAgeHH65yrsorOlderHHInc20to25K | ES115: ="MOE "&ER115 -> MOE HHAgeHH65yrsorOlderHHInc20to25K | ET115: HHAgeHH65yrsorOlderHHInc25to30K | EU115: ="MOE "&ET115 -> MOE HHAgeHH65yrsorOlderHHInc25to30K | EV115: HHAgeHH65yrsorOlderHHInc30to35K | EW115: ="MOE "&EV115 -> MOE HHAgeHH65yrsorOlderHHInc30to35K | EX115: HHAgeHH65yrsorOlderHHInc35to40K | EY115: ="MOE "&EX115 -> MOE HHAgeHH65yrsorOlderHHInc35to40K | EZ115: HHAgeHH65yrsorOlderHHInc40to45K | FA115: ="MOE "&EZ115 -> MOE HHAgeHH65yrsorOlderHHInc40to45K | FB115: HHAgeHH65yrsorOlderHHInc45to50K | FC115: ="MOE "&FB115 -> MOE HHAgeHH65yrsorOlderHHInc45to50K | FD115: HHAgeHH65yrsorOlderHHInc50to60K | FE115: ="MOE "&FD115 -> MOE HHAgeHH65yrsorOlderHHInc50to60K | FF115: HHAgeHH65yrsorOlderHHInc60to75K | FG115: ="MOE "&FF115 -> MOE HHAgeHH65yrsorOlderHHInc60to75K | FH115: HHAgeHH65yrsorOlderHHInc75to100K | FI115: ="MOE "&FH115 -> MOE HHAgeHH65yrsorOlderHHInc75to100K | FJ115: HHAgeHH65yrsorOlderHHInc100to125K | FK115: ="MOE "&FJ115 -> MOE HHAgeHH65yrsorOlderHHInc100to125K | FL115: HHAgeHH65yrsorOlderHHInc125to150K | FM115: ="MOE "&FL115 -> MOE HHAgeHH65yrsorOlderHHInc125to150K | FN115: HHAgeHH65yrsorOlderHHInc150to200K | FO115: ="MOE "&FN115 -> MOE HHAgeHH65yrsorOlderHHInc150to200K | FP115: HHAge65yrsorOlderHHInc>200K | FQ115: ="MOE "&FP115 -> MOE HHAge65yrsorOlderHHInc>200K | FR115: MedianHHInc | FS115: ="MOE "&FR115 -> MOE MedianHHInc | FT115: HH under 25 years | FU115: ="MOE "&FT115 -> MOE HH under 25 years | FV115: Householder 25 to 44 years | FW115: ="MOE "&FV115 -> MOE Householder 25 to 44 years | FX115: Householder 45 to 64 years | FY115: ="MOE "&FX115 -> MOE Householder 45 to 64 years | FZ115: Householder 65 years and over | GA115: ="MOE "&FZ115 -> MOE Householder 65 years and over
A116: =VLOOKUP(DropDownList!$B$47,CntyQryCensus!$A$510:$DA$552,A$1) -> Franconia | B116: 446 | C116: 89 | D116: 16 | E116: 11 | F116: 0 | G116: 12 | H116: 14 | I116: 19 | J116: 14 | K116: 14 | L116: 59 | M116: 41 | N116: 8 | O116: 8 | P116: 15 | Q116: 15 | R116: 18 | S116: 15 | T116: 21 | U116: 18 | V116: 20 | W116: 14 | X116: 68 | Y116: 29 | Z116: 24 | AA116: 16 | AB116: 50 | AC116: 43 | AD116: 39 | AE116: 32 | AF116: 41 | AG116: 24 | AH116: 39 | AI116: 20 | AJ116: 446 | AK116: 89 | AL116: 6 | AM116: 9 | AN116: 6 | AO116: 9 | AP116: 0 | AQ116: 12 | AR116: 0 | AS116: 12 | AT116: 0 | AU116: 12 | AV116: 0 | AW116: 12 | AX116: 0 | AY116: 12 | AZ116: 0 | BA116: 12 | BB116: 0 | BC116: 12 | BD116: 0 | BE116: 12 | BF116: 0 | BG116: 12 | BH116: 0 | BI116: 12 | BJ116: 0 | BK116: 12 | BL116: 0 | BM116: 12 | BN116: 0 | BO116: 12 | BP116: 0 | BQ116: 12 | BR116: 0 | BS116: 12 | BT116: 30 | BU116: 18 | BV116: 0 | BW116: 12 | BX116: 0 | BY116: 12 | BZ116: 2 | CA116: 4 | CB116: 0 | CC116: 12 | CD116: 0 | CE116: 12 | CF116: 1 | CG116: 4 | CH116: 3 | CI116: 5 | CJ116: 3 | CK116: 4 | CL116: 6 | CM116: 7 | CN116: 0 | CO116: 12 | CP116: 9 | CQ116: 9 | CR116: 0 | CS116: 12 | CT116: 3 | CU116: 5 | CV116: 0 | CW116: 12 | CX116: 3 | CY116: 5 | CZ116: 0 | DA116: 12 | DB116: 198 | DC116: 62 | DD116: 7 | DE116: 7 | DF116: 0 | DG116: 12 | DH116: 11 | DI116: 17 | DJ116: 11 | DK116: 14 | DL116: 18 | DM116: 18 | DN116: 4 | DO116: 6 | DP116: 8 | DQ116: 12 | DR116: 0 | DS116: 12 | DT116: 6 | DU116: 6 | DV116: 14 | DW116: 15 | DX116: 23 | DY116: 19 | DZ116: 12 | EA116: 13 | EB116: 31 | EC116: 41 | ED116: 9 | EE116: 9 | EF116: 21 | EG116: 16 | EH116: 23 | EI116: 17 | EJ116: 212 | EK116: 61 | EL116: 3 | EM116: 4 | EN116: 0 | EO116: 12 | EP116: 1 | EQ116: 3 | ER116: 3 | ES116: 4 | ET116: 41 | EU116: 40 | EV116: 3 | EW116: 4 | EX116: 4 | EY116: 7 | EZ116: 15 | FA116: 15 | FB116: 9 | FC116: 16 | FD116: 6 | FE116: 6 | FF116: 36 | FG116: 19 | FH116: 12 | FI116: 10 | FJ116: 16 | FK116: 14 | FL116: 30 | FM116: 30 | FN116: 17 | FO116: 16 | FP116: 16 | FQ116: 10 | FR116: 68750 | FS116: 10545 | FT116: - | FU116: ** | FV116: 56250 | FW116: 31824 | FX116: 70000 | FY116: 38551 | FZ116: 73125 | GA116: 15659
A118: Number of Households by Income
A119: NAME | B119: HHIncLessThn10k | C119: ="MOE "&B119 -> MOE HHIncLessThn10k | D119: HHInc10to15K | E119: ="MOE "&D119 -> MOE HHInc10to15K | F119: HHInc15to25K | G119: ="MOE "&F119 -> MOE HHInc15to25K | H119: HHInc25to35K | I119: ="MOE "&H119 -> MOE HHInc25to35K | J119: HHInc35to50K | K119: ="MOE "&J119 -> MOE HHInc35to50K | L119: HHInc50to75K | M119: ="MOE "&L119 -> MOE HHInc50to75K | N119: HHInc75to100K | O119: ="MOE "&N119 -> MOE HHInc75to100K | P119: HHInc100to150K | Q119: ="MOE "&P119 -> MOE HHInc100to150K | R119: HHInc150to200K | S119: ="MOE "&R119 -> MOE HHInc150to200K | T119: HHIncOver200K | U119: ="MOE "&T119 -> MOE HHIncOver200K
A120: =VLOOKUP(DropDownList!$B$47,CntyQryCensus!$A$510:$DA$552,A$1) -> Franconia | B120: 16 | C120: 11 | D120: 0 | E120: 12 | F120: 28 | G120: 23.60084744 | H120: 67 | I120: 41.77319715 | J120: 54 | K120: 27.82085549 | L120: 88 | M120: 32.20248438 | N120: 24 | O120: 16 | P120: 89 | Q120: 53.60037313 | R120: 41 | S120: 24 | T120: 39 | U120: 20 | V120: 92 | W120: 26 | X120: 100 | Y120: 34 | Z120: 70 | AA120: 30 | AB120: 10 | AC120: 8 | AD120: 9 | AE120: 7 | AF120: 7 | AG120: 7
A123: NAME | B123: TotalPop | C123: ="MOE "&B123 -> MOE TotalPop | D123: Total Individuals living in Poverty | E123: ="MOE "&D123 -> MOE Total Individuals living in Poverty | F123: Under 5 yrs. | G123: ="MOE "&F123 -> MOE Under 5 yrs. | H123: 5 to 17 yrs. | I123: ="MOE "&H123 -> MOE 5 to 17 yrs. | J123: 18 to 64 yrs. | K123: ="MOE "&J123 -> MOE 18 to 64 yrs. | L123: 65 to 74 yrs. | M123: ="MOE "&L123 -> MOE 65 to 74 yrs. | N123: 75 yrs. & Over | O123: ="MOE "&N123 -> MOE 75 yrs. & Over | P123: Total Individuals Not living Poverty | Q123: ="MOE "&P123 -> MOE Total Individuals Not living Poverty | R123: Under 5 yrs. | S123: ="MOE "&R123 -> MOE Under 5 yrs. | T123: 5 to 17 yrs. | U123: ="MOE "&T123 -> MOE 5 to 17 yrs. | V123: 18 to 64 yrs. | W123: ="MOE "&V123 -> MOE 18 to 64 yrs. | X123: 65 to 74 yrs. | Y123: ="MOE "&X123 -> MOE 65 to 74 yrs. | Z123: 75 yrs. & Over | AA123: ="MOE "&Z123 -> MOE 75 yrs. & Over | AB123: Total HH | AC123: ="MOE "&AB123 -> MOE Total HH | AD123: Total Households Below Poverty | AE123: ="MOE "&AD123 -> MOE Total Households Below Poverty | AF123: Family Households in Poverty | AG123: ="MOE "&AF123 -> MOE Family Households in Poverty | AH123: Married Couple Fam HH | AI123: ="MOE "&AH123 -> MOE Married Couple Fam HH | AJ123: Other Family | AK123: ="MOE "&AJ123 -> MOE Other Family | AL123: Male Head of Family HH no wife | AM123: ="MOE "&AL123 -> MOE Male Head of Family HH no wife | AN123: Female Head of Family HH no husband | AO123: ="MOE "&AN123 -> MOE Female Head of Family HH no husband | AP123: Non-Family HH | AQ123: ="MOE "&AP123 -> MOE Non-Family HH | AR123: Non-Family Male HH | AS123: ="MOE "&AR123 -> MOE Non-Family Male HH | AT123: Non-Family Female HH | AU123: ="MOE "&AT123 -> MOE Non-Family Female HH | AV123: Total Households at or Above Poverty | AW123: ="MOE "&AV123 -> MOE Total Households at or Above Poverty | AX123: Family Households above Poverty | AY123: ="MOE "&AX123 -> MOE Family Households above Poverty | AZ123: Married Couple Fam HH | BA123: ="MOE "&AZ123 -> MOE Married Couple Fam HH | BB123: Other Family | BC123: ="MOE "&BB123 -> MOE Other Family | BD123: Male Head of Family HH no wife | BE123: ="MOE "&BD123 -> MOE Male Head of Family HH no wife | BF123: Female Head of Family HH no husband | BG123: ="MOE "&BF123 -> MOE Female Head of Family HH no husband | BH123: Non-Family HH | BI123: ="MOE "&BH123 -> MOE Non-Family HH | BJ123: Non-Family Male HH | BK123: ="MOE "&BJ123 -> MOE Non-Family Male HH | BL123: Non-Family Female HH | BM123: ="MOE "&BL123 -> MOE Non-Family Female HH | BN123: Married Couple with Children Below Poverty | BO123: ="MOE "&BN123 -> MOE Married Couple with Children Below Poverty | BP123: Male HH with children below poverty | BQ123: ="MOE "&BP123 -> MOE Male HH with children below poverty | BR123: Female HH with children below poverty | BS123: ="MOE "&BR123 -> MOE Female HH with children below poverty | BT123: Married Couple with Children At or Above Poverty | BU123: ="MOE "&BT123 -> MOE Married Couple with Children At or Above Poverty | BV123: Male HH with children at or above poverty | BW123: ="MOE "&BV123 -> MOE Male HH with children at or above poverty | BX123: Female HH with children at or above poverty | BY123: ="MOE "&BX123 -> MOE Female HH with children at or above poverty
A124: =VLOOKUP(DropDownList!$B$47,CntyQryCensus!$A$510:$DA$552,A$1) -> Franconia | B124: 1932 | C124: 296 | D124: 145 | E124: 58 | F124: 3 | G124: 22.36067977 | H124: 28 | I124: 40.01249805 | J124: 81 | K124: 35.02855978 | L124: 17 | M124: 12.64911064 | N124: 16 | O124: 9.899494937 | P124: 1787 | Q124: 290 | R124: 34 | S124: 25.70992026 | T124: 157 | U124: 54.04627647 | V124: 1185 | W124: 200.3247364 | X124: 244 | Y124: 66.03029608 | Z124: 167 | AA124: 73.10950691 | AB124: 705 | AC124: 93 | AD124: 56 | AE124: 26 | AF124: 33 | AG124: 21 | AH124: 8 | AI124: 7 | AJ124: 25 | AK124: 19 | AL124: 0 | AM124: 12 | AN124: 25 | AO124: 19 | AP124: 23 | AQ124: 15 | AR124: 12 | AS124: 9 | AT124: 11 | AU124: 13 | AV124: 649 | AW124: 88 | AX124: 512 | AY124: 81 | AZ124: 472 | BA124: 84 | BB124: 40 | BC124: 19 | BD124: 0 | BE124: 12 | BF124: 40 | BG124: 19 | BH124: 137 | BI124: 40 | BJ124: 101 | BK124: 37 | BL124: 36 | BM124: 18 | BN124: 2 | BO124: 3 | BP124: 0 | BQ124: 12 | BR124: 20 | BS124: 19 | BT124: 83 | BU124: 26 | BV124: 0 | BW124: 12 | BX124: 19 | BY124: 12 | CC124: Margin Of Error | CD124: 14171 | CE124: 125 | CF124: 1103 | CG124: 405 | CH124: 169 | CI124: 98.22932352 | CJ124: 168 | CK124: 90.38252043 | CL124: 661 | CM124: 225.9004205 | CN124: 35 | CO124: 42.48529157 | CP124: 70 | CQ124: 58.52349955 | CR124: 13068 | CS124: 422 | CT124: 616 | CU124: 179.2456415 | CV124: 1204 | CW124: 287.9809021 | CX124: 8423 | CY124: 714.4284429 | CZ124: 1496 | DA124: 257.4024087 | DB124: 1329 | DC124: 248.6382915
A126: Household Income By Tenure
A127: NAME | B127: TotalOccHU | C127: ="MOE "&B127 -> MOE TotalOccHU | D127: OwnOccHU | E127: ="MOE "&D127 -> MOE OwnOccHU | F127: OOHUInc<5K | G127: ="MOE "&F127 -> MOE OOHUInc<5K | H127: OOHUInc5to10K | I127: ="MOE "&H127 -> MOE OOHUInc5to10K | J127: OOHUInc10to15K | K127: ="MOE "&J127 -> MOE OOHUInc10to15K | L127: OOHUInc15to20K | M127: ="MOE "&L127 -> MOE OOHUInc15to20K | N127: OOHUInc20to25K | O127: ="MOE "&N127 -> MOE OOHUInc20to25K | P127: OOHUInc25to35K | Q127: ="MOE "&P127 -> MOE OOHUInc25to35K | R127: OOHUInc35to50K | S127: ="MOE "&R127 -> MOE OOHUInc35to50K | T127: OOHUInc50to75K | U127: ="MOE "&T127 -> MOE OOHUInc50to75K | V127: OOHUInc75to100K | W127: ="MOE "&V127 -> MOE OOHUInc75to100K | X127: OOHUInc100to150K | Y127: ="MOE "&X127 -> MOE OOHUInc100to150K | Z127: OOHUInc>150K | AA127: ="MOE "&Z127 -> MOE OOHUInc>150K | AB127: RentOccHU | AC127: ="MOE "&AB127 -> MOE RentOccHU | AD127: ROHUInc<5K | AE127: ="MOE "&AD127 -> MOE ROHUInc<5K | AF127: ROHUInc5to10K | AG127: ="MOE "&AF127 -> MOE ROHUInc5to10K | AH127: ROHUInc10to15K | AI127: ="MOE "&AH127 -> MOE ROHUInc10to15K | AJ127: ROHUInc15to20K | AK127: ="MOE "&AJ127 -> MOE ROHUInc15to20K | AL127: ROHUInc20to25K | AM127: ="MOE "&AL127 -> MOE ROHUInc20to25K | AN127: ROHUInc25to35K | AO127: ="MOE "&AN127 -> MOE ROHUInc25to35K | AP127: ROHUInc35to50K | AQ127: ="MOE "&AP127 -> MOE ROHUInc35to50K | AR127: ROHUInc50to75K | AS127: ="MOE "&AR127 -> MOE ROHUInc50to75K | AT127: ROHUInc75to100K | AU127: ="MOE "&AT127 -> MOE ROHUInc75to100K | AV127: ROHUInc100to150K | AW127: ="MOE "&AV127 -> MOE ROHUInc100to150K | AX127: ROHUInc>150K | AY127: ="MOE "&AX127 -> MOE ROHUInc>150K | AZ127: Total OCC HUInc<5K | BA127: ="MOE "&AZ127 -> MOE Total OCC HUInc<5K | BB127: Total OCC HUInc5to10K | BC127: ="MOE "&BB127 -> MOE Total OCC HUInc5to10K | BD127: Total OCC HUInc10to15K | BE127: ="MOE "&BD127 -> MOE Total OCC HUInc10to15K | BF127: Total OCC HUInc15to20K | BG127: ="MOE "&BF127 -> MOE Total OCC HUInc15to20K | BH127: Total OCC HUInc20to25K | BI127: ="MOE "&BH127 -> MOE Total OCC HUInc20to25K | BJ127: Total OCC HUInc25to35K | BK127: ="MOE "&BJ127 -> MOE Total OCC HUInc25to35K | BL127: Total OCC HUInc35to50K | BM127: ="MOE "&BL127 -> MOE Total OCC HUInc35to50K | BN127: Total OCC HUInc50to75K | BO127: ="MOE "&BN127 -> MOE Total OCC HUInc50to75K | BP127: Total OCC HUInc75to100K | BQ127: ="MOE "&BP127 -> MOE Total OCC HUInc75to100K | BR127: Total OCC HUInc100to150K | BS127: ="MOE "&BR127 -> MOE Total OCC HUInc100to150K | BT127: Total OCC HUInc>150K | BU127: ="MOE "&BT127 -> MOE Total OCC HUInc>150K | BV127: MedHHInc | BW127: ="MOE "&BV127 -> MOE MedHHInc | BX127: MedOwnOccHHInc | BY127: ="MOE "&BX127 -> MOE MedOwnOccHHInc | BZ127: MedRentOccHHInc | CA127: ="MOE "&BZ127 -> MOE MedRentOccHHInc
A128: =VLOOKUP(DropDownList!$B$47,CntyQryCensus!$A$510:$DA$552,A$1) -> Franconia | B128: 446 | C128: 89 | D128: 354 | E128: 87 | F128: 3 | G128: 4 | H128: 7 | I128: 7 | J128: 0 | K128: 12 | L128: 3 | M128: 6 | N128: 3 | O128: 4 | P128: 49 | Q128: 37 | R128: 39 | S128: 23 | T128: 69 | U128: 28 | V128: 15 | W128: 10 | X128: 86 | Y128: 53 | Z128: 80 | AA128: 30 | AB128: 92 | AC128: 41 | AD128: 0 | AE128: 12 | AF128: 6 | AG128: 9 | AH128: 0 | AI128: 12 | AJ128: 11 | AK128: 17 | AL128: 11 | AM128: 14 | AN128: 18 | AO128: 22 | AP128: 15 | AQ128: 14 | AR128: 19 | AS128: 18 | AT128: 9 | AU128: 13 | AV128: 3 | AW128: 5 | AX128: 0 | AY128: 12 | AZ128: 3 | BA128: 12.64911064 | BB128: 13 | BC128: 11.40175425 | BD128: 0 | BE128: 16.97056275 | BF128: 14 | BG128: 18.02775638 | BH128: 14 | BI128: 14.56021978 | BJ128: 67 | BK128: 43.0464865 | BL128: 54 | BM128: 26.92582404 | BN128: 88 | BO128: 33.28663395 | BP128: 24 | BQ128: 16.40121947 | BR128: 89 | BS128: 53.23532662 | BT128: 80 | BU128: 32.31098884 | BV128: 68750 | BW128: 10545 | BX128: 81250 | BY128: 37338 | BZ128: 35000 | CA128: 21019
A130: Population Data
A131: NAME | B131: Total Population | C131: MOE Total Population | D131: Under 15 Years | E131: MOE Under 15 yrs. | F131: 15 to 24 yrs. | G131: MOE 15 to 24 yrs. | H131: 25 to 34 yrs. | I131: MOE 25 to 34 yrs. | J131: 35 to 44 yrs. | K131: MOE 35 to 44 yrs. | L131: 45 to 54 yrs. | M131: MOE 45 to 54 yrs. | N131: 55 to 64 yrs. | O131: MOE 55 to 64 yrs. | P131: 65 to 74 yrs. | Q131: MOE 65 to 74 yrs. | R131: Over 74 yrs. | S131: MOE Over 74 yrs. | T131: TotalHH | U131: MOE TotalHH | V131: FamilyHH | W131: MOE FamilyHH | X131: MarriedFamilyHH | Y131: MOE MarriedFamilyHH | Z131: SingleFamilyHH | AA131: MOE SingleFamilyHH | AB131: Sfamily-MaleHH | AC131: MOE Sfamily-MaleHH | AD131: Sfamily-FemaleHH | AE131: MOE Sfamily-FemaleHH | AF131: NonFamilyHH | AG131: MOE NonFamilyHH | AH131: NonFamilyHH-LivingAlone | AI131: MOE NonFamilyHH-LivingAlone | AJ131: NonFamilyHH-NotLivingAlone | AK131: MOE NonFamilyHH-NotLivingAlone | AL131: PopRaceWhite | AM131: MOE PopRaceWhite | AN131: PopRaceBlack | AO131: MOE PopRaceBlack | AP131: PopRaceAmerican Indian | AQ131: MOE PopRaceAmerican Indian | AR131: PopRaceAsian &Pacific Is. | AS131: MOE PopRaceAsian &Pacific Is. | AT131: PopRaceOther* | AU131: MOE PopRaceOther* | AV131: PopRaceHispanic or Latino: | AW131: MOE PopRaceHispanic or Latino: | AX131: MedianAgeTotalPop | AY131: MOE MedianAgeTotalPop | AZ131: MedianAgeMale | BA131: MOE MedianAgeMale | BB131: MedianAgeFemale | BC131: MOE MedianAgeFemale | BD131: AvgHHSizeTotal | BE131: MOE AvgHHSizeTotal | BF131: AvgHHSizeFamilyHH | BG131: MOE AvgHHSizeFamilyHH | BH131: AvgHHSizeNonFamilyHH | BI131: MOE AvgHHSizeNonFamilyHH
A132: =VLOOKUP(DropDownList!$B$47,CntyQryCensus!$A$510:$DA$552,A$1) -> Franconia | B132: 6645 | C132: 15 | D132: 841 | E132: 240.4911641 | F132: 1971 | G132: 428.3619964 | H132: 694 | I132: 245.3772606 | J132: 653 | K132: 249.9539958 | L132: 752 | M132: 241.3172186 | N132: 674 | O132: 226.984581 | P132: 704 | Q132: 227.0220254 | R132: 356 | S132: 193.708544 | T132: 2061 | U132: 285 | V132: 1271 | W132: 191 | X132: 783 | Y132: 170 | Z132: 488 | AA132: 175 | AB132: 211 | AC132: 136 | AD132: 277 | AE132: 123 | AF132: 790 | AG132: 289 | AH132: 637 | AI132: 273 | AJ132: 153 | AK132: 100 | AL132: 5868 | AM132: 255 | AN132: 192 | AO132: 106 | AP132: 0 | AQ132: 17 | AR132: 173 | AS132: 130.1153335 | AT132: 140 | AU132: 137.0583817 | AV132: 272 | AW132: 182 | AX132: 32 | AY132: 5.5 | AZ132: 31 | BA132: 4.5 | BB132: 39.3 | BC132: 10.5 | BD132: 2.640465793 | BE132: 0.3866264975 | BF132: 3.516915814 | BG132: 0.6052841928 | BH132: 1.230379747 | BI132: 0.6253804564 | BZ132: Lebanon | CB132: Estimate | CC132: Margin Of Error | CD132: 13474 | CE132: 43 | CF132: 2149 | CG132: 309.6433432 | CH132: 1491 | CI132: 303.502883 | CJ132: 2116 | CK132: 299.648127 | CL132: 1728 | CM132: 296.7709555 | CN132: 1878 | CO132: 280.9786469 | CP132: 2023 | CQ132: 286.5850659 | CR132: 1041 | CS132: 223.8258251 | CT132: 1048 | CU132: 214.3805028 | GT132: Littleton | GV132: Estimate | GW132: Margin Of Error | GX132: 5929 | GY132: 28 | GZ132: 1101 | HA132: 245.4954175 | HB132: 507 | HC132: 171.3067424 | HD132: 745 | HE132: 242.2189093 | HF132: 660 | HG132: 178.9944133 | HH132: 897 | HI132: 200.3646675 | HJ132: 856 | HK132: 209.0669749 | HL132: 680 | HM132: 166.7393175 | HN132: 483 | HO132: 159.1225942 | NT132: Littleton | NV132: Estimate | NW132: Margin Of Error | NX132: 5949 | NY132: 24 | NZ132: 895 | OA132: 203.9901958 | OB132: 736 | OC132: 237.9789907 | OD132: 441 | OE132: 155.0064515 | OF132: 763 | OG132: 180.2831107 | OH132: 1011 | OI132: 212.9366103 | OJ132: 987 | OK132: 199.1054997 | OL132: 537 | OM132: 152.6630276 | ON132: 579 | OO132: 248.201531
A134: Nativity and Prior Place of Residence
A135: NAME | B135: TotalPop | C135: ="MOE "&B135 -> MOE TotalPop | D135: Native: | E135: ="MOE "&D135 -> MOE Native: | F135: NatBornInStateOfResidence | G135: ="MOE "&F135 -> MOE NatBornInStateOfResidence | H135: Born in other state in the United States: | I135: ="MOE "&H135 -> MOE Born in other state in the United States: | J135: Northeast | K135: ="MOE "&J135 -> MOE Northeast | L135: Midwest | M135: ="MOE "&L135 -> MOE Midwest | N135: South | O135: ="MOE "&N135 -> MOE South | P135: West | Q135: ="MOE "&P135 -> MOE West | R135: Born outside the United States: | S135: ="MOE "&R135 -> MOE Born outside the United States: | T135: Puerto Rico | U135: ="MOE "&T135 -> MOE Puerto Rico | V135: U.S. Island Areas | W135: ="MOE "&V135 -> MOE U.S. Island Areas | X135: Born abroad of American parent(s) | Y135: ="MOE "&X135 -> MOE Born abroad of American parent(s) | Z135: Foreign born: | AA135: ="MOE "&Z135 -> MOE Foreign born: | AB135: Naturalized U.S. citizen | AC135: ="MOE "&AB135 -> MOE Naturalized U.S. citizen | AD135: Not a U.S. citizen | AE135: ="MOE "&AD135 -> MOE Not a U.S. citizen | AF135: CurrentResidenceTotal: | AG135: ="MOE "&AF135 -> MOE CurrentResidenceTotal: | AH135: SameHouse: | AI135: ="MOE "&AH135 -> MOE SameHouse: | AJ135: DifferentHouse: | AK135: ="MOE "&AJ135 -> MOE DifferentHouse: | AL135: DiffHouseInNH | AM135: ="MOE "&AL135 -> MOE DiffHouseInNH | AN135: DiffHouseInNHSameCnty | AO135: ="MOE "&AN135 -> MOE DiffHouseInNHSameCnty | AP135: DiffHouseInNHDiffCnty | AQ135: ="MOE "&AP135 -> MOE DiffHouseInNHDiffCnty | AR135: DiffHouseInDiffState | AS135: ="MOE "&AR135 -> MOE DiffHouseInDiffState | AT135: DiffHouseInElsewhere | AU135: ="MOE "&AT135 -> MOE DiffHouseInElsewhere
A136: =VLOOKUP(DropDownList!$B$47,CntyQryCensus!$A$510:$DA$552,A$1) -> Franconia | B136: 14316 | C136: 19 | D136: 13167 | E136: 305 | F136: 5738 | G136: 624 | H136: 7205 | I136: 597 | J136: 4264 | K136: 545 | L136: 1371 | M136: 349 | N136: 989 | O136: 291 | P136: 581 | Q136: 244 | R136: 224 | S136: 134 | T136: 97 | U136: 103 | V136: 0 | W136: 19 | X136: 127 | Y136: 95 | Z136: 1149 | AA136: 305 | AB136: 473 | AC136: 204 | AD136: 676 | AE136: 237 | AF136: 14079 | AG136: 127 | AH136: 11455 | AI136: 515 | AJ136: 2624 | AK136: 523.2494625 | AL136: 1091 | AM136: 339.754323 | AN136: 823 | AO136: 283 | AP136: 268 | AQ136: 188 | AR136: 1423 | AS136: 391 | AT136: 110 | AU136: 74
A138: School Enrollment - Education
